{"text_format":"1","workbook":"xlsx","n_sheets":11,"sheets":["Inscriptions","Convocation","Feuille de Match","Clubs","Bordereau d'engagement","Bordereau","Liste Joueurs","MACROS","Bordereau Invité Finale France","base de données","Calendrier"],"not_rendered":{"charts":0,"images":64,"macros":1,"external_links":4,"defined_names":89,"comments":0,"pivot_tables":0},"unopened":[],"bounds":{"document_bytes":16777216,"sheet_cells":100000,"rows_first":2000,"rows_last":500,"rows_between":2000,"halvings":0,"cell_chars":16384,"cell_head_chars":4096},"cells_cut":0,"cells_raw":0,"read":"whole","date_system":"1900"}

{"sheet":"Inscriptions","index":0,"n_rows":17,"n_cols":14,"rows_kept":17,"cut":false,"hidden":false,"merged":[[8,1,9,1],[8,3,8,4],[7,3,7,4],[2,7,2,8],[1,3,2,6],[5,2,5,3],[6,2,6,3],[1,1,2,2],[3,1,5,1],[4,2,4,3],[3,2,3,3]]}
[{"$f":"IF(F9=\"Finale CD62\",1,IF(F9=\"Finale Ligue\",1,IF(F9=\"Barreg Artois\",1,IF(F9=\"Barrage Maritime\",1,0))))","v":1}]
[{"$f":"IF(AND(C5=\"\",C9=\"\"),\"\",IF(AND(C5>0,C9=\"\"),1,IF(AND(C5>0,C9>0),\"\")))","v":""},"Fichier Optimisé pour l'organisation des\nFinales CD62",null,"Infos de la Compétition"]
[null,null,null,null,null,null,null,null,null,null,null,null,null,"leopoldmarlard@wanadoo.fr ; stephaneleducq@yahoo.fr ; auto_franck@hotmail.fr ; 0 ; dominique.sauvage@neuf.fr"]
[null,"Cellules à\nRemplir","Choix de la compétition",null,"Date","Club","Limite de reprises","Département ou club de la Finale Suivante"]
[null,null,"Finale CD62 Cadre Régionale 1 WIZERNES",null,{"$f":"IF($C$5<>\"\",VLOOKUP($C$5,Calendrier!$A$4:$M$63,2,FALSE),\"\")","v":"2026-01-25"},{"$f":"IF($C$5<>\"\",VLOOKUP($C$5,Calendrier!$A$4:$M$63,3,FALSE),\"\")","v":"WIZERNES"},{"$f":"IF($C$5<>\"\",VLOOKUP($C$5,Calendrier!$A4:$M$63,11,FALSE),\"\")","v":"Aucune Limitation"},{"$f":"IF($C$5<>\"\",VLOOKUP($C$5,Calendrier!$A$4:$I$63,9,FALSE),\"\")","v":"OISE"}]
[null,null,"Adversaire du Joueur 1 au 1er Tour",null,"Mode de jeu","Catégorie","Moyenne","Date de la Finale Suivante"]
[null,null,"J1 contre J2",null,{"$f":"IF($C$5<>\"\",VLOOKUP($C$5,Calendrier!$A$4:$M$63,4,FALSE),\"\")","v":"Cadre"},{"$f":"IF($C$5<>\"\",VLOOKUP($C$5,Calendrier!$A$4:$M$63,5,FALSE),\"\")","v":"Régionale 1"},{"$f":"IF($C$5<>\"\",VLOOKUP($C$5,Calendrier!$A$4:$M$63,12,FALSE),\"\")","v":"0,00 à 4,50"},{"$f":"IF($C$5<>\"\",VLOOKUP($C$5,Calendrier!$A$4:$I$63,8,FALSE),\"\")","v":"2025-02-15"}]
[null,"Lien FFB SPORTIF","Format","Responsable de la compétition",null,"Stade","Points","Finalistes du Comité :"]
[null,null,{"$f":"IF($C$5<>\"\",VLOOKUP($C$5,Calendrier!$A$4:$M$63,13,FALSE),\"\")","v":"2,80 m"},{"$f":"IF(C5=\"\",\"\",'base de données'!F83)","v":"André DESBLEUMORTIERS"},null,{"$f":"IF($C$5<>\"\",VLOOKUP($C$5,Calendrier!$A$4:$M$63,6,FALSE),\"\")","v":"Finale CD62"},{"$f":"IF($C$5<>\"\",VLOOKUP($C$5,Calendrier!$A$4:$M$63,10,FALSE),\"\")","v":"80 Points"},{"$f":"IF($C$5<>\"\",VLOOKUP($C$5,Calendrier!$A$4:$O$63,15,FALSE),\"\")","v":"Pas de Calais"}]
[null,null,null,null,null,"Catégorie abregé :",{"$f":"LEFT(F7,1)& \"\" &RIGHT(F7,1)","v":"R1"}]
[null,"NOM - PRENOM","MOY GEN",null,"Club","NOM","Prénom","Licence","Adresse","Code Postal","Ville","Tél Fixe","Tél Portable","Mail"]
[null,"FALSE FRANCK",4.62,"Joueur 1",{"$f":"IF(B12=\"\",\"\",VLOOKUP(B12,Tableau1[],6,FALSE))","v":"BILLY"},{"$f":"IF(B12=\"\",\"\",VLOOKUP(B12,Tableau1[],8,FALSE))","v":"FALSE"},{"$f":"IF(B12=\"\",\"\",VLOOKUP(B12,Tableau1[],7,FALSE))","v":"FRANCK"},{"$f":"IF(B12=\"\",\"\",VLOOKUP(B12,Tableau1[],2,FALSE))","v":"016907H"},{"$f":"IF(B12=\"\",\"\",VLOOKUP(B12,Tableau1[],11,FALSE))","v":"5 RUE LEON JOUHAUX"},{"$f":"IF(B12=\"\",\"\",VLOOKUP(B12,Tableau1[],14,FALSE))","v":62420},{"$f":"IF(B12=\"\",\"\",VLOOKUP(B12,Tableau1[],15,FALSE))","v":"BILLY MONTIGNY"},{"$f":"IF(B12=\"\",\"\",VLOOKUP(B12,Tableau1[],17,FALSE))","v":0},{"$f":"IF(B12=\"\",\"\",VLOOKUP(B12,Tableau1[],18,FALSE))","v":"0634180422"},{"$f":"IF(B12=\"\",\"\",VLOOKUP(B12,Tableau1[],19,FALSE))","v":"auto_franck@hotmail.fr"}]
[null,"BRAZY ALAIN",3.58,"Joueur 2",{"$f":"IF(B13=\"\",\"\",VLOOKUP(B13,Tableau1[],6,FALSE))","v":"CALAIS"},{"$f":"IF(B13=\"\",\"\",VLOOKUP(B13,Tableau1[],8,FALSE))","v":"BRAZY"},{"$f":"IF(B13=\"\",\"\",VLOOKUP(B13,Tableau1[],7,FALSE))","v":"ALAIN"},{"$f":"IF(B13=\"\",\"\",VLOOKUP(B13,Tableau1[],2,FALSE))","v":"102980U"},{"$f":"IF(B13=\"\",\"\",VLOOKUP(B13,Tableau1[],11,FALSE))","v":"110 RIVIERE D OYE"},{"$f":"IF(B13=\"\",\"\",VLOOKUP(B13,Tableau1[],14,FALSE))","v":62370},{"$f":"IF(B13=\"\",\"\",VLOOKUP(B13,Tableau1[],15,FALSE))","v":"OFFEKERQUE"},{"$f":"IF(B13=\"\",\"\",VLOOKUP(B13,Tableau1[],17,FALSE))","v":0},{"$f":"IF(B13=\"\",\"\",VLOOKUP(B13,Tableau1[],18,FALSE))","v":"0641384118"},{"$f":"IF(B13=\"\",\"\",VLOOKUP(B13,Tableau1[],19,FALSE))","v":"alain.brazy@hotmail.fr"}]
[null,"HUBERT HERVE",3.1,"Joueur 3",{"$f":"IF(B14=\"\",\"\",VLOOKUP(B14,Tableau1[],6,FALSE))","v":"AVION"},{"$f":"IF(B14=\"\",\"\",VLOOKUP(B14,Tableau1[],8,FALSE))","v":"HUBERT"},{"$f":"IF(B14=\"\",\"\",VLOOKUP(B14,Tableau1[],7,FALSE))","v":"HERVE"},{"$f":"IF(B14=\"\",\"\",VLOOKUP(B14,Tableau1[],2,FALSE))","v":"101140A"},{"$f":"IF(B14=\"\",\"\",VLOOKUP(B14,Tableau1[],11,FALSE))","v":"340 RUE DU 10 MARS"},{"$f":"IF(B14=\"\",\"\",VLOOKUP(B14,Tableau1[],14,FALSE))","v":62221},{"$f":"IF(B14=\"\",\"\",VLOOKUP(B14,Tableau1[],15,FALSE))","v":"NOYELLES SOUS LENS"},{"$f":"IF(B14=\"\",\"\",VLOOKUP(B14,Tableau1[],17,FALSE))","v":0},{"$f":"IF(B14=\"\",\"\",VLOOKUP(B14,Tableau1[],18,FALSE))","v":"0661941985"},{"$f":"IF(B14=\"\",\"\",VLOOKUP(B14,Tableau1[],19,FALSE))","v":"h.hubert@neuf.fr"}]
[null,"BAILLET BERNARD",2.88,"Joueur 4",{"$f":"IF(B15=\"\",\"\",VLOOKUP(B15,Tableau1[],6,FALSE))","v":"CUCQ"},{"$f":"IF(B15=\"\",\"\",VLOOKUP(B15,Tableau1[],8,FALSE))","v":"BAILLET"},{"$f":"IF(B15=\"\",\"\",VLOOKUP(B15,Tableau1[],7,FALSE))","v":"BERNARD"},{"$f":"IF(B15=\"\",\"\",VLOOKUP(B15,Tableau1[],2,FALSE))","v":"147240T"},{"$f":"IF(B15=\"\",\"\",VLOOKUP(B15,Tableau1[],11,FALSE))","v":"2 RUE BAILLET"},{"$f":"IF(B15=\"\",\"\",VLOOKUP(B15,Tableau1[],14,FALSE))","v":62600},{"$f":"IF(B15=\"\",\"\",VLOOKUP(B15,Tableau1[],15,FALSE))","v":"BERCK SUR MER"},{"$f":"IF(B15=\"\",\"\",VLOOKUP(B15,Tableau1[],17,FALSE))","v":"0321093352"},{"$f":"IF(B15=\"\",\"\",VLOOKUP(B15,Tableau1[],18,FALSE))","v":"0620798344"},{"$f":"IF(B15=\"\",\"\",VLOOKUP(B15,Tableau1[],19,FALSE))","v":"bernard.baillet@club-internet.fr"}]
[null,"MONNEYRAC SEBASTIEN",3.96,{"$f":"IF('base de données'!$C$200<>\"\",VLOOKUP('base de données'!$C$200,'base de données'!$C$201:$E$203,2,FALSE),\"\")","v":"Remplaçant Maritime :"},{"$f":"IF(B16=\"\",\"\",VLOOKUP(B16,Tableau1[],6,FALSE))","v":"COURRIERES"},{"$f":"IF(B16=\"\",\"\",VLOOKUP(B16,Tableau1[],8,FALSE))","v":"MONNEYRAC"},{"$f":"IF(B16=\"\",\"\",VLOOKUP(B16,Tableau1[],7,FALSE))","v":"SEBASTIEN"},{"$f":"IF(B16=\"\",\"\",VLOOKUP(B16,Tableau1[],2,FALSE))","v":"017277N"},{"$f":"IF(B16=\"\",\"\",VLOOKUP(B16,Tableau1[],11,FALSE))","v":"9 RUE JEAN MOULIN"},{"$f":"IF(B16=\"\",\"\",VLOOKUP(B16,Tableau1[],14,FALSE))","v":59194},{"$f":"IF(B16=\"\",\"\",VLOOKUP(B16,Tableau1[],15,FALSE))","v":"RACHES"},{"$f":"IF(B16=\"\",\"\",VLOOKUP(B16,Tableau1[],17,FALSE))","v":0},{"$f":"IF(B16=\"\",\"\",VLOOKUP(B16,Tableau1[],18,FALSE))","v":"0622195417"},{"$f":"IF(B16=\"\",\"\",VLOOKUP(B16,Tableau1[],19,FALSE))","v":"christine.monneyrac@sfr.fr"}]
[null,"LEBECQ JEAN PIERRE",null,{"$f":"IF('base de données'!$C$200<>\"\",VLOOKUP('base de données'!$C$200,'base de données'!$C$201:$E$203,3,FALSE),\"\")","v":"Remplaçant Artois :"},{"$f":"IF(B17=\"\",\"\",VLOOKUP(B17,Tableau1[],6,FALSE))","v":"OUTREAU"},{"$f":"IF(B17=\"\",\"\",VLOOKUP(B17,Tableau1[],8,FALSE))","v":"LEBECQ"},{"$f":"IF(B17=\"\",\"\",VLOOKUP(B17,Tableau1[],7,FALSE))","v":"JEAN PIERRE"},{"$f":"IF(B17=\"\",\"\",VLOOKUP(B17,Tableau1[],2,FALSE))","v":"017236Y"},{"$f":"IF(B17=\"\",\"\",VLOOKUP(B17,Tableau1[],11,FALSE))","v":"157 RUE DES IRIS"},{"$f":"IF(B17=\"\",\"\",VLOOKUP(B17,Tableau1[],14,FALSE))","v":62780},{"$f":"IF(B17=\"\",\"\",VLOOKUP(B17,Tableau1[],15,FALSE))","v":"CUCQ"},{"$f":"IF(B17=\"\",\"\",VLOOKUP(B17,Tableau1[],17,FALSE))","v":0},{"$f":"IF(B17=\"\",\"\",VLOOKUP(B17,Tableau1[],18,FALSE))","v":"0659355049"},{"$f":"IF(B17=\"\",\"\",VLOOKUP(B17,Tableau1[],19,FALSE))","v":"jpv.lebecq@gmail.com"}]

{"sheet":"Convocation","index":1,"n_rows":100,"n_cols":33,"rows_kept":100,"cut":false,"hidden":false,"merged":[[21,3,21,4],[28,7,28,13],[59,2,59,3],[19,3,19,4],[24,9,24,10],[66,3,66,4],[72,9,72,10],[99,1,102,14],[0,1,5,14],[76,5,76,6],[76,7,76,9],[20,3,20,4],[17,9,17,13],[81,2,81,13],[29,7,29,12],[26,3,26,4],[27,3,27,4],[27,7,27,13],[14,11,15,12],[24,3,24,4],[30,1,33,14],[14,2,15,2],[14,3,15,3],[14,9,14,10],[7,3,9,5],[7,6,9,8],[7,9,9,9],[11,10,13,13],[7,10,9,12],[11,2,13,3],[11,4,13,5],[11,6,13,9],[14,13,15,13],[65,29,65,30],[65,31,65,32],[23,7,23,8],[18,3,18,4],[20,9,20,13],[21,9,21,13],[24,7,24,8],[19,9,19,13],[25,3,25,4],[65,27,65,28],[65,3,65,4],[63,27,64,32],[18,9,18,13],[23,2,23,5],[25,7,25,8],[25,9,25,10],[67,31,68,31],[67,32,68,32],[67,3,67,4],[68,3,68,4],[67,27,68,27],[67,28,68,28],[67,29,68,29],[67,30,68,30],[72,7,72,8],[9,17,9,20],[11,17,11,21],[70,7,70,8],[70,9,70,10],[71,7,71,8],[71,9,71,10],[16,6,16,9],[18,21,18,24]]}
[null,null,null,null,null,null,null,null,null,null,null,null,null,null,null,null,"Convocation"]
[null,null,null,null,null,null,null,null,null,null,null,null,null,null,null,null,{"$f":"IF($Q$8<>\"\",VLOOKUP(Q8,$Q$10:$R$12,2,FALSE),\"\")","v":"Finale du Comité Départemental Sport Billard 62"}]
[]
[null,null,null,null,null,null,null,null,null,null,null,null,null,null,null,null,"Limitation de reprises"]
[null,null,null,null,null,null,null,null,null,null,null,null,null,null,null,null,{"$f":"IF(Inscriptions!G5=\"\",\"\",Inscriptions!G5)","v":"Aucune Limitation"}]
[]
[null,null,null,null,null,null,null,null,null,null,null,null,null,null,null,null,"Stade"]
[null,null,null,{"$f":"IF(Inscriptions!E7=\"\",\"\",Inscriptions!E7)","v":"Cadre"},null,null,{"$f":"IF(Inscriptions!F7=\"\",\"\",Inscriptions!F7)","v":"Régionale 1"},null,null,null,{"$f":"IF(Inscriptions!E5=\"\",\"\",Inscriptions!E5)","v":"2026-01-25"},null,null,null,null,null,{"$f":"IF(Inscriptions!F9=\"\",\"\",Inscriptions!F9)","v":"Finale CD62"}]
[]
[null,null,null,null,null,null,null,null,null,null,null,null,null,null,null,null,"Finale CD62","Finale du Comité Départemental Sport Billard 62"]
[null,null,null,null,null,null,null,null,null,null,null,null,null,null,null,null,"Finale Ligue","Finale Ligue Nord Pas de Calais Sport Billard"]
[null,null,"DISTANCE :",null,{"$f":"IF(Inscriptions!G9=\"\",\"\",Inscriptions!G9)","v":"80 Points"},null,{"$f":"IF(Inscriptions!F5=\"\",\"\",Inscriptions!F5)","v":"WIZERNES"},null,null,null,{"$f":"\"MAX REPRISES :\"&\" \" &Q5","v":"MAX REPRISES : Aucune Limitation"},null,null,null,null,null,"Barrage Artois","Barrage Artois du Comité Départemental Sport Billard 62\nDu Pas de Calais"]
[]
[]
[null,null,"RDV :",{"$f":"IF(E15=\"\",\"\",IF(E15=\"D\",\"8H30\",\"14H00\"))","v":"8H30"},{"$f":"IF(K8=\"\",\"\",IF(WEEKDAY(K8)=7,\"S\",\"D\"))","v":"D"},null,null,null,null,null,null,"DEBUT MATCHS :",null,{"$f":"IF(E15=\"\",\"\",IF(E15=\"D\",\"9H00\",\"14H30\"))","v":"9H00"}]
[]
[]
[null,null,null,null,null,null,null,null,null,{"$f":"IF($G$12<>\"\",VLOOKUP($G$12,'base de données'!$O$8:$T$36,2,FALSE),\"\")","v":"WIZERNES BILLARD CLUB"}]
[null,null,null,null,null,null,null,null,null,{"$f":"IF($G$12<>\"\",VLOOKUP($G$12,'base de données'!$O$8:$T$36,3,FALSE),\"\")","v":"Rue des Ecoles 62570 WIZERNES"},null,null,null,null,null,null,null,null,null,null,null,"Ordre des matchs"]
[null,null,null,null,null,null,null,null,null,{"$f":"IF($G$12<>\"\",VLOOKUP($G$12,'base de données'!$O$8:$T$36,4,FALSE),\"\")","v":"Résidence Marie Curie"}]
[null,null,null,null,null,null,null,null,null,{"$f":"IF($G$12<>\"\",VLOOKUP($G$12,'base de données'!$O$8:$T$36,5,FALSE),\"\")","v":321392007},null,null,null,null,null,null,null,null,null,null,null,"J1 contre J2","J3 contre J4","J1 contre J2","Match restant du J2"]
[null,null,null,null,null,null,null,null,null,{"$f":"IF($G$12<>\"\",VLOOKUP($G$12,'base de données'!$O$8:$U$36,7,FALSE),\"\")","v":0},null,null,null,null,null,null,null,null,null,null,null,"J1 contre J3","J2 contre j4","J1 contre J3","Match restant du J3"]
[null,null,null,null,null,null,null,null,null,null,null,null,null,null,null,null,null,null,null,null,null,"J1 contre J4","J2 contre J3","J1 contre J4","Match restant du J4"]
[]
[]
[]
[]
[]
[]
[]
[]
[]
[]
[]
[]
[]
[]
[]
[]
[]
[]
[]
[]
[]
[]
[]
[]
[]
[null,null,"P1","P2"]
[null,null,{"$f":"IF(G19=\"\",\"\",IF(Convocation!G19=Convocation!G20,1,0))","v":""},{"$f":"IF(M19=\"\",\"\",IF(Convocation!M19=Convocation!M20,1,0))","v":""}]
[null,null,{"$f":"IF(G19=\"\",\"\",IF(Convocation!G20=Convocation!G21,1,0))","v":""},{"$f":"IF(M19=\"\",\"\",IF(Convocation!M20=Convocation!M21,1,0))","v":""}]
[null,null,{"$f":"IF(G19=\"\",\"\",IF(Convocation!G21=Convocation!G19,1,0))","v":""},{"$f":"IF(M19=\"\",\"\",IF(Convocation!M21=Convocation!M19,1,0))","v":""}]
[null,null,{"$f":"SUM(C50:C52)","v":0},{"$f":"SUM(D50:D52)","v":0}]
[null,null,"P3","P4"]
[null,null,{"$f":"IF(G25=\"\",\"\",IF(Convocation!G25=Convocation!G26,1,0))","v":""},{"$f":"IF(M25=\"\",\"\",IF(Convocation!M25=Convocation!M26,1,0))","v":""}]
[null,null,{"$f":"IF(G25=\"\",\"\",IF(Convocation!G26=Convocation!G27,1,0))","v":""},{"$f":"IF(M25=\"\",\"\",IF(Convocation!M26=Convocation!M27,1,0))","v":""}]
[null,null,{"$f":"IF(G25=\"\",\"\",IF(Convocation!G27=Convocation!G25,1,0))","v":""},{"$f":"IF(M25=\"\",\"\",IF(Convocation!M27=Convocation!M25,1,0))","v":""}]
[null,null,{"$f":"SUM(C55:C57)","v":0},{"$f":"SUM(D55:D57)","v":0}]
[]
[null,null,{"$f":"SUM(C53,D53,C58,D58)","v":0}]
[]
[]
[]
[null,null,null,null,null,null,null,null,null,null,null,null,null,null,null,null,null,null,null,null,null,null,null,null,null,null,null,"Déroulement de la Compétition"]
[null,null,null,"Joueurs",null,"Club","Licence","Moyenne"]
[null,null,"J1 :",{"$f":"IF(Inscriptions!B12=\"\",\"\",Inscriptions!B12)","v":"FALSE FRANCK"},null,{"$f":"IF(Inscriptions!E12=\"\",\"\",Inscriptions!E12)","v":"BILLY"},{"$f":"IF(Inscriptions!H12=\"\",\"\",Inscriptions!H12)","v":"016907H"},{"$f":"IF(Inscriptions!C12=\"\",\"\",Inscriptions!C12)","v":4.62},null,null,null,null,null,null,null,null,null,null,null,null,null,null,null,null,null,null,null,"1er Tour",null,"2ème Tour",null,"3ème Tour"]
[null,null,"J2 :",{"$f":"IF(Inscriptions!B13=\"\",\"\",Inscriptions!B13)","v":"BRAZY ALAIN"},null,{"$f":"IF(Inscriptions!E13=\"\",\"\",Inscriptions!E13)","v":"CALAIS"},{"$f":"IF(Inscriptions!H13=\"\",\"\",Inscriptions!H13)","v":"102980U"},{"$f":"IF(Inscriptions!C13=\"\",\"\",Inscriptions!C13)","v":3.58},null,null,null,null,null,null,null,null,null,null,null,null,null,null,null,null,null,null,null,"Billard 1","Billard 2","Billard 1","Billard 2","Billard 1","Billard 2"]
[null,null,"J3 :",{"$f":"IF(Inscriptions!B14=\"\",\"\",Inscriptions!B14)","v":"HUBERT HERVE"},null,{"$f":"IF(Inscriptions!E14=\"\",\"\",Inscriptions!E14)","v":"AVION"},{"$f":"IF(Inscriptions!H14=\"\",\"\",Inscriptions!H14)","v":"101140A"},{"$f":"IF(Inscriptions!C14=\"\",\"\",Inscriptions!C14)","v":3.1},null,null,null,null,null,null,null,null,null,null,null,null,null,null,null,null,null,null,null,{"$f":"IF(Inscriptions!C7=\"\",\"\",Inscriptions!C7)","v":"J1 contre J2"},{"$f":"IF($AB68<>\"\",VLOOKUP($AB68,$V$21:$Y$23,2,FALSE),\"\")","v":"J3 contre J4"},"Les perdants entre eux","Les vainqueurs entre eux",{"$f":"IF($AB68<>\"\",VLOOKUP($AB68,$X$21:$Y$23,2,FALSE),\"\")","v":"Match restant du J2"},"Match restant du J1"]
[null,null,"J4 :",{"$f":"IF(Inscriptions!B15=\"\",\"\",Inscriptions!B15)","v":"BAILLET BERNARD"},null,{"$f":"IF(Inscriptions!E15=\"\",\"\",Inscriptions!E15)","v":"CUCQ"},{"$f":"IF(Inscriptions!H15=\"\",\"\",Inscriptions!H15)","v":"147240T"},{"$f":"IF(Inscriptions!C15=\"\",\"\",Inscriptions!C15)","v":2.88}]
[]
[null,null,null,null,null,null,null,null,null,"Joueurs",null,"Club","Licence","Moyenne"]
[null,null,null,null,null,null,null,{"$f":"IF(Inscriptions!D16=\"\",\"\",Inscriptions!D16)","v":"Remplaçant Maritime :"},null,{"$f":"IF(Inscriptions!B16=\"\",\"\",Inscriptions!B16)","v":"MONNEYRAC SEBASTIEN"},null,{"$f":"IF(Inscriptions!E16=\"\",\"\",Inscriptions!E16)","v":"COURRIERES"},{"$f":"IF(Inscriptions!H16=\"\",\"\",Inscriptions!H16)","v":"017277N"},{"$f":"IF(Inscriptions!C16=\"\",\"\",Inscriptions!C16)","v":3.96}]
[null,null,null,null,null,null,null,{"$f":"IF(Inscriptions!D17=\"\",\"\",Inscriptions!D17)","v":"Remplaçant Artois :"},null,{"$f":"IF(Inscriptions!B17=\"\",\"\",Inscriptions!B17)","v":"LEBECQ JEAN PIERRE"},null,{"$f":"IF(Inscriptions!E17=\"\",\"\",Inscriptions!E17)","v":"OUTREAU"},{"$f":"IF(Inscriptions!H17=\"\",\"\",Inscriptions!H17)","v":"017236Y"},{"$f":"IF(Inscriptions!C17=\"\",\"\",Inscriptions!C17)","v":""}]
[]
[]
[]
[null,null,null,null,null,"Moyenne Maxi-Mini :",null,{"$f":"'Feuille de Match'!DA5","v":"0,00 à 4,50"}]
[]
[]
[]
[null,null,"Extrait du Code Sportif - Article 6.2.09 - Paragraphe 6 - Joueurs d’un même club"]
[null,null,"Pour toutes les poules, deux joueurs d'un même club sont obligatoirement opposés l'un à l'autre au premier tour. \n"]
[]
[]
[]
[]
[]
[]
[]
[]
[]
[]
[]
[]
[]
[]
[]
[]
[]
[null,{"$f":"IF('base de données'!D143=\"\",\"\",'base de données'!D143)","v":"CD62\nResponsable format « Cadre & 3 Bandes » : André DESBLEUMORTIERS\nMob : 06 - 08 - 95 - 70 - 58 – Email : cdesbleu@gmail.com"}]

{"sheet":"Feuille de Match","index":2,"n_rows":42,"n_cols":12314,"rows_kept":42,"cut":false,"hidden":false,"merged":[[0,1,2,25],[0,82,0,106],[1,82,1,106],[2,82,2,106],[3,1,4,2],[3,3,4,5],[3,6,4,8],[3,9,4,11],[3,12,4,14],[3,15,4,19],[3,85,3,87],[4,85,4,87],[3,88,3,90],[3,20,4,21],[3,22,4,25],[4,83,4,84],[3,104,3,107],[4,104,4,107],[3,97,3,101],[4,97,4,101],[4,88,4,90],[3,91,3,93],[4,91,4,93],[3,94,3,96],[25,19,25,22],[21,38,25,38],[21,39,25,39],[16,37,20,37],[16,35,20,35],[15,49,16,49],[15,50,16,50],[9,46,11,46],[9,47,11,47],[9,48,11,48],[9,49,11,49],[9,50,11,50],[20,49,21,49],[20,50,21,50],[12,46,14,46],[12,47,14,47],[12,48,14,48],[12,49,14,49],[12,50,14,50],[15,46,16,46],[15,47,16,47],[15,48,16,48],[17,49,19,49],[17,50,19,50],[17,46,19,46],[17,47,19,47],[17,48,19,48],[21,23,25,23],[21,32,25,32],[21,34,25,34],[16,28,20,28],[16,31,20,31],[16,34,20,34],[21,29,25,29],[21,28,25,28],[21,30,25,30],[16,41,20,41],[16,38,20,38],[16,32,20,32],[16,39,20,39],[16,40,20,40],[20,48,21,48],[21,37,25,37],[16,36,20,36],[21,35,25,35],[21,31,25,31],[8,35,9,35],[11,23,15,23],[13,1,14,2],[13,7,14,8],[26,13,27,14],[21,15,22,16],[17,20,18,21],[20,46,21,46],[20,47,21,47],[6,1,10,2],[6,24,10,25],[6,19,6,23],[8,20,9,21],[18,3,19,4],[16,7,20,10],[11,11,12,12],[18,17,19,18],[16,17,17,18],[11,1,12,2],[6,15,10,18],[6,7,10,10],[6,11,10,14],[23,9,24,10],[21,9,22,10],[4,94,4,96],[3,102,3,103],[0,56,0,80],[1,56,1,80],[5,33,5,34],[5,31,5,32],[2,56,2,80],[0,28,0,29],[4,102,4,103],[5,1,5,25],[3,83,3,84],[7,29,9,32],[28,11,29,12],[16,5,17,6],[26,11,27,12],[26,24,30,25],[21,24,25,25],[6,3,10,6],[8,34,9,34],[16,24,20,25],[11,24,15,25],[16,27,20,27],[16,29,20,29],[16,30,20,30],[11,34,15,34],[11,29,15,29],[11,31,15,31],[11,32,15,32],[23,17,24,18],[21,17,22,18],[22,20,23,21],[7,23,10,23],[16,23,20,23],[28,9,29,10],[23,1,24,2],[23,3,24,4],[16,3,17,4],[16,1,17,2],[18,1,19,2],[21,7,22,8],[23,5,24,6],[23,7,24,8],[21,1,22,2],[21,5,22,6],[26,7,27,8],[11,15,12,16],[13,9,14,10],[11,3,15,6],[11,7,12,8],[18,5,19,6],[13,11,14,12],[15,19,15,22],[21,3,22,4],[13,15,14,16],[11,13,12,14],[16,11,17,12],[16,13,17,14],[11,17,12,18],[13,17,14,18],[11,9,12,10],[13,13,14,14],[12,20,13,21],[21,11,25,14],[23,15,24,16],[18,13,19,14],[18,15,19,16],[18,11,19,12],[20,19,20,22],[16,15,17,16],[11,27,15,27],[11,28,15,28],[11,41,15,41],[11,40,15,40],[11,37,15,37],[11,39,15,39],[11,30,15,30],[11,36,15,36],[11,35,15,35],[11,38,15,38],[26,41,30,41],[26,27,30,27],[21,36,25,36],[21,40,25,40],[21,41,25,41],[21,27,25,27],[26,29,30,29],[26,39,30,39],[26,40,30,40],[26,30,30,30],[26,36,30,36],[41,21,43,25],[26,37,30,37],[26,38,30,38],[39,2,39,8],[41,2,46,18],[26,34,30,34],[26,35,30,35],[26,32,30,32],[26,23,30,23],[26,1,27,2],[27,20,28,21],[26,28,30,28],[26,31,30,31],[26,5,27,6],[26,3,27,4],[26,9,27,10],[39,21,39,25],[28,1,29,2],[28,3,29,4],[28,5,29,6],[28,7,29,8],[26,15,30,18],[30,19,30,22],[28,13,29,14]]}
[null,null,null,null,null,null,null,null,null,null,null,null,null,null,null,null,null,null,null,null,null,null,null,null,null,null,null,null,42655.998506944445,null,null,null,null,null,null,null,null,null,null,null,null,null,null,null,null,null,null,null,null,null,null,null,null,null,null,null,"Ligue Hauts de France",null,null,null,null,null,null,null,null,null,null,null,null,null,null,null,null,null,null,null,null,null,null,null,null,null,null,null,null,null,null,null,null,null,null,null,null,null,null,null,null,null,null,null,null,null,null,null,null,null,null,null,null,null,null,null,null,null,null,null,null,null,null,null,null,null,null,null,null,null,null,null,null,null,null,null,null,null,null,null,null,null,null,null,null,null,null,null,null,null,null,null,null,null,null,null,null,null,null,null,null,null,null,null,null,null,null,null,null,null,null,null,null,null,null,null,null,null,null,null,null,null,null,null,null,null,null,null,null,null,null,null,null,null,null,null,null,null,null,null,null,null,null,null,null,null,null,null,null,null,null,null,null,null,null,null,null,null,null,null,null,null,null,null,null,null,null,null,null,null,null,null,null,null,null,null,null,null,null,null,null,null,null,null,null,null,null,null,null,null,null,null,null,null,null,null,null,null,null,null,null,null,null,null,null,null,null,null,null,null,null,null,null,null,null,null,null,null,null,null,null,null,null,null,null,null,null,null,null,null,null,null,null,null,null,null,null,null,null,null,null,null,null,null,null,null,null,null,null,null,null,null,null,null,null,null,null,null,null,null,null,null,null,null,null,null,null,null,null,null,null,null,null,null,null,null,null,null,null,null,null,null,null,null,null,null,null,null,null,null,null,null,null,null,null,null,null,null,null,null,null,null,null,null,null,null,null,null,null,null,null,null,null,null,null,null,null,null,null,null,null,null,null,null,null,null,null,null,null,null,null,null,null,null,null,null,null,null,null,null,null,null,null,null,null,null,null,null,null,null,null,null,null,null,null,null,null,null,null,null,null,null,null,null,null,null,null,null,null,null,null,null,null,null,null,null,null,null,null,null,null,null,null,null,null,null,null,null,null,null,null,null,null,null,null,null,null,null,null,null,null,null,null,null,null,null,null,null,null,null,null,null,null,null,null,null,null,null,null,null,null,null,null,null,null,null,null,null,null,null,null,null,null,null,null,null,null,null,null,null,null,null,null,null,null,null,null,null,null,null,null,null,null,null,null,null,null,null,null,null,null,null,null,null,null,null,null,null,null,null,null,null,null,null,null,null,null,null,null,null,null,null,null,null,null,null,null,null,null,null,null,null,null,null,null,null,null,null,null,null,null,null,null,null,null,null,null,null,null,null,null,null,null,null,null,null,null,null,null,null,null,null,null,null,null,null,null,null,null,null,null,null,null,null,null,null,null,null,null,null,null,null,null,null,null,null,null,null,null,null,null,null,null,null,null,null,null,null,null,null,null,null,null,null,null,null,null,null,null,null,null,null,null,null,null,null,null,null,null,null,null,null,null,null,null,null,null,null,null,null,null,null,null,null,null,null,null,null,null,null,null,null,null,null,null,null,null,null,null,null,null,null,null,null,null,null,null,null,null,null,null,null,null,null,null,null,null,null,null,null,null,null,null,null,null,null,null,null,null,null,null,null,null,null,null,null,null,null,null,null,null,null,null,null,null,null,null,null,null,null,null,null,null,null,null,null,null,null,null,null,null,null,null,null,null,null,null,null,null,null,null,null,null,null,null,null,null,null,null,null,null,null,null,null,null,null,null,null,null,null,null,null,null,null,null,null,null,null,null,null,null,null,null,null,null,null,null,null,null,null,null,null,null,null,null,null,null,null,null,null,null,null,null,null,null,null,null,null,null,null,null,null,null,null,null,null,null,null,null,null,null,null,null,null,null,null,null,null,null,null,null,null,null,null,null,null,null,null,null,null,null,null,null,null,null,null,null,null,null,null,null,null,null,null,null,null,null,null,null,null,null,null,null,null,null,null,null,null,null,null,null,null,null,null,null,null,null,null,null,null,null,null,null,null,null,null,null,null,null,null,null,null,null,null,null,null,null,null,null,null,null,null,null,null,null,null,null,null,null,null,null,null,null,null,null,null,null,null,null,null,null,null,null,null,null,null,null,null,null,null,null,null,null,null,null,null,null,null,null,null,null,null,null,null,null,null,null,null,null,null,null,null,null,null,null,null,null,null,null,null,null,null,null,null,null,null,null,null,null,null,null,null,null,null,null,null,null,null,null,null,null,null,null,null,null,null,null,null,null,null,null,null,null,null,null,null,null,null,null,null,null,null,null,null,null,null,null,null,null,null,null,null,null,null,null,null,null,null,null,null,null,null,null,null,null,null,null,null,null,null,null,null,null,null,null,null,null,null,null,null,null,null,null,null,null,null,null,null,null,null,null,null,null,null,null,null,null,null,null,null,null,null,null,null,null,null,null,null,null,null,null,null,null,null,null,null,null,null,null,null,null,null,null,null,null,null,null,null,null,null,null,null,null,null,null,null,null,null,null,null,null,null,null,null,null,null,null,null,null,null,null,null,null,null,null,null,null,null,null,null,null,null,null,null,null,null,null,null,null,null,null,null,null,null,null,null,null,null,null,null,null,null,null,null,null,null,null,null,null,null,null,null,null,null,null,null,null,null,null,null,null,null,null,null,null,null,null,null,null,null,null,null,null,null,null,null,null,null,null,null,null,null,null,null,null,null,null,null,null,null,null,null,null,null,null,null,null,null,null,null,null,null,null,null,null,null,null,null,null,null,null,null,null,null,null,null,null,null,null,null,null,null,null,null,null,null,null,null,null,null,null,null,null,null,null,null,null,null,null,null,null,null,null,null,null,null,null,null,null,null,null,null,null,null,null,null,null,null,null,null,null,null,null,null,null,null,null,null,null,null,null,null,null,null,null,null,null,null,null,null,null,null,null,null,null,null,null,null,null,null,null,null,null,null,null,null,null,null,null,null,null,null,null,null,null,null,null,null,null,null,null,null,null,null,null,null,null,null,null,null,null,null,null,null,null,null,null,null,null,null,null,null,null,null,null,null,null,null,null,null,null,null,null,null,null,null,null,null,null,null,null,null,null,null,null,null,null,null,null,null,null,null,null,null,null,null,null,null,null,null,null,null,null,null,null,null,null,null,null,null,null,null,null,null,null,null,null,null,null,null,null,null,null,null,null,null,null,null,null,null,null,null,null,null,null,null,null,null,null,null,null,null,null,null,null,null,null,null,null,null,null,null,null,null,null,null,null,null,null,null,null,null,null,null,null,null,null,null,null,null,null,null,null,null,null,null,null,null,null,null,null,null,null,null,null,null,null,null,null,null,null,null,null,null,null,null,null,null,null,null,null,null,null,null,null,null,null,null,null,null,null,null,null,null,null,null,null,null,null,null,null,null,null,null,null,null,null,null,null,null,null,null,null,null,null,null,null,null,null,null,null,null,null,null,null,null,null,null,null,null,null,null,null,null,null,null,null,null,null,null,null,null,null,null,null,null,null,null,null,null,null,null,null,null,null,null,null,null,null,null,null,null,null,null,null,null,null,null,null,null,null,null,null,null,null,null,null,null,null,null,null,null,null,null,null,null,null,null,null,null,null,null,null,null,null,null,null,null,null,null,null,null,null,null,null,null,null,null,null,null,null,null,null,null,null,null,null,null,null,null,null,null,null,null,null,null,null,null,null,null,null,null,null,null,null,null,null,null,null,null,null,null,null,null,null,null,null,null,null,null,null,null,null,null,null,null,null,null,null,null,null,null,null,null,null,null,null,null,null,null,null,null,null,null,null,null,null,null,null,null,null,null,null,null,null,null,null,null,null,null,null,null,null,null,null,null,null,null,null,null,null,null,null,null,null,null,null,null,null,null,null,null,null,null,null,null,null,null,null,null,null,null,null,null,null,null,null,null,null,null,null,null,null,null,null,null,null,null,null,null,null,null,null,null,null,null,null,null,null,null,null,null,null,null,null,null,null,null,null,null,null,null,null,null,null,null,null,null,null,null,null,null,null,null,null,null,null,null,null,null,null,null,null,null,null,null,null,null,null,null,null,null,null,null,null,null,null,null,null,null,null,null,null,null,null,null,null,null,null,null,null,null,null,null,null,null,null,null,null,null,null,null,null,null,null,null,null,null,null,null,null,null,null,null,null,null,null,null,null,null,null,null,null,null,null,null,null,null,null,null,null,null,null,null,null,null,null,null,null,null,null,null,null,null,null,null,null,null,null,null,null,null,null,null,null,null,null,null,null,null,null,null,null,null,null,null,null,null,null,null,null,null,null,null,null,null,null,null,null,null,null,null,null,null,null,null,null,null,null,null,null,null,null,null,null,null,null,null,null,null,null,null,null,null,null,null,null,null,null,null,null,null,null,null,null,null,null,null,null,null,null,null,null,null,null,null,null,null,null,null,null,null,null,null,null,null,null,null,null,null,null,null,null,null,null,null,null,null,null,null,null,null,null,null,null,null,null,null,null,null,null,null,null,null,null,null,null,null,null,null,null,null,null,null,null,null,null,null,null,null,null,null,null,null,null,null,null,null,null,null,null,null,null,null,null,null,null,null,null,null,null,null,null,null,null,null,null,null,null,null,null,null,null,null,null,null,null,null,null,null,null,null,null,null,null,null,null,null,null,null,null,null,null,null,null,null,null,null,null,null,null,null,null,null,null,null,null,null,null,null,null,null,null,null,null,null,null,null,null,null,null,null,null,null,null,null,null,null,null,null,null,null,null,null,null,null,null,null,null,null,null,null,null,null,null,null,null,null,null,null,null,null,null,null,null,null,null,null,null,null,null,null,null,null,null,null,null,null,null,null,null,null,null,null,null,null,null,null,null,null,null,null,null,null,null,null,null,null,null,null,null,null,null,null,null,null,null,null,null,null,null,null,null,null,null,null,null,null,null,null,null,null,null,null,null,null,null,null,null,null,null,null,null,null,null,null,null,null,null,null,null,null,null,null,null,null,null,null,null,null,null,null,null,null,null,null,null,null,null,null,null,null,null,null,null,null,null,null,null,null,null,null,null,null,null,null,null,null,null,null,null,null,null,null,null,null,null,null,null,null,null,null,null,null,null,null,null,null,null,null,null,null,null,null,null,null,null,null,null,null,null,null,null,null,null,null,null,null,null,null,null,null,null,null,null,null,null,null,null,null,null,null,null,null,null,null,null,null,null,null,null,null,null,null,null,null,null,null,null,null,null,null,null,null,null,null,null,null,null,null,null,null,null,null,null,null,null,null,null,null,null,null,null,null,null,null,null,null,null,null,null,null,null,null,null,null,null,null,null,null,null,null,null,null,null,null,null,null,null,null,null,null,null,null,null,null,null,null,null,null,null,null,null,null,null,null,null,null,null,null,null,null,null,null,null,null,null,null,null,null,null,null,null,null,null,null,null,null,null,null,null,null,null,null,null,null,null,null,null,null,null,null,null,null,null,null,null,null,null,null,null,null,null,null,null,null,null,null,null,null,null,null,null,null,null,null,null,null,null,null,null,null,null,null,null,null,null,null,null,null,null,null,null,null,null,null,null,null,null,null,null,null,null,null,null,null,null,null,null,null,null,null,null,null,null,null,null,null,null,null,null,null,null,null,null,null,null,null,null,null,null,null,null,null,null,null,null,null,null,null,null,null,null,null,null,null,null,null,null,null,null,null,null,null,null,null,null,null,null,null,null,null,null,null,null,null,null,null,null,null,null,null,null,null,null,null,null,null,null,null,null,null,null,null,null,null,null,null,null,null,null,null,null,null,null,null,null,null,null,null,null,null,null,null,null,null,null,null,null,null,null,null,null,null,null,null,null,null,null,null,null,null,null,null,null,null,null,null,null,null,null,null,null,null,null,null,null,null,null,null,null,null,null,null,null,null,null,null,null,null,null,null,null,null,null,null,null,null,null,null,null,null,null,null,null,null,null,null,null,null,null,null,null,null,null,null,null,null,null,null,null,null,null,null,null,null,null,null,null,null,null,null,null,null,null,null,null,null,null,null,null,null,null,null,null,null,null,null,null,null,null,null,null,null,null,null,null,null,null,null,null,null,null,null,null,null,null,null,null,null,null,null,null,null,null,null,null,null,null,null,null,null,null,null,null,null,null,null,null,null,null,null,null,null,null,null,null,null,null,null,null,null,null,null,null,null,null,null,null,null,null,null,null,null,null,null,null,null,null,null,null,null,null,null,null,null,null,null,null,null,null,null,null,null,null,null,null,null,null,null,null,null,null,null,null,null,null,null,null,null,null,null,null,null,null,null,null,null,null,null,null,null,null,null,null,null,null,null,null,null,null,null,null,null,null,null,null,null,null,null,null,null,null,null,null,null,null,null,null,null,null,null,null,null,null,null,null,null,null,null,null,null,null,null,null,null,null,null,null,null,null,null,null,null,null,null,null,null,null,null,null,null,null,null,null,null,null,null,null,null,null,null,null,null,null,null,null,null,null,null,null,null,null,null,null,null,null,null,null,null,null,null,null,null,null,null,null,null,null,null,null,null,null,null,null,null,null,null,null,null,null,null,null,null,null,null,null,null,null,null,null,null,null,null,null,null,null,null,null,null,null,null,null,null,null,null,null,null,null,null,null,null,null,null,null,null,null,null,null,null,null,null,null,null,null,null,null,null,null,null,null,null,null,null,null,null,null,null,null,null,null,null,null,null,null,null,null,null,null,null,null,null,null,null,null,null,null,null,null,null,null,null,null,null,null,null,null,null,null,null,null,null,null,null,null,null,null,null,null,null,null,null,null,null,null,null,null,null,null,null,null,null,null,null,null,null,null,null,null,null,null,null,null,null,null,null,null,null,null,null,null,null,null,null,null,null,null,null,null,null,null,null,null,null,null,null,null,null,null,null,null,null,null,null,null,null,null,null,null,null,null,null,null,null,null,null,null,null,null,null,null,null,null,null,null,null,null,null,null,null,null,null,null,null,null,null,null,null,null,null,null,null,null,null,null,null,null,null,null,null,null,null,null,null,null,null,null,null,null,null,null,null,null,null,null,null,null,null,null,null,null,null,null,null,null,null,null,null,null,null,null,null,null,null,null,null,null,null,null,null,null,null,null,null,null,null,null,null,null,null,null,null,null,null,null,null,null,null,null,null,null,null,null,null,null,null,null,null,null,null,null,null,null,null,null,null,null,null,null,null,null,null,null,null,null,null,null,null,null,null,null,null,null,null,null,null,null,null,null,null,null,null,null,null,null,null,null,null,null,null,null,null,null,null,null,null,null,null,null,null,null,null,null,null,null,null,null,null,null,null,null,null,null,null,null,null,null,null,null,null,null,null,null,null,null,null,null,null,null,null,null,null,null,null,null,null,null,null,null,null,null,null,null,null,null,null,null,null,null,null,null,null,null,null,null,null,null,null,null,null,null,null,null,null,null,null,null,null,null,null,null,null,null,null,null,null,null,null,null,null,null,null,null,null,null,null,null,null,null,null,null,null,null,null,null,null,null,null,null,null,null,null,null,null,null,null,null,null,null,null,null,null,null,null,null,null,null,null,null,null,null,null,null,null,null,null,null,null,null,null,null,null,null,null,null,null,null,null,null,null,null,null,null,null,null,null,null,null,null,null,null,null,null,null,null,null,null,null,null,null,null,null,null,null,null,null,null,null,null,null,null,null,null,null,null,null,null,null,null,null,null,null,null,null,null,null,null,null,null,null,null,null,null,null,null,null,null,null,null,null,null,null,null,null,null,null,null,null,null,null,null,null,null,null,null,null,null,null,null,null,null,null,null,null,null,null,null,null,null,null,null,null,null,null,null,null,null,null,null,null,null,null,null,null,null,null,null,null,null,null,null,null,null,null,null,null,null,null,null,null,null,null,null,null,null,null,null,null,null,null,null,null,null,null,null,null,null,null,null,null,null,null,null,null,null,null,null,null,null,null,null,null,null,null,null,null,null,null,null,null,null,null,null,null,null,null,null,null,null,null,null,null,null,null,null,null,null,null,null,null,null,null,null,null,null,null,null,null,null,null,null,null,null,null,null,null,null,null,null,null,null,null,null,null,null,null,null,null,null,null,null,null,null,null,null,null,null,null,null,null,null,null,null,null,null,null,null,null,null,null,null,null,null,null,null,null,null,null,null,null,null,null,null,null,null,null,null,null,null,null,null,null,null,null,null,null,null,null,null,null,null,null,null,null,null,null,null,null,null,null,null,null,null,null,null,null,null,null,null,null,null,null,null,null,null,null,null,null,null,null,null,null,null,null,null,null,null,null,null,null,null,null,null,null,null,null,null,null,null,null,null,null,null,null,null,null,null,null,null,null,null,null,null,null,null,null,null,null,null,null,null,null,null,null,null,null,null,null,null,null,null,null,null,null,null,null,null,null,null,null,null,null,null,null,null,null,null,null,null,null,null,null,null,null,null,null,null,null,null,null,null,null,null,null,null,null,null,null,null,null,null,null,null,null,null,null,null,null,null,null,null,null,null,null,null,null,null,null,null,null,null,null,null,null,null,null,null,null,null,null,null,null,null,null,null,null,null,null,null,null,null,null,null,null,null,null,null,null,null,null,null,null,null,null,null,null,null,null,null,null,null,null,null,null,null,null,null,null,null,null,null,null,null,null,null,null,null,null,null,null,null,null,null,null,null,null,null,null,null,null,null,null,null,null,null,null,null,null,null,null,null,null,null,null,null,null,null,null,null,null,null,null,null,null,null,null,null,null,null,null,null,null,null,null,null,null,null,null,null,null,null,null,null,null,null,null,null,null,null,null,null,null,null,null,null,null,null,null,null,null,null,null,null,null,null,null,null,null,null,null,null,null,null,null,null,null,null,null,null,null,null,null,null,null,null,null,null,null,null,null,null,null,null,null,null,null,null,null,null,null,null,null,null,null,null,null,null,null,null,null,null,null,null,null,null,null,null,null,null,null,null,null,null,null,null,null,null,null,null,null,null,null,null,null,null,null,null,null,null,null,null,null,null,null,null,null,null,null,null,null,null,null,null,null,null,null,null,null,null,null,null,null,null,null,null,null,null,null,null,null,null,null,null,null,null,null,null,null,null,null,null,null,null,null,null,null,null,null,null,null,null,null,null,null,null,null,null,null,null,null,null,null,null,null,null,null,null,null,null,null,null,null,null,null,null,null,null,null,null,null,null,null,null,null,null,null,null,null,null,null,null,null,null,null,null,null,null,null,null,null,null,null,null,null,null,null,null,null,null,null,null,null,null,null,null,null,null,null,null,null,null,null,null,null,null,null,null,null,null,null,null,null,null,null,null,null,null,null,null,null,null,null,null,null,null,null,null,null,null,null,null,null,null,null,null,null,null,null,null,null,null,null,null,null,null,null,null,null,null,null,null,null,null,null,null,null,null,null,null,null,null,null,null,null,null,null,null,null,null,null,null,null,null,null,null,null,null,null,null,null,null,null,null,null,null,null,null,null,null,null,null,null,null,null,null,null,null,null,null,null,null,null,null,null,null,null,null,null,null,null,null,null,null,null,null,null,null,null,null,null,null,null,null,null,null,null,null,null,null,null,null,null,null,null,null,null,null,null,null,null,null,null,null,null,null,null,null,null,null,null,null,null,null,null,null,null,null,null,null,null,null,null,null,null,null,null,null,null,null,null,null,null,null,null,null,null,null,null,null,null,null,null,null,null,null,null,null,null,null,null,null,null,null,null,null,null,null,null,null,null,null,null,null,null,null,null,null,null,null,null,null,null,null,null,null,null,null,null,null,null,null,null,null,null,null,null,null,null,null,null,null,null,null,null,null,null,null,null,null,null,null,null,null,null,null,null,null,null,null,null,null,null,null,null,null,null,null,null,null,null,null,null,null,null,null,null,null,null,null,null,null,null,null,null,null,null,null,null,null,null,null,null,null,null,null,null,null,null,null,null,null,null,null,null,null,null,null,null,null,null,null,null,null,null,null,null,null,null,null,null,null,null,null,null,null,null,null,null,null,null,null,null,null,null,null,null,null,null,null,null,null,null,null,null,null,null,null,null,null,null,null,null,null,null,null,null,null,null,null,null,null,null,null,null,null,null,null,null,null,null,null,null,null,null,null,null,null,null,null,null,null,null,null,null,null,null,null,null,null,null,null,null,null,null,null,null,null,null,null,null,null,null,null,null,null,null,null,null,null,null,null,null,null,null,null,null,null,null,null,null,null,null,null,null,null,null,null,null,null,null,null,null,null,null,null,null,null,null,null,null,null,null,null,null,null,null,null,null,null,null,null,null,null,null,null,null,null,null,null,null,null,null,null,null,null,null,null,null,null,null,null,null,null,null,null,null,null,null,null,null,null,null,null,null,null,null,null,null,null,null,null,null,null,null,null,null,null,null,null,null,null,null,null,null,null,null,null,null,null,null,null,null,null,null,null,null,null,null,null,null,null,null,null,null,null,null,null,null,null,null,null,null,null,null,null,null,null,null,null,null,null,null,null,null,null,null,null,null,null,null,null,null,null,null,null,null,null,null,null,null,null,null,null,null,null,null,null,null,null,null,null,null,null,null,null,null,null,null,null,null,null,null,null,null,null,null,null,null,null,null,null,null,null,null,null,null,null,null,null,null,null,null,null,null,null,null,null,null,null,null,null,null,null,null,null,null,null,null,null,null,null,null,null,null,null,null,null,null,null,null,null,null,null,null,null,null,null,null,null,null,null,null,null,null,null,null,null,null,null,null,null,null,null,null,null,null,null,null,null,null,null,null,null,null,null,null,null,null,null,null,null,null,null,null,null,null,null,null,null,null,null,null,null,null,null,null,null,null,null,null,null,null,null,null,null,null,null,null,null,null,null,null,null,null,null,null,null,null,null,null,null,null,null,null,null,null,null,null,null,null,null,null,null,null,null,null,null,null,null,null,null,null,null,null,null,null,null,null,null,null,null,null,null,null,null,null,null,null,null,null,null,null,null,null,null,null,null,null,null,null,null,null,null,null,null,null,null,null,null,null,null,null,null,null,null,null,null,null,null,null,null,null,null,null,null,null,null,null,null,null,null,null,null,null,null,null,null,null,null,null,null,null,null,null,null,null,null,null,null,null,null,null,null,null,null,null,null,null,null,null,null,null,null,null,null,null,null,null,null,null,null,null,null,null,null,null,null,null,null,null,null,null,null,null,null,null,null,null,null,null,null,null,null,null,null,null,null,null,null,null,null,null,null,null,null,null,null,null,null,null,null,null,null,null,null,null,null,null,null,null,null,null,null,null,null,null,null,null,null,null,null,null,null,null,null,null,null,null,null,null,null,null,null,null,null,null,null,null,null,null,null,null,null,null,null,null,null,null,null,null,null,null,null,null,null,null,null,null,null,null,null,null,null,null,null,null,null,null,null,null,null,null,null,null,null,null,null,null,null,null,null,null,null,null,null,null,null,null,null,null,null,null,null,null,null,null,null,null,null,null,null,null,null,null,null,null,null,null,null,null,null,null,null,null,null,null,null,null,null,null,null,null,null,null,null,null,null,null,null,null,null,null,null,null,null,null,null,null,null,null,null,null,null,null,null,null,null,null,null,null,null,null,null,null,null,null,null,null,null,null,null,null,null,null,null,null,null,null,null,null,null,null,null,null,null,null,null,null,null,null,null,null,null,null,null,null,null,null,null,null,null,null,null,null,null,null,null,null,null,null,null,null,null,null,null,null,null,null,null,null,null,null,null,null,null,null,null,null,null,null,null,null,null,null,null,null,null,null,null,null,null,null,null,null,null,null,null,null,null,null,null,null,null,null,null,null,null,null,null,null,null,null,null,null,null,null,null,null,null,null,null,null,null,null,null,null,null,null,null,null,null,null,null,null,null,null,null,null,null,null,null,null,null,null,null,null,null,null,null,null,null,null,null,null,null,null,null,null,null,null,null,null,null,null,null,null,null,null,null,null,null,null,null,null,null,null,null,null,null,null,null,null,null,null,null,null,null,null,null,null,null,null,null,null,null,null,null,null,null,null,null,null,null,null,null,null,null,null,null,null,null,null,null,null,null,null,null,null,null,null,null,null,null,null,null,null,null,null,null,null,null,null,null,null,null,null,null,null,null,null,null,null,null,null,null,null,null,null,null,null,null,null,null,null,null,null,null,null,null,null,null,null,null,null,null,null,null,null,null,null,null,null,null,null,null,null,null,null,null,null,null,null,null,null,null,null,null,null,null,null,null,null,null,null,null,null,null,null,null,null,null,null,null,null,null,null,null,null,null,null,null,null,null,null,null,null,null,null,null,null,null,null,null,null,null,null,null,null,null,null,null,null,null,null,null,null,null,null,null,null,null,null,null,null,null,null,null,null,null,null,null,null,null,null,null,null,null,null,null,null,null,null,null,null,null,null,null,null,null,null,null,null,null,null,null,null,null,null,null,null,null,null,null,null,null,null,null,null,null,null,null,null,null,null,null,null,null,null,null,null,null,null,null,null,null,null,null,null,null,null,null,null,null,null,null,null,null,null,null,null,null,null,null,null,null,null,null,null,null,null,null,null,null,null,null,null,null,null,null,null,null,null,null,null,null,null,null,null,null,null,null,null,null,null,null,null,null,null,null,null,null,null,null,null,null,null,null,null,null,null,null,null,null,null,null,null,null,null,null,null,null,null,null,null,null,null,null,null,null,null,null,null,null,null,null,null,null,null,null,null,null,null,null,null,null,null,null,null,null,null,null,null,null,null,null,null,null,null,null,null,null,null,null,null,null,null,null,null,null,null,null,null,null,null,null,null,null,null,null,null,null,null,null,null,null,null,null,null,null,null,null,null,null,null,null,null,null,null,null,null,null,null,null,null,null,null,null,null,null,null,null,null,null,null,null,null,null,null,null,null,null,null,null,null,null,null,null,null,null,null,null,null,null,null,null,null,null,null,null,null,null,null,null,null,null,null,null,null,null,null,null,null,null,null,null,null,null,null,null,null,null,null,null,null,null,null,null,null,null,null,null,null,null,null,null,null,null,null,null,null,null,null,null,null,null,null,null,null,null,null,null,null,null,null,null,null,null,null,null,null,null,null,null,null,null,null,null,null,null,null,null,null,null,null,null,null,null,null,null,null,null,null,null,null,null,null,null,null,null,null,null,null,null,null,null,null,null,null,null,null,null,null,null,null,null,null,null,null,null,null,null,null,null,null,null,null,null,null,null,null,null,null,null,null,null,null,null,null,null,null,null,null,null,null,null,null,null,null,null,null,null,null,null,null,null,null,null,null,null,null,null,null,null,null,null,null,null,null,null,null,null,null,null,null,null,null,null,null,null,null,null,null,null,null,null,null,null,null,null,null,null,null,null,null,null,null,null,null,null,null,null,null,null,null,null,null,null,null,null,null,null,null,null,null,null,null,null,null,null,null,null,null,null,null,null,null,null,null,null,null,null,null,null,null,null,null,null,null,null,null,null,null,null,null,null,null,null,null,null,null,null,null,null,null,null,null,null,null,null,null,null,null,null,null,null,null,null,null,null,null,null,null,null,null,null,null,null,null,null,null,null,null,null,null,null,null,null,null,null,null,null,null,null,null,null,null,null,null,null,null,null,null,null,null,null,null,null,null,null,null,null,null,null,null,null,null,null,null,null,null,null,null,null,null,null,null,null,null,null,null,null,null,null,null,null,null,null,null,null,null,null,null,null,null,null,null,null,null,null,null,null,null,null,null,null,null,null,null,null,null,null,null,null,null,null,null,null,null,null,null,null,null,null,null,null,null,null,null,null,null,null,null,null,null,null,null,null,null,null,null,null,null,null,null,null,null,null,null,null,null,null,null,null,null,null,null,null,null,null,null,null,null,null,null,null,null,null,null,null,null,null,null,null,null,null,null,null,null,null,null,null,null,null,null,null,null,null,null,null,null,null,null,null,null,null,null,null,null,null,null,null,null,null,null,null,null,null,null,null,null,null,null,null,null,null,null,null,null,null,null,null,null,null,null,null,null,null,null,null,null,null,null,null,null,null,null,null,null,null,null,null,null,null,null,null,null,null,null,null,null,null,null,null,null,null,null,null,null,null,null,null,null,null,null,null,null,null,null,null,null,null,null,null,null,null,null,null,null,null,null,null,null,null,null,null,null,null,null,null,null,null,null,null,null,null,null,null,null,null,null,null,null,null,null,null,null,null,null,null,null,null,null,null,null,null,null,null,null,null,null,null,null,null,null,null,null,null,null,null,null,null,null,null,null,null,null,null,null,null,null,null,null,null,null,null,null,null,null,null,null,null,null,null,null,null,null,null,null,null,null,null,null,null,null,null,null,null,null,null,null,null,null,null,null,null,null,null,null,null,null,null,null,null,null,null,null,null,null,null,null,null,null,null,null,null,null,null,null,null,null,null,null,null,null,null,null,null,null,null,null,null,null,null,null,null,null,null,null,null,null,null,null,null,null,null,null,null,null,null,null,null,null,null,null,null,null,null,null,null,null,null,null,null,null,null,null,null,null,null,null,null,null,null,null,null,null,null,null,null,null,null,null,null,null,null,null,null,null,null,null,null,null,null,null,null,null,null,null,null,null,null,null,null,null,null,null,null,null,null,null,null,null,null,null,null,null,null,null,null,null,null,null,null,null,null,null,null,null,null,null,null,null,null,null,null,null,null,null,null,null,null,null,null,null,null,null,null,null,null,null,null,null,null,null,null,null,null,null,null,null,null,null,null,null,null,null,null,null,null,null,null,null,null,null,null,null,null,null,null,null,null,null,null,null,null,null,null,null,null,null,null,null,null,null,null,null,null,null,null,null,null,null,null,null,null,null,null,null,null,null,null,null,null,null,null,null,null,null,null,null,null,null,null,null,null,null,null,null,null,null,null,null,null,null,null,null,null,null,null,null,null,null,null,null,null,null,null,null,null,null,null,null,null,null,null,null,null,null,null,null,null,null,null,null,null,null,null,null,null,null,null,null,null,null,null,null,null,null,null,null,null,null,null,null,null,null,null,null,null,null,null,null,null,null,null,null,null,null,null,null,null,null,null,null,null,null,null,null,null,null,null,null,null,null,null,null,null,null,null,null,null,null,null,null,null,null,null,null,null,null,null,null,null,null,null,null,null,null,null,null,null,null,null,null,null,null,null,null,null,null,null,null,null,null,null,null,null,null,null,null,null,null,null,null,null,null,null,null,null,null,null,null,null,null,null,null,null,null,null,null,null,null,null,null,null,null,null,null,null,null,null,null,null,null,null,null,null,null,null,null,null,null,null,null,null,null,null,null,null,null,null,null,null,null,null,null,null,null,null,null,null,null,null,null,null,null,null,null,null,null,null,null,null,null,null,null,null,null,null,null,null,null,null,null,null,null,null,null,null,null,null,null,null,null,null,null,null,null,null,null,null,null,null,null,null,null,null,null,null,null,null,null,null,null,null,null,null,null,null,null,null,null,null,null,null,null,null,null,null,null,null,null,null,null,null,null,null,null,null,null,null,null,null,null,null,null,null,null,null,null,null,null,null,null,null,null,null,null,null,null,null,null,null,null,null,null,null,null,null,null,null,null,null,null,null,null,null,null,null,null,null,null,null,null,null,null,null,null,null,null,null,null,null,null,null,null,null,null,null,null,null,null,null,null,null,null,null,null,null,null,null,null,null,null,null,null,null,null,null,null,null,null,null,null,null,null,null,null,null,null,null,null,null,null,null,null,null,null,null,null,null,null,null,null,null,null,null,null,null,null,null,null,null,null,null,null,null,null,null,null,null,null,null,null,null,null,null,null,null,null,null,null,null,null,null,null,null,null,null,null,null,null,null,null,null,null,null,null,null,null,null,null,null,null,null,null,null,null,null,null,null,null,null,null,null,null,null,null,null,null,null,null,null,null,null,null,null,null,null,null,null,null,null,null,null,null,null,null,null,null,null,null,null,null,null,null,null,null,null,null,null,null,null,null,null,null,null,null,null,null,null,null,null,null,null,null,null,null,null,null,null,null,null,null,null,null,null,null,null,null,null,null,null,null,null,null,null,null,null,null,null,null,null,null,null,null,null,null,null,null,null,null,null,null,null,null,null,null,null,null,null,null,null,null,null,null,null,null,null,null,null,null,null,null,null,null,null,null,null,null,null,null,null,null,null,null,null,null,null,null,null,null,null,null,null,null,null,null,null,null,null,null,null,null,null,null,null,null,null,null,null,null,null,null,null,null,null,null,null,null,null,null,null,null,null,null,null,null,null,null,null,null,null,null,null,null,null,null,null,null,null,null,null,null,null,null,null,null,null,null,null,null,null,null,null,null,null,null,null,null,null,null,null,null,null,null,null,null,null,null,null,null,null,null,null,null,null,null,null,null,null,null,null,null,null,null,null,null,null,null,null,null,null,null,null,null,null,null,null,null,null,null,null,null,null,null,null,null,null,null,null,null,null,null,null,null,null,null,null,null,null,null,null,null,null,null,null,null,null,null,null,null,null,null,null,null,null,null,null,null,null,null,null,null,null,null,null,null,null,null,null,null,null,null,null,null,null,null,null,null,null,null,null,null,null,null,null,null,null,null,null,null,null,null,null,null,null,null,null,null,null,null,null,null,null,null,null,null,null,null,null,null,null,null,null,null,null,null,null,null,null,null,null,null,null,null,null,null,null,null,null,null,null,null,null,null,null,null,null,null,null,null,null,null,null,null,null,null,null,null,null,null,null,null,null,null,null,null,null,null,null,null,null,null,null,null,null,null,null,null,null,null,null,null,null,null,null,null,null,null,null,null,null,null,null,null,null,null,null,null,null,null,null,null,null,null,null,null,null,null,null,null,null,null,null,null,null,null,null,null,null,null,null,null,null,null,null,null,null,null,null,null,null,null,null,null,null,null,null,null,null,null,null,null,null,null,null,null,null,null,null,null,null,null,null,null,null,null,null,null,null,null,null,null,null,null,null,null,null,null,null,null,null,null,null,null,null,null,null,null,null,null,null,null,null,null,null,null,null,null,null,null,null,null,null,null,null,null,null,null,null,null,null,null,null,null,null,null,null,null,null,null,null,null,null,null,null,null,null,null,null,null,null,null,null,null,null,null,null,null,null,null,null,null,null,null,null,null,null,null,null,null,null,null,null,null,null,null,null,null,null,null,null,null,null,null,null,null,null,null,null,null,null,null,null,null,null,null,null,null,null,null,null,null,null,null,null,null,null,null,null,null,null,null,null,null,null,null,null,null,null,null,null,null,null,null,null,null,null,null,null,null,null,null,null,null,null,null,null,null,null,null,null,null,null,null,null,null,null,null,null,null,null,null,null,null,null,null,null,null,null,null,null,null,null,null,null,null,null,null,null,null,null,null,null,null,null,null,null,null,null,null,null,null,null,null,null,null,null,null,null,null,null,null,null,null,null,null,null,null,null,null,null,null,null,null,null,null,null,null,null,null,null,null,null,null,null,null,null,null,null,null,null,null,null,null,null,null,null,null,null,null,null,null,null,null,null,null,null,null,null,null,null,null,null,null,null,null,null,null,null,null,null,null,null,null,null,null,null,null,null,null,null,null,null,null,null,null,null,null,null,null,null,null,null,null,null,null,null,null,null,null,null,null,null,null,null,null,null,null,null,null,null,null,null,null,null,null,null,null,null,null,null,null,null,null,null,null,null,null,null,null,null,null,null,null,null,null,null,null,null,null,null,null,null,null,null,null,null,null,null,null,null,null,null,null,null,null,null,null,null,null,null,null,null,null,null,null,null,null,null,null,null,null,null,null,null,null,null,null,null,null,null,null,null,null,null,null,null,null,null,null,null,null,null,null,null,null,null,null,null,null,null,null,null,null,null,null,null,null,null,null,null,null,null,null,null,null,null,null,null,null,null,null,null,null,null,null,null,null,null,null,null,null,null,null,null,null,null,null,null,null,null,null,null,null,null,null,null,null,null,null,null,null,null,null,null,null,null,null,null,null,null,null,null,null,null,null,null,null,null,null,null,null,null,null,null,null,null,null,null,null,null,null,null,null,null,null,null,null,null,null,null,null,null,null,null,null,null,null,null,null,null,null,null,null,null,null,null,null,null,null,null,null,null,null,null,null,null,null,null,null,null,null,null,null,null,null,null,null,null,null,null,null,null,null,null,null,null,null,null,null,null,null,null,null,null,null,null,null,null,null,null,null,null,null,null,null,null,null,null,null,null,null,null,null,null,null,null,null,null,null,null,null,null,null,null,null,null,null,null,null,null,null,null,null,null,null,null,null,null,null,null,null,null,null,null,null,null,null,null,null,null,null,null,null,null,null,null,null,null,null,null,null,null,null,null,null,null,null,null,null,null,null,null,null,null,null,null,null,null,null,null,null,null,null,null,null,null,null,null,null,null,null,null,null,null,null,null,null,null,null,null,null,null,null,null,null,null,null,null,null,null,null,null,null,null,null,null,null,null,null,null,null,null,null,null,null,null,null,null,null,null,null,null,null,null,null,null,null,null,null,null,null,null,null,null,null,null,null,null,null,null,null,null,null,null,null,null,null,null,null,null,null,null,null,null,null,null,null,null,null,null,null,null,null,null,null,null,null,null,null,null,null,null,null,null,null,null,null,null,null,null,null,null,null,null,null,null,null,null,null,null,null,null,null,null,null,null,null,null,null,null,null,null,null,null,null,null,null,null,null,null,null,null,null,null,null,null,null,null,null,null,null,null,null,null,null,null,null,null,null,null,null,null,null,null,null,null,null,null,null,null,null,null,null,null,null,null,null,null,null,null,null,null,null,null,null,null,null,null,null,null,null,null,null,null,null,null,null,null,null,null,null,null,null,null,null,null,null,null,null,null,null,null,null,null,null,null,null,null,null,null,null,null,null,null,null,null,null,null,null,null,null,null,null,null,null,null,null,null,null,null,null,null,null,null,null,null,null,null,null,null,null,null,null,null,null,null,null,null,null,null,null,null,null,null,null,null,null,null,null,null,null,null,null,null,null,null,null,null,null,null,null,null,null,null,null,null,null,null,null,null,null,null,null,null,null,null,null,null,null,null,null,null,null,null,null,null,null,null,null,null,null,null,null,null,null,null,null,null,null,null,null,null,null,null,null,null,null,null,null,null,null,null,null,null,null,null,null,null,null,null,null,null,null,null,null,null,null,null,null,null,null,null,null,null,null,null,null,null,null,null,null,null,null,null,null,null,null,null,null,null,null,null,null,null,null,null,null,null,null,null,null,null,null,null,null,null,null,null,null,null,null,null,null,null,null,null,null,null,null,null,null,null,null,null,null,null,null,null,null,null,null,null,null,null,null,null,null,null,null,null,null,null,null,null,null,null,null,null,null,null,null,null,null,null,null,null,null,null,null,null,null,null,null,null,null,null,null,null,null,null,null,null,null,null,null,null,null,null,null,null,null,null,null,null,null,null,null,null,null,null,null,null,null,null,null,null,null,null,null,null,null,null,null,null,null,null,null,null,null,null,null,null,null,null,null,null,null,null,null,null,null,null,null,null,null,null,null,null,null,null,null,null,null,null,null,null,null,null,null,null,null,null,null,null,null,null,null,null,null,null,null,null,null,null,null,null,null,null,null,null,null,null,null,null,null,null,null,null,null,null,null,null,null,null,null,null,null,null,null,null,null,null,null,null,null,null,null,null,null,null,null,null,null,null,null,null,null,null,null,null,null,null,null,null,null,null,null,null,null,null,null,null,null,null,null,null,null,null,null,null,null,null,null,null,null,null,null,null,null,null,null,null,null,null,null,null,null,null,null,null,null,null,null,null,null,null,null,null,null,null,null,null,null,null,null,null,null,null,null,null,null,null,null,null,null,null,null,null,null,null,null,null,null,null,null,null,null,null,null,null,null,null,null,null,null,null,null,null,null,null,null,null,null,null,null,null,null,null,null,null,null,null,null,null,null,null,null,null,null,null,null,null,null,null,null,null,null,null,null,null,null,null,null,null,null,null,null,null,null,null,null,null,null,null,null,null,null,null,null,null,null,null,null,null,null,null,null,null,null,null,null,null,null,null,null,null,null,null,null,null,null,null,null,null,null,null,null,null,null,null,null,null,null,null,null,null,null,null,null,null,null,null,null,null,null,null,null,null,null,null,null,null,null,null,null,null,null,null,null,null,null,null,null,null,null,null,null,null,null,null,null,null,null,null,null,null,null,null,null,null,null,null,null,null,null,null,null,null,null,null,null,null,null,null,null,null,null,null,null,null,null,null,null,null,null,null,null,null,null,null,null,null,null,null,null,null,null,null,null,null,null,null,null,null,null,null,null,null,null,null,null,null,null,null,null,null,null,null,null,null,null,null,null,null,null,null,null,null,null,null,null,null,null,null,null,null,null,null,null,null,null,null,null,null,null,null,null,null,null,null,null,null,null,null,null,null,null,null,null,null,null,null,null,null,null,null,null,null,null,null,null,null,null,null,null,null,null,null,null,null,null,null,null,null,null,null,null,null,null,null,null,null,null,null,null,null,null,null,null,null,null,null,null,null,null,null,null,null,null,null,null,null,null,null,null,null,null,null,null,null,null,null,null,null,null,null,null,null,null,null,null,null,null,null,null,null,null,null,null,null,null,null,null,null,null,null,null,null,null,null,null,null,null,null,null,null,null,null,null,null,null,null,null,null,null,null,null,null,null,null,null,null,null,null,null,null,null,null,null,null,null,null,null,null,null,null,null,null,null,null,null,null,null,null,null,null,null,null,null,null,null,null,null,null,null,null,null,null,null,null,null,null,null,null,null,null,null,null,null,null,null,null,null,null,null,null,null,null,null,null,null,null,null,null,null,null,null,null,null,null,null,null,null,null,null,null,null,null,null,null,null,null,null,null,null,null,null,null,null,null,null,null,null,null,null,null,null,null,null,null,null,null,null,null,null,null,null,null,null,null,null,null,null,null,null,null,null,null,null,null,null,null,null,null,null,null,null,null,null,null,null,null,null,null,null,null,null,null,null,null,null,null,null,null,null,null,null,null,null,null,null,null,null,null,null,null,null,null,null,null,null,null,null,null,null,null,null,null,null,null,null,null,null,null,null,null,null,null,null,null,null,null,null,null,null,null,null,null,null,null,null,null,null,null,null,null,null,null,null,null,null,null,null,null,null,null,null,null,null,null,null,null,null,null,null,null,null,null,null,null,null,null,null,null,null,null,null,null,null,null,null,null,null,null,null,null,null,null,null,null,null,null,null,null,null,null,null,null,null,null,null,null,null,null,null,null,null,null,null,null,null,null,null,null,null,null,null,null,null,null,null,null,null,null,null,null,null,null,null,null,null,null,null,null,null,null,null,null,null,null,null,null,null,null,null,null,null,null,null,null,null,null,null,null,null,null,null,null,null,null,null,null,null,null,null,null,null,null,null,null,null,null,null,null,null,null,null,null,null,null,null,null,null,null,null,null,null,null,null,null,null,null,null,null,null,null,null,null,null,null,null,null,null,null,null,null,null,null,null,null,null,null,null,null,null,null,null,null,null,null,null,null,null,null,null,null,null,null,null,null,null,null,null,null,null,null,null,null,null,null,null,null,null,null,null,null,null,null,null,null,null,null,null,null,null,null,null,null,null,null,null,null,null,null,null,null,null,null,null,null,null,null,null,null,null,null,null,null,null,null,null,null,null,null,null,null,null,null,null,null,null,null,null,null,null,null,null,null,null,null,null,null,null,null,null,null,null,null,null,null,null,null,null,null,null,null,null,null,null,null,null,null,null,null,null,null,null,null,null,null,null,null,null,null,null,null,null,null,null,null,null,null,null,null,null,null,null,null,null,null,null,null,null,null,null,null,null,null,null,null,null,null,null,null,null,null,null,null,null,null,null,null,null,null,null,null,null,null,null,null,null,null,null,null,null,null,null,null,null,null,null,null,null,null,null,null,null,null,null,null,null,null,null,null,null,null,null,null,null,null,null,null,null,null,null,null,null,null,null,null,null,null,null,null,null,null,null,null,null,null,null,null,null,null,null,null,null,null,null,null,null,null,null,null,null,null,null,null,null,null,null,null,null,null,null,null,null,null,null,null,null,null,null,null,null,null,null,null,null,null,null,null,null,null,null,null,null,null,null,null,null,null,null,null,null,null,null,null,null,null,null,null,null,null,null,null,null,null,null,null,null,null,null,null,null,null,null,null,null,null,null,null,null,null,null,null,null,null,null,null,null,null,null,null,null,null,null,null,null,null,null,null,null,null,null,null,null,null,null,null,null,null,null,null,null,null,null,null,null,null,null,null,null,null,null,null,null,null,null,null,null,null,null,null,null,null,null,null,null,null,null,null,null,null,null,null,null,null,null,null,null,null,null,null,null,null,null,null,null,null,null,null,null,null,null,null,null,null,null,null,null,null,null,null,null,null,null,null,null,null,null,null,null,null,null,null,null,null,null,null,null,null,null,null,null,null,null,null,null,null,null,null,null,null,null,null,null,null,null,null,null,null,null,null,null,null,null,null,null,null,null,null,null,null,null,null,null,null,null,null,null,null,null,null,null,null,null,null,null,null,null,null,null,null,null,null,null,null,null,null,null,null,null,null,null,null,null,null,null,null,null,null,null,null,null,null,null,null,null,null,null,null,null,null,null,null,null,null,null,null,null,null,null,null,null,null,null,null,null,null,null,null,null,null,null,null,null,null,null,null,null,null,null,null,null,null,null,null,null,null,null,null,null,null,null,null,null,null,null,null,null,null,null,null,null,null,null,null,null,null,null,null,null,null,null,null,null,null,null,null,null,null,null,null,null,null,null,null,null,null,null,null,null,null,null,null,null,null,null,null,null,null,null,null,null,null,null,null,null,null,null,null,null,null,null,null,null,null,null,null,null,null,null,null,null,null,null,null,null,null,null,null,null,null,null,null,null,null,null,null,null,null,null,null,null,null,null,null,null,null,null,null,null,null,null,null,null,null,null,null,null,null,null,null,null,null,null,null,null,null,null,null,null,null,null,null,null,null,null,null,null,null,null,null,null,null,null,null,null,null,null,null,null,null,null,null,null,null,null,null,null,null,null,null,null,null,null,null,null,null,null,null,null,null,null,null,null,null,null,null,null,null,null,null,null,null,null,null,null,null,null,null,null,null,null,null,null,null,null,null,null,null,null,null,null,null,null,null,null,null,null,null,null,null,null,null,null,null,null,null,null,null,null,null,null,null,null,null,null,null,null,null,null,null,null,null,null,null,null,null,null,null,null,null,null,null,null,null,null,null,null,null,null,null,null,null,null,null,null,null,null,null,null,null,null,null,null,null,null,null,null,null,null,null,null,null,null,null,null,null,null,null,null,null,null,null,null,null,null,null,null,null,null,null,null,null,null,null,null,null,null,null,null,null,null,null,null,null,null,null,null,null,null,null,null,null,null,null,null,null,null,null,null,null,null,null,null,null,null,null,null,null,null,null,null,null,null,null,null,null,null,null,null,null,null,null,null,null,null,null,null,null,null,null,null,null,null,null,null,null,null,null,null,null,null,null,null,null,null,null,null,null,null,null,null,null,null,null,null,null,null,null,null,null,null,null,null,null,null,null,null,null,null,null,null,null,null,null,null,null,null,null,null,null,null,null,null,null,null,null,null,null,null,null,null,null,null,null,null,null,null,null,null,null,null,null,null,null,null,null,null,null,null,null,null,null,null,null,null,null,null,null,null,null,null,null,null,null,null,null,null,null,null,null,null,null,null,null,null,null,null,null,null,null,null,null,null,null,null,null,null,null,null,null,null,null,null,null,null,null,null,null,null,null,null,null,null,null,null,null,null,null,null,null,null,null,null,null,null,null,null,null,null,null,null,null,null,null,null,null,null,null,null,null,null,null,null,null,null,null,null,null,null,null,null,null,null,null,null,null,null,null,null,null,null,null,null,null,null,null,null,null,null,null,null,null,null,null,null,null,null,null,null,null,null,null,null,null,null,null,null,null,null,null,null,null,null,null,null,null,null,null,null,null,null,null,null,null,null,null,null,null,null,null,null,null,null,null,null,null,null,null,null,null,null,null,null,null,null,null,null,null,null,null,null,null,null,null,null,null,null,null,null,null,null,null,null,null,null,null,null,null,null,null,null,null,null,null,null,null,null,null,null,null,null,null,null,null,null,null,null,null,null,null,null,null,null,null,null,null,null,null,null,null,null,null,null,null,null,null,null,null,null,null,null,null,null,null,null,null,null,null,null,null,null,null,null,null,null,null,null,null,null,null,null,null,null,null,null,null,null,null,null,null,null,null,null,null,null,null,null,null,null,null,null,null,null,null,null,null,null,null,null,null,null,null,null,null,null,null,null,null,null,null,null,null,null,null,null,null,null,null,null,null,null,null,null,null,null,null,null,null,null,null,null,null,null,null,null,null,null,null,null,null,null,null,null,null,null,null,null,null,null,null,null,null,null,null,null,null,null,null,null,null,null,null,null,null,null,null,null,null,null,null,null,null,null,null,null,null,null,null,null,null,null,null,null,null,null,null,null,null,null,null,null,null,null,null,null,null,null,null,null,null,null,null,null,null,null,null,null,null,null,null,null,null,null,null,null,null,null,null,null,null,null,null,null,null,null,null,null,null,null,null,null,null,null,null,null,null,null,null,null,null,null,null,null,null,null,null,null,null,null,null,null,null,null,null,null,null,null,null,null,null,null,null,null,null,null,null,null,null,null,null,null,null,null,null,null,null,null,null,null,null,null,null,null,null,null,null,null,null,null,null,null,null,null,null,null,null,null,null,null,null,null,null,null,null,null,null,null,null,null,null,null,null,null,null,null,null,null,null,null,null,null,null,null,null,null,null,null,null,null,null,null,null,null,null,null,null,null,null,null,null,null,null,null,null,null,null,null,null,null,null,null,null,null,null,null,null,null,null,null,null,null,null,null,null,null,null,null,null,null,null,null,null,null,null,null,null,null,null,null,null,null,null,null,null,null,null,null,null,null,null,null,null,null,null,null,null,null,null,null,null,null,null,null,null,null,null,null,null,null,null,null,null,null,null,null,null,null,null,null,null,null,null,null,null,null,null,null,null,null,null,null,null,null,null,null,null,null,null,null,null,null,null,null,null,null,null,null,null,null,null,null,null,null,null,null,null,null,null,null,null,null,null,null,null,null,null,null,null,null,null,null,null,null,null,null,null,null,null,null,null,null,null,null,null,null,null,null,null,null,null,null,null,null,null,null,null,null,null,null,null,null,null,null,null,null,null,null,null,null,null,null,null,null,null,null,null,null,null,null,null,null,null,null,null,null,null,null,null,null,null,null,null,null,null,null,null,null,null,null,null,null,null,null,null,null,null,null,null,null,null,null,null,null,null,null,null,null,null,null,null,null,null,null,null,null,null,null,null,null,null,null,null,null,null,null,null,null,null,null,null,null,null,null,null,null,null,null,null,null,null,null,null,null,null,null,null,null,null,null,null,null,null,null,null,null,null,null,null,null,null,null,null,null,null,null,null,null,null,null,null,null,null,null,null,null,null,null,null,null,null,null,null,null,null,null,null,null,null,null,null,null,null,null,null,null,null,null,null,null,null,null,null,null,null,null,null,null,null,null,null,null,null,null,null,null,null,null,null,null,null,null,null,null,null,null,null,null,null,null,null,null,null,null,null,null,null,null,null,null,null,null,null,null,null,null,null,null,null,null,null,null,null,null,null,null,null,null,null,null,null,null,null,null,null,null,null,null,null,null,null,null,null,null,null,null,null,null,null,null,null,null,null,null,null,null,null,null,null,null,null,null,null,null,null,null,null,null,null,null,null,null,null,null,null,null,null,null,null,null,null,null,null,null,null,null,null,null,null,null,null,null,null,null,null,null,null,null,null,null,null,null,null,null,null,null,null,null,null,null,null,null,null,null,null,null,null,null,null,null,null,null,null,null,null,null,null,null,null,null,null,null,null,null,null,null,null,null,null,null,null,null,null,null,null,null,null,null,null,null,null,null,null,null,null,null,null,null,null,null,null,null,null,null,null,null,null,null,null,null,null,null,null,null,null,null,null,null,null,null,null,null,null,null,null,null,null,null,null,null,null,null,null,null,null,null,null,null,null,null,null,null,null,null,null,null,null,null,null,null,null,null,null,null,null,null,null,null,null,null,null,null,null,null,null,null,null,null,null,null,null,null,null,null,null,null,null,null,null,null,null,null,null,null,null,null,null,null,null,null,null,null,null,null,null,null,null,null,null,null,null,null,null,null,null,null,null,null,null,null,null,null,null,null,null,null,null,null,null,null,null,null,null,null,null,null,null,null,null,null,null,null,null,null,null,null,null,null,null,null,null,null,null,null,null,null,null,null,null,null,null,null,null,null,null,null,null,null,null,null,null,null,null,null,null,null,null,null,null,null,null,null,null,null,null,null,null,null,null,null,null,null,null,null,null,null,null,null,null,null,null,null,null,null,null,null,null,null,null,null,null,null,null,null,null,null,null,null,null,null,null,null,null,null,null,null,null,null,null,null,null,null,null,null,null,null,null,null,null,null,null,null,null,null,null,null,null,null,null,null,null,null,null,null,null,null,null,null,null,null,null,null,null,null,null,null,null,null,null,null,null,null,null,null,null,null,null,null,null,null,null,null,null,null,null,null,null,null,null,null,null,null,null,null,null,null,null,null,null,null,null,null,null,null,null,null,null,null,null,null,null,null,null,null,null,null,null,null,null,null,null,null,null,null,null,null,null,null,null,null,null,null,null,null,null,null,null,null,null,null,null,null,null,null,null,null,null,null,null,null,null,null,null,null,null,null,null,null,null,null,null,null,null,null,null,null,null,null,null,null,null,null,null,null,null,null,null,null,null,null,null,null,null,null,null,null,null,null,null,null,null,null,null,null,null,null,null,null,null,null,null,null,null,null,null,null,null,null,null,null,null,null,null,null,null,null,null,null,null,null,null,null,null,null,null,null,null,null,null,null,null,null,null,null,null,null,null,null,null,null,null,null,null,null,null,null,null,null,null,null,null,null,null,null,null,null,null,null,null,null,null,null,null,null,null,null,null,null,null,null,null,null,null,null,null,null,null,null,null,null,null,null,null,null,null,null,null,null,null,null,null,null,null,null,null,null,null,null,null,null,null,null,null,null,null,null,null,null,null,null,null,null,null,null,null,null,null,null,null,null,null,null,null,null,null,null,null,null,null,null,null,null,null,null,null,null,null,null,null,null,null,null,null,null,null,null,null,null,null,null,null,null,null,null,null,null,null,null,null,null,null,null,null,null,null,null,null,null,null,null,null,null,null,null,null,null,null,null,null,null,null,null,null,null,null,null,null,null,null,null,null,null,null,null,null,null,null,null,null,null,null,null,null,null,null,null,null,null,null,null,null,null,null,null,null,null,null,null,null,null,null,null,null,null,null,null,null,null,null,null,null,null,null,null,null,null,null,null,null,null,null,null,null,null,null,null,null,null,null,null,null,null,null,null,null,null,null,null,null,null,null,null,null,null,null,null,null,null,null,null,null,null,null,null,null,null,null,null,null,null,null,null,null,null,null,null,null,null,null,null,null,null,null,null,null,null,null,null,null,null,null,null,null,null,null,null,null,null,null,null,null,null,null,null,null,null,null,null,null,null,null,null,null,null,null,null,null,null,null,null,null,null,null,null,null,null,null,null,null,null,null,null,null,null,null,null,null,null,null,null,null,null,null,null,null,null,null,null,null,null,null,null,null,null,null,null,null,null,null,null,null,null,null,null,null,null,null,null,null,null,null,null,null,null,null,null,null,null,null,null,null,null,null,null,null,null,null,null,null,null,null,null,null,null,null,null,null,null,null,null,null,null,null,null,null,null,null,null,null,null,null,null,null,null,null,null,null,null,null,null,null,null,null,null,null,null,null,null,null,null,null,null,null,null,null,null,null,null,null,null,null,null,null,null,null,null,null,null,null,null,null,null,null,null,null,null,null,null,null,null,null,null,null,null,null,null,null,null,null,null,null,null,null,null,null,null,null,null,null,null,null,null,null,null,null,null,null,null,null,null,null,null,null,null,null,null,null,null,null,null,null,null,null,null,null,null,null,null,null,null,null,null,null,null,null,null,null,null,null,null,null,null,null,null,null,null,null,null,null,null,null,null,null,null,null,null,null,null,null,null,null,null,null,null,null,null,null,null,null,null,null,32]
[null,null,null,null,null,null,null,null,null,null,null,null,null,null,null,null,null,null,null,null,null,null,null,null,null,null,null,null,null,null,null,null,null,null,null,null,null,null,null,null,null,null,null,null,null,null,null,null,null,null,null,null,null,null,null,null,"Comité Départemental 62"]
[null,null,null,null,null,null,null,null,null,null,null,null,null,null,null,null,null,null,null,null,null,null,null,null,null,null,null,null,null,null,null,null,{"$f":"IF(LEFT(AG4)=\"3\",1,0)","v":0},{"$f":"IF(AG3=1,\"0,000\",\"0,00\")","v":"0,00"},null,null,null,null,null,null,null,null,null,null,null,null,null,null,null,null,null,null,null,null,null,null,{"$f":"AF6&\" \"&AH6","v":"Club Organisateur : WIZERNES"}]
[null,null,null,null,null,null,null,null,null,null,null,null,null,null,null,null,null,null,null,null,null,null,null,null,null,null,null,null,null,null,null,null,null,null,null,null,null,null,null,null,null,null,null,null,null,null,null,null,null,null,null,null,null,null,null,null,null,null,null,null,null,null,null,null,null,null,null,null,null,null,null,null,null,null,null,null,null,null,null,null,null,null,null,"Stade de l'épreuve :",null,"Mode de Jeu :",null,null,"Catégorie :",null,null,"Date :",null,null,"Distance :",null,null,"Limitation de reprise :",null,null,null,null,"Format :",null,"Moyenne :"]
[null,null,null,null,null,null,null,null,null,null,null,null,null,null,null,null,null,null,null,null,null,null,null,null,null,null,null,null,null,null,null,null,null,null,null,null,null,null,null,null,null,null,null,null,null,null,null,null,null,null,null,null,null,null,null,null,null,null,null,null,null,null,null,null,null,null,null,null,null,null,null,null,null,null,null,null,null,null,null,null,null,null,null,{"$f":"IF(Inscriptions!F9=\"\",\"\",Inscriptions!F9)","v":"Finale CD62"},null,{"$f":"IF(Inscriptions!E7=\"\",\"\",Inscriptions!E7)","v":"Cadre"},null,null,{"$f":"IF(Inscriptions!F7=\"\",\"\",Inscriptions!F7)","v":"Régionale 1"},null,null,{"$f":"IF(Inscriptions!E5=\"\",\"\",Inscriptions!E5)","v":"2026-01-25"},{"$f":"IF(Inscriptions!N5=\"\",\"\",Inscriptions!N5)","v":""},{"$f":"IF(Inscriptions!O5=\"\",\"\",Inscriptions!O5)","v":""},{"$f":"IF(Inscriptions!G9=\"\",\"\",Inscriptions!G9)","v":"80 Points"},null,null,{"$f":"IF(Inscriptions!G5=\"\",\"\",Inscriptions!G5)","v":"Aucune Limitation"},null,null,null,null,{"$f":"IF(Inscriptions!C9=\"\",\"\",Inscriptions!C9)","v":"2,80 m"},null,{"$f":"IF(Inscriptions!G7=\"\",\"\",Inscriptions!G7)","v":"0,00 à 4,50"}]
[null,null,null,null,null,null,null,null,null,null,null,null,null,null,null,null,null,null,null,null,null,null,null,null,null,null,null,null,null,null,null,"Club Organisateur :",null,{"$f":"IF(Inscriptions!F5=\"\",\"\",Inscriptions!F5)","v":"WIZERNES"}]
[null,null,null,{"$f":"IF(B12=\"\",\"\",B12)","v":"FALSE FRANCK"},{"$f":"IF(C13=\"\",\"\",C13)","v":""},"","",{"$f":"IF(B17=\"\",\"\",B17)","v":"BRAZY ALAIN"},{"$f":"IF(C18=\"\",\"\",C18)","v":""},"","",{"$f":"IF(B22=\"\",\"\",B22)","v":"HUBERT HERVE"},{"$f":"IF(C23=\"\",\"\",C23)","v":""},"","",{"$f":"IF(B27=\"\",\"\",B27)","v":"BAILLET BERNARD"},{"$f":"IF(C28=\"\",\"\",C28)","v":""},"","","TOTAL",null,null,null,null,"Classement"]
[null,null,null,{"$f":"IF(B14=\"\",\"\",B14)","v":"BILLARD CLUB BILLY MONTIGNY"},"","","",{"$f":"IF(B19=\"\",\"\",B19)","v":"ACADEMIE CALAISIENNE DE BILLARD"},"","","",{"$f":"IF(B24=\"\",\"\",B24)","v":"BILLARD CLUB AVION"},"","","",{"$f":"IF(B29=\"\",\"\",B29)","v":"BILLARD CLUB DE CUCQ"},"","","","Pts",null,null,"Rep.","Points de Match",null,null,null,null,null,"Calcul Meilleure Moy Particuliere"]
[null,null,null,{"$f":"IF(B15=\"\",\"\",B15)","v":""},"","","",{"$f":"IF(B20=\"\",\"\",B20)","v":""},"","","",{"$f":"IF(B25=\"\",\"\",B25)","v":""},"","","",{"$f":"IF(B30=\"\",\"\",B30)","v":""},"","","",null,"M.P",null,null,null,null,null,null,null,null,null,null,null,null,null,2,1]
[null,null,null,{"$f":"IF(B16=\"\",\"\",B16)","v":"016907H"},4.62,"","",{"$f":"IF(B21=\"\",\"\",B21)","v":"102980U"},3.58,"","",{"$f":"IF(B26=\"\",\"\",B26)","v":"101140A"},3.1,"","",{"$f":"IF(B31=\"\",\"\",B31)","v":"147240T"},2.88,"","",null,null,null,null,null,null,null,null,null,null,null,null,null,null,null,null,null,null,null,null,null,null,null,null,null,null,null,null,{"$f":"joueurs1","v":"FALSE FRANCK"},{"$f":"joueurs2","v":"BRAZY ALAIN"},{"$f":"joueurs3","v":"HUBERT HERVE"},{"$f":"joueurs4","v":"BAILLET BERNARD"}]
[null,null,null,{"$f":"IF(B17=\"\",\"\",B17)","v":"BRAZY ALAIN"},"","","",{"$f":"IF(B22=\"\",\"\",B22)","v":"HUBERT HERVE"},"","","",{"$f":"IF(B27=\"\",\"\",B27)","v":"BAILLET BERNARD"},"","","",{"$f":"IF(B32=\"\",\"\",B32)","v":"* = Bille Blanche"},"","","","Moy.",null,null,"Série",null,null,null,null,null,null,"Match 1","Match 2","Match 3","MAX",null,"G","N","Total Points Match Gagné","MG","Total Points","Série","Calcul Clasemeent","Clt",null,null,null,null,null,null,null,null,null,null,null,{"$error":"#VALUE!"}]
[null,{"$f":"IF(Inscriptions!B12=\"\",\"\",Inscriptions!B12)","v":"FALSE FRANCK"},null,null,null,null,null,null,null,null,null,null,null,null,null,null,null,null,null,{"$f":"IF(SUM(P12,H12,L12)<>0,SUM(P12,H12,L12),\"\")","v":""},null,null,{"$f":"IF(SUM(R12,J12,N12)<>0,SUM(repmj3,J12,N12),\"\")","v":""},{"$f":"IF(T12=\"\",\"\",SUM(P16,H16,L16))","v":""},{"$f":"AB12& \"\" &AC12","v":""},null,null,{"$f":"IF(AP12=\"\",\"\",AP12)","v":""},{"$f":"IF(AB12=\"\",\"\",IF(AB12=1,\"er\",IF(AB12>0,\"è\")))","v":""},{"$f":"IF(J16=\"G\",H14,IF(J16=\"N\",H14,\"-\"))","v":"-"},{"$f":"IF(N16=\"G\",L14,IF(N16=\"N\",L14,\"-\"))","v":"-"},{"$f":"IF(R16=\"G\",P14,IF(R16=\"N\",P14,\"-\"))","v":"-"},{"$f":"IF(T12=\"\",\"\",MAX(AD12:AF16))","v":""},null,{"$f":"IF($T12=\"\",\"\",IF($J$16=AI11,AI9,0)+IF($N$16=AI11,AI9,0)+IF($R$16=AI11,AI9,0))","v":""},{"$f":"IF($T12=\"\",\"\",IF($J$16=AJ11,AJ9,0)+IF($N$16=AJ11,AJ9,0)+IF($R$16=AJ11,AJ9,0))","v":""},{"$f":"IF(AI12=\"\",\"\",(AI12+AJ12)*100000000000000000000)","v":""},{"$f":"IF(T12=\"\",\"\",(T15)*1000000000000000)","v":""},{"$f":"IF($T12=\"\",\"\",(AG12)*1000)","v":""},{"$f":"IF($T12=\"\",\"\",(W15)*1)","v":""},{"$f":"IF(T12=\"\",\"\",SUM(AK12:AN16))","v":""},{"$f":"IF(AO12=\"\",\"\",RANK(AO12,$AO$12:$AO$31))","v":""},null,null,null,null,null,null,null,null,null,null,null,"1ER TOUR","T1"]
[null,null,null,null,null,null,null,null,null,null,null,null,null,null,null,null,null,null,null,null,{"$f":"IF(AG12=0,\"-\",AG12)","v":""},null,null,null,null,null,null,null,null,null,null,null,null,null,null,null,null,null,null,null,null,null,null,null,null,null,{"$f":"joueurs1","v":"FALSE FRANCK"},null,null,null,null,null,null,"2EME TOUR","T2"]
[{"$f":"IF($B12<>\"\",VLOOKUP($B12,Inscriptions!$B$12:$N$17,4,FALSE),\"\")","v":"BILLY"},{"$f":"IF($A14<>\"\",VLOOKUP($A14,'base de données'!$O$8:$T$36,2,FALSE),\"\")","v":"BILLARD CLUB BILLY MONTIGNY"},null,null,null,null,null,{"$f":"IF(H12=\"\",\"\",H12/J12)","v":""},null,null,null,{"$f":"IF(L12=\"\",\"\",L12/N12)","v":""},null,null,null,{"$f":"IF(P12=\"\",\"\",P12/R12)","v":""},null,null,null,null,null,null,null,null,null,null,null,null,null,null,null,null,null,null,null,null,null,null,null,null,null,null,null,null,null,null,null,null,null,null,null,null,null,"3EME TOUR","T3"]
[null,null,null,null,null,null,null,null,null,null,null,null,null,null,null,null,null,null,null,{"$f":"IF(T12=\"\",\"\",T12/W12)","v":""},null,null,{"$f":"IF(T12=\"\",\"\",MAX(J14,N14,R14))","v":""}]
[null,{"$f":"IF($B12<>\"\",VLOOKUP($B12,Inscriptions!$B$12:$N$17,7,FALSE),\"\")","v":"016907H"},{"$f":"IF($B12<>\"\",VLOOKUP($B12,Inscriptions!$B$12:$N$17,2,FALSE),\"\")","v":4.62},null,null,null,null,{"$f":"IF(H12=\"\",\"\",IF(J16=\"G\",2,IF(J16=\"p\",0,1)))","v":""},{"$f":"IF($AW$13<>\"\",VLOOKUP($AW$13,$BB$12:$BC$14,2,FALSE),\"\")","v":""},{"$f":"IF(H12=\"\",\"\",IF(H12>D17,\"G\",IF(H12<D17,\"P\",\"N\")))","v":""},null,{"$f":"IF(L12=\"\",\"\",IF(N16=\"G\",2,IF(N16=\"p\",0,1)))","v":""},{"$f":"IF($AX$13<>\"\",VLOOKUP($AX$13,$BB$12:$BC$14,2,FALSE),\"\")","v":""},{"$f":"IF(L12=\"\",\"\",IF(L12>D22,\"G\",IF(L12<D22,\"P\",\"N\")))","v":""},null,{"$f":"IF(P12=\"\",\"\",IF(R16=\"G\",2,IF(R16=\"p\",0,1)))","v":""},{"$f":"IF($AY$13<>\"\",VLOOKUP($AY$13,$BB$12:$BC$14,2,FALSE),\"\")","v":""},{"$f":"IF(P12=\"\",\"\",IF(P12>D27,\"G\",IF(P12<D27,\"P\",\"N\")))","v":""},null,null,null,null,null,null,null,null,null,null,null,null,null,null,null,null,null,null,null,null,null,null,null,null,null,null,null,null,{"$f":"joueurs2","v":"BRAZY ALAIN"}]
[null,{"$f":"IF(Inscriptions!B13=\"\",\"\",Inscriptions!B13)","v":"BRAZY ALAIN"},null,null,null,{"$f":"IF(J12=\"\",\"\",J12)","v":""},null,null,null,null,null,null,null,null,null,null,null,null,null,{"$f":"IF(SUM(D17,P17,L17)<>0,SUM(D17,P17,L17),\"\")","v":""},null,"",{"$f":"IF(SUM(F17,R17,N17)<>0,SUM(F17,R17,N17),\"\")","v":""},{"$f":"IF(T17=\"\",\"\",SUM(P21,D21,L21))","v":""},{"$f":"AB17& \"\" &AC17","v":""},null,null,{"$f":"IF(AP17=\"\",\"\",AP17)","v":""},{"$f":"IF(AB17=\"\",\"\",IF(AB17=1,\"er\",IF(AB17>0,\"è\")))","v":""},{"$f":"IF(F21=\"G\",D19,IF(F21=\"N\",D19,\"-\"))","v":"-"},{"$f":"IF(N21=\"G\",L19,IF(N21=\"N\",L19,\"-\"))","v":"-"},{"$f":"IF(R21=\"G\",P19,IF(R21=\"N\",P19,\"-\"))","v":"-"},{"$f":"IF(T17=\"\",\"\",MAX(AD17:AF21))","v":""},null,{"$f":"IF($T17=\"\",\"\",IF($F$21=AI11,AI9,0)+IF($N$21=AI11,AI9,0)+IF($R$21=AI11,AI9,0))","v":""},{"$f":"IF($T17=\"\",\"\",IF($F$21=AJ11,AJ9,0)+IF($N$21=AJ11,AJ9,0)+IF($R$21=AJ11,AJ9,0))","v":""},{"$f":"IF(AI17=\"\",\"\",(AI17+AJ17)*100000000000000000000)","v":""},{"$f":"IF(T17=\"\",\"\",(T20)*1000000000000000)","v":""},{"$f":"IF($T17=\"\",\"\",(AG17)*1000)","v":""},{"$f":"IF($T17=\"\",\"\",(W20)*1)","v":""},{"$f":"IF(T17=\"\",\"\",SUM(AK17:AN21))","v":""},{"$f":"IF(AO17=\"\",\"\",RANK(AO17,$AO$12:$AO$31))","v":""}]
[null,null,null,null,null,null,null,null,null,null,null,null,null,null,null,null,null,null,null,null,{"$f":"IF(AG17=0,\"-\",AG17)","v":""},null,null,null,null,null,null,null,null,null,null,null,null,null,null,null,null,null,null,null,null,null,null,null,null,null,{"$f":"joueurs3","v":"HUBERT HERVE"}]
[{"$f":"IF($B17<>\"\",VLOOKUP($B17,Inscriptions!$B$12:$N$17,4,FALSE),\"\")","v":"CALAIS"},{"$f":"IF($A19<>\"\",VLOOKUP($A19,'base de données'!$O$8:$T$36,2,FALSE),\"\")","v":"ACADEMIE CALAISIENNE DE BILLARD"},null,{"$f":"IF(D17=\"\",\"\",D17/F17)","v":""},null,null,null,null,null,null,null,{"$f":"IF(L17=\"\",\"\",L17/N17)","v":""},null,null,null,{"$f":"IF(P17=\"\",\"\",P17/R17)","v":""}]
[null,null,null,null,null,null,null,null,null,null,null,null,null,null,null,null,null,null,null,{"$f":"IF(T17=\"\",\"\",T17/W17)","v":""},null,null,{"$f":"IF(T17=\"\",\"\",MAX(F19,N19,R19))","v":""}]
[null,{"$f":"IF($B17<>\"\",VLOOKUP($B17,Inscriptions!$B$12:$N$17,7,FALSE),\"\")","v":"102980U"},{"$f":"IF($B17<>\"\",VLOOKUP($B17,Inscriptions!$B$12:$N$17,2,FALSE),\"\")","v":3.58},{"$f":"IF(D17=\"\",\"\",IF(F21=\"G\",2,IF(F21=\"p\",0,1)))","v":""},{"$f":"IF(I16=\"\",\"\",I16)","v":""},{"$f":"IF(J16=\"\",\"\",IF(J16=\"G\",\"P\",IF(J16=\"N\",\"N\",\"G\")))","v":""},null,null,null,null,null,{"$f":"IF(L17=\"\",\"\",IF(N21=\"G\",2,IF(N21=\"p\",0,1)))","v":""},{"$f":"IF($AX$16<>\"\",VLOOKUP($AX$16,$BB$12:$BC$14,2,FALSE),\"\")","v":""},{"$f":"IF(L17=\"\",\"\",IF(L17>H22,\"G\",IF(L17<H22,\"P\",\"N\")))","v":""},null,{"$f":"IF(P17=\"\",\"\",IF(R21=\"G\",2,IF(R21=\"p\",0,1)))","v":""},{"$f":"IF($AY$16<>\"\",VLOOKUP($AY$16,$BB$12:$BC$14,2,FALSE),\"\")","v":""},{"$f":"IF(P17=\"\",\"\",IF(P17>H27,\"G\",IF(P17<H27,\"P\",\"N\")))","v":""},null,null,null,null,null,null,null,null,null,null,null,null,null,null,null,null,null,null,null,null,null,null,null,null,null,null,null,null,{"$f":"joueurs4","v":"BAILLET BERNARD"}]
[null,{"$f":"IF(Inscriptions!B14=\"\",\"\",Inscriptions!B14)","v":"HUBERT HERVE"},null,null,null,{"$f":"IF(N12=\"\",\"\",N12)","v":""},null,null,null,{"$f":"IF(N17=\"\",\"\",N17)","v":""},null,null,null,null,null,null,null,null,null,{"$f":"IF(SUM(D22,P22,H22)<>0,SUM(D22,P22,H22),\"\")","v":""},null,null,{"$f":"IF(SUM(F22,R22,J22)<>0,SUM(F22,R22,J22),\"\")","v":""},{"$f":"IF(T22=\"\",\"\",SUM(P26,D26,H26))","v":""},{"$f":"AB22& \"\" &AC22","v":""},null,null,{"$f":"IF(AP22=\"\",\"\",AP22)","v":""},{"$f":"IF(AB22=\"\",\"\",IF(AB22=1,\"er\",IF(AB22>0,\"è\")))","v":""},{"$f":"IF(F26=\"G\",D24,IF(F26=\"N\",D24,\"-\"))","v":"-"},{"$f":"IF(J26=\"G\",H24,IF(J26=\"N\",H24,\"-\"))","v":"-"},{"$f":"IF(R26=\"G\",P24,IF(R26=\"N\",P24,\"-\"))","v":"-"},{"$f":"IF(T22=\"\",\"\",MAX(AD22:AF26))","v":""},null,{"$f":"IF($T22=\"\",\"\",IF($F$26=AI11,AI9,0)+IF($J$26=AI11,AI9,0)+IF($R$26=AI11,AI9,0))","v":""},{"$f":"IF($T22=\"\",\"\",IF($F$26=AJ11,AJ9,0)+IF($J$26=AJ11,AJ9,0)+IF($R$26=AJ11,AJ9,0))","v":""},{"$f":"IF(AI22=\"\",\"\",(AI22+AJ22)*100000000000000000000)","v":""},{"$f":"IF(T22=\"\",\"\",(T25)*1000000000000000)","v":""},{"$f":"IF($T22=\"\",\"\",(AG22)*1000)","v":""},{"$f":"IF($T22=\"\",\"\",(W25)*1)","v":""},{"$f":"IF(T22=\"\",\"\",SUM(AK22:AN26))","v":""},{"$f":"IF(AO22=\"\",\"\",RANK(AO22,$AO$12:$AO$31))","v":""}]
[null,null,null,null,null,null,null,null,null,null,null,null,null,null,null,null,null,null,null,null,{"$f":"IF(AG22=0,\"-\",AG22)","v":""}]
[{"$f":"IF($B22<>\"\",VLOOKUP($B22,Inscriptions!$B$12:$N$17,4,FALSE),\"\")","v":"AVION"},{"$f":"IF($A24<>\"\",VLOOKUP($A24,'base de données'!$O$8:$T$36,2,FALSE),\"\")","v":"BILLARD CLUB AVION"},null,{"$f":"IF(D22=\"\",\"\",D22/F22)","v":""},null,null,null,{"$f":"IF(H22=\"\",\"\",H22/J22)","v":""},null,null,null,null,null,null,null,{"$f":"IF(P22=\"\",\"\",P22/R22)","v":""}]
[null,null,null,null,null,null,null,null,null,null,null,null,null,null,null,null,null,null,null,{"$f":"IF(T22=\"\",\"\",T22/W22)","v":""},null,null,{"$f":"IF(T22=\"\",\"\",MAX(F24,J24,R24))","v":""}]
[null,{"$f":"IF($B22<>\"\",VLOOKUP($B22,Inscriptions!$B$12:$N$17,7,FALSE),\"\")","v":"101140A"},{"$f":"IF($B22<>\"\",VLOOKUP($B22,Inscriptions!$B$12:$N$17,2,FALSE),\"\")","v":3.1},{"$f":"IF(D22=\"\",\"\",IF(F26=\"G\",2,IF(F26=\"p\",0,1)))","v":""},{"$f":"IF(M16=\"\",\"\",M16)","v":""},{"$f":"IF(N16=\"\",\"\",IF(N16=\"G\",\"P\",IF(N16=\"N\",\"N\",\"G\")))","v":""},null,{"$f":"IF(H22=\"\",\"\",IF(J26=\"G\",2,IF(J26=\"p\",0,1)))","v":""},{"$f":"IF(M21=\"\",\"\",M21)","v":""},{"$f":"IF(N21=\"\",\"\",IF(N21=\"G\",\"P\",IF(N21=\"N\",\"N\",\"G\")))","v":""},null,null,null,null,null,{"$f":"IF(P22=\"\",\"\",IF(R26=\"G\",2,IF(R26=\"p\",0,1)))","v":""},{"$f":"IF($AY$18<>\"\",VLOOKUP($AY$18,$BB$12:$BC$14,2,FALSE),\"\")","v":""},{"$f":"IF(P22=\"\",\"\",IF(P22>L27,\"G\",IF(P22<L27,\"P\",\"N\")))","v":""}]
[null,{"$f":"IF(Inscriptions!B15=\"\",\"\",Inscriptions!B15)","v":"BAILLET BERNARD"},null,null,null,{"$f":"IF(R12=\"\",\"\",R12)","v":""},null,null,null,{"$f":"IF(R17=\"\",\"\",R17)","v":""},null,null,null,{"$f":"IF(R22=\"\",\"\",R22)","v":""},null,null,null,null,null,{"$f":"IF(SUM(D27,H27,L27)<>0,SUM(D27,H27,L27),\"\")","v":""},null,null,{"$f":"IF(SUM(F27,N27,J27)<>0,SUM(F27,N27,J27),\"\")","v":""},{"$f":"IF(T27=\"\",\"\",SUM(L31,D31,H31))","v":""},{"$f":"AB27& \"\" &AC27","v":""},null,null,{"$f":"IF(AP27=\"\",\"\",AP27)","v":""},{"$f":"IF(AB27=\"\",\"\",IF(AB27=1,\"er\",IF(AB27>0,\"è\")))","v":""},{"$f":"IF(F31=\"G\",D29,IF(F31=\"N\",D29,\"-\"))","v":"-"},{"$f":"IF(J31=\"G\",H29,IF(J31=\"N\",H29,\"-\"))","v":"-"},{"$f":"IF(N31=\"G\",L29,IF(N31=\"N\",L29,\"-\"))","v":"-"},{"$f":"IF(T27=\"\",\"\",MAX(AD27:AF31))","v":""},null,{"$f":"IF($T27=\"\",\"\",IF($F$31=AI11,AI9,0)+IF($J$31=AI11,AI9,0)+IF($N$31=AI11,AI9,0))","v":""},{"$f":"IF($T27=\"\",\"\",IF($F$31=AJ11,AJ9,0)+IF($J$31=AJ11,AJ9,0)+IF($N$31=AJ11,AJ9,0))","v":""},{"$f":"IF(AI27=\"\",\"\",(AI27+AJ27)*100000000000000000000)","v":""},{"$f":"IF(T27=\"\",\"\",(T30)*1000000000000000)","v":""},{"$f":"IF($T27=\"\",\"\",(AG27)*1000)","v":""},{"$f":"IF($T27=\"\",\"\",(W30)*1)","v":""},{"$f":"IF(T27=\"\",\"\",SUM(AK27:AN31))","v":""},{"$f":"IF(AO27=\"\",\"\",RANK(AO27,$AO$12:$AO$31))","v":""}]
[null,null,null,null,null,null,null,null,null,null,null,null,null,null,null,null,null,null,null,null,{"$f":"IF(AG27=0,\"-\",AG27)","v":""}]
[{"$f":"IF($B27<>\"\",VLOOKUP($B27,Inscriptions!$B$12:$N$17,4,FALSE),\"\")","v":"CUCQ"},{"$f":"IF($A29<>\"\",VLOOKUP($A29,'base de données'!$O$8:$T$36,2,FALSE),\"\")","v":"BILLARD CLUB DE CUCQ"},null,{"$f":"IF(D27=\"\",\"\",D27/F27)","v":""},null,null,null,{"$f":"IF(H27=\"\",\"\",H27/J27)","v":""},null,null,null,{"$f":"IF(L27=\"\",\"\",L27/N27)","v":""}]
[null,null,null,null,null,null,null,null,null,null,null,null,null,null,null,null,null,null,null,{"$f":"IF(T27=\"\",\"\",T27/W27)","v":""},null,null,{"$f":"IF(T27=\"\",\"\",MAX(F29,J29,N29))","v":""}]
[null,{"$f":"IF($B27<>\"\",VLOOKUP($B27,Inscriptions!$B$12:$N$17,7,FALSE),\"\")","v":"147240T"},{"$f":"IF($B27<>\"\",VLOOKUP($B27,Inscriptions!$B$12:$N$17,2,FALSE),\"\")","v":2.88},{"$f":"IF(D27=\"\",\"\",IF(F31=\"G\",2,IF(F31=\"p\",0,1)))","v":""},{"$f":"IF(Q16=\"\",\"\",Q16)","v":""},{"$f":"IF(R16=\"\",\"\",IF(R16=\"G\",\"P\",IF(R16=\"N\",\"N\",\"G\")))","v":""},null,{"$f":"IF(H27=\"\",\"\",IF(J31=\"G\",2,IF(J31=\"p\",0,1)))","v":""},{"$f":"IF(Q21=\"\",\"\",Q21)","v":""},{"$f":"IF(R21=\"\",\"\",IF(R21=\"G\",\"P\",IF(R21=\"N\",\"N\",\"G\")))","v":""},null,{"$f":"IF(L27=\"\",\"\",IF(N31=\"G\",2,IF(N31=\"p\",0,1)))","v":""},{"$f":"IF(Q26=\"\",\"\",Q26)","v":""},{"$f":"IF(R26=\"\",\"\",IF(R26=\"G\",\"P\",IF(R26=\"N\",\"N\",\"G\")))","v":""}]
[null,"* = Bille Blanche"]
[null,"Clt.","Nom - Prénom",null,"Adresse :"]
[]
[1,"1er",{"$f":"IF(AB12=\"\",\"\",IF($AB$12=A35,$B$12,IF($AB$17=A35,$B$17,IF($AB$22=A35,$B$22,IF($AB$27=A35,$B$27)))))","v":""},null,{"$f":"IF($C35<>\"\",VLOOKUP($C35,Inscriptions!$B$11:$N$17,8,FALSE),\"\")","v":""},null,null,null,null,null,{"$f":"IF($C35<>\"\",VLOOKUP($C35,Inscriptions!$B$11:$N$17,9,FALSE),\"\")","v":""},{"$f":"IF($C35<>\"\",VLOOKUP($C35,Inscriptions!$B$11:$N$17,10,FALSE),\"\")","v":""},null,null,null,null,"Engt OUI - NON",null,null,null,null,null,null,null,null,null,null,null,{"$f":"IF($AB$12=1,$T$15,IF($AB$17=1,$T$20,IF($AB$22=1,$T$25,IF($AB$27=1,$T$30))))","v":false}]
[2,"2ème",{"$f":"IF(AB17=\"\",\"\",IF($AB$12=A36,$B$12,IF($AB$17=A36,$B$17,IF($AB$22=A36,$B$22,IF($AB$27=A36,$B$27)))))","v":""},null,{"$f":"IF($C36<>\"\",VLOOKUP($C36,Inscriptions!$B$11:$N$17,8,FALSE),\"\")","v":""},null,null,null,null,null,{"$f":"IF($C36<>\"\",VLOOKUP($C36,Inscriptions!$B$11:$N$17,9,FALSE),\"\")","v":""},{"$f":"IF($C36<>\"\",VLOOKUP($C36,Inscriptions!$B$11:$N$17,10,FALSE),\"\")","v":""},null,null,null,null,"Engt OUI - NON",null,null,null,null,null,null,null,null,null,null,null,{"$f":"IF($AB$12=2,$T$15,IF($AB$17=2,$T$20,IF($AB$22=2,$T$25,IF($AB$27=2,$T$30))))","v":false}]
[3,"3ème",{"$f":"IF(AB22=\"\",\"\",IF($AB$12=A37,$B$12,IF($AB$17=A37,$B$17,IF($AB$22=A37,$B$22,IF($AB$27=A37,$B$27)))))","v":""},null,{"$f":"IF($C37<>\"\",VLOOKUP($C37,Inscriptions!$B$11:$N$17,8,FALSE),\"\")","v":""},null,null,null,null,null,{"$f":"IF($C37<>\"\",VLOOKUP($C37,Inscriptions!$B$11:$N$17,9,FALSE),\"\")","v":""},{"$f":"IF($C37<>\"\",VLOOKUP($C37,Inscriptions!$B$11:$N$17,10,FALSE),\"\")","v":""},null,null,null,null,"Engt OUI - NON",null,null,null,null,null,null,null,null,null,null,null,{"$f":"IF($AB$12=3,$T$15,IF($AB$17=3,$T$20,IF($AB$22=3,$T$25,IF($AB$27=3,$T$30))))","v":false}]
[4,"4ème",{"$f":"IF(AB27=\"\",\"\",IF($AB$12=A38,$B$12,IF($AB$17=A38,$B$17,IF($AB$22=A38,$B$22,IF($AB$27=A38,$B$27)))))","v":""},null,{"$f":"IF($C38<>\"\",VLOOKUP($C38,Inscriptions!$B$11:$N$17,8,FALSE),\"\")","v":""},null,null,null,null,null,{"$f":"IF($C38<>\"\",VLOOKUP($C38,Inscriptions!$B$11:$N$17,9,FALSE),\"\")","v":""},{"$f":"IF($C38<>\"\",VLOOKUP($C38,Inscriptions!$B$11:$N$17,10,FALSE),\"\")","v":""},null,null,null,null,"Engt OUI - NON",null,null,null,null,null,null,null,null,null,null,null,{"$f":"IF($AB$12=4,$T$15,IF($AB$17=4,$T$20,IF($AB$22=4,$T$25,IF($AB$27=4,$T$30))))","v":false}]
[]
[null,null,"Observations :",null,null,null,null,null,null,null,null,null,null,null,null,null,null,null,null,null,null,"Directeur de Jeu :"]
[]
[null,null,null,null,null,null,null,null,null,null,null,null,null,null,null,null,null,null,null,null,null,"HEMBERT ALAIN"]

{"sheet":"Clubs","index":3,"n_rows":34,"n_cols":5,"rows_kept":34,"cut":false,"hidden":true,"merged":[]}
["Clubs","Ecussons","N° Clubs"]
["ARRAS",null,13101]
["AVION",null,13102]
["BILLY",null,13103]
["CARVIN",null,13104]
["LENS",null,13105]
["DOUAI",null,13107]
["ANNOEULLIN",null,13110]
["DIVION",null,13117]
["FOUQUIERES",null,13123]
["COURRIERES",null,13124]
["HOUPLINES",null,13231]
["VILLENEUVE D'ASCQ",null,13236]
["RONCHIN",null,13240]
["FACHES THUMESNIL",null,13249]
["ESTAIRES",null,13252]
["DUNKERQUE",null,13353]
["GRAVELINES",null,13355]
["OUTREAU",null,13356]
["ST POL SUR MER",null,13360]
["CUCQ",null,13363]
["CALAIS",null,13364]
["GRANDE SYNTHE",null,13365]
["WIMILLE",null,13368]
["WIZERNES",null,13369]
["LE TOUQUET",null,13370]
["DENAIN",null,13478]
["BRUAY",null,13481]
["CAMBRAI",null,13482]
["Finale Ligue"]
["Indépendants 62",null,null,null,"INDEPENDANT"]
["Finale CD62"]
["Barrage Artois"]
[{"$f":"\"\"","v":""},null,0]

{"sheet":"Bordereau d'engagement","index":4,"n_rows":46,"n_cols":19,"rows_kept":46,"cut":false,"hidden":false,"merged":[[24,0,25,0],[26,1,27,1],[0,17,0,18],[15,10,15,11],[13,10,13,11],[10,10,10,11],[6,2,6,3],[6,10,6,11],[6,4,6,5],[6,8,6,9],[6,6,6,7],[5,2,5,11],[11,4,11,5],[10,2,10,3],[10,4,10,5],[10,6,10,7],[8,2,8,11],[15,8,15,9],[13,4,13,5],[13,6,13,7],[22,5,22,7],[24,5,24,7],[23,5,23,7],[24,2,24,4],[42,0,42,1],[43,0,43,1],[41,0,41,1],[40,0,40,1],[39,0,39,1],[38,0,38,1],[37,0,37,1],[43,8,43,10],[42,8,42,10],[41,8,41,10],[40,8,40,10],[39,8,39,10],[38,8,38,10],[37,2,37,3],[43,4,43,7],[37,4,37,7],[43,2,43,3],[42,2,42,3],[41,2,41,3],[40,2,40,3],[39,2,39,3],[38,2,38,3],[42,4,42,7],[41,4,41,7],[37,8,37,10],[12,2,12,3],[11,6,11,7],[24,8,25,9],[24,11,25,11],[24,10,25,10],[24,1,25,1],[14,2,14,11],[15,4,15,5],[15,6,15,7],[12,8,12,9],[13,2,13,3],[38,4,38,7],[23,2,23,4],[25,2,25,5],[0,1,2,10],[22,2,22,3],[23,8,23,9],[22,8,22,9],[4,0,4,11],[5,0,5,1],[6,0,6,1],[8,0,9,1],[17,1,17,9],[12,6,12,7],[10,8,10,9],[12,4,12,5],[11,8,11,9],[9,2,9,11],[13,8,13,9],[11,10,11,11],[12,10,12,11],[11,2,11,3],[15,2,15,3],[27,2,27,5],[25,6,25,7],[45,0,45,11],[33,0,33,11],[18,1,18,9],[19,1,21,9],[17,0,21,0],[17,10,21,11],[26,11,27,11],[26,10,27,10],[28,1,29,1],[28,0,29,0],[28,2,28,4],[28,5,28,7],[28,8,29,9],[29,2,29,5],[29,6,29,7],[28,11,29,11],[28,10,29,10],[26,0,27,0],[26,2,26,4],[26,5,26,7],[26,8,27,9],[27,6,27,7],[40,4,40,7],[39,4,39,7],[30,0,31,0],[30,1,31,1],[30,2,30,4],[30,5,30,7],[30,8,31,9],[30,10,31,10],[30,11,31,11],[31,2,31,5],[31,6,31,7]]}
[null,"Bordereau d’Engagement en\nFinale de Ligue",null,null,null,null,null,null,null,null,null,null,null,null,"Comité Organisateur de la Finale Ligue:","Date :","Mode de Jeu :","Catégories :"]
[null,null,null,null,null,null,null,null,null,null,null,null,null,null,{"$f":"IF(Inscriptions!H5=\"\",\"\",Inscriptions!H5)","v":"OISE"},{"$f":"IF(Inscriptions!H7=\"\",\"\",Inscriptions!H7)","v":"2025-02-15"},{"$f":"IF(Inscriptions!E7=\"\",\"\",Inscriptions!E7)","v":"Cadre"},{"$f":"IF(Inscriptions!G10=\"\",\"\",Inscriptions!G10)","v":"R1"},{"$f":"IF(Inscriptions!F7=\"\",\"\",Inscriptions!F7)","v":"Régionale 1"}]
[]
["Modèle 2019-2020",null,null,null,null,null,null,null,null,null,null,null,null,null,"Finaliste du Comité :","N° CD"]
["Finale de Ligue - Carambole",null,null,null,null,null,null,null,null,null,null,null,null,null,{"$f":"IF(Inscriptions!H9=\"\",\"\",Inscriptions!H9)","v":"Pas de Calais"},{"$f":"IF($O$5<>\"\",VLOOKUP($O$5,$A$11:$B$16,2,FALSE),\"\")","v":"CD62"}]
["Date ",null,{"$f":"IF(P2=\"\",\"\",P2)","v":"2025-02-15"}]
["Organisateur",null,"Aisne",null,"Nord",null,"Oise",null,"Pas de Calais",null,"Somme"]
[]
["Finaliste du Comité",null,"Mode de Jeu & Catégorie"]
[]
["Aisne","CD02","Libre",null,"Cadre",null,"1 Bande",null,"3 Bande",null,"5 Quilles"]
["Nord","CD59"]
["Oise","CD60",null,null,"Nationale 1",null,"Nationale 2",null,"Nationale 3"]
["Pas de Calais","CD62","Régionale 1",null,"Régionale 2",null,"Régionale 3",null,"Régionale 4"]
["Somme","CD80","Catégories Jeunes"]
[null,null,"Junior R1",null,"Junior R2",null,"Cadet R",null,"Junior R",null,"Benjamin R"]
[]
[null,"Informations Joueurs",null,null,null,null,null,null,null,null,{"$f":"\"Finale CD\"& \"\" &RIGHT(P5,2)","v":"Finale CD62"}]
[null,"Ne doivent être mentionnés sur cette feuille que les joueurs réellement concernés par la finale Ligue"]
[null,"Seuls les joueurs indiqués sur ce document pourront être convoqués pour la finale\nEn cas de désistement du titulaire, le remplaçant sera convoqué\nEn cas de désistement du remplaçant, le CD concerné n’aura pas de représentant en finale de Ligue"]
[]
[]
[null,"Licence","Nom - Prénom\nAdresse",null,null,"Email\n                      Téléphone",null,null,"Siganture joueur",null,"Classt","Moyenne"]
["Exemple","123456Z","Dupont Martin\nRue Nationale, Lille",null,null,"martin.dupont@gmail.com\n09 87 65 42 21",null,null,null,null,"1er",12.58]
["Titulaire",{"$f":"IF($C25<>\"\",VLOOKUP($C25,Inscriptions!$B$12:$N$17,7,FALSE),\"\")","v":""},{"$f":"IF('Feuille de Match'!C35=\"\",\"\",'Feuille de Match'!C35)","v":""},null,null,{"$f":"IF($C25<>\"\",VLOOKUP($C25,Inscriptions!$B$12:$N$17,13,FALSE),\"\")","v":""},null,null,null,null,"1er",{"$f":"IF($C25<>\"\",VLOOKUP($C25,'Feuille de Match'!$C$35:$AC$38,27,FALSE),\"\")","v":""}]
[null,null,{"$f":"IF(C25=\"\",\"\",IF($C25<>\"\",VLOOKUP($C25,Inscriptions!$B$12:$N$17,8,FALSE),\"\")&\", \"&IF($C25<>\"\",VLOOKUP($C25,Inscriptions!$B$12:$N$17,9,FALSE),\"\")&\", \"&IF($C25<>\"\",VLOOKUP($C25,Inscriptions!$B$12:$N$17,10,FALSE),\"\"))","v":""},null,null,null,{"$f":"IF($C25<>\"\",VLOOKUP($C25,Inscriptions!$B$12:$N$17,12,FALSE),\"\")","v":""}]
["Remplaçant 1",{"$f":"IF($C27<>\"\",VLOOKUP($C27,Inscriptions!$B$12:$N$17,7,FALSE),\"\")","v":""},{"$f":"IF('Feuille de Match'!C36=\"\",\"\",'Feuille de Match'!C36)","v":""},null,null,{"$f":"IF($C27<>\"\",VLOOKUP($C27,Inscriptions!$B$12:$N$17,13,FALSE),\"\")","v":""},null,null,null,null,"2ème",{"$f":"IF($C27<>\"\",VLOOKUP($C27,'Feuille de Match'!$C$35:$AC$38,27,FALSE),\"\")","v":""}]
[null,null,{"$f":"IF(C27=\"\",\"\",IF($C27<>\"\",VLOOKUP($C27,Inscriptions!$B$12:$N$17,8,FALSE),\"\")&\", \"&IF($C27<>\"\",VLOOKUP($C27,Inscriptions!$B$12:$N$17,9,FALSE),\"\")&\", \"&IF($C27<>\"\",VLOOKUP($C27,Inscriptions!$B$12:$N$17,10,FALSE),\"\"))","v":""},null,null,null,{"$f":"IF($C27<>\"\",VLOOKUP($C27,Inscriptions!$B$12:$N$17,12,FALSE),\"\")","v":""}]
["Remplaçant 2",{"$f":"IF($C29<>\"\",VLOOKUP($C29,Inscriptions!$B$12:$N$17,7,FALSE),\"\")","v":""},{"$f":"IF('Feuille de Match'!C37=\"\",\"\",'Feuille de Match'!C37)","v":""},null,null,{"$f":"IF($C29<>\"\",VLOOKUP($C29,Inscriptions!$B$12:$N$17,13,FALSE),\"\")","v":""},null,null,null,null,"3ème",{"$f":"IF($C29<>\"\",VLOOKUP($C29,'Feuille de Match'!$C$35:$AC$38,27,FALSE),\"\")","v":""}]
[null,null,{"$f":"IF(C29=\"\",\"\",IF($C29<>\"\",VLOOKUP($C29,Inscriptions!$B$12:$N$17,8,FALSE),\"\")&\", \"&IF($C29<>\"\",VLOOKUP($C29,Inscriptions!$B$12:$N$17,9,FALSE),\"\")&\", \"&IF($C29<>\"\",VLOOKUP($C29,Inscriptions!$B$12:$N$17,10,FALSE),\"\"))","v":""},null,null,null,{"$f":"IF($C29<>\"\",VLOOKUP($C29,Inscriptions!$B$12:$N$17,12,FALSE),\"\")","v":""}]
["Remplaçant 3",{"$f":"IF($C31<>\"\",VLOOKUP($C31,Inscriptions!$B$12:$N$17,7,FALSE),\"\")","v":""},{"$f":"IF('Feuille de Match'!C39=\"\",\"\",'Feuille de Match'!C39)","v":""},null,null,{"$f":"IF($C31<>\"\",VLOOKUP($C31,Inscriptions!$B$12:$N$17,13,FALSE),\"\")","v":""},null,null,null,null,"4ème",{"$f":"IF($C31<>\"\",VLOOKUP($C31,'Feuille de Match'!$C$35:$AC$38,27,FALSE),\"\")","v":""}]
[null,null,{"$f":"IF(C31=\"\",\"\",IF($C31<>\"\",VLOOKUP($C31,Inscriptions!$B$12:$N$17,8,FALSE),\"\")&\", \"&IF($C31<>\"\",VLOOKUP($C31,Inscriptions!$B$12:$N$17,9,FALSE),\"\")&\", \"&IF($C31<>\"\",VLOOKUP($C31,Inscriptions!$B$12:$N$17,10,FALSE),\"\"))","v":""},null,null,null,{"$f":"IF($C31<>\"\",VLOOKUP($C31,Inscriptions!$B$12:$N$17,12,FALSE),\"\")","v":""}]
[]
["Le présent bordereau (accompagné de la feuille de résultats de la Finale CD) doit être rempli entièrement et lisiblement (notamment l’email), puis adressé à resultats.billard.ligue.hdf@gmail.com (et en copie au Responsable Format Ligue) immédiatement après l'épreuve et au plus tard dans les 48 heures suivant la compétition. Passé  ce délai, les engagements ne seront plus acceptés."]
[]
[null,null,null,"Email destinataire du bordereau d’engagement","resultats.billard.ligue.hdf@gmail.com"]
[null,null,null,null,"ainsi qu'au responsable format (indiqué ci-dessous)"]
["Responsable Format",null,"Nom",null,"Email",null,null,null,"Téléphone"]
["Libre",null,"Patrick MOLEY",null,"patmolbil@gmail.com",null,null,null,"07 50 40 73 40"]
["Cadre",null,"Mickael BETTEFORT",null,"mickey.80@wanadoo.fr",null,null,null,"06 19 30 22 12"]
["1 Bande",null,"Emmanuel TAFFIN",null,"emmanuel.taffin@orange.fr",null,null,null,"06 10 73 70 58"]
["3 Bandes",null,"André OTTEVAERE",null,"a.ottevaere@hotmail.fr",null,null,null,"06 16 15 36 55"]
["5 Quilles"]
["Jeunes / Féminines",null,"Denis HORNAIN",null,"denis.hornain@orange.com",null,null,null,"06 79 83 43 97"]
[]
["Par défaut, les finales se jouent à 5 joueurs, soit 1 représentant par Comité Départemental (CD). Si un CD ne peut présenter de joueur,\nalors finale à 4 joueurs, etc…La finale se joue dans le club du CD du joueur qualifié. (Le club organisateur doit avoir 2 billards du format de la compétition. Si le club ne peut pas recevoir la finale, celle-ci se déroule dans un autre club du même CD.)\nJoueurs en catégories Nationales :Compétition sur 2 jours : Samedi : Convocation 13h30, rencontres à 14h00, 3 tours de jeux. Dimanche : Convocation 8h30, rencontres à 9h00, 2 tours de jeux.\nJoueurs en catégories Régionales : Compétition le dimanche (et samedi pour Libre R1), convocation 8h30, début des rencontres à 9h00, 5\ntours de jeux. La compétition se déroule suivant le mécanisme des tours de jeu défini au code sportif (article 6.2.09)"]

{"sheet":"Bordereau","index":5,"n_rows":61,"n_cols":10,"rows_kept":61,"cut":false,"hidden":true,"merged":[[0,9,4,11],[8,4,8,5],[11,2,11,4],[12,2,12,3],[13,2,13,3],[19,1,24,8],[14,2,14,4],[18,3,18,7],[0,1,3,7],[5,5,5,7],[60,1,60,8],[38,4,38,5],[37,1,37,8],[44,2,44,4],[33,2,33,3],[34,2,34,4],[58,4,58,5],[53,2,53,3],[57,2,57,3],[57,5,57,6],[54,2,54,4],[48,4,48,5],[52,2,52,3],[51,2,51,4],[47,1,47,8],[28,4,28,5],[32,2,32,3],[43,2,43,3],[31,2,31,4],[27,1,27,8],[42,2,42,3],[41,2,41,4]]}
[null,{"$f":"IF('base de données'!$C$57=\"\",\"\",'base de données'!$C$57)","v":"Bordereau d'engagement Finale Ligue"},null,null,null,null,null,null,null,"Remplissage de la Feuille automatique"]
[]
[]
[]
[null,"Mode de Jeu :",{"$f":"IF(Inscriptions!E7=\"\",\"\",Inscriptions!E7)","v":"Cadre"},null,"Catégorie :",{"$f":"IF(Inscriptions!F7=\"\",\"\",Inscriptions!F7)","v":"Régionale 1"}]
[null,"Qui se disputera le :",{"$f":"IF(Inscriptions!H7=\"\",\"\",Inscriptions!H7)","v":"2025-02-15"},null,"à :",{"$f":"IF(Inscriptions!H5=\"\",\"\",Inscriptions!H5)","v":"OISE"}]
[]
[]
[null,"*Nom –Prénom du 1er Joueur :",null,null,{"$f":"IF('Feuille de Match'!C35=\"\",\"\",'Feuille de Match'!C35)","v":""}]
[null,"*Club :",{"$f":"IF($E9<>\"\",VLOOKUP($E9,Inscriptions!$B$12:$N$17,4,FALSE),\"\")","v":""},null,null,null,null,"*Moyenne :",{"$f":"IF($E9<>\"\",VLOOKUP($E9,'Feuille de Match'!$C$34:$AC$38,27,FALSE),\"\")","v":""}]
[null,"*N° Licence :",{"$f":"IF($E9<>\"\",VLOOKUP($E9,Inscriptions!$B$12:$N$17,7,FALSE),\"\")","v":""}]
[null,"*Adresse :",{"$f":"IF($E9<>\"\",VLOOKUP($E9,Inscriptions!$B$12:$N$17,8,FALSE),\"\")","v":""},null,null,{"$f":"IF($E9<>\"\",VLOOKUP($E9,Inscriptions!$B$12:$N$17,9,FALSE),\"\")","v":""},{"$f":"IF($E9<>\"\",VLOOKUP($E9,Inscriptions!$B$12:$N$17,10,FALSE),\"\")","v":""}]
[null,"*Tel Fixe :",{"$f":"IF($E9<>\"\",VLOOKUP($E9,Inscriptions!$B$12:$N$17,11,FALSE),\"\")","v":""},null,null,"*Signature Joueur :"]
[null,"*Tel Portable :",{"$f":"IF($E9<>\"\",VLOOKUP($E9,Inscriptions!$B$12:$N$17,12,FALSE),\"\")","v":""}]
[null,"*Mail :",{"$f":"IF($E9<>\"\",VLOOKUP($E9,Inscriptions!$B$12:$N$17,13,FALSE),\"\")","v":""}]
[]
[]
[]
[null,"*Nom –Prénom du 1er Joueur :",null,{"$f":"IF('Feuille de Match'!C35=\"\",\"\",'Feuille de Match'!C35)","v":""}]
[null,"QUALIFIE EN TANT QU'INVITE DU CD62 POUR LA FINALE DE FRANCE"]
[]
[]
[]
[]
[]
[]
[]
[]
[null,"*Nom –Prénom du 2ème Joueur :",null,null,{"$f":"IF('Feuille de Match'!C36=\"\",\"\",'Feuille de Match'!C36)","v":""}]
[null,"*Club :",{"$f":"IF($E29<>\"\",VLOOKUP($E29,Inscriptions!$B$12:$N$17,4,FALSE),\"\")","v":""},null,null,null,null,"*Moyenne :",{"$f":"IF($E29<>\"\",VLOOKUP($E29,'Feuille de Match'!$C$34:$AC$38,27,FALSE),\"\")","v":""}]
[null,"*N° Licence :",{"$f":"IF($E29<>\"\",VLOOKUP($E29,Inscriptions!$B$12:$N$17,7,FALSE),\"\")","v":""}]
[null,"*Adresse :",{"$f":"IF($E29<>\"\",VLOOKUP($E29,Inscriptions!$B$12:$N$17,8,FALSE),\"\")","v":""},null,null,{"$f":"IF($E29<>\"\",VLOOKUP($E29,Inscriptions!$B$12:$N$17,9,FALSE),\"\")","v":""},{"$f":"IF($E29<>\"\",VLOOKUP($E29,Inscriptions!$B$12:$N$17,10,FALSE),\"\")","v":""}]
[null,"*Tel Fixe :",{"$f":"IF($E29<>\"\",VLOOKUP($E29,Inscriptions!$B$12:$N$17,11,FALSE),\"\")","v":""},null,null,"*Signature Joueur :"]
[null,"*Tel Portable :",{"$f":"IF($E29<>\"\",VLOOKUP($E29,Inscriptions!$B$12:$N$17,12,FALSE),\"\")","v":""}]
[null,"*Mail :",{"$f":"IF($E29<>\"\",VLOOKUP($E29,Inscriptions!$B$12:$N$17,13,FALSE),\"\")","v":""}]
[]
[]
[]
[null,"*Nom –Prénom du 3ème Joueur :",null,null,{"$f":"IF('Feuille de Match'!C37=\"\",\"\",'Feuille de Match'!C37)","v":""}]
[null,"*Club :",{"$f":"IF($E39<>\"\",VLOOKUP($E39,Inscriptions!$B$12:$N$17,4,FALSE),\"\")","v":""},null,null,null,null,"*Moyenne :",{"$f":"IF($E39<>\"\",VLOOKUP($E39,'Feuille de Match'!$C$34:$AC$38,27,FALSE),\"\")","v":""}]
[null,"*N° Licence :",{"$f":"IF($E39<>\"\",VLOOKUP($E39,Inscriptions!$B$12:$N$17,7,FALSE),\"\")","v":""}]
[null,"*Adresse :",{"$f":"IF($E39<>\"\",VLOOKUP($E39,Inscriptions!$B$12:$N$17,8,FALSE),\"\")","v":""},null,null,{"$f":"IF($E39<>\"\",VLOOKUP($E39,Inscriptions!$B$12:$N$17,9,FALSE),\"\")","v":""},{"$f":"IF($E39<>\"\",VLOOKUP($E39,Inscriptions!$B$12:$N$17,10,FALSE),\"\")","v":""}]
[null,"*Tel Fixe :",{"$f":"IF($E39<>\"\",VLOOKUP($E39,Inscriptions!$B$12:$N$17,11,FALSE),\"\")","v":""},null,null,"*Signature Joueur :"]
[null,"*Tel Portable :",{"$f":"IF($E39<>\"\",VLOOKUP($E39,Inscriptions!$B$12:$N$17,12,FALSE),\"\")","v":""}]
[null,"*Mail :",{"$f":"IF($E39<>\"\",VLOOKUP($E39,Inscriptions!$B$12:$N$17,13,FALSE),\"\")","v":""}]
[]
[]
[]
[null,"*Nom –Prénom du 4ème Joueur :",null,null,{"$f":"IF('Feuille de Match'!C38=\"\",\"\",'Feuille de Match'!C38)","v":""}]
[null,"*Club :",{"$f":"IF($E49<>\"\",VLOOKUP($E49,Inscriptions!$B$12:$N$17,4,FALSE),\"\")","v":""},null,null,null,null,"*Moyenne :",{"$f":"IF($E49<>\"\",VLOOKUP($E49,'Feuille de Match'!$C$34:$AC$38,27,FALSE),\"\")","v":""}]
[null,"*N° Licence :",{"$f":"IF($E49<>\"\",VLOOKUP($E49,Inscriptions!$B$12:$N$17,7,FALSE),\"\")","v":""}]
[null,"*Adresse :",{"$f":"IF($E49<>\"\",VLOOKUP($E49,Inscriptions!$B$12:$N$17,8,FALSE),\"\")","v":""},null,null,{"$f":"IF($E49<>\"\",VLOOKUP($E49,Inscriptions!$B$12:$N$17,9,FALSE),\"\")","v":""},{"$f":"IF($E49<>\"\",VLOOKUP($E49,Inscriptions!$B$12:$N$17,10,FALSE),\"\")","v":""}]
[null,"*Tel Fixe :",{"$f":"IF($E49<>\"\",VLOOKUP($E49,Inscriptions!$B$12:$N$17,11,FALSE),\"\")","v":""},null,null,"*Signature Joueur :"]
[null,"*Tel Portable :",{"$f":"IF($E49<>\"\",VLOOKUP($E49,Inscriptions!$B$12:$N$17,12,FALSE),\"\")","v":""}]
[null,"*Mail :",{"$f":"IF($E49<>\"\",VLOOKUP($E49,Inscriptions!$B$12:$N$17,13,FALSE),\"\")","v":""}]
[]
[]
[null,"À :",{"$f":"IF(Inscriptions!F5=\"\",\"\",Inscriptions!F5)","v":"WIZERNES"},null,"le : ",{"$f":"IF(Inscriptions!E5=\"\",\"\",Inscriptions!E5)","v":"2026-01-25"}]
[null,"Nom du responsable de l’épreuve :",null,null,{"$f":"IF('Feuille de Match'!V42=\"\",\"\",'Feuille de Match'!V42)","v":"HEMBERT ALAIN"}]
[]
[null,{"$f":"IF('base de données'!D143=\"\",\"\",'base de données'!D143)","v":"CD62\nResponsable format « Cadre & 3 Bandes » : André DESBLEUMORTIERS\nMob : 06 - 08 - 95 - 70 - 58 – Email : cdesbleu@gmail.com"}]

{"sheet":"Liste Joueurs","index":6,"n_rows":7186,"n_cols":27,"rows_kept":7186,"cut":false,"hidden":false,"merged":[]}
["Liste Joueurs","016964M","32","62","13364","CALAIS","PATRICK","BRIEZ","22531","M","155 AVENUE LOUIS BLERIOT","156 AVENUE LOUIS BLERIOT","157 AVENUE LOUIS BLERIOT","62100","CALAIS2","FRANCE","0321979894","0321979895","DOMINIQUE.SAUVAGE@NEUF.FR","OUI","+21 ans","Carambole","Colonne3","45903","FRANCE4","NON","Colonne5"]
[{"$f":"H2 & \" \" &G2","v":"LEDUCQ STEPHANE"},"016965N",32,62,13364,"CALAIS","STEPHANE","LEDUCQ","1963-04-17","M","33 RUE HELENE BOUCHER",null,null,62100,"CALAIS","FRANCE",null,"0632767614","stephaneleducq@yahoo.fr","OUI","+21 ans","Carambole",null,45903,"FRANCE","NON"]
["GRADELLE FRANCIS","016966O",32,62,13364,"CALAIS","FRANCIS","GRADELLE","1962-03-20","M","3 AVENUE GUYNEMER","BAT W 3 APPT N 17",null,62100,"CALAIS","FRANCE",null,"0670781033",null,"OUI","+21 ans","Carambole",null,45903,"FRANCE","NON"]
["SAUVAGE DOMINIQUE","016967P",32,62,13364,"CALAIS","DOMINIQUE","SAUVAGE","1961-07-20","M","395 RUE DU VIRVAL",null,null,62100,"CALAIS","FRANCE",null,"0610863443","dominique.sauvage@neuf.fr","OUI","+21 ans","Carambole","arbitre",45894,"FRANCE","NON"]
["SAINT GEORGES CLAUDE","017052W",32,62,13364,"CALAIS","CLAUDE","SAINT GEORGES","1947-06-06","M","2316 ROUTE NATIONALE 43",null,null,62730,"LES ATTAQUES","FRANCE",null,"0771878141","watzon9@gmail.com","OUI","+21 ans","Carambole","arbitre",45895,"FRANCE","NON"]
["BRAZY ALAIN","102980U",32,62,13364,"CALAIS","ALAIN","BRAZY","1955-01-30","M","110 RIVIERE D OYE",null,null,62370,"OFFEKERQUE","FRANCE",null,"0641384118","alain.brazy@hotmail.fr","OUI","+21 ans","Carambole","arbitre",45895,"FRANCE","NON"]
["COUVREUR JEREMY","105372U",32,62,13364,"CALAIS","JEREMY","COUVREUR","1985-10-21","M","19 PLACE D ARMES",null,null,62610,"ARDRES","FRANCE",null,"0787245268","couvreur.jeremy@gmx.fr","OUI","+21 ans","Carambole",null,45917,"FRANCE","NON"]
["BRAZY FRANCOIS","105375X",32,62,13364,"CALAIS","FRANCOIS","BRAZY","1981-11-07","M","75 RUE PIERRE PAIN",null,null,62370,"OFFEKERQUE","FRANCE",null,"0663716342","francoisbrazy@gmail.com","OUI","+21 ans","Carambole",null,45903,"FRANCE","NON"]
["MARLARD LEOPOLD","107656Q",32,62,13364,"CALAIS","LEOPOLD","MARLARD","1950-06-25","M","625 RUE DE JERUSALEM",null,null,62610,"RODELINGHEM","FRANCE","0321821387",null,"leopoldmarlard@wanadoo.fr","OUI","+21 ans","Carambole",null,45903,"FRANCE","NON"]
["MARLOT MICHEL","114109V",32,62,13364,"CALAIS","MICHEL","MARLOT","1940-01-25","M","109 RUE MOLLIEN",null,null,62100,"CALAIS","FRANCE","0643152568",null,null,"OUI","+21 ans","Carambole",null,45908,"FRANCE","NON"]
["LIMOUSIN ROLAND","114972A",32,62,13364,"CALAIS","ROLAND","LIMOUSIN","1940-09-15","M","484 RUE MARECHAL DE LATTRE DE TASSIGNY",null,null,62100,"CALAIS","FRANCE","0321361473","0650267832",null,"OUI","+21 ans","Carambole",null,45908,"FRANCE","NON"]
["LASSALLE ROGER","121433N",32,62,13364,"CALAIS","ROGER","LASSALLE","1940-02-02","M","6 ALLEE DES MELEZES",null,null,62231,"COQUELLES","FRANCE","0321358342","0664544861","rogermicheline2@gmail.com","OUI","+21 ans","Carambole",null,45929,"FRANCE","NON"]
["VIEILLARD DANIEL","124437B",32,62,13364,"CALAIS","DANIEL","VIEILLARD","1943-04-24","M","24 ROUTE DE SERQUES",null,null,62910,"MOULLE","FRANCE","0321936968","0686491886","daniel-vieillard@wanadoo.fr","OUI","+21 ans","Carambole",null,45912,"FRANCE","NON"]
["FLAHAUT PATRICE","127702Q",32,62,13364,"CALAIS","PATRICE","FLAHAUT","1956-03-23","M","257 AVENUE DE VERDUN",null,null,62730,"MARCK","FRANCE","0321368866",null,"p.flahaut62730@gmail.com","OUI","+21 ans","Carambole",null,45895,"FRANCE","NON"]
["HEMBERT ALAIN","142782Q",32,62,13364,"CALAIS","ALAIN","HEMBERT","1952-06-29","M","54 RUE LOUIS DENIS",null,null,62137,"COULOGNE","FRANCE",null,"0672664638","alain.hembert52@orange.fr","OUI","+21 ans","Carambole","arbitre",45903,"FRANCE","NON"]
["LOGEZ MICHEL","145529H",32,62,13364,"CALAIS","MICHEL","LOGEZ","1955-08-09","M","116 RUE DOLAIN",null,null,62100,"CALAIS","FRANCE",null,"0769589422","michel.loge@free.fr","OUI","+21 ans","Carambole",null,45912,"FRANCE","NON"]
["LOOSEN FRANCOIS","150872R",32,62,13364,"CALAIS","FRANCOIS","LOOSEN","1958-08-09","M","451 RUE DE LA MAIRIE",null,null,62610,"LANDRETHUN LES ARDRES","FRANCE",null,"0671702076","f.loosen@free.fr","OUI","+21 ans","Blackball",null,45910,"FRANCE","NON"]
["RENAUX FABIEN","152240D",32,62,13364,"CALAIS","FABIEN","RENAUX","1982-06-01","M","28B RUE DU CHATEAU",null,null,62340,"GUINES","FRANCE",null,"0650942608","fataca@gmail.com","OUI","+21 ans","Blackball",null,45908,"FRANCE","NON"]
["BEKAERT DIMITRI","152241E",32,62,13364,"CALAIS","DIMITRI","BEKAERT","1990-06-14","M","1555 AVENUE DE CALAIS",null,null,62730,"MARCK","FRANCE",null,"0660591701","dimitri.bekaert@hotmail.fr","OUI","+21 ans","Blackball",null,45964,"FRANCE","NON"]
["FORTIN ALEXANDRE","161429R",32,62,13364,"CALAIS","ALEXANDRE","FORTIN","1989-07-30","M","2138B RUE DU HAUT MONT",null,null,62850,"ALEMBON","FRANCE",null,"0648163025","alexfortin62@gmail.com","OUI","+21 ans","Blackball",null,45912,"FRANCE","NON"]
["VERBREGUE SAMUEL","175732N",32,62,13364,"CALAIS","SAMUEL","VERBREGUE","1980-07-04","M","88 RUE DU VANNEAU HUPPE",null,null,62730,"MARCK","FRANCE",null,"0670857423","samuel.verbregue@orange.fr","OUI","+21 ans","Carambole",null,45903,"FRANCE","NON"]
["HINGRAND NATHAN","177601V",32,62,13364,"CALAIS","NATHAN","HINGRAND","2010-09-25","M","220 RUE DES EGRETTES",null,null,62730,"MARCK","FRANCE",null,"0680811195","thingrand@gmail.com","OUI","-21 ans","Carambole",null,45910,"FRANCE","NON"]
["POLLET JEAN MICHEL","179301S",32,62,13364,"CALAIS","JEAN MICHEL","POLLET","1949-03-10","M","47 RUE RENE CASSIN",null,null,62100,"CALAIS","FRANCE",null,"0673049383","patricia-maxant@outlook.com","OUI","+21 ans","Carambole",null,45912,"FRANCE","NON"]
["LECOMTE LIONEL","181335D",32,62,13364,"CALAIS","LIONEL","LECOMTE","1961-05-08","M","108 RUE PEARSON",null,null,62100,"CALAIS","FRANCE",null,"0667702504","lionellecomte@free.fr","OUI","+21 ans","Carambole",null,45903,"FRANCE","NON"]
["DEREPPER ALAIN","181357C",32,62,13364,"CALAIS","ALAIN","DEREPPER","1953-07-18","M","20 RUE GALILE",null,null,62100,"CALAIS","FRANCE",null,"0678129409","alain.derepper@hotmail.fr","OUI","+21 ans","Carambole",null,45908,"FRANCE","NON"]
["PARKER STUART","181518C",32,62,13364,"CALAIS","STUART","PARKER","1969-11-20","M","76 BOULEVARD DE L EGALITE",null,null,62100,"CALAIS","FRANCE","0781604588",null,"alain.derepper@hotmail.fr","OUI","+21 ans","Blackball",null,45910,"FRANCE","NON"]
["DELAROUZEE MARC ANTOINE","182558H",32,62,13364,"CALAIS","MARC ANTOINE","DELAROUZEE","2006-09-21","M","43 ROUTE DE GRAVELINES",null,null,62100,"CALAIS","FRANCE",null,"0661653238",null,"OUI","-21 ans","Blackball",null,46010,"FRANCE","OUI"]
["ASSISE VINCENT","182921C",32,62,13364,"CALAIS","VINCENT","ASSISE","1963-06-05","M","50 RUE PAUL LANGEVIN",null,null,62100,"CALAIS","FRANCE",null,"0749921774","assisevincent@gmail.com","OUI","+21 ans","Carambole",null,45903,"FRANCE","NON"]
["BOIN JEAN LUC","182923E",32,62,13364,"CALAIS","JEAN LUC","BOIN","1957-04-27","M","70 RUE VINCENT VAN GOGH",null,null,62100,"CALAIS","FRANCE",null,"0672788834",null,"OUI","+21 ans","Blackball",null,45912,"FRANCE","NON"]
["DEVOS STEPHANE","185939H",32,62,13364,"CALAIS","STEPHANE","DEVOS","1978-12-19","M","526 AVENUE DE CALAIS",null,null,62730,"MARCK","FRANCE",null,"0662763957","sdevos62@gmail.com","OUI","+21 ans","Blackball",null,45903,"FRANCE","NON"]
["LEVITRE ESTEBAN","189460K",32,62,13364,"CALAIS","ESTEBAN","LEVITRE","2011-06-26","M","28 RUE DU 11 NOVEMBRE",null,null,62100,"CALAIS","FRANCE","06351177454",null,"estebanlevitre@gmail.com","OUI","-21 ans","Blackball",null,45912,"FRANCE","NON"]
["DELEGLISE TONY","189550H",32,62,13364,"CALAIS","TONY","DELEGLISE","2012-11-30","M","256 AVE ANTOINE DE SAINT EXUPERY",null,null,62100,"CALAIS","FRANCE","0682054414",null,"delys.fanny@neuf.fr","OUI","-21 ans","Blackball",null,45923,"FRANCE","NON"]
["TOULOTTE THEO","190761Z",32,62,13364,"CALAIS","THEO","TOULOTTE","1995-01-27","M","RUE COURTERVEAU",null,null,62100,"CALAIS","FRANCE",null,"0656784495","toulottetheo62@gmail.com","OUI","Decouverte","Blackball",null,45908,"FRANCE","NON"]
["LEMAIRE ANNICK","190762A",32,62,13364,"CALAIS","ANNICK","LEMAIRE","1964-10-23","F","3 AVENUE MARCEL COISNE","RESIDENCE POITOU APPT 02",null,59150,"NIEPPE","FRANCE",null,"0658029180","Jac_8@hotmail.fr","OUI","Decouverte","Blackball",null,45908,"FRANCE","NON"]
["HINGRAND LISE","190877A",32,62,13364,"CALAIS","LISE","HINGRAND","2013-02-18","F","220 RUE DES EGRETTES",null,null,62730,"MARCK","FRANCE",null,"0680811195",null,"OUI","Avenir","Blackball",null,45910,"FRANCE","NON"]
["HINGRAND TOM","190878B",32,62,13364,"CALAIS","TOM","HINGRAND","2017-02-18","M","220 RUE DES EGRETTES",null,null,62730,"MARCK","FRANCE",null,"0680811195",null,"OUI","Avenir","Blackball",null,45910,"FRANCE","NON"]
["SAINT MAXIN NOE","191323K",32,62,13364,"CALAIS","NOE","SAINT MAXIN","2013-09-23","M","63 RUE DIDEROT",null,null,62100,"CALAIS","FRANCE","0767383037",null,"S.SAINTMAXIN@gmail.com","OUI","Avenir","Carambole",null,45919,"FRANCE","NON"]
["PETIT EMMANUEL","191466Q",32,62,13364,"CALAIS","EMMANUEL","PETIT","1965-06-02","M","244 RUE MOURON",null,null,62100,"CALAIS","FRANCE","0616797835",null,"emmanuelpetit22@gmail.com","OUI","Decouverte","Carambole",null,45923,"FRANCE","NON"]
["CAPRON FREDERIC","191741P",32,62,13364,"CALAIS","FREDERIC","CAPRON","1964-06-06","M","12 ALLEE BEETHOVEN",null,null,62231,"BLERIOT PLAGE","FRANCE",null,"0662594404","fcapron.fc@gmail.com","OUI","Decouverte","Carambole",null,45929,"FRANCE","NON"]
["LOESENER MATHIEU","192013K",32,62,13364,"CALAIS","MATHIEU","LOESENER","1992-11-26","M","60 RUE ROBESPIERRE",null,null,62100,"CALAIS","FRANCE",null,"0658208991","loesener.mathieu@gmail.com","OUI","Decouverte","Blackball",null,45936,"FRANCE","NON"]
["DEJARDIN VALENTIN","192015M",32,62,13364,"CALAIS","VALENTIN","DEJARDIN","2006-12-22","M","165 ROUTE DE ZUTKERQUE",null,null,62370,"AUDRUICQ","FRANCE",null,"0611776012","BRUNET.VALENTIN62730@GMAIL.COM","OUI","Avenir","Blackball",null,45936,"FRANCE","NON"]
["LOESNER MATHIEU","192530X",32,62,13364,"CALAIS","MATHIEU","LOESNER","1992-11-26","M","60 RUE ROBESPIERRE",null,null,62100,"CALAIS","FRANCE","0658208991",null,"loesemer-mathieu@gmail.com","OUI","Decouverte","Carambole",null,45954,"FRANCE","NON"]
["DELEGLISE FRANCOISE","192683N",32,62,13364,"CALAIS","FRANCOISE","DELEGLISE","1962-09-02","F","695 AVENUE DE L AEROPORT",null,null,62730,"MARCK","FRANCE","062762667795",null,"jeanluc-et-francoise@live.fr","OUI","Decouverte","Blackball",null,45965,"FRANCE","NON"]
["DETRE JEAN FRANCOIS","192684P",32,62,13364,"CALAIS","JEAN FRANCOIS","DETRE","1968-04-06","M","6 RUE DU COMMANDANT BONNINGUES",null,null,62100,"CALAIS","FRANCE",null,"0674675173","alain.brazy@hotmail.fr","OUI","Decouverte","Blackball",null,45965,"FRANCE","NON"]
["TOULOTTE NORBERT","193056T",32,62,13364,"CALAIS","NORBERT","TOULOTTE","2002-05-30","M","23  RUE SAINTE BEUVE",null,null,62100,"CALAIS","FRANCE",null,"0622871136","NORBERT.TOULOTTE62@GMAIL.COM","OUI","Decouverte","Blackball",null,45988,"FRANCE","NON"]
["RENAUX TAIS","193434E",32,62,13364,"CALAIS","TAIS","RENAUX","2013-12-07","M","69 RUE DES DAMES D ETRON",null,null,62340,"GUINES","FRANCE","0658493179",null,"alain.brazy@hotmail.fr","OUI","Avenir","Blackball",null,46010,"FRANCE","NON"]
["DUFOSSE SIMON","193537R",32,62,13364,"CALAIS","SIMON","DUFOSSE","2006-05-03","M","64 RUE PAUL GAUGUIN",null,null,62730,"MARCK","FRANCE","0777233036",null,"simonduf2006@gmail.com","OUI","Avenir","Blackball",null,46027,"FRANCE","NON"]
["HEBBEN PIERRE","016518I",32,62,13612,"ARRAS","PIERRE","HEBBEN","1938-09-14","M","93 RUE JEAN GOUJON",null,null,62000,"DAINVILLE","FRANCE","0321710799","0630207600","lilianehebben@orange.fr","OUI","+21 ans","Carambole",null,45946,"FRANCE","NON"]
["LEDENT PATRICE","016519J",32,62,13612,"ARRAS","PATRICE","LEDENT","1951-06-14","M","19 RUE LAVAL",null,null,62217,"ACHICOURT","FRANCE",null,"0766247449","pledent51@gmail.com","OUI","+21 ans","Carambole",null,45953,"FRANCE","NON"]
["OBLET FREDDY","104534O",32,62,13612,"ARRAS","FREDDY","OBLET","1969-09-30","M","95 AVENUE GENERAL FAIDHERBE",null,null,80300,"ALBERT","FRANCE",null,"0671402820","obletfreddygq@gmail.com","OUI","+21 ans","Blackball","arbitre",45899,"FRANCE","OUI"]
["GEETS PATRICE","126847T",32,62,13612,"ARRAS","PATRICE","GEETS","1959-08-28","M","18 RUE VAN DYCK",null,null,62217,"BEAURAINS","FRANCE",null,33780432127,"gtspat59@gmail.com","OUI","+21 ans","Carambole",null,45908,"FRANCE","NON"]
["CREPIN ERIC","133410E",32,62,13612,"ARRAS","ERIC","CREPIN","1978-08-19","M","109 RUE DE DOUAI",null,null,62000,"ARRAS","FRANCE",null,"0649273392","eric_crepin62@orange.fr","OUI","+21 ans","Snooker",null,45893,"FRANCE","NON"]
["MOUVIELLE ANTONY","148666T",32,62,13612,"ARRAS","ANTONY","MOUVIELLE","1977-03-14","M","84 RUE DE L EGLISE",null,null,62149,"ANNEQUIN","FRANCE",null,"0647122431","mouvielle.antony@gmail.com","OUI","+21 ans","Blackball",null,45979,"FRANCE","NON"]
["DELAIRE SYLVAIN","152184S",32,62,13612,"ARRAS","SYLVAIN","DELAIRE","1965-08-08","M","33 RUE DE SIMENCOURT",null,null,62123,"BEAUMETZ LES LOGES","FRANCE",null,"0671343828","delaire.sylvain@orange.fr","OUI","+21 ans","Carambole",null,45903,"FRANCE","NON"]
["LEVECQUE JOHNNY","152752K",32,62,13612,"ARRAS","JOHNNY","LEVECQUE","1993-01-02","M","11A  RUE JEAN JAURES",null,null,62290,"NOEUX LES MINES","FRANCE",null,"0769583423","monsieurlevecque@gmail.com","OUI","+21 ans","Blackball",null,46012,"FRANCE","NON"]
["CREPIN LAURENT","153082T",32,62,13612,"ARRAS","LAURENT","CREPIN","1971-12-28","M","2 RUE CAMILLE CAMUS",null,null,62123,"BERLES AU BOIS","FRANCE",null,"0680308968","platrerie.crepin@orange.fr","OUI","+21 ans","Blackball",null,45900,"FRANCE","NON"]
["BOURGOIS CEDRIC","155664A",32,62,13612,"ARRAS","CEDRIC","BOURGOIS","1982-03-22","M","10 RUE FRANCOIS CARLIER",null,null,62530,"HERSIN COUPIGNY","FRANCE",null,"0665577874","cedbourg@hotmail.fr","OUI","+21 ans","Blackball",null,45903,"FRANCE","OUI"]
["PIRLET VICTOR","157857J",32,62,13612,"ARRAS","VICTOR","PIRLET","1962-08-29","M","4 ALLEE DES ROSATI","APPART 11",null,62000,"ARRAS","FRANCE",null,"0629641008","victorpirlet@gmail.com","OUI","+21 ans","Snooker",null,45893,"FRANCE","NON"]
["DERLIQUE JEAN CHARLES","157860M",32,62,13612,"ARRAS","JEAN CHARLES","DERLIQUE","1948-02-16","M","122 ROUTE D ARRAS",null,null,62690,"CAMBLAIN L ABBE","FRANCE",null,"0603180612","jcderlique@sfr.fr","OUI","+21 ans","Blackball",null,45891,"FRANCE","NON"]
["GILLES ANDY","157863Q",32,62,13612,"ARRAS","ANDY","GILLES","1986-03-28","M","12 RUE PIERRE ET MARIE CURIE",null,null,62121,"COURCELLES LE COMTE","FRANCE",null,"0647090212","andy.gilles@laposte.net","OUI","+21 ans","Snooker",null,45893,"FRANCE","NON"]
["SZYNCZEWSKI PHILIPPE","158029W",32,62,13612,"ARRAS","PHILIPPE","SZYNCZEWSKI","1972-07-24","M","21 RUE GARROS",null,null,62300,"ELEU DIT LEAUWETTE","FRANCE",null,"0612417906","szynczewski.philippe@neuf.fr","NON","+21 ans","Blackball",null,45899,"FRANCE","NON"]
["COTTON LUCILE","159088X",32,62,13612,"ARRAS","LUCILE","COTTON","1978-09-17","F","21 RUE GARROS",null,null,62300,"ELEU DIT LEAUWETTE","FRANCE",null,"0778181101","cotton.lucile@gmail.com","OUI","+21 ans","Snooker",null,45899,"FRANCE","NON"]
["PINCHON BENOIT","159741G",32,62,13612,"ARRAS","BENOIT","PINCHON","1972-06-15","M","44 RESIDENCE LA COUTURE",null,null,62128,"WANCOURT","FRANCE",null,"0616743222","bp5972@gmail.com","OUI","+21 ans","Blackball",null,45903,"FRANCE","NON"]
["LHOMME SYLVAIN","160905X",32,62,13612,"ARRAS","SYLVAIN","LHOMME","1954-12-14","M","30 RUE GAMBETTA ENT 2 APPART 2",null,null,62580,"VIMY","FRANCE",null,"0603065907","sylhomme@sfr.fr","OUI","+21 ans","Snooker",null,45893,"FRANCE","NON"]
["RYBAK RAPHAEL","162465S",32,62,13612,"ARRAS","RAPHAEL","RYBAK","1974-10-01","M","71 RUE MAURICE THOREZ",null,null,59146,"PECQUENCOURT","FRANCE",null,"0650353117","rybakraphael@gmail.com","OUI","+21 ans","Snooker",null,45894,"FRANCE","NON"]
[{"$f":"H66 & \" \" &G66","v":"LAVALARD LUCIAN"},"163808C",32,62,13612,"ARRAS","LUCIAN","LAVALARD","2010-02-24","M","66 RUE JEAN JAURES",null,null,59161,"ESCAUDOEUVRES","FRANCE",null,"0602480268","sophie.lavalard59@gmail.com","OUI","-21 ans","Blackball",null,45915,"FRANCE","NON"]
["PENIN OLIVIER","166014A",32,62,13612,"ARRAS","OLIVIER","PENIN","1974-01-23","M","415  PAVE FRUIT APT 2",null,null,59850,"NIEPPE","FRANCE",null,"0609200695","olivierdu6259@hotmail.fr","OUI","+21 ans","Blackball",null,45893,"FRANCE","NON"]
["DI LIBERTO ROSALIA","166045J",32,62,13612,"ARRAS","ROSALIA","DI LIBERTO","1966-08-03","F","45 RUE MAURICE ALTAZIN",null,null,62210,"AVION","FRANCE",null,"0676683390","rosalia.diliberto@orange.fr","OUI","+21 ans","Snooker",null,45893,"FRANCE","NON"]
["HERMANT PIERRE","166062C",32,62,13612,"ARRAS","PIERRE","HERMANT","1984-05-10","M","23 RUE DES ACACIAS",null,null,62300,"ELEU DIT LEUWETTE","FRANCE",null,"0689201084","hermant.p@free.fr","OUI","+21 ans","Snooker",null,45899,"FRANCE","NON"]
["ROLLAND JEAN MICHEL","166065F",32,62,13612,"ARRAS","JEAN MICHEL","ROLLAND","1955-02-08","M","260 RUE BERTIE ALBRECHT",null,null,62110,"HENIN BEAUMONT","FRANCE",null,"0681342444","jmichelrol62@gmail.com","OUI","+21 ans","Snooker",null,45893,"FRANCE","NON"]
["FRENOIS ALEX","166977X",32,62,13612,"ARRAS","ALEX","FRENOIS","2002-11-10","M","19  RUE D ARMENTIERES",null,null,59800,"LILLE","FRANCE",null,"0768989624","frenoisalextravail@gmail.com","OUI","+21 ans","Blackball",null,45893,"FRANCE","NON"]
["DUBRUNQUEZ MAXIME","168676T",32,62,13612,"ARRAS","MAXIME","DUBRUNQUEZ","1988-09-04","M","58 RUE DU MARAIS",null,null,59268,"FRESSIES","FRANCE",null,"0674643965","maxime.dubrunquez@gmail.com","OUI","+21 ans","Blackball",null,45894,"FRANCE","NON"]
["VAN WYNENDAELE LIDWINE","169165A",32,62,13612,"ARRAS","LIDWINE","VAN WYNENDAELE","1977-08-01","F","15 RUE D ORLEANS",null,null,62217,"ACHICOURT","FRANCE",null,"0699086612","thierry.lidwine@free.fr","OUI","+21 ans","Blackball",null,45893,"FRANCE","NON"]
["REMY FREDERIC","170303M",32,62,13612,"ARRAS","FREDERIC","REMY","1972-08-31","M","1BIS RUE DE NOYELLE VION",null,null,62690,"IZEL LES HAMEAU","FRANCE",null,null,"frederemy@wanadoo.fr","OUI","+21 ans","Snooker",null,45893,"FRANCE","NON"]
["LANDRY PATRICK","170849F",32,62,13612,"ARRAS","PATRICK","LANDRY","1973-07-12","M","59 RUE D ATHIES",null,null,62223,"ST LAURENT BLANGY","FRANCE",null,"0628228643","landry.patrick@laposte.fr","OUI","+21 ans","Snooker",null,45896,"FRANCE","OUI"]
["BRABANT DAVID","171205S",32,62,13612,"ARRAS","DAVID","BRABANT","1974-12-16","M","288 RUE LEONIE MAIAUX",null,null,59500,"DOUAI","FRANCE",null,"0611254080","d.brabant@hotmail.fr","OUI","+21 ans","Snooker",null,45891,"FRANCE","OUI"]
["PONTLEVOY JEAN LOUIS","171358J",32,62,13612,"ARRAS","JEAN LOUIS","PONTLEVOY","1987-04-05","M","6 RUE JOSEPH MARIE JACQUARD",null,null,62590,"OIGNIES","FRANCE",null,"0764442436","pontlevoy62590@gmail.com","OUI","+21 ans","Snooker",null,45903,"FRANCE","NON"]
["WAILLY CHRISTOPHE","171869P",32,62,13612,"ARRAS","CHRISTOPHE","WAILLY","1974-01-10","M","19 CHEMIN D AUBIGNY",null,null,62144,"ACQ","FRANCE",null,"0661208792","waiceman46@gmail.com","OUI","+21 ans","Blackball",null,45894,"FRANCE","NON"]
["DEMARLE ELOISE","171897V",32,62,13612,"ARRAS","ELOISE","DEMARLE","2007-09-28","F","15 RUE D ORLEANS",null,null,62217,"ACHICOURT","FRANCE",null,"0766229424","demarleeloise@gmail.com","OUI","-21 ans","Blackball",null,45893,"FRANCE","NON"]
["THUNE NICOLAS","173437T",32,62,13612,"ARRAS","NICOLAS","THUNE","1981-01-10","M","20 RUE ALPHONSE DAUDET",null,null,59560,"COMINES","FRANCE",null,"0668707043","nicothune@gmail.com","OUI","+21 ans","Blackball","arbitre",45893,"FRANCE","OUI"]
["THUNE DAVID","173438V",32,62,13612,"ARRAS","DAVID","THUNE","1977-05-01","M","20 RUE ALPHONSE DAUDET",null,null,59560,"COMINES","FRANCE",null,"0768227101","thunedavid@gmail.com","OUI","+21 ans","Blackball","arbitre",45893,"FRANCE","OUI"]
["LAISNE THOMAS","173439W",32,62,13612,"ARRAS","THOMAS","LAISNE","1984-01-25","M","33 RUE DE GAND",null,null,59960,"NEUVILLE EN FERRAIN","FRANCE",null,"0665680280","t.laisne466@laposte.net","OUI","+21 ans","Blackball",null,45893,"FRANCE","NON"]
["GRUDA JEAN LUC","174031P",32,62,13612,"ARRAS","JEAN LUC","GRUDA","1966-04-04","M","4BIS RUE JOLIOT CURIE",null,null,62144,"CARENCY","FRANCE",null,"0607973486","grudski@icloud.com","OUI","+21 ans","Snooker",null,45899,"FRANCE","NON"]
["MALO ALAIN","174621F",32,62,13612,"ARRAS","ALAIN","MALO","1976-01-08","M","10 RUE MARIE DESLAVIERS",null,null,62270,"FREVENT","FRANCE",null,"0676887360","malo.alain@hotmail.fr","OUI","+21 ans","Blackball",null,45893,"FRANCE","NON"]
["ROSSI XAVIER","174622G",32,62,13612,"ARRAS","XAVIER","ROSSI","1974-05-08","M","2 CITE CONDORCET",null,null,75009,"PARIS","FRANCE",null,"0629695983","xavierfoxr@aol.com","OUI","+21 ans","Snooker",null,45893,"FRANCE","NON"]
["ANNE DENIS","175293L",32,62,13612,"ARRAS","DENIS","ANNE","1965-09-18","M","85 RUE DE CAMBRAI",null,null,62000,"ARRAS","FRANCE",null,"0651545180","denis.anne@gmail.com","OUI","+21 ans","Carambole",null,45903,"FRANCE","NON"]
["HANSCOTTE PIERRE HENRI","175537B",32,62,13612,"ARRAS","PIERRE HENRI","HANSCOTTE","1985-11-12","M","22 RUE PRINCIPALE",null,null,62390,"BEAUVOIR WAVANS","FRANCE",null,"0630684683","hph1985@hotmail.fr","OUI","+21 ans","Blackball",null,45894,"FRANCE","NON"]
["LEDUC PASCAL","175759S",32,62,13612,"ARRAS","PASCAL","LEDUC","1974-03-26","M","27 RUE DES CHENES",null,null,62620,"RUITZ","FRANCE",null,"0630907582","p.leduc62@gmail.com","OUI","+21 ans","Snooker",null,45896,"FRANCE","NON"]
["AFANKOUS SANDRY","176063Y",32,62,13612,"ARRAS","SANDRY","AFANKOUS","1995-12-09","M","13 CARRIERE CHOQUET",null,null,59320,"HAUBOURDIN","FRANCE",null,"0785891812","sandry_9@hotmail.fr","OUI","+21 ans","Blackball",null,45950,"FRANCE","NON"]
["DEBAETS PIERRE","176235K",32,62,13612,"ARRAS","PIERRE","DEBAETS","1974-01-11","M","19  RUE JULES GUESDE",null,null,62118,"BIACHE ST VAAST","FRANCE",null,"0607167243","pierredebaets@gmail.com","OUI","+21 ans","Blackball",null,45893,"FRANCE","NON"]
["THOMAS ANTHONY","176598E",32,62,13612,"ARRAS","ANTHONY","THOMAS","1971-04-15","M","7 MAIL DES ROSATI","APPART 2",null,62000,"ARRAS","FRANCE",null,"0674660400","abthomas@live.fr","OUI","+21 ans","Snooker",null,45896,"FRANCE","NON"]
["WIART ESTELLE","176834L",32,62,13612,"ARRAS","ESTELLE","WIART","1976-06-12","F","249 RESIDENCE LES JARDINS",null,null,62490,"VITRY EN ARTOIS","FRANCE",null,"0786712602","estelle.wiart01@orange.fr","OUI","+21 ans","Blackball",null,45925,"FRANCE","NON"]
["WIART VINCENT","176837P",32,62,13612,"ARRAS","VINCENT","WIART","1969-07-22","M","249 RESIDENCE LES JARDINS NOBLED",null,null,62490,"VITRY EN ARTOIS","FRANCE",null,"0771078085","vincent.wiart01@sfr.fr","OUI","+21 ans","Blackball",null,45893,"FRANCE","NON"]
["ARAMINI SALVATORE","176849C",32,62,13612,"ARRAS","SALVATORE","ARAMINI","1965-04-04","M","3 RUE DE LA LOUE",null,null,62223,"ST LAURENT BLANGY","FRANCE",null,"0605290022","salvatore.aramini@sfr.fr","OUI","+21 ans","Blackball",null,45893,"FRANCE","NON"]
["CAMPAGNE CARINE","176850D",32,62,13612,"ARRAS","CARINE","CAMPAGNE","1973-06-29","F","10 COURS DE VERDUN",null,null,62000,"ARRAS","FRANCE",null,"0649287907","carine.campagne73@orange.fr","OUI","+21 ans","Blackball",null,45893,"FRANCE","NON"]
["CLEMENT MICHAEL","176853G",32,62,13612,"ARRAS","MICHAEL","CLEMENT","1976-04-24","M","39 RUE VOLTAIRE",null,null,62000,"ARRAS","FRANCE",null,"0611683887","michael.clement73@sfr.fr","OUI","+21 ans","Blackball",null,45893,"FRANCE","NON"]
["DERYCKE THIERRY","176854H",32,62,13612,"ARRAS","THIERRY","DERYCKE","1964-06-27","M","16 RUE D HENINEL",null,null,62128,"ST MARTIN SUR COJEUL","FRANCE",null,"0607826565","thierryderycke@orange.fr","OUI","+21 ans","Blackball",null,45924,"FRANCE","NON"]
["HERMANT MAXIME","176855J",32,62,13612,"ARRAS","MAXIME","HERMANT","2015-11-03","M","23 RUE DES ACACIAS",null,null,62300,"ELEU DIT LEUWETTE","FRANCE",null,"0689201084","hermant.p@free.fr","OUI","-21 ans","Blackball",null,45910,"FRANCE","NON"]
["BRASSEUR LUDOVIC","176867X",32,62,13612,"ARRAS","LUDOVIC","BRASSEUR","1993-09-16","M","47 RUE DE L EGALITE",null,null,62220,"CARVIN","FRANCE",null,"0678563969","ludovic_5@live.fr","OUI","+21 ans","Blackball",null,45900,"FRANCE","NON"]
["LEMAIRE CEDRIC","177133L",32,62,13612,"ARRAS","CEDRIC","LEMAIRE","1976-01-23","M","21 AVENUE D IMMERCOURT",null,null,62217,"TILLOY LES MOFFLAINES","FRANCE",null,"0663234322","cedriclemaire6259@icloud.com","OUI","+21 ans","Snooker",null,45893,"FRANCE","NON"]
["LEFEVRE PHILIPPE","177209T",32,62,13612,"ARRAS","PHILIPPE","LEFEVRE","1975-08-14","M","15 CAVEE LAMBIE",null,null,62213,"WANQUETIN","FRANCE",null,"0633143956","philpablo14@gmail.com","OUI","+21 ans","Snooker",null,45893,"FRANCE","NON"]
["DUBART MICKAEL","177405G",32,62,13612,"ARRAS","MICKAEL","DUBART","1979-07-17","M","70 RUE DE VARSOVIE",null,null,62640,"MONTIGNY EN GOHELLE","FRANCE",null,"0637306499","dubartmickael@gmail.com","OUI","+21 ans","Blackball",null,45894,"FRANCE","NON"]
["CHIVE EMMANUEL","178003G",32,62,13612,"ARRAS","EMMANUEL","CHIVE","1982-06-21","M","20 GRAND RUE",null,null,80600,"MEZEROLLES","FRANCE",null,"0676770651","echive@cp-international.com","OUI","+21 ans","Blackball",null,45893,"FRANCE","NON"]
["DHAINAUT ALLAN","179209S",32,62,13612,"ARRAS","ALLAN","DHAINAUT","1988-11-09","M","124 RUE DU MARECHAL LECLERC",null,null,59220,"DENAIN","FRANCE",null,"0663273588","allanvslaura@live.fr","OUI","+21 ans","Blackball",null,45894,"FRANCE","NON"]
["HANSCOTTE RUBEN","179783R",32,62,13612,"ARRAS","RUBEN","HANSCOTTE","2010-12-23","M","22 RUE PRINCIPALE",null,null,62390,"BEAUVOIR WAVANS","FRANCE",null,"0765281449","hph1985@hotmail.fr","OUI","-21 ans","Blackball",null,45914,"FRANCE","NON"]
["KHAYAT AHMED","179941N",32,62,13612,"ARRAS","AHMED","KHAYAT","1970-12-31","M","81 RUE DE LA LYS",null,null,59250,"HALLUIN","FRANCE",null,"0650812480","ahmed.khayat@free.fr","OUI","+21 ans","Blackball",null,45893,"FRANCE","NON"]
["DUHEN LIONEL","180304H",32,62,13612,"ARRAS","LIONEL","DUHEN","1966-07-14","M","24 RUE DE BOISLEUX",null,null,62173,"FICHEUX","FRANCE",null,"0688310025","lionel.duhen@orange.fr","OUI","+21 ans","Blackball",null,45893,"FRANCE","NON"]
["DA SILVA NICOLAS","181461Q",32,62,13612,"ARRAS","NICOLAS","DA SILVA","1987-02-13","M","35 RUE DU GENERAL LECLERC",null,null,59390,"LYS LEZ LANNOY","FRANCE",null,"0684650634","nicoleportos@hotmail.fr","OUI","+21 ans","Snooker",null,45893,"FRANCE","NON"]
["DOURLENS MANUEL","181463S",32,62,13612,"ARRAS","MANUEL","DOURLENS","1994-07-14","M","5 RUE DU VIEUX CHEMIN DE PERNES",null,null,62130,"ST POL SUR TERNOISE","FRANCE",null,"0677469087","manuel.dourlens@outlook.fr","OUI","+21 ans","Blackball",null,45899,"FRANCE","NON"]
["JACQUOT PIERRE NELSON","181464T",32,62,13612,"ARRAS","PIERRE NELSON","JACQUOT","1973-07-12","M","6 CHEMIN DES RIOTS",null,null,62800,"LIEVIN","FRANCE",null,"0662639981","nelson.jacquot@wanadoo.fr","OUI","+21 ans","Blackball",null,45899,"FRANCE","NON"]
["MARTIN THEO","181465V",32,62,13612,"ARRAS","THEO","MARTIN","2004-06-09","M","1 RUE D IZEL",null,null,62127,"VILLERS SIR SIMON","FRANCE",null,"0649373503","theo.martin906@icloud.com","OUI","+21 ans","Blackball",null,45955,"FRANCE","NON"]
["HAVET THIERRY","181560Y",32,62,13612,"ARRAS","THIERRY","HAVET","1960-11-13","M","30A RUE CHANZY",null,null,62580,"VIMY","FRANCE",null,"0603461749","thierry.havet@wanadoo.fr","OUI","+21 ans","Carambole",null,45898,"FRANCE","OUI"]
["BERNARD FRANCK","181712N",32,62,13612,"ARRAS","FRANCK","BERNARD","1971-09-27","M","83 RUE DE BRUXELLES",null,null,62000,"ARRAS","FRANCE",null,"0617420432","franck-bernard@hotmail.fr","OUI","+21 ans","Snooker",null,45910,"FRANCE","NON"]
["NOVELLI HARRY","181818D",32,62,13612,"ARRAS","HARRY","NOVELLI","1945-06-15","M","8 RUE DU BICENTENAIRE",null,null,80600,"GROUCHES LUCHUEL","FRANCE",null,"0781190982","harry-paul.novelli@orange.fr","OUI","+21 ans","Carambole",null,45953,"FRANCE","NON"]
["LADEVEZE MICKAEL","182051G",32,62,13612,"ARRAS","MICKAEL","LADEVEZE","1981-12-02","M","2 RUE MARLE",null,null,59930,"LA CHAPELLE D ARMENTIERES","FRANCE",null,"0683109225","mickael.ladeveze@live.fr","OUI","+21 ans","Blackball",null,45893,"FRANCE","NON"]
["LEGER ARNAUD","182700M",32,62,13612,"ARRAS","ARNAUD","LEGER","1974-05-19","M","2 RUE JEAN GABIN",null,null,92300,"LEVALLOIS PERRET","FRANCE",null,"0619291152","arnaud.leger23@gmail.com","OUI","+21 ans","Snooker",null,45906,"FRANCE","NON"]
["DEBUIRE MICHEL","182726Q",32,62,13612,"ARRAS","MICHEL","DEBUIRE","1950-12-01","M","75 RUE DE LAON",null,null,62217,"ACHICOURT","FRANCE",null,"0611096906","mpdebuire@club-internet.fr","OUI","+21 ans","Carambole",null,45910,"FRANCE","NON"]
["FOURY MATHIEU","183673V",32,62,13612,"ARRAS","MATHIEU","FOURY","1982-11-11","M","183 VOIE DES MEUNIERS",null,null,59151,"ARLEUX","FRANCE",null,"0608275669","foury.mathieu@orange.fr","OUI","+21 ans","Blackball",null,45914,"FRANCE","NON"]
["LOUKILI HOUSSAM","183685H",32,62,13612,"ARRAS","HOUSSAM","LOUKILI","1999-10-23","M","AV PAUL LANGEVIN","106 RESIDENCE BACHELARD",null,59650,"VILLENEUVE D ASCQ","FRANCE",null,"0765228375","lifeofhoussam@gmail.com","OUI","+21 ans","Blackball",null,45899,"MAROC","NON"]
["FAUGLOIRE JOEL","183899Q",32,62,13612,"ARRAS","JOEL","FAUGLOIRE","1949-08-26","M","11 RUE DES LORIOTS",null,null,62223,"ANZIN ST AUBIN","FRANCE",null,"0678381205",null,"NON","+21 ans","Carambole",null,45914,"FRANCE","NON"]
["YOUSFI ABDERRAHIM","184391A",32,62,13612,"ARRAS","ABDERRAHIM","YOUSFI","1998-08-28","M","137  RUE DE PARIS",null,null,94220,"CHARENTON LE PONT","FRANCE",null,"0758676362","gryaog@gmail.com","NON","+21 ans","Snooker",null,45899,"MAROC","NON"]
["NICOLAS MEDY","185586Z",32,62,13612,"ARRAS","MEDY","NICOLAS","2002-10-10","M","8 RUE SAINT ROCH",null,null,62127,"PENIN","FRANCE",null,"0768611118","medxnicolas@gmail.com","OUI","+21 ans","Blackball",null,45910,"FRANCE","NON"]
["ZUSZEK LOIC","185588B",32,62,13612,"ARRAS","LOIC","ZUSZEK","1991-08-18","M","21 RUE MARCEL LEMOINE",null,null,62390,"BEAUVOIR WAVANS","FRANCE",null,"0785519833","loiczuszek@gmail.com","OUI","+21 ans","Blackball",null,45914,"FRANCE","NON"]
["KUBIAK YOHAN","185717R",32,62,13612,"ARRAS","YOHAN","KUBIAK","1985-08-20","M","56 RUE DU MARECHAL DE LATTRE DE TASSIG",null,null,59128,"FLERS EN ESCREBIEUX","FRANCE",null,"0625459060","yohan.kubiak@laposte.net","OUI","+21 ans","Blackball",null,45899,"FRANCE","NON"]
["QUENTIN MYLENE","185722X",32,62,13612,"ARRAS","MYLENE","QUENTIN","1989-11-25","F","10 RUE DES HORTENSIAS",null,null,59167,"LALLAING","FRANCE",null,"0635200451","quentinmylene@gmail.com","OUI","+21 ans","Blackball",null,45903,"FRANCE","NON"]
["EL MOUKRIFI MOHAMED","185756J",32,62,13612,"ARRAS","MOHAMED","EL MOUKRIFI","1998-01-24","M","26 RUE SAINT CLAIRE",null,null,62500,"ST OMER","FRANCE",null,"0665634975","Mohamedmoukrifi556@gmail.com","OUI","+21 ans","Blackball",null,45898,"MAROC","NON"]
["FLAMENT ROLAND","185795B",32,62,13612,"ARRAS","ROLAND","FLAMENT","1953-08-03","M","6 RUE VICTOR BRIL",null,null,59960,"NEUVILLE EN FERRAIN","FRANCE",null,"0642712869","rol.flam@orange.fr","OUI","+21 ans","Blackball",null,45893,"FRANCE","NON"]
["KENNIS JONATHAN","185804L",32,62,13612,"ARRAS","JONATHAN","KENNIS","1983-02-25","M","196 RUE DE CUBA",null,null,62700,"BRUAY LA BUISSIERE","FRANCE",null,"0784116999","kennisjonathan1991@gmail.com","OUI","+21 ans","Blackball",null,45906,"FRANCE","NON"]
["MARLIER LAETITIA","186026C",32,62,13612,"ARRAS","LAETITIA","MARLIER","1977-07-01","F","10 RUE DUFY APPART A","RESIDENCE  LES HOCHETTES ",null,62000,"ARRAS","FRANCE",null,"0641900453","lmarlier62@outlook.fr","OUI","+21 ans","Blackball",null,45893,"FRANCE","NON"]
[{"$f":"H130 & \" \" &G130","v":"DEMONCHY JULIEN"},"186030G",32,62,13612,"ARRAS","JULIEN","DEMONCHY","1986-05-02","M","117 AVENUE JEAN MERMOZ",null,null,62000,"DAINVILLE","FRANCE",null,"0616469867","juliendemonchy62@outlook.fr","OUI","+21 ans","Blackball",null,45910,"FRANCE","NON"]
["DEMERRE GREGORY","188008G",32,62,13612,"ARRAS","GREGORY","DEMERRE","1972-11-30","M","40 RESIDENCE LE TITIEN",null,null,62800,"LIEVIN","FRANCE",null,"0621408356","gregory.demerre@hotmail.fr","OUI","+21 ans","Blackball",null,45898,"FRANCE","NON"]
["DURIEZ SEBASTIEN","188246Q",32,62,13612,"ARRAS","SEBASTIEN","DURIEZ","1980-11-18","M","13 RUE D AMBRINES",null,null,62810,"GIVENCHY LE NOBLE","FRANCE",null,"0645522914","seb1811@hotmail.fr","OUI","+21 ans","Snooker",null,45893,"FRANCE","NON"]
["DOINET JOHAN","188386S",32,62,13612,"ARRAS","JOHAN","DOINET","1985-03-05","M","16 RUE DES BLANCS MONTS",null,null,62000,"ARRAS","FRANCE",null,"0608750735","doinetcouverture@gmail.com","OUI","+21 ans","Blackball",null,45893,"FRANCE","NON"]
["PETIT PATRICK","189133E",32,62,13612,"ARRAS","PATRICK","PETIT","1981-03-29","M","11 RUE DU MARECHAL FOCH",null,null,62121,"COURCELLES LE COMTE","FRANCE",null,"0684815823","patrick.petit.62@outlook.fr","OUI","+21 ans","Snooker",null,45893,"FRANCE","NON"]
["PETIT VINCENT","189134F",32,62,13612,"ARRAS","VINCENT","PETIT","1981-03-29","M","9 RUE DE PARIS",null,null,62121,"ACHIET LE GRAND","FRANCE",null,"0675638789","vincent.petit@hotmail.com","OUI","+21 ans","Snooker",null,45893,"FRANCE","NON"]
["LEGRAND CEDRIC","190232Z",32,62,13612,"ARRAS","CEDRIC","LEGRAND","1974-03-10","M","30  RUE DE LA BARRIERE",null,null,62117,"BREBIERES","FRANCE",null,"0695787418","cedric.legrand8@wanadoo.fr","OUI","Decouverte","Snooker",null,45893,"FRANCE","NON"]
["BOUHALS RAMDANE","190233A",32,62,13612,"ARRAS","RAMDANE","BOUHALS","1992-03-26","M","127  RUE DE CAMBRAI",null,null,62000,"ARRAS","FRANCE",null,"0668768003","bouhals04@gmail.com","OUI","Decouverte","Blackball",null,45893,"FRANCE","NON"]
["DEMON GUILLAUME","190234B",32,62,13612,"ARRAS","GUILLAUME","DEMON","1968-10-21","M","15  IMPASSE MESSIAEN",null,null,59200,"TOURCOING","FRANCE",null,"0662713881","guillaumedemon59@gmail.com","OUI","Decouverte","Blackball",null,45893,"FRANCE","NON"]
["PILLE SEBASTIEN","190235C",32,62,13612,"ARRAS","SEBASTIEN","PILLE","1978-03-01","M","8  IMPASSE FIN DE LA GUERRE",null,null,59126,"LINSELLES","FRANCE",null,"0684837757","all8pool@yahoo.fr","OUI","Decouverte","Blackball",null,45893,"FRANCE","NON"]
["CROENNE TEDDY","190236D",32,62,13612,"ARRAS","TEDDY","CROENNE","1986-11-11","M","72  RUE OCTAVE DREZE",null,null,62880,"PONT A VENDIN","FRANCE",null,"0619414004","croenne.ted@hotmail.fr","OUI","Decouverte","Blackball",null,45893,"FRANCE","NON"]
["BRICE GUILLAUME","190237E",32,62,13612,"ARRAS","GUILLAUME","BRICE","1994-11-22","M","2  ALLEE DU BIVOUAC",null,null,62270,"BOUBERS SUR CANCHE","FRANCE",null,"0684787143","brissouner@gmail.com","OUI","Decouverte","Blackball",null,45893,"FRANCE","NON"]
["AIT MOHAMED HAMZA","190393Z",32,62,13612,"ARRAS","HAMZA","AIT MOHAMED","1996-12-20","M","36 RUE BOCQUET FLOCHEL",null,null,62000,"ARRAS","FRANCE",null,"0603647654","hamza.aitmohamedd@gmail.com","OUI","Decouverte","Snooker",null,45898,"MAROC","NON"]
["LEFEBVRE NICOLAS","190398E",32,62,13612,"ARRAS","NICOLAS","LEFEBVRE","1982-05-23","M","25 RUE D ARRAS",null,null,62130,"ST POL SUR TERNOISE","FRANCE",null,"0626589797","n.lefebvre59@orange.fr","OUI","Decouverte","Blackball",null,45899,"FRANCE","NON"]
["DUDEK CEDRIC","190558D",32,62,13612,"ARRAS","CEDRIC","DUDEK","1978-05-17","M","14  RUE JEAN ANTONIAZZI",null,null,62128,"HENIN SUR COJEUL","FRANCE",null,"0687751205","cedric.dudek@gmail.com","OUI","Decouverte","Blackball",null,45904,"FRANCE","NON"]
["BLONDIN NICOLAS","190585H",32,62,13612,"ARRAS","NICOLAS","BLONDIN","1976-04-09","M","92  RUE CASIMIR BEUGNET",null,null,62160,"GRENAY","FRANCE",null,"0632029388","nicolas.blondin062@gmail.com","OUI","Decouverte","Snooker",null,45904,"FRANCE","NON"]
["BLONDIN BENJAMIN","190586J",32,62,13612,"ARRAS","BENJAMIN","BLONDIN","2010-11-25","M","92  RUE CASIMIR BEUGNET",null,null,62160,"GRENAY","FRANCE",null,null,"benjamin.blondin62700@gmail.com","OUI","Avenir","Snooker",null,45904,"FRANCE","NON"]
["GARCON MIKAEL","191066F",32,62,13612,"ARRAS","MIKAEL","GARCON","1987-10-06","M","14  RUE DE SAINT POL",null,null,62130,"CROISETTE","FRANCE",null,"0687778211","mikael.garcon@gmail.com","OUI","Decouverte","Blackball",null,45914,"FRANCE","NON"]
["BODEL ARNAUD","191068H",32,62,13612,"ARRAS","ARNAUD","BODEL","1974-05-03","M","131BIS  RUE D ARRAS",null,null,62130,"ST POL SUR TERNOISE","FRANCE",null,"0633103520","arnaudclarabodel@gmail.com","OUI","Decouverte","Blackball",null,45914,"FRANCE","NON"]
["DECOBERT BENJAMIN","191437J",32,62,13612,"ARRAS","BENJAMIN","DECOBERT","1982-07-31","M","3 RUE DE MORONVAL",null,null,62290,"NOEUX LES MINES","FRANCE",null,"0635347168","auchtiestagnol@gmail.com","OUI","Decouverte","Blackball",null,45923,"FRANCE","OUI"]
["SALON FRANCK","191438K",32,62,13612,"ARRAS","FRANCK","SALON","1970-01-09","M","32  RUE BOCQUET FLOCHEL",null,null,62000,"ARRAS","FRANCE",null,"0678989886","frck.salon@gmail.com","OUI","Decouverte","Carambole",null,45923,"FRANCE","NON"]
["FORESTIER ANNE CLAIRE","191439L",32,62,13612,"ARRAS","ANNE CLAIRE","FORESTIER","1965-07-22","F","11  RUE DU MONT ROBETTE",null,null,62223,"ANZIN ST AUBIN","FRANCE",null,"0623310561","acforestier2207@gmail.com","OUI","Decouverte","Blackball",null,45923,"FRANCE","NON"]
["BETHERMIN PIERRE","191442P",32,62,13612,"ARRAS","PIERRE","BETHERMIN","1979-08-08","M","49  BOULEVARD DE LA LIBERTE",null,null,62000,"ARRAS","FRANCE",null,"0618692337","pierre.bethermin@gmail.com","OUI","Decouverte","Blackball",null,45923,"FRANCE","NON"]
["DUTRIEZ EVANN","191443Q",32,62,13612,"ARRAS","EVANN","DUTRIEZ","2010-07-05","M","44  RUE ROGER SALENGRO",null,null,62217,"ACHICOURT","FRANCE",null,"0646233493","isa_62000@hotmail.fr","OUI","Avenir","Blackball",null,45923,"FRANCE","NON"]
["DUTRIEZ ILYANNA","191444R",32,62,13612,"ARRAS","ILYANNA","DUTRIEZ","2014-07-01","F","44  RUE ROGER SALENGRO",null,null,62217,"ACHICOURT","FRANCE",null,"0646533493","isa_62000@hotmail.fr","OUI","Avenir","Blackball",null,45923,"FRANCE","NON"]
["LEBLANC ETHAN","191499B",32,62,13612,"ARRAS","ETHAN","LEBLANC","2008-02-29","M","98  AVENUE LAVOISIER",null,null,62000,"DAINVILLE","FRANCE",null,"0695709530","thewhite2913@gmail.com","OUI","Avenir","Blackball",null,45924,"FRANCE","OUI"]
["GILBERT ALEXANDRE","192261E",32,62,13612,"ARRAS","ALEXANDRE","GILBERT","1987-04-27","M","8D  RUE DE VILLERS BRULIN",null,null,62127,"TINCQUES","FRANCE",null,"0681096394","alexandre.gilbert87@gmail.com","OUI","Decouverte","Blackball",null,45945,"FRANCE","OUI"]
["FAILLE MAX","192266K",32,62,13612,"ARRAS","MAX","FAILLE","1990-11-25","M","86  RESIDENCE CHANTILLY",null,null,62223,"SAINTE CATHERINE LES ARRAS","FRANCE",null,"0645215274","maxfaille591@gmail.com","OUI","Decouverte","Blackball",null,45945,"FRANCE","NON"]
["CUISINIER ANTOINE","192379H",32,62,13612,"ARRAS","ANTOINE","CUISINIER","2016-04-20","M","12  RUE DE LA GARE",null,null,62690,"IZEL LES HAMEAUX","FRANCE",null,null,"garry.cuisinier2@gmail.com","OUI","Avenir","Blackball",null,45949,"FRANCE","OUI"]
["CAILLET FRANCIS","192477P",32,62,13612,"ARRAS","FRANCIS","CAILLET","1949-03-28","M","26  RUE DE LAON",null,null,62217,"ACHICOURT","FRANCE",null,"0688850459","fcaillet@wanadoo.fr","OUI","Decouverte","Carambole",null,45953,"FRANCE","NON"]
["SAINT MAXENT HERVE","192479R",32,62,13612,"ARRAS","HERVE","SAINT MAXENT","1947-09-13","M","5  RUE DES JONQUILLES",null,null,62000,"DAINVILLE","FRANCE",null,"0607682723","hetf.saint-maxent@orange.fr","OUI","Decouverte","Carambole",null,45953,"FRANCE","NON"]
["CATALAN VINCENT","192578Z",32,62,13612,"ARRAS","VINCENT","CATALAN","1974-07-18","M","91  CHEMIN DU MOULIN",null,null,62690,"VILLERS BRULIN","FRANCE",null,"0607932516","vincent_catalan@orange.fr","OUI","Decouverte","Blackball",null,45958,"FRANCE","NON"]
["GILLE SEBASTIEN","192816H",32,62,13612,"ARRAS","SEBASTIEN","GILLE","1978-04-18","M","39B  RUE D EN HAUT",null,null,62490,"VITRY EN ARTOIS","FRANCE",null,"0783982025","seb.gille39@gmail.com","OUI","Decouverte","Snooker",null,45973,"FRANCE","NON"]
["SZYNCZEWSKI ELEA","193429Z",32,62,13612,"ARRAS","ELEA","SZYNCZEWSKI","2006-02-14","F","21 RUE GARROS",null,null,62300,"ELEU DIT LEAUWETTE","FRANCE",null,null,null,"NON","Avenir","Blackball",null,46010,"FRANCE","OUI"]
["DELGRANGE PIERRE","193435F",32,62,13612,"ARRAS","PIERRE","DELGRANGE","1991-03-06","M","23  RUE PAUL VERLAINE",null,null,62118,"FAMPOUX","FRANCE",null,null,null,"OUI","Decouverte","Snooker",null,46010,"FRANCE","NON"]
["HOTTE JEAN LOUIS","016525P",32,62,13102,"AVION","JEAN LOUIS","HOTTE","1966-04-30","M","10 RUE EMILE ROUX",null,null,62800,"LIEVIN","FRANCE",null,"0630581261","jlquick@sfr.fr","OUI","+21 ans","Carambole",null,45902,"FRANCE","NON"]
["ABUCKI PATRICK","016543H",32,62,13102,"AVION","PATRICK","ABUCKI","1959-05-07","M","51 RUE DU TORDOIR",null,null,62590,"OIGNIES","FRANCE","0321742157","0636470939","patrick.abucki@gmail.com","OUI","+21 ans","Carambole",null,45902,"FRANCE","NON"]
["MARTINS CARLOS","016579R",32,62,13102,"AVION","CARLOS","MARTINS","1950-04-29","M","6 RUE DES LILAS",null,null,62138,"VIOLAINES","FRANCE",null,"0637118355",null,"OUI","+21 ans","Carambole",null,45902,"FRANCE","NON"]
["HUBERT OLIVIER","016904E",32,62,13102,"AVION","OLIVIER","HUBERT","1972-09-17","M","20 RUE RENE CHAR",null,null,62210,"AVION","FRANCE",null,"0605365140","olivier.hubert72@sfr.fr","OUI","+21 ans","Carambole",null,45902,"FRANCE","NON"]
["HUBERT FABRICE","016976Y",32,62,13102,"AVION","FABRICE","HUBERT","1968-06-22","M","99 RUE JULIEN LHOMMET",null,null,62430,"SALLAUMINES","FRANCE","0362901717","0750282627","fabhubert@numericable.fr","OUI","+21 ans","Carambole",null,45902,"FRANCE","NON"]
["GAJDZINSKI BERNARD","017081Z",32,62,13102,"AVION","BERNARD","GAJDZINSKI","1945-08-11","M","97 BOULEVARD GABRIEL PERI",null,null,62210,"AVION","FRANCE","0321670094","0608412794","bernard.gajdzinski@orange.fr","OUI","+21 ans","Carambole",null,45902,"FRANCE","NON"]
["CROQUELOIS JEAN JACQUES","017083B",32,62,13102,"AVION","JEAN JACQUES","CROQUELOIS","1963-11-08","M","33 RUE EDOUARD VAILLANT",null,null,62880,"VENDIN LE VIEIL","FRANCE","0321695412","0608647557",null,"NON","+21 ans","Carambole",null,45902,"FRANCE","NON"]
["CARLI PATRICK","017084C",32,62,13102,"AVION","PATRICK","CARLI","1958-04-19","M","15 RUE FRANCOIS BEAUCAMP",null,null,62160,"GRENAY","FRANCE","0321723936","0612160472","pmcarli@aol.com","OUI","+21 ans","Carambole",null,45902,"FRANCE","NON"]
["PRZYBYLSKI THOMAS","017260W",32,62,13102,"AVION","THOMAS","PRZYBYLSKI","1984-11-25","M","39 RUE LOUIS VIREL",null,null,62300,"ELEU DIT LAUWETTE","FRANCE",null,"0778194742","thomasprib62@sfr.fr","OUI","+21 ans","Carambole",null,45902,"FRANCE","NON"]
["HUBERT HERVE","101140A",32,62,13102,"AVION","HERVE","HUBERT","1964-05-10","M","340 RUE DU 10 MARS",null,null,62221,"NOYELLES SOUS LENS","FRANCE",null,"0661941985","h.hubert@neuf.fr","OUI","+21 ans","Carambole",null,45902,"FRANCE","NON"]
["HUBERT THOMAS","107597J",32,62,13102,"AVION","THOMAS","HUBERT","1990-12-29","M","99 RUE JULIEN LHOMMET",null,null,62430,"SALLAUMINES","FRANCE","0362901717",null,"Tomhub@hotmail.fr","OUI","+21 ans","Carambole",null,45902,"FRANCE","NON"]
["GOETINCK FREDERIC","117692Q",32,62,13102,"AVION","FREDERIC","GOETINCK","1972-03-26","M","19 RUE CAMILLE DESMOULINS",null,null,62420,"BILLY MONTIGNY","FRANCE",null,"0689677615","frederic.goetinck@gmail.com","OUI","+21 ans","Carambole",null,45902,"FRANCE","NON"]
["GOUBERT CHRISTOPHE","129316S",32,62,13102,"AVION","CHRISTOPHE","GOUBERT","1973-01-04","M","41 RESIDENCE MARESQUAI",null,null,62880,"ANNAY SOUS LENS","FRANCE",null,"0631843754",null,"OUI","+21 ans","Carambole",null,45917,"FRANCE","NON"]
["EVRARD FRANCKY","133051J",32,62,13102,"AVION","FRANCKY","EVRARD","1959-10-15","M","8 RUE BACQUEVILLE",null,null,62221,"NOYELLES SOUS LENS","FRANCE",null,"0664188037","franckyevrard@gmail.com","OUI","+21 ans","Carambole",null,45902,"FRANCE","NON"]
["SZWAREK GEORGES","159169K",32,62,13102,"AVION","GEORGES","SZWAREK","1950-12-21","M","2 RUE LA FONTAINE",null,null,62221,"NOYELLES SOUS LENS","FRANCE",null,"0608018825","giorgio.621@hotmail.fr","OUI","+21 ans","Carambole",null,45901,"FRANCE","NON"]
["CREPIN DIDIER","159367A",32,62,13102,"AVION","DIDIER","CREPIN","1957-12-13","M","12 ALLEE ANGOT","RESIDENCE MAUBUISSON",null,62800,"LIEVIN","FRANCE",null,"0668372484",null,"NON","+21 ans","Carambole",null,45902,"FRANCE","NON"]
["MOSSE PATRICK","174166L",32,62,13102,"AVION","PATRICK","MOSSE","1958-04-02","M","1 PLACE DE L HOTEL DE VILLE APPT 2",null,null,62800,"LIEVIN","FRANCE",null,"0630175741","patrick.mosse@numericable.fr","OUI","+21 ans","Carambole",null,45902,"FRANCE","NON"]
["HUBERT GABIN","174240R",32,62,13102,"AVION","GABIN","HUBERT","2005-03-29","M","20 RUE RENE CHAR",null,null,62210,"AVION","FRANCE",null,"0617877007","gabin.hubert62@gmail.com","OUI","-21 ans","Carambole",null,45902,"FRANCE","NON"]
["DESBLEUMORTIERS ANDRE","016530U",32,62,13103,"BILLY","ANDRE","DESBLEUMORTIERS","1957-05-25","M","2 RUE DES ACACIAS",null,null,62490,"QUIERY LA MOTTE","FRANCE",null,"0608957058","c.desbleu@gmail.com","OUI","+21 ans","Carambole","arbitre",45896,"FRANCE","NON"]
["LASVAUX JACKY","016571J",32,62,13103,"BILLY","JACKY","LASVAUX","1956-04-28","M","277 RUE DU FAUBOURG DE PARIS",null,null,59500,"DOUAI","FRANCE","0327882718","0672738908","jlasvaux@orange.fr","OUI","+21 ans","Carambole","arbitre",45896,"FRANCE","NON"]
["BOCQUET JEAN LUC","016577P",32,62,13103,"BILLY","JEAN LUC","BOCQUET","1954-01-21","M","4 RUE DES CHARMES","RESIDENCE DU CLOS DU BOIS",null,62980,"NOYELLES LES VERMELLES","FRANCE","0321265656",null,"jl-bocquet@orange.fr","OUI","+21 ans","Carambole",null,45896,"FRANCE","NON"]
["BETRANCOURT PASCAL","016746C",32,62,13103,"BILLY","PASCAL","BETRANCOURT","1968-06-28","M","RUE EMILIENNE MOPTY","18 RESIDENCE MARTHE NOLLET",null,62420,"BILLY MONTIGNY","FRANCE",null,"0661732806","betrancourt.pascal@sfr.fr","OUI","+21 ans","Carambole",null,45896,"FRANCE","NON"]
["DESSAINT ALAIN","016757N",32,62,13103,"BILLY","ALAIN","DESSAINT","1958-10-27","M","15 RUE RAOUL BRIQUET",null,null,62420,"BILLY MONTIGNY","FRANCE",null,"0688425589","al.dess@free.fr","OUI","+21 ans","Carambole",null,45896,"FRANCE","NON"]
["DUQUESNOY JEAN CLAUDE","016758O",32,62,13103,"BILLY","JEAN CLAUDE","DUQUESNOY","1948-12-08","M","13 RUE ALFRED DUPONT",null,null,62420,"BILLY MONTIGNY","FRANCE","0362906743","0632748724","jcduquesnoy@gmail.com","OUI","+21 ans","Carambole","arbitre",45896,"FRANCE","NON"]
["FALSE CLAUDE","016903D",32,62,13103,"BILLY","CLAUDE","FALSE","1948-03-09","M","4 RUE EMILIENNE MOPTY",null,null,62640,"MONTIGNY EN GOHELLE","FRANCE",null,"0666104819","claude9false@gmail.com","OUI","+21 ans","Carambole",null,45896,"FRANCE","NON"]
["FALSE FRANCK","016907H",32,62,13103,"BILLY","FRANCK","FALSE","1974-09-24","M","5 RUE LEON JOUHAUX",null,null,62420,"BILLY MONTIGNY","FRANCE",null,"0634180422","auto_franck@hotmail.fr","OUI","+21 ans","Carambole",null,45896,"FRANCE","NON"]
["GORZELSKI ARNAUD","017024U",32,62,13103,"BILLY","ARNAUD","GORZELSKI","1975-11-20","M","60 RUE FLORENT EVRARD",null,null,62980,"VERMELLES","FRANCE",null,"0634170206","denver62138@live.fr","OUI","+21 ans","Carambole",null,45896,"FRANCE","NON"]
["BON VINCENT","017044O",32,62,13103,"BILLY","VINCENT","BON","1964-12-19","M","20 RUE PAUL VERLAINE",null,null,62880,"VENDIN LE VIEIL","FRANCE",null,"0609642175","vb.jbon@gmail.com","OUI","+21 ans","Carambole",null,45896,"FRANCE","NON"]
["SNIATECKI PASCAL","017169J",32,62,13103,"BILLY","PASCAL","SNIATECKI","1954-01-08","M","357 RUE DU LIEUTENANT PIERRE DE ROZIER",null,null,62153,"ABLAIN ST NAZAIRE","FRANCE","0321725112","0652025572","nadine.laversin@yahoo.fr","OUI","+21 ans","Carambole",null,45896,"FRANCE","NON"]
[{"$f":"H194 & \" \" &G194","v":"GENTILE WALTER"},"017171L",32,62,13103,"BILLY","WALTER","GENTILE","1979-03-17","M","7 RUE ETIENNE DOLET",null,null,62420,"BILLY MONTIGNY","FRANCE",null,"0663617779","walter.gentile.79@gmail.com","OUI","+21 ans","Carambole",null,45896,"FRANCE","NON"]
["CABOCHE MARCEL","017273J",32,62,13103,"BILLY","MARCEL","CABOCHE","1951-06-02","M","7 RUE FREDERIC CHOPIN",null,null,62300,"LENS","FRANCE","0321704773","0632121584","marcel.caboche@wanadoo.fr","OUI","+21 ans","Carambole",null,45896,"FRANCE","NON"]
["BAILLEZ AIME","017295F",32,62,13103,"BILLY","AIME","BAILLEZ","1950-04-05","M","41 RUE DE LA LIBERTE",null,null,62740,"FOUQUIERES LES LENS","FRANCE",null,"0628601759","abaillez@numericable.fr","OUI","+21 ans","Carambole",null,45896,"FRANCE","NON"]
["JACQUES LIONEL","020725D",32,62,13103,"BILLY","LIONEL","JACQUES","1956-12-12","M","58 RUE LEON BLUM",null,null,62640,"MONTIGNY EN GOHELLE","FRANCE",null,null,"lionelhavernas@gmail.com","OUI","+21 ans","Carambole","arbitre",45896,"FRANCE","NON"]
["ELLART JEAN CLAUDE","101125L",32,62,13103,"BILLY","JEAN CLAUDE","ELLART","1948-12-07","M","42 GRAND RUE",null,null,62118,"PLOUVAIN","FRANCE","0321226904","0761878415","jcloteellart@orange.fr","OUI","+21 ans","Carambole",null,45896,"FRANCE","NON"]
["PLASSIER PHILIPPE","101166A",32,62,13103,"BILLY","PHILIPPE","PLASSIER","1953-07-23","M","783 RUE LEON BLUM",null,null,62940,"HAILLICOURT","FRANCE",null,null,null,"OUI","+21 ans","Carambole",null,45896,"FRANCE","NON"]
["LUBERT REGIS","107599L",32,62,13103,"BILLY","REGIS","LUBERT","1931-09-14","M","22 RUE DES REMPARTS",null,null,59480,"LA BASSEE","FRANCE","0320292932","0760433561",null,"OUI","+21 ans","Carambole",null,45896,"FRANCE","NON"]
["MARCHIONE JOSEPH","112687D",32,62,13103,"BILLY","JOSEPH","MARCHIONE","1959-11-28","M","28 RUE LAMENDIN",null,null,62710,"COURRIERES","FRANCE","0321406884",null,null,"NON","+21 ans","Carambole",null,45900,"ITALIE","NON"]
["WATTELET MAURICE","112744I",32,62,13103,"BILLY","MAURICE","WATTELET","1938-10-13","M","121 RUE BERTIE ALBRECHT",null,null,62110,"HENIN BEAUMONT","FRANCE",null,"0771028909","mauricewattelet@hotmail.fr","OUI","+21 ans","Carambole",null,45900,"FRANCE","NON"]
["BERNARD FRANCIS","117728A",32,62,13103,"BILLY","FRANCIS","BERNARD","1949-11-05","M","24 RUE MARIE LAURENCIN",null,null,62114,"SAINS EN GOHELLE","FRANCE","0983428373","0671889051","francis.bernard56@orange.fr","OUI","+21 ans","Carambole",null,45896,"FRANCE","NON"]
["GORNICK JEAN PIERRE","126831D",32,62,13103,"BILLY","JEAN PIERRE","GORNICK","1949-12-05","M","11 RUE DU DOCTEUR SCHAFFNER",null,null,62420,"BILLY MONTIGNY","FRANCE","0321209287",null,"nick62421@aol.com","OUI","+21 ans","Carambole",null,45896,"FRANCE","NON"]
["BERNARD LAURENT","127738A",32,62,13103,"BILLY","LAURENT","BERNARD","1980-02-25","M","134 PLACE LAMARTINE",null,null,62400,"BETHUNE","FRANCE",null,"0633300201","laurent.bernard173@orange.fr","OUI","+21 ans","Carambole",null,45896,"FRANCE","NON"]
["VINCENT ALAIN","128885D",32,62,13103,"BILLY","ALAIN","VINCENT","1942-08-25","M","18  RUE D ARGENTEUIL",null,null,62221,"NOYELLES SOUS LENS","FRANCE",null,"0617910986",null,"OUI","+21 ans","Carambole",null,45930,"FRANCE","NON"]
["FOURCROY ALAIN","141331V",32,62,13103,"BILLY","ALAIN","FOURCROY","1953-02-14","M","8 RUE FAIDHERBE",null,null,62580,"VIMY","FRANCE","0321587082",null,"frcr.max@hotmail.fr","OUI","+21 ans","Carambole",null,45896,"FRANCE","NON"]
["BEUVELET JEAN MARIE","146362I",32,62,13103,"BILLY","JEAN MARIE","BEUVELET","1955-05-03","M","93 B RUE EMILE ZOLA",null,null,62440,"HARNES","FRANCE",null,"0695846045","jeanmariebeuvelet@gmail.com","OUI","+21 ans","Carambole",null,45896,"FRANCE","NON"]
["STEINMETZ JACQUES","163290P",32,62,13103,"BILLY","JACQUES","STEINMETZ","1952-01-05","M","21 PLACE GAMBETTA RESIDENCE AURORE",null,null,62800,"LIEVIN","FRANCE",null,"0618815164","jacquessteinmetz@neuf.fr","OUI","+21 ans","Carambole",null,45896,"FRANCE","NON"]
["BETRANCOURT JULIETTE","174663B",32,62,13103,"BILLY","JULIETTE","BETRANCOURT","2012-01-21","F","18 RUE EMILIENNE MOPTY",null,null,62420,"BILLY MONTIGNY","FRANCE",null,null,null,"NON","-21 ans","Carambole",null,45896,"FRANCE","NON"]
["DESBLEUMORTIERS SYLVIE","175002V",32,62,13103,"BILLY","SYLVIE","DESBLEUMORTIERS","1963-09-17","F","2 RUE DES ACACIAS",null,null,62490,"QUIERY LA MOTTE","FRANCE",null,null,null,"NON","+21 ans","Carambole",null,45896,"FRANCE","NON"]
["DUFOUR FRANCOIS XAVIER","187258R",32,62,13103,"BILLY","FRANCOIS XAVIER","DUFOUR","1953-03-25","M","316 BOULEVARD JEANNE D4ARC",null,null,59500,"DOUAI","FRANCE",null,"0678000463","fxdufour@orange.fr","OUI","+21 ans","Carambole",null,45930,"FRANCE","NON"]
["CAUPAIN EMMA","190315P",32,62,13103,"BILLY","EMMA","CAUPAIN","2009-05-16","F","5 RUE LEON JOUHAUX",null,null,62420,"BILLY MONTIGNY","FRANCE",null,"0665429615","sarah.lefebvre@gmail.com","OUI","Avenir","Carambole",null,45896,"FRANCE","NON"]
["LEFEBVRE SARAH","190316Q",32,62,13103,"BILLY","SARAH","LEFEBVRE","1983-05-30","F","5 RUE LEON JOUHAUX",null,null,62420,"BILLY MONTIGNY","FRANCE","0665429615","0665429615","sarah.lefebvre83@gmail.com","OUI","Decouverte","Carambole",null,45896,"FRANCE","NON"]
["PILLAIN AODESS","190317R",32,62,13103,"BILLY","AODESS","PILLAIN","2013-04-12","F","160 RUE HENRI MATISSE",null,null,62320,"ROUVROY","FRANCE",null,"0749515890","melody0705@hotmail.fr","OUI","Avenir","Carambole",null,45896,"FRANCE","NON"]
["PILLAIN SHILOH","190318S",32,62,13103,"BILLY","SHILOH","PILLAIN","2014-08-25","F","160 RUE HENRI MATISSE",null,null,62320,"ROUVROY","FRANCE",null,null,"melody0705@hotmail.fr","OUI","Avenir","Carambole",null,45896,"FRANCE","NON"]
["CAUPIN PAUL","192124F",32,62,13103,"BILLY","PAUL","CAUPIN","2010-10-06","M","5 RUE LEON JOUHAUX",null,null,62420,"BILLY MONTIGNY","FRANCE","0665429615","0665429615","sarah.lefebvre@gmail.com","NON","Avenir","Carambole",null,45938,"FRANCE","NON"]
["CAUPIN LOUIS","192774M",32,62,13103,"BILLY","LOUIS","CAUPIN","2010-10-06","M","5 RUE LEON JOUHAUX",null,null,62420,"BILLY MONTIGNY","FRANCE",null,"0665429615","sarah.lefebvre@gmail.com","NON","Avenir","Carambole",null,45970,"FRANCE","NON"]
["ZEIDEL CHRISTOPHE","016542G",32,62,13104,"CARVIN","CHRISTOPHE","ZEIDEL","1957-03-20","M","20 RUE DE LA SEINE",null,null,62420,"BILLY MONTIGNY","FRANCE",null,"0782371172","chris.zeidel@free.fr","OUI","+21 ans","Carambole","arbitre",45909,"FRANCE","NON"]
["DUHAMEL LUC","016550O",32,62,13104,"CARVIN","LUC","DUHAMEL","1951-04-17","M","5 RUE DES FREGATES",null,null,62220,"CARVIN","FRANCE","0321376042","0666477381","jacqueline.duhamel43@sfr.fr","OUI","+21 ans","Carambole","arbitre",45909,"FRANCE","NON"]
["KRAWCZYK FRANCOIS","016555T",32,62,13104,"CARVIN","FRANCOIS","KRAWCZYK","1936-07-13","M","5 BOULEVARD FAIDHERBE",null,null,62820,"LIBERCOURT","FRANCE","0321744513","0634288534",null,"OUI","+21 ans","Carambole",null,45909,"FRANCE","NON"]
["MORELLE GEORGES","016558W",32,62,13104,"CARVIN","GEORGES","MORELLE","1943-03-19","M","30 RUE DU PRESIDENT ALLENDE",null,null,59185,"PROVIN","FRANCE","0320868569","0601835618","georgesmorelle@yahoo.fr","OUI","+21 ans","Carambole",null,45912,"FRANCE","NON"]
["PONCHANT GREGORY","016749F",32,62,13104,"CARVIN","GREGORY","PONCHANT","1975-03-27","M","50 RUE GEORGES BRASSENS",null,null,62820,"LIBERCOURT","FRANCE",null,"0677119470","ponchantgregory@hotmail.fr","OUI","+21 ans","Carambole",null,45898,"FRANCE","NON"]
["POIDEVIN DANY","016760Q",32,62,13104,"CARVIN","DANY","POIDEVIN","1964-03-24","M","39 RUE DU 14 JUILLET",null,null,59133,"CAMPHIN EN CARAMBAULT","FRANCE",null,"0648023092","ynad59@free.fr","OUI","+21 ans","Carambole",null,45909,"FRANCE","NON"]
["BERTOLOTTI BEATRICE","016807L",32,62,13104,"CARVIN","BEATRICE","BERTOLOTTI","1958-10-05","F","12 RUE THIBAUT",null,null,62220,"CARVIN","FRANCE","0321744998","0608518935","beabertolotti@hotmail.fr","OUI","+21 ans","Carambole","arbitre",45909,"FRANCE","NON"]
["POIDEVIN DANIEL","016809N",32,62,13104,"CARVIN","DANIEL","POIDEVIN","1944-05-04","M","14 RUE DES TILLEULS",null,null,59880,"ESTEVELLES","FRANCE","0321375980","0783346606","poidevin.jocelyne@orange.fr","OUI","+21 ans","Carambole",null,45917,"FRANCE","NON"]
["BALLET ARNAUD","016833L",32,62,13104,"CARVIN","ARNAUD","BALLET","1970-12-12","M","109 RUE DE L ABBAYE",null,null,59553,"ESQUERCHIN","FRANCE",null,"0661740969","arnosagittaire@hotmail.fr","OUI","+21 ans","Carambole",null,45909,"FRANCE","NON"]
["DESREUMAUX REGIS","016981D",32,62,13104,"CARVIN","REGIS","DESREUMAUX","1959-10-25","M","106 BIS RUE CYPRIEN QUINET",null,null,62220,"CARVIN","FRANCE",null,"0699574365","regisdesreumaux@gmail.com","OUI","+21 ans","Carambole",null,45909,"FRANCE","NON"]
["BAYART PASCAL","016982E",32,62,13104,"CARVIN","PASCAL","BAYART","1960-02-29","M","22 RUE DE BLIDA","CITE SAINT PAUL",null,62220,"CARVIN","FRANCE",null,"0766431952","bayartpascal60@gmail.com","OUI","+21 ans","Carambole",null,45909,"FRANCE","NON"]
["WINTER JIMMY","110542Q",32,62,13104,"CARVIN","JIMMY","WINTER","1985-08-08","M","15 RUE SERAPHIN CORDIER",null,null,62300,"LENS","FRANCE",null,"0666197585","alexetjim62@hotmail.fr","OUI","+21 ans","Carambole",null,45909,"FRANCE","NON"]
["MICHEL PIERRE","123708A",32,62,13104,"CARVIN","PIERRE","MICHEL","1945-11-12","M","30 RUE MONTESQUIEU",null,null,62220,"CARVIN","FRANCE","0321370840","0611967075","pierre-michel-carvin@orange.fr","OUI","+21 ans","Carambole",null,45909,"FRANCE","NON"]
["LETALLE DIDIER","123709B",32,62,13104,"CARVIN","DIDIER","LETALLE","1957-01-17","M","83 RUE EMILE ZOLA",null,null,62220,"CARVIN","FRANCE",null,"0683166184","didier.letalle@wanadoo.fr","OUI","+21 ans","Carambole",null,45909,"FRANCE","NON"]
["GERINECZ LOUIS","126851X",32,62,13104,"CARVIN","LOUIS","GERINECZ","1946-08-12","M","20 RESIDENCE CONCORDE",null,null,62220,"CARVIN","FRANCE","0321742156","0680126777","lgerinecz@free.fr","OUI","+21 ans","Carambole",null,45909,"FRANCE","NON"]
["FAUQUEMBERGUE RENAUD","133043B",32,62,13104,"CARVIN","RENAUD","FAUQUEMBERGUE","1941-11-01","M","5 RUE DU CHEMIN VERT",null,null,62220,"CARVIN","FRANCE","0361931427","0621429479","renofok@sfr.fr","OUI","+21 ans","Carambole",null,45909,"FRANCE","NON"]
["AMEYE CHRISTIAN","138348C",32,62,13104,"CARVIN","CHRISTIAN","AMEYE","1948-05-19","M","1 RUE SAINT MALO",null,null,62220,"CARVIN","FRANCE","0980947756","0672930478","christian.ameye@yahoo.fr","OUI","+21 ans","Carambole",null,45909,"FRANCE","NON"]
["LARTISIEN JEAN PAUL","139432U",32,62,13104,"CARVIN","JEAN PAUL","LARTISIEN","1947-11-20","M","247 RUE DU MARECHAL FOCH",null,null,62220,"CARVIN","FRANCE","0321403698","0685898173","jean-paul.lartisien@orange.fr","OUI","+21 ans","Carambole",null,45909,"FRANCE","NON"]
["MASSON ALAIN","149526D",32,62,13104,"CARVIN","ALAIN","MASSON","1954-07-12","M","208 RUE DU MARECHAL FOCH",null,null,62220,"CARVIN","FRANCE","0321746299","0608109543","alai.masson@wanadoo.fr","OUI","+21 ans","Carambole",null,45909,"FRANCE","NON"]
["VANDEVYVERE JEAN CLAUDE","151104T",32,62,13104,"CARVIN","JEAN CLAUDE","VANDEVYVERE","1945-12-20","M","12 RUE PASTEUR",null,null,62220,"CARVIN","FRANCE","0321372025","0645143769","jc.vandevyvere@orange.fr","OUI","+21 ans","Carambole",null,45909,"FRANCE","NON"]
["DESAILLY BERNARD","157452T",32,62,13104,"CARVIN","BERNARD","DESAILLY","1955-08-15","M","5 CHEMIN SAINT ROCH",null,null,62710,"COURRIERES","FRANCE","0321371048","0684350211","bernard.desailly@wanadoo.fr","OUI","+21 ans","Carambole",null,45909,"FRANCE","NON"]
["MILAZZO CALOGERO","174305M",32,62,13104,"CARVIN","CALOGERO","MILAZZO","1950-05-16","M","168 RUE SERAPHIN CORDIER",null,null,62220,"CARVIN","FRANCE",null,"0680130249","calogero.milazzo0177@orange.fr","OUI","+21 ans","Carambole",null,45935,"FRANCE","NON"]
["DUPONT BERNARD","178264Q",32,62,13104,"CARVIN","BERNARD","DUPONT","1958-11-09","M","14 RUE DU 8 MAI",null,null,62410,"MEURCHIN","FRANCE",null,"0788726402","bernard.dupont490@orange.fr","OUI","+21 ans","Carambole",null,45917,"FRANCE","NON"]
["YSARD SIDNEY","192799P",32,62,13104,"CARVIN","SIDNEY","YSARD","2007-02-10","M","33 RUE PIERRE BAUVE",null,null,62710,"COURRIERES","FRANCE",null,"0767101937","sidjo1004@gmail.com","OUI","Avenir","Carambole",null,45972,"FRANCE","NON"]
["MERLIN CHRISTIAN","016887N",32,62,13363,"CUCQ","CHRISTIAN","MERLIN","1959-03-30","M","38 RUE DE NEUVILLE",null,null,62170,"MARLES SUR CANCHE","FRANCE","0321946726","0645674897","christianmerlin59@gmail.com","OUI","+21 ans","Carambole","arbitre",45912,"FRANCE","NON"]
["RETOURNE MICHEL","021089D",32,62,13363,"CUCQ","MICHEL","RETOURNE","1949-03-30","M","9 RUE DE LA TOURBERIE",null,null,62180,"VERTON","FRANCE",null,"0698563587","monique-michel80@hotmail.fr","OUI","+21 ans","Carambole",null,45930,"FRANCE","NON"]
["BROUTIER BERTRAND","101241X",32,62,13363,"CUCQ","BERTRAND","BROUTIER","1961-02-01","M","269 RUE JOSEPH DAUBREGE",null,null,62155,"MERLIMONT","FRANCE",null,"0603402257","broutier-bertrand@wanadoo.fr","OUI","+21 ans","Carambole",null,45895,"FRANCE","NON"]
["CARON CHRISTIAN","117742O",32,62,13363,"CUCQ","CHRISTIAN","CARON","1959-05-13","M","21 RUE DU TROU AU LOUP",null,null,62600,"BERCK SUR MER","FRANCE","0321945192","0689487385","christian.caron62@orange.fr","OUI","+21 ans","Carambole","arbitre",45895,"FRANCE","NON"]
["VASSALLE MARCEL","117746S",32,62,13363,"CUCQ","MARCEL","VASSALLE","1937-08-26","M","10 RUE DE COLLINE",null,null,62180,"CONCHIL LE TEMPLE","FRANCE","0321812588","0640784575",null,"OUI","+21 ans","Carambole",null,45910,"FRANCE","NON"]
["CARTIERE ANDRE","117749V",32,62,13363,"CUCQ","ANDRE","CARTIERE","1951-11-29","M","320 RUE DE LA JAQUETTE",null,null,62780,"CUCQ","FRANCE","0321097250","0638741654",null,"OUI","+21 ans","Carambole","arbitre",45904,"FRANCE","NON"]
["CLEMENT ANNE","117760G",32,62,13363,"CUCQ","ANNE","CLEMENT","1953-10-23","F","35 RUE DES ALOUETTES",null,null,62180,"RANG DU FLIERS","FRANCE",null,"0611269351","anneclement62@hotmail.fr","OUI","+21 ans","Carambole",null,45939,"FRANCE","NON"]
["BOUBET JEAN","121412S",32,62,13363,"CUCQ","JEAN","BOUBET","1940-12-13","M","15 AVENUE DU GENERAL DE GAULLE",null,null,62600,"BERCK SUR MER","FRANCE","0321896092","0622680786","jean.boubet626@gmail.com","OUI","+21 ans","Carambole","arbitre",45895,"FRANCE","NON"]
["TIZON ALAIN","121424E",32,62,13363,"CUCQ","ALAIN","TIZON","1956-05-27","M","478 RUE DES CERTAINS",null,null,62780,"CUCQ","FRANCE",null,"0681249972","alain.tizon@gmail.com","OUI","+21 ans","Carambole","arbitre",45901,"FRANCE","NON"]
["GELEE ROHAN","131083R",32,62,13363,"CUCQ","ROHAN","GELEE","1958-06-09","M","74 AVENUE PASTEUR",null,null,62630,"ETAPLES","FRANCE","0321949037","0649562591","rohangelee@orange.fr","OUI","+21 ans","Carambole",null,45931,"FRANCE","NON"]
["MARTEL MICHEL","131084S",32,62,13363,"CUCQ","MICHEL","MARTEL","1955-02-23","M","54 AVENUE PASTEUR",null,null,62630,"ETAPLES","FRANCE","0321846164","0617039344",null,"OUI","+21 ans","Carambole",null,45907,"FRANCE","NON"]
["BOUBET FRANCINE","133115V",32,62,13363,"CUCQ","FRANCINE","BOUBET","1941-09-17","F","15 AVENUE DU GENERAL DE GAULLE",null,null,62600,"BERCK SUR MER","FRANCE","0321896092","0766224614",null,"OUI","+21 ans","Carambole",null,45895,"FRANCE","NON"]
["TRIPLET GILBERT","136009D",32,62,13363,"CUCQ","GILBERT","TRIPLET","1952-01-19","M","7 CHEMIN DU MARAIS",null,null,62170,"CAPELLE ST JOSSE","FRANCE","0321942438",null,null,"OUI","+21 ans","Carambole","arbitre",45904,"FRANCE","NON"]
["RIVALAIN JEAN LOUIS","138331L",32,62,13363,"CUCQ","JEAN LOUIS","RIVALAIN","1950-09-25","M","205 AVENUE DE MARSEILLE",null,null,62780,"STELLA PLAGE","FRANCE",null,"0667658899",null,"OUI","+21 ans","Carambole",null,45907,"FRANCE","NON"]
["VANHACK DIDIER","139591X",32,62,13363,"CUCQ","DIDIER","VANHACK","1956-12-24","M","61 RUE DE L EPINETTE",null,null,62650,"ENQUIN SUR BAILLON","FRANCE","0618323122",null,"didiervanhack@hotmail.fr","OUI","+21 ans","Carambole",null,45930,"FRANCE","NON"]
[{"$f":"H258 & \" \" &G258","v":"CAPLIEZ BERNARD"},"143595X",32,62,13363,"CUCQ","BERNARD","CAPLIEZ","1949-09-06","M","44 RUE PAUL LEMETTRE",null,null,62780,"CUCQ","FRANCE",null,"0671478142","santiano62@sfr.fr","OUI","+21 ans","Carambole",null,45916,"FRANCE","NON"]
["LEROUX JEAN PAUL","145203T",32,62,13363,"CUCQ","JEAN PAUL","LEROUX","1946-02-01","M","283 RUE DE LILLE","RESIDENCE BRITANNIA APPT 125",null,62780,"STELLA PLAGE","FRANCE","0321890011","0631345724","garcetan@orange.fr","OUI","+21 ans","Carambole",null,45904,"FRANCE","NON"]
["TRIPLET EDDIE","145206W",32,62,13363,"CUCQ","EDDIE","TRIPLET","1961-11-21","M","118 RUE DE LA ROSIERE",null,null,62180,"RANG DU FLIERS","FRANCE",null,"0772222270","triplet.eddie@orange.fr","OUI","+21 ans","Carambole",null,45910,"FRANCE","NON"]
["TRIPLET FREDY","145207X",32,62,13363,"CUCQ","FREDY","TRIPLET","1960-02-23","M","95 RUE DE LA ROSIERE",null,null,62180,"RANG DU FLIERS","FRANCE","0321840680","0623398224","triplet.freddy@free.fr","OUI","+21 ans","Carambole",null,45907,"FRANCE","NON"]
["LAVIGNE CLAUDY","147239S",32,62,13363,"CUCQ","CLAUDY","LAVIGNE","1943-09-01","M","24 ALLEE ST CHRISTOPHE",null,null,62600,"BERCK SUR MER","FRANCE","0321841387","0637781486","claudy.lavigne@orange.fr","OUI","+21 ans","Carambole",null,45907,"FRANCE","NON"]
["BAILLET BERNARD","147240T",32,62,13363,"CUCQ","BERNARD","BAILLET","1951-09-22","M","2 RUE BAILLET","PLACE FONTAINE",null,62600,"BERCK SUR MER","FRANCE","0321093352","0620798344","bernard.baillet@club-internet.fr","OUI","+21 ans","Carambole",null,45913,"FRANCE","NON"]
["SPRUYT MICHEL","147241V",32,62,13363,"CUCQ","MICHEL","SPRUYT","2003-03-10","M","3 ALLEE DES PEUPLIERS",null,null,62140,"MARCONNE","FRANCE",null,"0658495975","michel.spruyt@icloud.com","OUI","+21 ans","Carambole",null,45913,"FRANCE","NON"]
["RAMET JACQUES","154166X",32,62,13363,"CUCQ","JACQUES","RAMET","1954-12-20","M","351 AVENUE D ETAPLES",null,null,62780,"CUCQ","FRANCE","0321065633","0619718946","jacq.ramet@gmail.com","OUI","+21 ans","Carambole",null,45895,"FRANCE","NON"]
["VADUNTHUN DANIEL","155058R",32,62,13363,"CUCQ","DANIEL","VADUNTHUN","1952-02-04","M","397 AVENUE DU CHAT NOIR",null,null,62780,"CUCQ","FRANCE","0321819995","0688147182","lejeune.odile@wanadoo.fr","OUI","+21 ans","Carambole",null,45932,"FRANCE","NON"]
["CYFFERS JEAN BERNARD","156958G",32,62,13363,"CUCQ","JEAN BERNARD","CYFFERS","1951-06-07","M","24 ALLEE DES DEMOISELLES",null,null,62630,"ETAPLES SUR MER","FRANCE",null,"0603229888","jeanber62@gmail.com","OUI","+21 ans","Carambole",null,45920,"FRANCE","NON"]
["GUYOT PIERRE","157520S",32,62,13363,"CUCQ","PIERRE","GUYOT","1952-01-22","M","272 RUE DES PRES",null,null,62155,"MERLIMONT","FRANCE","0321946846","0607421032","beaguyot38@orange.fr","OUI","+21 ans","Carambole",null,45910,"FRANCE","NON"]
["LEDOUX RENE","158688M",32,62,13363,"CUCQ","RENE","LEDOUX","1946-04-29","M","113 RUE DES VERGER",null,null,62180,"RANG DU FLIERS","FRANCE",null,"0680110007","annierene.ledoux@wanadoo.fr","OUI","+21 ans","Carambole",null,45913,"FRANCE","NON"]
["FLAHAUT GHISLAIN","159163D",32,62,13363,"CUCQ","GHISLAIN","FLAHAUT","1956-03-24","M","30 AVENUE DE LA MER",null,null,62170,"VILLIERS ST JOSSE","FRANCE","0321846000","0640158684","ghislain.flahaut@orange.fr","OUI","+21 ans","Carambole",null,45904,"FRANCE","NON"]
["LION BERNARD","159446L",32,62,13363,"CUCQ","BERNARD","LION","1975-12-01","M","49 RUE SALZINNES NAMUR",null,null,62600,"BERCK","FRANCE",null,"0640966128","lionbernard75@gmail.com","OUI","+21 ans","Blackball",null,45903,"FRANCE","NON"]
["DACHICOURT JEAN LUC","161503X",32,62,13363,"CUCQ","JEAN LUC","DACHICOURT","1955-03-25","M","4 IMPASSE DES PEUPLIERS",null,null,62170,"MONTCAVREL","FRANCE",null,"0659300057","jeanluc.dachicourt@gmail.com","OUI","+21 ans","Carambole",null,45897,"FRANCE","NON"]
["SAISON DIDIER","166639E",32,62,13363,"CUCQ","DIDIER","SAISON","1953-05-06","M","18 RUE DES CHARMETTES",null,null,62170,"CAPELLE ST JOSSE","FRANCE","0321949778","0628787220","jmsaison19@wanadoo.fr","OUI","+21 ans","Carambole",null,45913,"FRANCE","NON"]
["HENRY GERARD","167467E",32,62,13363,"CUCQ","GERARD","HENRY","1948-04-16","M","1007 AVENUE DE BAGATELLE",null,null,62180,"RANG DU FLIERS","FRANCE","0361855289","0631033733","macaja.henry@gmail.com","OUI","+21 ans","Carambole",null,45898,"FRANCE","NON"]
["PERTUE DANIEL","168339C",32,62,13363,"CUCQ","DANIEL","PERTUE","1952-05-15","M","1109 RUE AUGUSTE BIBLOCQ",null,null,62155,"MERLIMONT","FRANCE","0321096347","0686981004","pertue.daniel@orange.fr","OUI","+21 ans","Carambole",null,45918,"FRANCE","NON"]
["LIMOSINO JACQUES","169417Z",32,62,13363,"CUCQ","JACQUES","LIMOSINO","1953-07-14","M","94 RUE DU MOULIN",null,null,62140,"MARCONNELLE","FRANCE",null,"0614626840","jacques.limosino@hotmail.fr","OUI","+21 ans","Carambole",null,45918,"FRANCE","NON"]
["LEGRAIN ALAIN","169473K",32,62,13363,"CUCQ","ALAIN","LEGRAIN","1951-02-28","M","218 RUE MOTTE DU MOULIN",null,null,62120,"CAMPAGNE LES WARDRECQUES","FRANCE",null,"0766486293","ac.legrain@gmail.com","OUI","+21 ans","Carambole",null,45931,"FRANCE","NON"]
["GUEUDRE GERARD","169942V",32,62,13363,"CUCQ","GERARD","GUEUDRE","1950-09-05","M","22 ALLEE DES CHENES",null,null,62780,"CUCQ","FRANCE",null,"0789442600","gueudre.gerard@orange.fr","OUI","+21 ans","Carambole",null,45901,"FRANCE","NON"]
["ISAERT PATRICK","170606R",32,62,13363,"CUCQ","PATRICK","ISAERT","1954-07-14","M","420 AVENUE DE PICARDIE",null,null,62520,"LE TOUQUET","FRANCE",null,"0607903746","patrick.isaert@mercure-invest.com","OUI","+21 ans","Carambole",null,45944,"FRANCE","NON"]
["KERLEVEO ANDRE","171110P",32,62,13363,"CUCQ","ANDRE","KERLEVEO","1957-04-21","M","1 CHEMIN DES CHAMPS",null,null,62170,"LA MADELEINE SOUS MONTREUIL","FRANCE",null,"0607990833","familleakerleveo@hotmail.com","OUI","+21 ans","Carambole",null,45904,"FRANCE","NON"]
["CARON JOEL","171147E",32,62,13363,"CUCQ","JOEL","CARON","1960-06-07","M","84 ROUTE DE GROFFLIERS",null,null,62180,"VERTON","FRANCE",null,"0622864270","joel.billard62@gmail.com","OUI","+21 ans","Carambole",null,45913,"FRANCE","NON"]
["PASBECQ JEAN MARIE","173522L",32,62,13363,"CUCQ","JEAN MARIE","PASBECQ","1947-01-13","M","9 RUE DU QUARTIER RUSSE",null,null,62600,"BERCK SUR MER","FRANCE",null,"0666848018","jmpasbecq2@wanadoo.fr","OUI","+21 ans","Carambole",null,45925,"FRANCE","NON"]
["CORBUSIE HUBERT","175117V",32,62,13363,"CUCQ","HUBERT","CORBUSIE","1958-11-14","M","497 RUE PAUL LEMAITRE",null,null,62780,"CUCQ","FRANCE",null,"0618874806","hubert.corbusie@outlook.com","OUI","+21 ans","Carambole",null,45907,"FRANCE","NON"]
["NORMAND FRANCK","178914X",32,62,13363,"CUCQ","FRANCK","NORMAND","1967-05-08","M","24 RUE DE L ABBE VANDEWALLE",null,null,62600,"BERCK SUR MER","FRANCE",null,"0670441788","normand.franck62@gmail.com","OUI","+21 ans","Carambole",null,45913,"FRANCE","NON"]
["DECRIEM DIDIER","179798H",32,62,13363,"CUCQ","DIDIER","DECRIEM","1968-07-19","M","33 CITE BEL AIR",null,null,62630,"ETAPLES SUR MER","FRANCE",null,"0631797564","decriem.didier@orange.fr","OUI","+21 ans","Carambole",null,45925,"FRANCE","NON"]
["DELATTRE JEROME","179800K",32,62,13363,"CUCQ","JEROME","DELATTRE","1976-05-11","M","74 RUE DU MOULIN SAINT JEAN",null,null,62600,"BERCK SUR MER","FRANCE",null,"0782628423","julesetmoi.62@gmail.com","OUI","+21 ans","Blackball",null,45901,"FRANCE","NON"]
["LAMARCHE ERIC","179801L",32,62,13363,"CUCQ","ERIC","LAMARCHE","1970-11-12","M","29 RUE DES PATRONS",null,null,62600,"BERCK SUR MER","FRANCE",null,"0610628237","madycow@gmail.com","OUI","+21 ans","Blackball",null,45901,"FRANCE","NON"]
["DELATTRE JULES","180048E",32,62,13363,"CUCQ","JULES","DELATTRE","2012-06-18","M","155 RUE DU BOIS DU SAPIN",null,null,62180,"RANG DU FLIERS","FRANCE",null,"0782628423","julesetmoi62@gmail.com","OUI","-21 ans","Blackball",null,45913,"FRANCE","NON"]
["CALLEWAERT ANTHONY","180156X",32,62,13363,"CUCQ","ANTHONY","CALLEWAERT","1978-04-10","M","1 PLACE DE LA CHALOUPE",null,null,62600,"BERCK SUR MER","FRANCE","0967623213","0675322257","luanncallewaert@gmail.com","OUI","+21 ans","Blackball",null,45901,"FRANCE","NON"]
["ROCHEL THIBAULT","PS006944Y",32,62,13363,"CUCQ","THIBAULT","ROCHEL","2016-11-07","M","241 RUE DU RENDY",null,null,62780,"CUCQ","FRANCE",null,"0622273243","coraetvince@gmai.com","NON","Scolaire","Carambole",null,45936,"FRANCE","NON"]
["SILVAIN SEBASTIEN","181361G",32,62,13363,"CUCQ","SEBASTIEN","SILVAIN","1974-11-26","M","591 RUE DU CHATEAU",null,null,62990,"BEAURAINVILLE","FRANCE",null,"0634322244","sebastien.silvain62@gmail.com","OUI","+21 ans","Blackball",null,45903,"FRANCE","NON"]
["COUILLAULT LUDOVIC","181563B",32,62,13363,"CUCQ","LUDOVIC","COUILLAULT","1975-07-10","M","15 PLACE D ARMES APPT 02",null,null,62140,"HESDIN","FRANCE",null,"0786245182","couillault.ludovic@free.fr","OUI","+21 ans","Blackball",null,45903,"FRANCE","NON"]
["LEBBE ANITA","181564C",32,62,13363,"CUCQ","ANITA","LEBBE","1970-01-31","F","235 RUE YVES COQUELLE",null,null,62320,"ROUVROY","FRANCE",null,"0768456744","anita.lebbe@laposte.net","OUI","+21 ans","Blackball",null,45903,"FRANCE","NON"]
["DEGOR ARNAUD","181565D",32,62,13363,"CUCQ","ARNAUD","DEGOR","1984-04-06","M","235 RUE YVES COQUELLE",null,null,62320,"ROUVROY","FRANCE",null,"0621815371","arnaud.degorr@gmail.com","OUI","+21 ans","Blackball",null,45903,"FRANCE","NON"]
["VITTORI JOAKIM","181699Z",32,62,13363,"CUCQ","JOAKIM","VITTORI","1978-07-07","M","125 BOULEVARD DE BOULOGNE",null,null,62600,"BERCK S MER","FRANCE",null,"0788637499","joakim.vittori@hotmail.fr","OUI","+21 ans","Blackball",null,45901,"FRANCE","NON"]
["DELILEZ JONATHAN","181795D",32,62,13363,"CUCQ","JONATHAN","DELILEZ","1985-12-29","M","1 RESIDENCE LE CRONQUELET",null,null,62170,"BEAUMERIE ST MARTIN","FRANCE",null,"0777708941","jonathan.delilez.62@gmail.com","OUI","+21 ans","Blackball",null,45903,"FRANCE","NON"]
["DELILEZ EDEN","181796E",32,62,13363,"CUCQ","EDEN","DELILEZ","2016-04-19","M","1 RESIDENCE LE CRONQUELET",null,null,62170,"BEAUMERIE ST MARTIN","FRANCE",null,"0777708941","jonathan.delilez.62@gmail.com","OUI","-21 ans","Blackball",null,45903,"FRANCE","NON"]
["PHILIPPE LEONIE","182421J",32,62,13363,"CUCQ","LEONIE","PHILIPPE","2014-01-12","F","229 RUE DE PERONNE",null,null,62780,"CUCQ","FRANCE",null,"0604089614","alyssatriplet3@gmail.com","OUI","-21 ans","Blackball",null,45912,"FRANCE","NON"]
["DEJANS YVES","183293G",32,62,13363,"CUCQ","YVES","DEJANS","1963-08-08","M","5A RUE MICHAUD",null,null,62600,"BERCK S MER","FRANCE",null,"0678926753","yveslaurentkleber59@gmail.com","OUI","+21 ans","Carambole",null,45946,"FRANCE","NON"]
["BAUDINAULT LEO","183776G",32,62,13363,"CUCQ","LEO","BAUDINAULT","2007-07-27","M","19 ROUTE DE NEUVILLE",null,null,58640,"FLEURY LOIRE","FRANCE",null,"0675127439","leo.baudinault@iclound.com","OUI","-21 ans","Carambole",null,45989,"FRANCE","NON"]
["TIZON GOMEZ YOALI","184445J",32,62,13363,"CUCQ","YOALI","TIZON GOMEZ","2017-09-15","M","173CHEMIN DU BAILLARQUET",null,null,62780,"STELLA PLAGE","FRANCE",null,"0618183809","guillaume.tizon@gmail.com","OUI","-21 ans","Blackball",null,45912,"FRANCE","NON"]
["GREGOIRE ARTHUR","185029T",32,62,13363,"CUCQ","ARTHUR","GREGOIRE","1985-10-05","M","65 RUE DE L ETOILE",null,null,62780,"CUCQ","FRANCE",null,"0779557408","artgreg@outlook.fr","OUI","+21 ans","Blackball",null,45907,"FRANCE","NON"]
["VITTORI ALEXANDRE","185942L",32,62,13363,"CUCQ","ALEXANDRE","VITTORI","1990-11-28","M","481 AVENUE JEAN MOULIN",null,null,62180,"RANG DU FLIERS","FRANCE",null,"0650339709","alexandrevittori137@gmail.com","OUI","+21 ans","Blackball",null,45901,"FRANCE","NON"]
["GALLIER SEBASTIEN","190534C",32,62,13363,"CUCQ","SEBASTIEN","GALLIER","1985-04-03","M","18 AVENUE DES DESIRS",null,null,1140,"EVERE","BELGIQUE",null,"0616359413","sebgallier@hotmail.fr","OUI","Decouverte","Blackball",null,45903,"FRANCE","NON"]
["SPRUYT JEAN LUC","190978K",32,62,13363,"CUCQ","JEAN LUC","SPRUYT","1958-08-07","M","3 ALLEE DES PEUPLIERS",null,null,62140,"MARCONNE","FRANCE",null,"0783673667","jeanluc.spruyt@icloud.com","OUI","Decouverte","Carambole",null,45913,"FRANCE","NON"]
["DESBONNET DAVID","191786N",32,62,13363,"CUCQ","DAVID","DESBONNET","1968-08-24","M","41 CHEMIN DES ANGLAIS",null,null,62600,"BERCK SUR MER","FRANCE",null,"0646131875","davedesbonnet@gmail.com","OUI","Decouverte","Blackball",null,45930,"FRANCE","NON"]
["POULEUR APRIL","PS008724H",32,62,13363,"CUCQ","APRIL","POULEUR","2016-02-08","M","ECOLE PRIMAIRE CUCQ",null,null,62780,"CUCQ","FRANCE",null,null,null,"NON","Scolaire","Carambole",null,45936,"FRANCE","NON"]
["DEFEBVRE LOUISA","PS008725J",32,62,13363,"CUCQ","LOUISA","DEFEBVRE","2016-04-09","F","ECOLE PRIMAIRE CUCQ","CM1",null,62780,"CUCQ","FRANCE",null,null,null,"NON","Scolaire","Carambole",null,45936,"FRANCE","NON"]
["GRIGORIEFF CELESTINE","PS008726K",32,62,13363,"CUCQ","CELESTINE","GRIGORIEFF","2016-01-13","F","ECOLE PRIMAIRE CUCQ","CM1",null,62780,"CUCQ","FRANCE",null,null,null,"NON","Scolaire","Carambole",null,45936,"FRANCE","NON"]
["MODESTE SAUCEDO JOSEPH","PS008727L",32,62,13363,"CUCQ","JOSEPH","MODESTE SAUCEDO","2016-03-12","M","ECOLE PRIMAIRE CUCQ","CM1",null,62780,"CUCQ","FRANCE",null,null,null,"NON","Scolaire","Carambole",null,45936,"FRANCE","NON"]
["CARPENTIER LOU","PS008728M",32,62,13363,"CUCQ","LOU","CARPENTIER","2015-03-02","F","ECOLE PRIMAIRE CUCQ","CM2",null,62780,"CUCQ","FRANCE",null,null,null,"NON","Scolaire","Carambole",null,45936,"FRANCE","NON"]
["COLLART THOMAS","PS008729N",32,62,13363,"CUCQ","THOMAS","COLLART","2014-10-08","M","ECOLE PRIMAIRE CUCQ","CM2",null,62780,"CUCQ","FRANCE",null,null,null,"NON","Scolaire","Carambole",null,45936,"FRANCE","NON"]
["CUVELIER LOCQUET ELENA","PS008730P",32,62,13363,"CUCQ","ELENA","CUVELIER LOCQUET","2014-10-08","F","ECOLE PRIMAIRE CUCQ","CM2",null,62780,"CUCQ","FRANCE",null,null,null,"NON","Scolaire","Carambole",null,45936,"FRANCE","NON"]
["DAMBRON MARTIN","PS008731Q",32,62,13363,"CUCQ","MARTIN","DAMBRON","2015-12-17","M","ECOLE PRIMAIRE CUCQ","CM2",null,62780,"CUCQ","FRANCE",null,null,null,"NON","Scolaire","Carambole",null,45936,"FRANCE","NON"]
["FONTENELLE THELIO","PS008732R",32,62,13363,"CUCQ","THELIO","FONTENELLE","2015-02-04","M","ECOLE PRIMAIRE CUCQ","CM2",null,62780,"CUCQ","FRANCE",null,null,null,"NON","Scolaire","Carambole",null,45936,"FRANCE","NON"]
["FOUBLE LEO","PS008733S",32,62,13363,"CUCQ","LEO","FOUBLE","2015-05-29","M","ECOLE PRIMAIRE CUCQ","CM2",null,62780,"CUCQ","FRANCE",null,null,null,"NON","Scolaire","Carambole",null,45936,"FRANCE","NON"]
["JONES PIA","PS008734T",32,62,13363,"CUCQ","PIA","JONES","2015-02-13","F","ECOLE PRIMAIRE CUCQ","CM2",null,62780,"CUCQ","FRANCE",null,null,null,"NON","Scolaire","Carambole",null,45936,"FRANCE","NON"]
["LAGET MARCEL","PS008735V",32,62,13363,"CUCQ","MARCEL","LAGET","2015-12-31","M","ECOLE PRIMAIRE CUCQ","CM2",null,62780,"CUCQ","FRANCE",null,null,null,"NON","Scolaire","Carambole",null,45936,"FRANCE","NON"]
["LEBECQ MANON","PS008736W",32,62,13363,"CUCQ","MANON","LEBECQ","2015-12-18","F","ECOLE PRIMAIRE CUCQ","CM2",null,62780,"CUCQ","FRANCE",null,null,null,"NON","Scolaire","Carambole",null,45936,"FRANCE","NON"]
["LECAILLE ARTHUR","PS008737X",32,62,13363,"CUCQ","ARTHUR","LECAILLE","2014-12-23","M","ECOLE PRIMAIRE CUCQ","CM2",null,62780,"CUCQ","FRANCE",null,null,null,"NON","Scolaire","Carambole",null,45936,"FRANCE","NON"]
["LERICHE LOLITA","PS008738Y",32,62,13363,"CUCQ","LOLITA","LERICHE","2015-06-21","F","ECOLE PRIMAIRE CUCQ","CM2",null,62780,"CUCQ","FRANCE",null,null,null,"NON","Scolaire","Carambole",null,45936,"FRANCE","NON"]
[{"$f":"H322 & \" \" &G322","v":"MODESTE NATHAN"},"PS008739Z",32,62,13363,"CUCQ","NATHAN","MODESTE","2015-07-31","M","ECOLE PRIMAIRE CUCQ","CM2",null,62780,"CUCQ","FRANCE",null,null,null,"NON","Scolaire","Carambole",null,45936,"FRANCE","NON"]
["MOUNGUENGUI CHAM","PS008740A",32,62,13363,"CUCQ","CHAM","MOUNGUENGUI","2015-05-19","M","ECOLE PRIMAIRE CUCQ","CM2",null,62780,"CUCQ","FRANCE",null,null,null,"NON","Scolaire","Carambole",null,45936,"FRANCE","NON"]
["NABOR PLEE ORLANE","PS008741B",32,62,13363,"CUCQ","ORLANE","NABOR PLEE","2015-09-22","F","ECOLE PRIMAIRE CUCQ","CM2",null,62780,"CUCQ","FRANCE",null,null,null,"NON","Scolaire","Carambole",null,45936,"FRANCE","NON"]
["FOURNIER CAMILLE","PS008742C",32,62,13363,"CUCQ","CAMILLE","FOURNIER","2016-11-09","F","ACCUEIL DE LOISIR",null,null,62780,"CUCQ","FRANCE",null,null,null,"NON","Scolaire","Carambole",null,45937,"FRANCE","NON"]
["GRESSIER ELOUANE","PS008743D",32,62,13363,"CUCQ","ELOUANE","GRESSIER","2014-12-05","F","ACCUEIL DE LOISIR",null,null,62780,"CUCQ","FRANCE",null,null,null,"NON","Scolaire","Carambole",null,45937,"FRANCE","NON"]
["GRESSIER JADE","PS008744E",32,62,13363,"CUCQ","JADE","GRESSIER","2017-06-01","F","ACCUEIL DE LOISIR",null,null,62780,"CUCQ","FRANCE",null,null,null,"NON","Scolaire","Carambole",null,45937,"FRANCE","NON"]
["HENISSART RAPHAEL","PS008745F",32,62,13363,"CUCQ","RAPHAEL","HENISSART","2016-01-19","M","ACCUEIL DE LOISIR",null,null,62780,"CUCQ","FRANCE",null,null,null,"NON","Scolaire","Carambole",null,45937,"FRANCE","NON"]
["HUREZ KLARA","PS008746G",32,62,13363,"CUCQ","KLARA","HUREZ","2016-01-19","F","ACCUEIL DE LOISIR",null,null,62780,"CUCQ","FRANCE",null,null,null,"NON","Scolaire","Carambole",null,45937,"FRANCE","NON"]
["LEBECQ LUCAS","PS008747H",32,62,13363,"CUCQ","LUCAS","LEBECQ","2017-10-04","M","ACCUEIL DE LOISIR",null,null,62780,"CUCQ","FRANCE",null,null,null,"NON","Scolaire","Carambole",null,45937,"FRANCE","NON"]
["LEPRETRE CAMPION SAMOME","PS008748J",32,62,13363,"CUCQ","SAMOME","LEPRETRE CAMPION","2015-12-15","M","ACCUEIL DE LOISIR",null,null,62780,"CUCQ","FRANCE",null,null,null,"NON","Scolaire","Carambole",null,45937,"FRANCE","NON"]
["LIMOSINO CHARLINE","PS008749K",32,62,13363,"CUCQ","CHARLINE","LIMOSINO","2017-12-30","F","ACCUEIL DE LOISIR",null,null,62780,"CUCQ","FRANCE",null,null,null,"NON","Scolaire","Carambole",null,45937,"FRANCE","NON"]
["MOREL MARIUS","PS008750L",32,62,13363,"CUCQ","MARIUS","MOREL","2016-06-25","M","ACCUEIL DE LOISIR",null,null,62780,"CUCQ","FRANCE",null,null,null,"NON","Scolaire","Carambole",null,45937,"FRANCE","NON"]
["TABURIAUX FLOYD","PS008751M",32,62,13363,"CUCQ","FLOYD","TABURIAUX","2016-08-20","M","ACCUEIL DE LOISIR",null,null,62780,"CUCQ","FRANCE",null,null,null,"NON","Scolaire","Carambole",null,45937,"FRANCE","NON"]
["VALEMBOIS DOMITILLE","PS008752N",32,62,13363,"CUCQ","DOMITILLE","VALEMBOIS","2016-05-29","M","ACCUEIL DE LOISIR",null,null,62780,"CUCQ","FRANCE",null,null,null,"NON","Scolaire","Carambole",null,45937,"FRANCE","NON"]
["VERCRUYSSE LUCIE","PS008753P",32,62,13363,"CUCQ","LUCIE","VERCRUYSSE","2017-10-20","F","ACCUEIL DE LOISIR",null,null,62780,"CUCQ","FRANCE",null,null,null,"NON","Scolaire","Carambole",null,45937,"FRANCE","NON"]
["VRINAT ANDREAS","PS008754Q",32,62,13363,"CUCQ","ANDREAS","VRINAT","2017-08-08","F","ACCUEIL DE LOISIR",null,null,62780,"CUCQ","FRANCE",null,null,null,"NON","Scolaire","Carambole",null,45937,"FRANCE","NON"]
["DEBRUXELLES AUDREY","192277X",32,62,13363,"CUCQ","AUDREY","DEBRUXELLES","1980-12-11","F","561 AVENUE DE LA RELLIENCE",null,null,62155,"MERLIMONT","FRANCE",null,"0634070412","audrey.debruxelles@orange.fr","NON","Decouverte","Blackball",null,45945,"FRANCE","NON"]
["GOBERT VICTOR","192280A",32,62,13363,"CUCQ","VICTOR","GOBERT","1998-07-10","M","26 RUE DE LA TOUR",null,null,62180,"CONCHIL LE TEMPLE","FRANCE",null,null,null,"NON","Decouverte","Carambole",null,45945,"FRANCE","NON"]
["COLEMYN MELVIN","192284E",32,62,13363,"CUCQ","MELVIN","COLEMYN","2012-10-29","M","DITEP L ESCALE","RUE AUX RAISINS",null,62200,"BERCK SUR MER","FRANCE",null,null,null,"NON","Handibillard","Blackball",null,45945,"FRANCE","OUI"]
["LEDEMAZEL LOREZO","192288J",32,62,13363,"CUCQ","LOREZO","LEDEMAZEL","2014-02-13","M","DITEP L ESCALE","RUE AUX RAISINS",null,62200,"BERCK SUR MER","FRANCE",null,null,null,"NON","Handibillard","Blackball",null,45945,"FRANCE","OUI"]
["BOUSSEMART LEO","192289K",32,62,13363,"CUCQ","LEO","BOUSSEMART","2013-10-20","M","DITEP L ESCALE","RUE AUX RAISINS",null,62200,"BERCK SUR MER","FRANCE",null,null,null,"NON","Handibillard","Blackball",null,45945,"FRANCE","OUI"]
["CADART ETHAN","192290L",32,62,13363,"CUCQ","ETHAN","CADART","2012-10-09","M","DITEP L ESCALE","RUE AUX RAISINS",null,62200,"BERCK SUR MER","FRANCE",null,null,null,"NON","Handibillard","Blackball",null,45945,"FRANCE","OUI"]
["JENDRASIAK ANDRE","192601Z",32,62,13363,"CUCQ","ANDRE","JENDRASIAK","1953-02-06","M","107 AVENUE DU MAQUIS DE VERCORS BAT 4",null,null,62600,"BERCK SUR MER","FRANCE",null,"0687265619",null,"OUI","Decouverte","Carambole",null,45959,"FRANCE","NON"]
["COUTURIER BERNARD","192872T",32,62,13363,"CUCQ","BERNARD","COUTURIER","1946-12-20","M","1155 ROUTE DE BERCK",null,null,62180,"RANG DU FLIERS","FRANCE","0321843251","0784150173",null,"OUI","Decouverte","Carambole",null,45976,"FRANCE","NON"]
["TABURIAUX MICKAEL","192991Y",32,62,13363,"CUCQ","MICKAEL","TABURIAUX","1972-11-07","M","57 RUE DES ALOUETTES",null,null,62180,"RANG DU FLIERS","FRANCE","0321945141","0674338403","taburiaux.mickael@gmail.com","OUI","Decouverte","Carambole",null,45984,"FRANCE","NON"]
["TABURIAUX JELLITI","192993A",32,62,13363,"CUCQ","JELLITI","TABURIAUX","1970-05-18","F","57 RUE DES ALOUETTES",null,null,62180,"RANG DU FLIERS","FRANCE","0321945141","0670026692","r.jelliti@gmx.com","NON","Decouverte","Carambole",null,45984,"FRANCE","NON"]
["MOINAT MAXENCE","192994B",32,62,13363,"CUCQ","MAXENCE","MOINAT","2011-06-19","M","57 RUE DES ALOUETTES",null,null,62180,"RANG DU FLIERS","FRANCE","0321945141","0640539154",null,"NON","Avenir","Carambole",null,45984,"FRANCE","NON"]
["ISSAM FARHI","193162J",32,62,13363,"CUCQ","FARHI","ISSAM","2009-05-17","M","34 RUE DES GRANDES GARENNES",null,null,62600,"BERCK SUR MER","FRANCE",null,"0623775915","farhiissam45@GMAIL.COM","OUI","Avenir","Blackball",null,45995,"FRANCE","OUI"]
["PISSY GABYN","193387D",32,62,13363,"CUCQ","GABYN","PISSY","2004-12-17","M","15 RUE DES BLEUETS",null,null,62500,"ST OMER","FRANCE",null,"000677116408",null,"NON","Avenir","Blackball",null,46008,"FRANCE","NON"]
["VIGNERON REYNALD","016794Y",32,62,13368,"WIMILLE","REYNALD","VIGNERON","1971-05-15","M","53 RUE FERDINAND BUISSON APPT 66","RESIDENCE LAMARTINE",null,62200,"BOULOGNE SUR MER","FRANCE",null,"0695746454","naldo1@hotmail.fr","OUI","+21 ans","Carambole",null,45902,"FRANCE","NON"]
["BOURGAIN THIERRY","017077V",32,62,13368,"WIMILLE","THIERRY","BOURGAIN","1974-11-22","M","21 LA RUSCAME",null,null,62126,"PERNES LES BOULOGNE","FRANCE",null,"0626024044","thierlud@gmail.com","OUI","+21 ans","Carambole",null,45902,"FRANCE","NON"]
["MONTADOR LUDOVIC","103019H",32,62,13368,"WIMILLE","LUDOVIC","MONTADOR","1970-09-12","M","13 PARC BON SECOURS","LOGT N 1",null,62126,"WIMILLE","FRANCE","0321802408","0629112853","montador.ludovic@neuf.fr","OUI","+21 ans","Carambole",null,45902,"FRANCE","NON"]
["MONTADOR JESSY","107663X",32,62,13368,"WIMILLE","JESSY","MONTADOR","1986-10-07","M","13 1 PARC BONSECOURS",null,null,62126,"WIMILLE","FRANCE","0321802408",null,null,"OUI","+21 ans","Carambole",null,45902,"FRANCE","NON"]
["CORTEYN STEPHANE","112738C",32,62,13368,"WIMILLE","STEPHANE","CORTEYN","1964-12-02","M","9 RUE DU GENERAL MARCHAND",null,null,62930,"WIMEREUX","FRANCE",null,"0609907277",null,"OUI","+21 ans","Carambole",null,45902,"FRANCE","NON"]
["VANTOMME DANIEL","112741F",32,62,13368,"WIMILLE","DANIEL","VANTOMME","1970-07-13","M","1 6 PARC BON SECOURS",null,null,62126,"WIMILLE","FRANCE","0321802415",null,null,"OUI","+21 ans","Carambole",null,45919,"FRANCE","NON"]
["MONTADOR CHRISTOPHE","124468G",32,62,13368,"WIMILLE","CHRISTOPHE","MONTADOR","1967-08-15","M","5 N 2 PARC BON SECOURS","LOGT N 2",null,62126,"WIMILLE","FRANCE","0321808398",null,null,"OUI","+21 ans","Carambole",null,45902,"FRANCE","NON"]
["DUCROCQ VINCENT","124470I",32,62,13368,"WIMILLE","VINCENT","DUCROCQ","1986-01-13","M","12 3 PARC BON SECOURS",null,null,62126,"WIMILLE","FRANCE","0361135601",null,"vincentducrocq4@gmail.com","OUI","+21 ans","Carambole",null,45902,"FRANCE","NON"]
["PAVY MICHEL","140950E",32,62,13368,"WIMILLE","MICHEL","PAVY","1952-02-23","M","100 RUE DES MOULINS",null,null,62280,"ST MARTIN LES BOULOGNE","FRANCE","0321302506","0683793413","michelpavy@laposte.net","OUI","+21 ans","Carambole","arbitre",45902,"FRANCE","NON"]
["LAMARRE REGIS","158668Q",32,62,13368,"WIMILLE","REGIS","LAMARRE","1954-09-19","M","4 AVENUE CHARLES DE GAULLE",null,null,62200,"BOULOGNE SUR MER","FRANCE",null,"0675765839","regis.lamarre@gmail.com","OUI","+21 ans","Blackball",null,45902,"FRANCE","NON"]
["DEGUINE VINCENT","165976J",32,62,13368,"WIMILLE","VINCENT","DEGUINE","1974-02-12","M","18 RUE PIERRE BERTRAND","APPT N 1 ETAGE 2",null,62200,"BOULOGNE SUR MER","FRANCE",null,"0777980661","vincentdeg62@gmail.com","OUI","+21 ans","Blackball",null,45904,"FRANCE","NON"]
["JONIOT CHRISTEL","182097G",32,62,13368,"WIMILLE","CHRISTEL","JONIOT","1967-04-05","F","11 PLACE CHATEAUBRIAND",null,null,62126,"WIMILLE","FRANCE",null,null,"bcwimille@sfr.fr","OUI","+21 ans","Carambole",null,45902,"FRANCE","NON"]
["DACHICOURT MARTIAL","182098H",32,62,13368,"WIMILLE","MARTIAL","DACHICOURT","1958-01-05","M","12 PARC BON SECOURS APPT9",null,null,62126,"WIMILLE","FRANCE",null,null,"bcwimille@sfr.fr","OUI","+21 ans","Carambole",null,45902,"FRANCE","NON"]
["DUCROCQ KYLLIAN","185826K",32,62,13368,"WIMILLE","KYLLIAN","DUCROCQ","2011-10-20","M","12 PARC BON SECOURS LOGT N 3",null,null,62126,"WIMILLE","FRANCE",null,null,"vincent.ducqroc@sfr.fr","OUI","-21 ans","Carambole",null,45902,"FRANCE","NON"]
["SORET FABRICE","185976Y",32,62,13368,"WIMILLE","FABRICE","SORET","1980-07-31","M","137 BOULEVARD DAUNOU APTT 421",null,null,62200,"BOULOGNE SUR MER","FRANCE",null,null,"Fabrice.soret@wanadoo.fr","OUI","+21 ans","Blackball",null,45902,"FRANCE","NON"]
["MAGNIER DOMINIQUE","185977Z",32,62,13368,"WIMILLE","DOMINIQUE","MAGNIER","1957-06-08","M","26 BOULEVARD CHANZY APPT 112",null,null,62200,"BOULOGNE SUR MER","FRANCE",null,null,null,"OUI","+21 ans","Carambole",null,45904,"FRANCE","NON"]
["MAGNIER FRANCK","186003C",32,62,13368,"WIMILLE","FRANCK","MAGNIER","1961-12-16","M","23 RUE DES MOULINS",null,null,62200,"BOULOGNE SUR MER","FRANCE",null,null,null,"OUI","+21 ans","Carambole",null,45902,"FRANCE","NON"]
["HIPOLITO REMI","186175P",32,62,13368,"WIMILLE","REMI","HIPOLITO","2003-05-19","M","2 RUE PARC BON SECOURS APTT 5",null,null,62126,"WIMILLE","FRANCE",null,"0659419066","hipolitoremi@gmail.com","OUI","+21 ans","Blackball",null,45903,"FRANCE","NON"]
["GINIAUX PHILIPPE","190467E",32,62,13368,"WIMILLE","PHILIPPE","GINIAUX","1959-08-29","M","2 RUE ERIC TABARLY",null,null,62480,"LE PORTEL","FRANCE",null,"0687853711","pacha62480@gmail.com","OUI","Decouverte","Carambole",null,45902,"FRANCE","NON"]
["HAUTIN CLEMENT","190554Z",32,62,13368,"WIMILLE","CLEMENT","HAUTIN","1987-03-01","M","13 RUE CHARLES GIRAUD",null,null,62200,"BOULOGNE SUR MER","FRANCE",null,"0659773054","clement.hautinch62@gmail.com","OUI","Decouverte","Carambole",null,45904,"FRANCE","NON"]
["HIPOLITO BRUNO","190626C",32,62,13368,"WIMILLE","BRUNO","HIPOLITO","1959-11-20","M","2 PARC BON SECOURS APPT 5",null,null,62126,"WIMILLE","FRANCE","0321808307",null,null,"OUI","Decouverte","Carambole",null,45905,"FRANCE","NON"]
["LEGRAND FRANCIS","016768Y",32,62,13117,"DIVION","FRANCIS","LEGRAND","1948-12-24","M","17 RUE LAMENDIN",null,null,62460,"DIVION","FRANCE",null,null,"bcdivion@yahoo.fr","OUI","+21 ans","Carambole","arbitre",45891,"FRANCE","NON"]
["MACHEZ ALAIN","016770A",32,62,13117,"DIVION","ALAIN","MACHEZ","1942-02-13","M","466 RUE D ANNEZIN",null,null,62400,"BETHUNE","FRANCE","0321566420",null,null,"OUI","+21 ans","Carambole",null,45891,"FRANCE","NON"]
["FERMAUT JEAN MARIE","016918S",32,62,13117,"DIVION","JEAN MARIE","FERMAUT","1956-02-04","M","41 RUE D OUTREAU",null,null,62700,"BRUAY LA BUISSIERE","FRANCE","0362897399",null,null,"OUI","+21 ans","Carambole","arbitre",45891,"FRANCE","NON"]
["LAKBAL JOHNNY","017027X",32,62,13117,"DIVION","JOHNNY","LAKBAL","1976-01-03","M","6 RUE DES MINES D OR",null,null,62460,"DIVION","FRANCE",null,"0783252363",null,"OUI","+21 ans","Carambole","arbitre",45891,"FRANCE","NON"]
["DELATTRE CHRISTIAN","017030A",32,62,13117,"DIVION","CHRISTIAN","DELATTRE","1939-11-23","M","2 ALLEE DES TULIPES",null,null,62470,"CALONNE RICOUART","FRANCE","0781539912","0781539912","cdelattr@numericable.fr","OUI","+21 ans","Carambole",null,45891,"FRANCE","NON"]
["LEBLANC JEAN NOEL","017175P",32,62,13117,"DIVION","JEAN NOEL","LEBLANC","1951-12-16","M","58 RUE D HURIONVILLE",null,null,62151,"BURBURE","FRANCE","0983052629","0662312615","lejeno62000@gmail.com","OUI","+21 ans","Carambole",null,45891,"FRANCE","NON"]
["LECLERCQ CHRISTOPHE","017180U",32,62,13117,"DIVION","CHRISTOPHE","LECLERCQ","1978-06-11","M","96 RUE D ONTARIO",null,null,62700,"BRUAY LA BUISSIERE","FRANCE",null,"0698687129",null,"NON","+21 ans","Carambole",null,45891,"FRANCE","NON"]
["LECLERCQ MICHEL","017185Z",32,62,13117,"DIVION","MICHEL","LECLERCQ","1953-09-23","M","69 RUE DE L ACADIE",null,null,62700,"BRUAY LA BUISSIERE","FRANCE",null,null,null,"OUI","+21 ans","Carambole","arbitre",45891,"FRANCE","NON"]
["BEETS MARC","101174I",32,62,13117,"DIVION","MARC","BEETS","1942-02-25","M","50 RUE GEORGES RICHARD",null,null,62157,"ALLOUAGNE","FRANCE",null,null,null,"OUI","+21 ans","Carambole",null,45891,"FRANCE","NON"]
["MENOUS FABRICE","107635V",32,62,13117,"DIVION","FABRICE","MENOUS","1968-06-19","M","47 RUE DE L ISERE","RESIDENCE DES FLEUVES",null,62700,"BRUAY LA BUISSIERE","FRANCE",null,"0613844284",null,"NON","+21 ans","Carambole",null,45891,"FRANCE","NON"]
["DE RONNE ERIC","109157J",32,62,13117,"DIVION","ERIC","DE RONNE","1966-12-30","M","95 BOULEVARD JEAN MOULIN",null,null,62400,"BETHUNE","FRANCE",null,null,"ericderonne@laposte.net","NON","+21 ans","Carambole",null,45891,"FRANCE","NON"]
["FONTAINE CHRISTIAN","112748M",32,62,13117,"DIVION","CHRISTIAN","FONTAINE","1989-02-23","M","30 RUE DE JUPITER",null,null,62460,"DIVION","FRANCE",null,"0663422819","cfont@hotmail.fr","OUI","+21 ans","Carambole","arbitre",45891,"FRANCE","NON"]
["LECIEUX GUY","112750O",32,62,13117,"DIVION","GUY","LECIEUX","1943-05-18","M","4 ALLEE SIMONE DE RANCHICOURT",null,null,62150,"REBREUVE RANCHICOURT","FRANCE",null,null,null,"OUI","+21 ans","Carambole",null,45891,"FRANCE","NON"]
["LUCAS THOMAS","145214E",32,62,13117,"DIVION","THOMAS","LUCAS","1984-12-14","M","44 RUE ACHILLE BODELOT",null,null,62460,"DIVION","FRANCE",null,"0675819513",null,"NON","+21 ans","Blackball",null,45896,"FRANCE","NON"]
[{"$f":"H386 & \" \" &G386","v":"MINET LIONEL"},"155655Q",32,62,13117,"DIVION","LIONEL","MINET","1964-02-14","M","LES CHARDONNERETS","ENTREE 5 PORTE 2 RUE DU 19 MARS 1962",null,62130,"ST POL SUR TERNOISE","FRANCE",null,null,null,"OUI","+21 ans","Carambole",null,45891,"FRANCE","NON"]
["PAUWELS OLIVIER","155728V",32,62,13117,"DIVION","OLIVIER","PAUWELS","1978-09-02","M","98 RUE DE MEURCHIN",null,null,62410,"WINGLES","FRANCE",null,null,null,"OUI","+21 ans","Blackball",null,45896,"FRANCE","NON"]
["JAUBERT CHRISTOPHE","157870Y",32,62,13117,"DIVION","CHRISTOPHE","JAUBERT","1977-01-27","M","85 BIS RUE RAOUL BRIQUET",null,null,62223,"ST NICOLAS LES ARRAS","FRANCE",null,null,null,"OUI","+21 ans","Blackball",null,45896,"FRANCE","NON"]
["VERDOUCQ LUDOVIC","159299B",32,62,13117,"DIVION","LUDOVIC","VERDOUCQ","1991-11-24","M","419 RUE JEAN JAURES",null,null,62660,"BEUVRY","FRANCE",null,"0647403978",null,"OUI","+21 ans","Blackball",null,45910,"FRANCE","NON"]
["DERIS VINCENT","161256D",32,62,13117,"DIVION","VINCENT","DERIS","1958-07-20","M","10 BIS RUE SARRAIL",null,null,62150,"HOUDAIN","FRANCE",null,"0640355847",null,"OUI","+21 ans","Blackball",null,45896,"FRANCE","NON"]
["CAILLAUX JEREMY","161427P",32,62,13117,"DIVION","JEREMY","CAILLAUX","1983-04-25","M","5 RUE DE LA VALLEE",null,null,62260,"CAUCHY A LA TOUR","FRANCE",null,"0678723441",null,"NON","+21 ans","Blackball",null,45896,"FRANCE","NON"]
["PRUVOST PATRICK","164088G",32,62,13117,"DIVION","PATRICK","PRUVOST","1957-12-27","M","67 RESIDENCE LE VERT GAZON",null,null,62700,"BRUAY LA BUISSIERE","FRANCE",null,"0687486321","patrick1957,pruvost@orange.fr","OUI","+21 ans","Carambole",null,45891,"FRANCE","NON"]
["KIMUS DAVID","166012Y",32,62,13117,"DIVION","DAVID","KIMUS","1973-02-16","M","19 RUE DE L AMIRAL MOUCHEZ","APPART 202 BAT D",null,62880,"VENDIN LE VIEIL","FRANCE",null,"0663543993","david.kimus.59@gmail.com","OUI","+21 ans","Blackball",null,45896,"FRANCE","NON"]
["PECQUEUR LAURENT","166276K",32,62,13117,"DIVION","LAURENT","PECQUEUR","1972-04-04","M","17 AVENUE SAINT EDOUARD",null,null,62300,"LENS","FRANCE",null,null,null,"OUI","+21 ans","Blackball",null,45902,"FRANCE","NON"]
["THOREL ALAIN","168271D",32,62,13117,"DIVION","ALAIN","THOREL","1963-09-24","M","21 RUE DE BAJUS",null,null,62130,"LA THIEULOYE","FRANCE",null,"0670795192","alainthorel@gmail.com","OUI","+21 ans","Blackball",null,45896,"FRANCE","NON"]
["LAKBAL LUKA","168499B",32,62,13117,"DIVION","LUKA","LAKBAL","2011-07-30","M","6 RUE DES MINES D OR",null,null,62460,"DIVION","FRANCE",null,null,null,"OUI","-21 ans","Carambole",null,45896,"FRANCE","NON"]
["LEMAITRE MELANIE","168848F",32,62,13117,"DIVION","MELANIE","LEMAITRE","1989-02-17","F","49 BD LEOPOLD SEDAR SENGHOR",null,null,62110,"HENIN BEAUMONT","FRANCE",null,"0659506221","melanielemaitre15@gmail.com","NON","+21 ans","Blackball",null,45902,"FRANCE","OUI"]
["LECLERCQ JEAN CLAUDE","168854M",32,62,13117,"DIVION","JEAN CLAUDE","LECLERCQ","1997-07-10","M","29 RUE CAPITAINE DULIEUX",null,null,62138,"DOUVRIN","FRANCE",null,"0782312794",null,"OUI","+21 ans","Blackball",null,45896,"FRANCE","NON"]
["LUCZAK DENIS","168855N",32,62,13117,"DIVION","DENIS","LUCZAK","1984-02-04","M","2 RUE DE FREVILLE",null,null,62260,"AUCHEL","FRANCE",null,"0659314752",null,"OUI","+21 ans","Blackball",null,45896,"FRANCE","NON"]
["HIMBLOT LORENZO","171906E",32,62,13117,"DIVION","LORENZO","HIMBLOT","2012-04-28","M","21 RUE DE BAJUS",null,null,62130,"LA THIEULOYE","FRANCE",null,"0670795192","alainthorel@gmail.com","OUI","-21 ans","Carambole",null,45896,"FRANCE","NON"]
["TILLIETTE MICHEL","174068E",32,62,13117,"DIVION","MICHEL","TILLIETTE","1956-08-04","M","91 RUE ALPHONSE DE LAMARTINE",null,null,62700,"BRUAY LA BUISSIERE","FRANCE",null,null,null,"NON","+21 ans","Carambole",null,45891,"FRANCE","NON"]
["LETAILLE PATRICK","174069F",32,62,13117,"DIVION","PATRICK","LETAILLE","1957-12-31","M","53 RUE ROGER SALENDGRO",null,null,62940,"HAILLICOURT","FRANCE",null,null,null,"OUI","+21 ans","Carambole",null,45964,"FRANCE","NON"]
["LECLERCQ SEBASTIEN","174328M",32,62,13117,"DIVION","SEBASTIEN","LECLERCQ","1979-01-10","M","14 RUE LOUIS DOISY",null,null,62230,"DROCOURT","FRANCE",null,null,null,"OUI","+21 ans","Blackball",null,45896,"FRANCE","NON"]
["DEGUFFROY JIMMY","176478Z",32,62,13117,"DIVION","JIMMY","DEGUFFROY","1975-03-09","M","11 RUE DES VOSGES",null,null,62260,"AUCHEL","FRANCE",null,"0761142252",null,"OUI","+21 ans","Blackball",null,45896,"FRANCE","NON"]
["RAMETTE SEBASTIEN","177081E",32,62,13117,"DIVION","SEBASTIEN","RAMETTE","1978-09-12","M","29 RUE DES MESANGES",null,null,59496,"SALOME","FRANCE",null,"0659298784","seb.ramette@gmail.com","OUI","+21 ans","Carambole",null,45896,"FRANCE","NON"]
["DESCHACHT MAXIME","177086K",32,62,13117,"DIVION","MAXIME","DESCHACHT","1986-12-24","M","419 RUE DU DOCTEUR DOURLENS",null,null,62700,"BRUAY LA BUISSIERE","FRANCE",null,"0617308957","deschacht.maxime@sfr.fr","OUI","+21 ans","Blackball",null,45924,"FRANCE","NON"]
["DELAPLACE LAURENT","177210V",32,62,13117,"DIVION","LAURENT","DELAPLACE","1973-06-21","M","112 AV VAN PELT","RESIDENCE DAUDET ENTREE 3 APPT 49",null,62700,"BRUAY LA BUISSIERE","FRANCE",null,"0644123757","laurent-delaplace@hotmail.fr","OUI","+21 ans","Blackball",null,45896,"FRANCE","NON"]
["SARRAZYN GABRIEL","178961Y",32,62,13117,"DIVION","GABRIEL","SARRAZYN","2006-12-25","M","15 PLACE LECLERC",null,null,62130,"ST POL SUR TERNOISE","FRANCE",null,"0748774399","gabriel.sarrazyn@icloud.com","OUI","-21 ans","Blackball",null,45896,"FRANCE","NON"]
["POULAIN MATHEO","179980F",32,62,13117,"DIVION","MATHEO","POULAIN","2000-12-18","M","56 RUE D HESDIN",null,null,62770,"BLANGY SUR TERNOISE","FRANCE",null,"0770299923",null,"OUI","+21 ans","Blackball",null,45896,"FRANCE","NON"]
["DE RUDDER YVES","181609B",32,62,13117,"DIVION","YVES","DE RUDDER","1971-08-14","M","15 B RUE DE LA FRATERNITE",null,null,62144,"ACQ","FRANCE","0626481598",null,null,"OUI","+21 ans","Blackball",null,45902,"FRANCE","NON"]
["LECLERCQ DAMIEN","181610C",32,62,13117,"DIVION","DAMIEN","LECLERCQ","2002-04-25","M","29 RUE CAPITAINE DULIEUX",null,null,62138,"DOUVRIN","FRANCE",null,null,null,"OUI","+21 ans","Blackball",null,45896,"FRANCE","NON"]
["COMPAGNON JEROME","182834H",32,62,13117,"DIVION","JEROME","COMPAGNON","1984-12-15","M","32 RUE DE L EGLISE",null,null,62690,"THILLOIS LES HERMAVILLE","FRANCE",null,null,null,"OUI","+21 ans","Blackball",null,45902,"FRANCE","NON"]
["HUBERT TONY","185811T",32,62,13117,"DIVION","TONY","HUBERT","1999-06-13","M","168 RUE D HESDIN",null,null,62130,"ST POL SUR TERNOISE","FRANCE",null,null,null,"OUI","+21 ans","Blackball",null,45896,"FRANCE","NON"]
["HUBERT THIBAULT","185812V",32,62,13117,"DIVION","THIBAULT","HUBERT","1995-04-11","M","168 RUE D HESDIN",null,null,62130,"ST POL SUR TERNOISE","FRANCE",null,null,null,"OUI","+21 ans","Blackball",null,45896,"FRANCE","NON"]
["HUBERT JEROME","185814X",32,62,13117,"DIVION","JEROME","HUBERT","1974-12-04","M","168 RUE D HESDIN",null,null,62130,"ST POL SUR TERNOISE","FRANCE",null,null,null,"OUI","+21 ans","Blackball",null,45896,"FRANCE","NON"]
["CHARTREL GAETAN","185817A",32,62,13117,"DIVION","GAETAN","CHARTREL","1987-04-09","M","12 RUE DU PRE","APPT 5",null,62000,"ARRAS","FRANCE",null,"0651196732",null,"OUI","+21 ans","Blackball",null,45902,"FRANCE","NON"]
["GUILLANEUF REMI","185820D",32,62,13117,"DIVION","REMI","GUILLANEUF","1963-12-03","M","21 RUE BAUDELAIRE",null,null,62460,"DIVION","FRANCE",null,null,null,"OUI","+21 ans","Blackball",null,45896,"FRANCE","NON"]
["BAUCHET JACQUES","190332H",32,62,13117,"DIVION","JACQUES","BAUCHET","1992-08-09","M","64 RUE ARMAND MONTOIS",null,null,62550,"FLORINGHEM","FRANCE",null,null,null,"OUI","Decouverte","Blackball",null,45896,"FRANCE","NON"]
["DUPONT ELODIE","190333J",32,62,13117,"DIVION","ELODIE","DUPONT","1991-09-25","F","216 RUE LOUIS DUSSART","RESIDENCE BREL APT 19",null,62700,"BRUAY LA BUISSIERE","FRANCE",null,"0755165600",null,"OUI","Decouverte","Blackball",null,45896,"FRANCE","NON"]
["POIRIER NICOLAS","190490E",32,62,13117,"DIVION","NICOLAS","POIRIER","1992-08-26","M","53 RUE PRINCIPALE",null,null,62770,"ST GEORGES","FRANCE",null,null,null,"OUI","Decouverte","Blackball",null,45902,"FRANCE","NON"]
["MCHOUATE TAHA","191509M",32,62,13117,"DIVION","TAHA","MCHOUATE","2003-07-11","M","45 RUE DE SOUCHEZ",null,null,62400,"BETHUNE","FRANCE",null,"0652107918",null,"OUI","Decouverte","Blackball",null,45924,"MAROC","NON"]
["BAUDERLIQUE FRANCOIS","192354F",32,62,13117,"DIVION","FRANCOIS","BAUDERLIQUE","1984-04-21","M","226 RUE DES CAILLAS",null,null,62149,"FESTUBERT","FRANCE",null,null,null,"OUI","Decouverte","Blackball",null,45947,"FRANCE","NON"]
["GOUAIT PHILIPPE","192665T",32,62,13117,"DIVION","PHILIPPE","GOUAIT","1968-01-28","M","4 RUE PAUL BOUCLY",null,null,62270,"FREVENT","FRANCE",null,"0644279914",null,"OUI","Decouverte","Blackball",null,45964,"FRANCE","NON"]
["GJINI ENDRI","193129Y",32,62,13117,"DIVION","ENDRI","GJINI","2003-12-11","M","12 RUE DE L ARGENTINE",null,null,62700,"BRUAY LA BUISSIERE","FRANCE",null,null,null,"OUI","Decouverte","Blackball",null,45992,"FRANCE","NON"]
["GRADEL LAURENT","168292B",32,62,13619,"BILLARD CLUB LES AUTHENTIQUES","LAURENT","GRADEL","1968-12-14","M","25 RUE DE BUCQUOY",null,null,62175,"BOIRY SAINTE RICTRUDE","FRANCE",null,"0625042257","laurent.gradel@bbox.fr","OUI","+21 ans","Blackball",null,45895,"FRANCE","OUI"]
["LEMAIRE GILLES","169167C",32,62,13619,"BILLARD CLUB LES AUTHENTIQUES","GILLES","LEMAIRE","1972-12-06","M","6BIS RUE JULES LEROY",null,null,62223,"ANZIN ST AUBIN","FRANCE",null,"0659439897","ataraste@gmail.com","OUI","+21 ans","Blackball",null,45898,"FRANCE","OUI"]
["CAPRON JULIEN","176851E",32,62,13619,"BILLARD CLUB LES AUTHENTIQUES","JULIEN","CAPRON","1998-10-05","M","27 RUE JEAN CABUT",null,null,62143,"ANGRES","FRANCE",null,"0623810736","julien.capron1@hotmail.fr","OUI","+21 ans","Blackball",null,45895,"FRANCE","NON"]
["CAPRON LAURENT","176852F",32,62,13619,"BILLARD CLUB LES AUTHENTIQUES","LAURENT","CAPRON","1968-07-18","M","46 RUE PIERRE LESDAIN",null,null,62000,"DAINVILLE","FRANCE",null,"0646747909","laurent.capron1@sfr.fr","OUI","+21 ans","Blackball",null,45895,"FRANCE","OUI"]
["CAPRON SEBASTIEN","178962Z",32,62,13619,"BILLARD CLUB LES AUTHENTIQUES","SEBASTIEN","CAPRON","2000-12-06","M","23 RUE DE LA FOSSE AU LAIT",null,null,80000,"AMIENS","FRANCE",null,"0777856320","sebastien.capron1@hotmail.fr","OUI","+21 ans","Blackball",null,45895,"FRANCE","NON"]
["GRADEL ARMEL","190297V",32,62,13619,"BILLARD CLUB LES AUTHENTIQUES","ARMEL","GRADEL","1973-06-10","F","25 RUE DE BUCQUOY",null,null,62175,"BOIRY STE RICTRUDE","FRANCE",null,"0609451673","armelgradel68@gmail.com","OUI","Decouverte","Blackball",null,45895,"FRANCE","NON"]
["GRADEL MANON","190298W",32,62,13619,"BILLARD CLUB LES AUTHENTIQUES","MANON","GRADEL","2000-05-15","F","60AVENUE DE L HIPPODROME",null,null,62000,"ARRAS","FRANCE",null,"0658623104","manon.gdl09@gmail.com","OUI","Decouverte","Blackball",null,45895,"FRANCE","NON"]
["DURANT GREGOR","190300Y",32,62,13619,"BILLARD CLUB LES AUTHENTIQUES","GREGOR","DURANT","1990-06-06","M","60AVENUE DE L HYPPODROME",null,null,62000,"ARRAS","FRANCE",null,"0620690714","gregor.durant@gmail.com","OUI","Decouverte","Blackball",null,45895,"FRANCE","NON"]
["QUINTIN ESTELLE","190411T",32,62,13619,"BILLARD CLUB LES AUTHENTIQUES","ESTELLE","QUINTIN","1972-10-13","F","60 A ROUTE DE BAPAUME",null,null,62217,"ACHICOURT","FRANCE",null,"0611648412","quintinestelle@gmail.com","OUI","Decouverte","Blackball",null,45900,"FRANCE","NON"]
["GRADEL KYLIAN","192778R",32,62,13619,"BILLARD CLUB LES AUTHENTIQUES","KYLIAN","GRADEL","2006-02-25","M","25 RUE DE BUCQUOY",null,null,62175,"BOIRY STE RICTRUDE","FRANCE",null,"0668745820","gradelkylian@gmail.com","OUI","Avenir","Blackball",null,45970,"FRANCE","NON"]
["JUSTIN CHRISTIAN","016688W",32,62,13356,"OUTREAU","CHRISTIAN","JUSTIN","1948-07-30","M","4 RUE DE L EGLISE",null,null,62187,"DANNES","FRANCE","0321839263","0612581398","crismodannes@sfr.fr","OUI","+21 ans","Carambole","arbitre",45888,"FRANCE","NON"]
["LEBECQ JEAN PIERRE","017236Y",32,62,13356,"OUTREAU","JEAN PIERRE","LEBECQ",21751,"M","157 RUE DES IRIS",null,null,62780,"CUCQ","FRANCE",null,"0659355049","jpv.lebecq@gmail.com","OUI","+21 ans","Carambole","arbitre",45888,"FRANCE","NON"]
["NEIRYNCK VINCENT","017386S",32,62,13356,"OUTREAU","VINCENT","NEIRYNCK",25381,"M","18 RUE PIERRE BROSSOLETTE",null,null,62230,"OUTREAU","FRANCE",null,"0664904435","vincentneirynck@yahoo.fr","OUI","+21 ans","Carambole",null,45903,"FRANCE","NON"]
["BAHEUX DAVID","107661V",32,62,13356,"OUTREAU","DAVID","BAHEUX",24922,"M","48 RUE DES GENETS",null,null,62224,"EQUIHEN","FRANCE",null,"0660059380","eldave.62@free.fr","OUI","+21 ans","Carambole","arbitre",45890,"FRANCE","NON"]
["BOCQUET GUYLHAIN","111377T",32,62,13356,"OUTREAU","GUYLHAIN","BOCQUET",21897,"M","41 A RUE HAUTE",null,null,62850,"ALEMBON","FRANCE",null,null,null,"OUI","+21 ans","Carambole",null,45890,"FRANCE","NON"]
["BAILLARD BRUNO","117726Y",32,62,13356,"OUTREAU","BRUNO","BAILLARD",22183,"M","84 RUE HIPPOLYTE ADAM",null,null,62230,"OUTREAU","FRANCE",null,"0684381367",null,"OUI","+21 ans","Carambole",null,45903,"FRANCE","NON"]
["SELLIER FABRICE","124485X",32,62,13356,"OUTREAU","FABRICE","SELLIER",25594,"M","6 IMPASSE ROGER THIERRY",null,null,62200,"BOULOGNE SUR MER","FRANCE","0321805757","0630229560","sellierfabrice@gmail.com","OUI","+21 ans","Carambole","arbitre",45905,"FRANCE","NON"]
["DELOHEN FABRICE","127667H",32,62,13356,"OUTREAU","FABRICE","DELOHEN",23746,"M","910 RUE DU CHOQUEL",null,null,62240,"WIRWIGNES","FRANCE","0952699153",null,null,"OUI","+21 ans","Carambole",null,45899,"FRANCE","NON"]
["MOURGUES MARC","127740C",32,62,13356,"OUTREAU","MARC","MOURGUES",24332,"M","12 SQUARE JEAN BAPTISTE CLEMENT",null,null,62230,"OUTREAU","FRANCE","0321914171","0659791373","marcmourgues@gmail.com","OUI","+21 ans","Carambole","arbitre",45888,"FRANCE","NON"]
["FOURNIER JOEL","130180Y",32,62,13356,"OUTREAU","JOEL","FOURNIER",18343,"M","6 RUE DU DESSOUS","RESIDENCE A CROIZAT",null,62360,"ST ETIENNE AU MONT","FRANCE","0321318348","0612200712","joelfournier62360@gmail.com","OUI","+21 ans","Carambole",null,45905,"FRANCE","NON"]
["BLONDEEL BRUNO","131428Y",32,62,13356,"OUTREAU","BRUNO","BLONDEEL",20202,"M","2 RUE ALPHONSE MANN APPT N 4",null,null,62360,"PONT DE BRIQUES","FRANCE",null,"0616952538","firmin.blondeel@laposte.net","OUI","+21 ans","Carambole",null,45890,"FRANCE","NON"]
["BLONDEEL FIRMIN","133104K",32,62,13356,"OUTREAU","FIRMIN","BLONDEEL",34660,"M","2 RUE ALPHONSE MANN",null,null,62360,"ST ETIENNE AU MONT","FRANCE",null,"0616952538","firmin.blondeel@laposte.net","OUI","+21 ans","Carambole",null,45890,"FRANCE","NON"]
["BARMUTA PHILIPPE","134074S",32,62,13356,"OUTREAU","PHILIPPE","BARMUTA",23708,"M","21 RUE ALBERT BECARD",null,null,62224,"EQUIHEN PLAGE","FRANCE",null,"0624431858","alsacien62@yahoo.fr","OUI","+21 ans","Carambole","arbitre",45890,"FRANCE","NON"]
["VANPEENE DIDIER","134139F",32,62,13356,"OUTREAU","DIDIER","VANPEENE",26760,"M","6 RUE SALVADOR ALLENDE",null,null,62200,"BOULOGNE SUR MER","FRANCE",null,"0781338278","d.vanpeene@free.fr","OUI","+21 ans","Carambole",null,45899,"FRANCE","NON"]
["FOUQUIER PAUL","136454G",32,62,13356,"OUTREAU","PAUL","FOUQUIER",19247,"M","8 RUE ERIC TABARLY",null,null,62480,"LE PORTEL","FRANCE","0355771734","0614437240","legrandnico@hotmail.fr","OUI","+21 ans","Carambole",null,45889,"FRANCE","NON"]
[{"$f":"H450 & \" \" &G450","v":"DESCHARLES DENIS"},"142787V",32,62,13356,"OUTREAU","DENIS","DESCHARLES",23877,"M","2 CHEMIN VILLEBOIS","APPT 1102",null,62280,"ST MARTIN LES BOULOGNE","FRANCE","0958346212","0617415008","ordi.speed@live.fr","OUI","+21 ans","Carambole",null,45902,"FRANCE","NON"]
["MOURGUES CHRISTIAN","142790Y",32,62,13356,"OUTREAU","CHRISTIAN","MOURGUES",17698,"M","4 RUE DES GENETS",null,null,62360,"ST LEONARD","FRANCE","0321921604","0661196707","mourgues.christian@orange.fr","OUI","+21 ans","Carambole",null,45889,"FRANCE","NON"]
["VERMEERSCH PHILIPPE","144418O",32,62,13356,"OUTREAU","PHILIPPE","VERMEERSCH",19225,"M","31 RUE L AMARTINE",null,null,62230,"OUTREAU","FRANCE","0321922947","0782044497","vermeerschphi62@gmail.com","OUI","+21 ans","Carambole",null,45903,"FRANCE","NON"]
["BONNET STEPHANE","148887J",32,62,13356,"OUTREAU","STEPHANE","BONNET",20520,"M","1 IMPASSE DES BERGERONNETTES",null,null,62360,"ST LEONARD","FRANCE",null,"0675308604","stephane.m.bonnet@wanadoo.fr","OUI","+21 ans","Carambole",null,45905,"FRANCE","NON"]
["LEDUC GUY","149667G",32,62,13356,"OUTREAU","GUY","LEDUC",18893,"M","31 RUE MARCEL SEMBAT",null,null,62230,"OUTREAU","FRANCE",null,"0612581398","guyleduc310@gmail.com","OUI","+21 ans","Carambole",null,45888,"FRANCE","NON"]
["BAHEUX CORENTIN","153353N",32,62,13356,"OUTREAU","CORENTIN","BAHEUX",35104,"M","93 RUE PRINCIPALE",null,null,62990,"CONTES","FRANCE",null,"0660481590","corentin.baheux9@outlook.com","OUI","+21 ans","Carambole",null,45889,"FRANCE","NON"]
["ROBERVAL FRANCIS","157979R",32,62,13356,"OUTREAU","FRANCIS","ROBERVAL",17032,"M","14 CHEMIN DE LA WATINE",null,null,62280,"ST MARTIN BOULOGNE","FRANCE","0977969891","0632359092","francis.roberval@wanadoo.fr","OUI","+21 ans","Carambole",null,45909,"FRANCE","NON"]
["RAMBUR FREDDY","159128Q",32,62,13356,"OUTREAU","FREDDY","RAMBUR",21437,"M","259 RUE LEO FERRE",null,null,62830,"SAMER","FRANCE",null,"0686600914","freddy62830@hotmail.fr","OUI","+21 ans","Carambole",null,45898,"FRANCE","NON"]
["SAVOINI JEAN JOSEPH","166393M",32,62,13356,"OUTREAU","JEAN JOSEPH","SAVOINI",18776,"M","102 ALLEE DES AUBEPINES",null,null,62152,"NEUFCHATEL HARDELOT","FRANCE",null,"0611844012","jean-joseph.savoini@wanadoo.fr","OUI","+21 ans","Carambole",null,45890,"ITALIE","NON"]
["ZOONEKYND PIERRE","168158F",32,62,13356,"OUTREAU","PIERRE","ZOONEKYND",17212,"M","10 RUE DES ANCIENS COMBATTANTS",null,null,62230,"OUTREAU","FRANCE","0683102437","0683102437","zoonekynd@noos.fr","OUI","+21 ans","Carambole",null,45911,"FRANCE","NON"]
["GUY SEBASTIEN","175246K",32,62,13356,"OUTREAU","SEBASTIEN","GUY",27102,"M","14 RUE PIERRE BROSSOLETTE",null,null,62480,"LE PORTEL","FRANCE",null,"0617765712","sebastienguy@neuf.fr","OUI","+21 ans","Carambole",null,45889,"FRANCE","NON"]
["LE ROLLAND ERIC","181321N",32,62,13356,"OUTREAU","ERIC","LE ROLLAND",26192,"M","8 RUE CHARLES LAMARRE",null,null,62480,"LE PORTEL","FRANCE",null,"0661410326",null,"OUI","+21 ans","Carambole",null,45902,"FRANCE","NON"]
["BAHEUX LEO","182185C",32,62,13356,"OUTREAU","LEO","BAHEUX",38939,"M","48 RUE DES GENETS",null,null,62224,"EQUIHEN","FRANCE",null,"0767317875","leo.baheux@free.fr","OUI","-21 ans","Carambole",null,45949,"FRANCE","NON"]
["DENIS PASCAL","183507P",32,62,13356,"OUTREAU","PASCAL","DENIS",22909,"M","11 ALLEE DES ACACIAS",null,null,62360,"CONDETTE","FRANCE",null,"0643147565","pascal.denis62@gmail.com","OUI","+21 ans","Carambole",null,45900,"FRANCE","NON"]
["LETALLE VINCENT","184300B",32,62,13356,"OUTREAU","VINCENT","LETALLE",22897,"M","256 PLACE DE DALLES",null,null,62830,"LACRES","FRANCE",null,"0685598436","vincent.letalle@gmail.com","OUI","+21 ans","Carambole",null,45907,"FRANCE","NON"]
["FOURCROY HERVE","191597H",32,62,13356,"OUTREAU","HERVE","FOURCROY",18329,"M","67 RUE DE LA CHAUDIERE",null,null,62280,"ST MARTIN BOULOGNE","FRANCE",null,"0651924957","hervefourcroy@hotmail.fr","OUI","Decouverte","Carambole",null,45926,"FRANCE","NON"]
["FAMCHON THIERRY","193128X",32,62,13356,"OUTREAU","THIERRY","FAMCHON",23825,"M","46 RUE NAPOLEON",null,null,62930,"WIMEREUX","FRANCE",null,"0660424906","thierry.famchon205.tf@gmail.com","OUI","Decouverte","Carambole",null,45992,"FRANCE","NON"]
["ROGEE ANDRE","193238R",32,62,13356,"OUTREAU","ANDRE","ROGEE",20716,"M","54 RUE LOUIS DUFLOS",null,null,62200,"BOULOGNE SUR MER","FRANCE",null,"0649323752","rogee.andre@orange.fr","OUI","Decouverte","Carambole",null,46000,"FRANCE","NON"]
["ABUCKI PASCAL","016813R",32,62,13124,"COURRIERES","PASCAL","ABUCKI",23752,"M","51 CHEMIN DU TORDOIR","CITE BONNIER",null,62590,"OIGNIES","FRANCE","0681746781","0681746781","abuckipascal@gmail.com","OUI","+21 ans","Carambole",null,45891,"FRANCE","NON"]
["RAULT BERTRAND","016871X",32,62,13124,"COURRIERES","BERTRAND","RAULT",23294,"M","6 RUE DES FRERES LUMIERE",null,null,62710,"COURRIERES","FRANCE","0627263562","0627263562","b.rault62@gmail.com","OUI","+21 ans","Carambole",null,45891,"FRANCE","NON"]
["DESPREZ CLAUDE","016911L",32,62,13124,"COURRIERES","CLAUDE","DESPREZ",24376,"M","98 RUE DU MARECHAL JOFFRE",null,null,62220,"CARVIN","FRANCE","0321747059","0682375826","desprez.claude@outlook.fr","OUI","+21 ans","Carambole",null,45891,"FRANCE","NON"]
["MONNEYRAC SEBASTIEN","017277N",32,62,13124,"COURRIERES","SEBASTIEN","MONNEYRAC",29620,"M","9 RUE JEAN MOULIN",null,null,59194,"RACHES","FRANCE",null,"0622195417","christine.monneyrac@sfr.fr","OUI","+21 ans","Carambole",null,45891,"FRANCE","NON"]
["DUHAMEL JEAN LOUIS","126839L",32,62,13124,"COURRIERES","JEAN LOUIS","DUHAMEL",20025,"M","20 RUE BERLINGUEZ",null,null,62710,"COURRIERES","FRANCE","0321759919","0620231787","cegetus@yahoo.fr","OUI","+21 ans","Carambole",null,45899,"FRANCE","NON"]
["FOULON MIGUEL","133044C",32,62,13124,"COURRIERES","MIGUEL","FOULON",24125,"M","283 RUE GAMBETTA",null,null,59261,"WAHAGNIES","FRANCE","0320863214","0782712808","foulon.miguel@laposte.net","OUI","+21 ans","Carambole",null,45905,"FRANCE","NON"]
["RAUX JEAN LOUIS","135993N",32,62,13124,"COURRIERES","JEAN LOUIS","RAUX",26118,"M","586 RUE RAOULT BRIQUET",null,null,62700,"BRUAY LA BUISSIERE","FRANCE",null,"0611993777",null,"OUI","+21 ans","Carambole",null,45891,"FRANCE","NON"]
["RAUX LEO","135996Q",32,62,13124,"COURRIERES","LEO","RAUX",34591,"M","35 RUE DU BUICH",null,null,62550,"SAINS LES PERNES","FRANCE",null,"0603277335","leodu62460@hotmail.fr","OUI","+21 ans","Carambole",null,45891,"FRANCE","NON"]
["RAULT BAUDOUIN","145212C",32,62,13124,"COURRIERES","BAUDOUIN","RAULT",36707,"M","6 RUE DES FRERES LUMIERE",null,null,62710,"COURRIERES","FRANCE",null,"0646705099","rault.baudouin@gmail.com","OUI","+21 ans","Carambole",null,45891,"FRANCE","NON"]
["LEFEBVRE LUCAS","150713T",32,62,13124,"COURRIERES","LUCAS","LEFEBVRE",36710,"M","1  PLACE JEAN TAILLEZ",null,null,62710,"COURRIERES","FRANCE",null,"0783888657","lucas.lefebvre62710@gmail.com","OUI","+21 ans","Carambole",null,45901,"FRANCE","NON"]
["CARPENTIER LUDOVIC","151618C",32,62,13124,"COURRIERES","LUDOVIC","CARPENTIER",25898,"M","6 RUE DU ROUPION",null,null,59310,"NOMAIN","FRANCE",null,"0628455084","ludovic.carpentier94@sfr.fr","OUI","+21 ans","Blackball",null,45889,"FRANCE","NON"]
["COSTEAUX DYLAN","154951A",32,62,13124,"COURRIERES","DYLAN","COSTEAUX",37223,"M","50 BIS RUE PASTEUR",null,null,62590,"OIGNIES","FRANCE",null,"0688418486","d.costeaux28@compagnons-du-devoir.fr","OUI","+21 ans","Carambole",null,45891,"FRANCE","NON"]
["LIEGEOIS ANTHONY","155947H",32,62,13124,"COURRIERES","ANTHONY","LIEGEOIS",32630,"M","33B CHAUSSEE BRUNEHAUT",null,null,62470,"CAMBLAIN CHATELAIN","FRANCE",null,"0673476639","anthonyliegeois33@gmail.com","OUI","+21 ans","Blackball",null,45893,"FRANCE","NON"]
["MOINET GAETAN","157865S",32,62,13124,"COURRIERES","GAETAN","MOINET",31835,"M","19 RUE DE L ARGILIERE",null,null,62123,"HABARCQ","FRANCE",null,"0633537775","gaetaneden62@gmail.com","OUI","+21 ans","Blackball",null,45904,"FRANCE","NON"]
["CATALAN FRANCOIS","157874C",32,62,13124,"COURRIERES","FRANCOIS","CATALAN",31266,"M","4 RUE MONSTESQUIEU",null,null,62300,"LENS","FRANCE",null,"0659786648","francois.catalan@gmail.com","OUI","+21 ans","Blackball",null,45889,"FRANCE","NON"]
["BILLAUT LAURINE","159089Y",32,62,13124,"COURRIERES","LAURINE","BILLAUT",32497,"F","403 RUE DU REVEILLON",null,null,62920,"CHOCQUES","FRANCE",null,"0628703578","laurine.billaut@laposte.net","OUI","+21 ans","Blackball",null,45893,"FRANCE","NON"]
["PERIN DAVID","159092B",32,62,13124,"COURRIERES","DAVID","PERIN",27261,"M","930 CHEMIN DE LA BUISE",null,null,62110,"HENIN BEAUMONT","FRANCE",null,"0782053283","timberts@free.fr","OUI","+21 ans","Blackball",null,45913,"FRANCE","NON"]
["POPULAIRE GAETAN","159093C",32,62,13124,"COURRIERES","GAETAN","POPULAIRE",26409,"M","7 ALLEE DES TROENES",null,null,62220,"CARVIN","FRANCE",null,"0676777604","gaepop@free.fr","OUI","+21 ans","Blackball",null,45893,"FRANCE","NON"]
["COSTEAUX JEYSON","160197C",32,62,13124,"COURRIERES","JEYSON","COSTEAUX",38274,"M","108 RUE RAOUL BRIQUET",null,null,62710,"COURRIERES","FRANCE",null,"0783401010",null,"OUI","-21 ans","Carambole",null,45891,"FRANCE","NON"]
["RAULT KARINE","168680Y",32,62,13124,"COURRIERES","KARINE","RAULT",26839,"F","6 RUE DES FRERES LUMIERE",null,null,62710,"COURRIERES","FRANCE",null,"0613553740",null,"OUI","+21 ans","Carambole",null,45891,"FRANCE","NON"]
["COINT EDDY","169402H",32,62,13124,"COURRIERES","EDDY","COINT",35072,"M","52 BOULEVARD ABBE LEMIRE",null,null,59190,"HAZEBROUCK","FRANCE",null,"0627966750","eddycoint62@gmail.com","OUI","+21 ans","Blackball",null,45904,"FRANCE","NON"]
["DUMOULIN DAVID","171755Q",32,62,13124,"COURRIERES","DAVID","DUMOULIN",25694,"M","103 RUE ANATOLE FRANCE",null,null,59155,"FACHES THUMESNIL","FRANCE",null,"0777866405","daviddumoulin02@gmail.com","OUI","+21 ans","Blackball",null,45889,"FRANCE","NON"]
["ROLLAND STEPHANE","171827T",32,62,13124,"COURRIERES","STEPHANE","ROLLAND",29352,"M","8 RUE DE LA SUCRERIE",null,null,62740,"FOUQUIERES LES LENS","FRANCE",null,"0676603066","rollaste@gmail.com","OUI","+21 ans","Blackball",null,45893,"FRANCE","NON"]
["ESTIN DAMIEN","174358V",32,62,13124,"COURRIERES","DAMIEN","ESTIN",31230,"M","43 AVENUE DES FLANDRES",null,null,59190,"HAZEBROUCK","FRANCE",null,"0658758454","damienestin18@gmail.com","OUI","+21 ans","Blackball",null,45904,"FRANCE","NON"]
["DIEVART GREGORY","176836N",32,62,13124,"COURRIERES","GREGORY","DIEVART",26519,"M","62  BIS CYPRIEN QUINET",null,null,62820,"LIBERCOURT","FRANCE",null,"0661993135",null,"OUI","+21 ans","Blackball",null,45893,"FRANCE","NON"]
["MUCCIANTE JOHAN","177024S",32,62,13124,"COURRIERES","JOHAN","MUCCIANTE",30443,"M","312 RUE ROSA LUXEMBURG",null,null,62320,"ROUVROY","FRANCE",null,"0610807967","johann62640@gmail.com","OUI","+21 ans","Blackball",null,45893,"FRANCE","NON"]
["DUBUS JASON","181337F",32,62,13124,"COURRIERES","JASON","DUBUS",28959,"M","59 RUE DES HOUILLERES",null,null,59119,"WAZIERS","FRANCE",null,"0769512756","jason.dubus@gmail.com","OUI","+21 ans","Blackball",null,45889,"FRANCE","NON"]
["DUTILLEUL OPHELIE","182243Q",32,62,13124,"COURRIERES","OPHELIE","DUTILLEUL",35808,"F","267 RUE ARISTIDE BRIAND",null,null,62119,"DOURGES","FRANCE",null,"0623968637","ophelie.dutilleul@gmail.com","OUI","+21 ans","Blackball",null,45924,"FRANCE","NON"]
["CAUCHY DAMIEN","190165B",32,62,13124,"COURRIERES","DAMIEN","CAUCHY",29598,"M","10 PLACE DE GAULLE",null,null,62136,"RICHEBOURG","FRANCE",null,"0660841539","damien.cauchy@gmail.com","OUI","Decouverte","Blackball",null,45889,"FRANCE","NON"]
["LIEGEOIS BONNIE","190238F",32,62,13124,"COURRIERES","BONNIE","LIEGEOIS",31773,"F","33B CHAUSSEE BRUNEHAUT",null,null,62470,"CAMBLAIN CHATELAIN","FRANCE",null,"0664858146","bonnie.liegeois@gmail.com","OUI","Decouverte","Blackball",null,45893,"FRANCE","NON"]
["STANOWSKI STEPHANE","011944K",32,62,13370,"LE TOUQUET","STEPHANE","STANOWSKI",26437,"M","152 RUE EMILE GREVET",null,null,62780,"CUCQ","FRANCE",null,"0664717138","stephanestanowski@yahoo.fr","OUI","+21 ans","Carambole",null,45915,"FRANCE","NON"]
["VADUNTHUN PATRICK","016753J",32,62,13370,"LE TOUQUET","PATRICK","VADUNTHUN",19662,"M","6 LOT DES BATISSEURS",null,null,62630,"ETAPLES SUR MER","FRANCE","0952998614","0611291133","patrick.berck@hotmail.fr","OUI","+21 ans","Carambole",null,45888,"FRANCE","NON"]
["DUMORTIER FREDDY","107643D",32,62,13370,"LE TOUQUET","FREDDY","DUMORTIER",13482,"M","125 RUE ROGER SALENGRO",null,null,62780,"CUCQ","FRANCE","0321895482",null,"freddy.dumortier@orange.fr","OUI","+21 ans","Carambole","arbitre",45918,"FRANCE","NON"]
["OTTEVAERE ANDRE","114094G",32,62,13370,"LE TOUQUET","ANDRE","OTTEVAERE",20272,"M","155 ALLEE DES BOUTONS D OR","VILLA AVAO",null,62520,"LE TOUQUET PARIS PLAGE","FRANCE",null,"0616153655","a.ottevaere@hotmail.fr","OUI","+21 ans","Carambole","arbitre",45888,"FRANCE","NON"]
["COCHEZ PASCAL","116585B",32,62,13370,"LE TOUQUET","PASCAL","COCHEZ",28273,"M","ALLEE DES PRIMEVERES","VILLA DU HAINAUT",null,62520,"LE TOUQUET PARIS PLAGE","FRANCE","0321097169","0618935576","cochez@neuf.fr","OUI","+21 ans","Carambole",null,45911,"FRANCE","NON"]
["COIN CLAUDE","117751X",32,62,13370,"LE TOUQUET","CLAUDE","COIN",17833,"M","59 CHEMIN DES DUNES",null,null,62180,"RANG DU FLIERS","FRANCE","0321844548",null,"claudecoin@live.fr","OUI","+21 ans","Carambole",null,45910,"FRANCE","NON"]
["SAGOT JEAN PIERRE","122391J",32,62,13370,"LE TOUQUET","JEAN PIERRE","SAGOT",17314,"M","50 ALLEE DU VERGER","RESIDENCE LES VILLAS SAINT JEAN APP 32",null,62520,"LE TOUQUET PARIS PLAGE","FRANCE",null,"0786463276","jp.sagot47@gmail.com","NON","+21 ans","Carambole",null,45917,"FRANCE","NON"]
["VERCRUYSSE MICHEL","133118Y",32,62,13370,"LE TOUQUET","MICHEL","VERCRUYSSE",16696,"M","37 BLD T SABINE RED QUEEN BAY",null,null,62520,"LE TOUQUET PARIS PLAGE","FRANCE",null,"0608537452","vercruysse.michel@orange.fr","OUI","+21 ans","Carambole",null,45918,"FRANCE","NON"]
["MAIRESSE CHRISTIAN","134132Y",32,62,13370,"LE TOUQUET","CHRISTIAN","MAIRESSE",16849,"M","22 BOULEVARD DE LA CANCHE",null,null,62520,"LE TOUQUET PARIS PLAGE","FRANCE","0962159241","0686576429","christian.mairesse5962@hotmail.fr","OUI","+21 ans","Carambole",null,45926,"FRANCE","NON"]
["BARBE JEAN MARC","134146M",32,62,13370,"LE TOUQUET","JEAN MARC","BARBE",16792,"M","4 AVENUE DUQUESNE",null,null,62520,"LE TOUQUET PARIS PLAGE","FRANCE","0321054189","0676214673","jmbarbe1@orange.fr","OUI","+21 ans","Carambole",null,45926,"FRANCE","NON"]
["SVIGA GILLES","134153T",32,62,13370,"LE TOUQUET","GILLES","SVIGA",21124,"M","482 RUE DE TOUQUET",null,null,62155,"MERLIMONT","FRANCE",null,"0638974186","gillesantares@gmail.com","OUI","+21 ans","Carambole",null,45915,"FRANCE","NON"]
["REGNEAULT GEORGES","144416M",32,62,13370,"LE TOUQUET","GEORGES","REGNEAULT",18132,"M","49 RUE DE PARIS",null,null,62170,"ECUIRES","FRANCE","0321815745","0635966933","regneault@hotmail.com","NON","+21 ans","Carambole",null,45888,"FRANCE","NON"]
["HEROGUEZ BERNARD","147724V",32,62,13370,"LE TOUQUET","BERNARD","HEROGUEZ",17749,"M","19 RUE CHANTE AUX VENTS",null,null,62176,"CAMIERS","FRANCE","0321091722","0672784486","bmn.heroguez@orange.fr","OUI","+21 ans","Carambole","arbitre",45889,"FRANCE","NON"]
["SATTLER YVES MARIE","151652P",32,62,13370,"LE TOUQUET","YVES MARIE","SATTLER",19563,"M","137 RUE DE LONDRES",null,null,62520,"LE TOUQUET PARIS PLAGE","FRANCE",null,"0676840736","ym.sattler@orange.fr","NON","+21 ans","Carambole",null,45911,"FRANCE","NON"]
["HENTGES CHARLES","154333D",32,62,13370,"LE TOUQUET","CHARLES","HENTGES",15076,"M","165 BOULEVARD POUGET","RESIDENCE LES MOUETTES",null,62520,"LE TOUQUET PARIS PLAGE","FRANCE","00352691483842",null,"charleshentges1004@gmail.com","OUI","+21 ans","Carambole",null,45910,"FRANCE","NON"]
["MELLIN GEORGES","154852S",32,62,13370,"LE TOUQUET","GEORGES","MELLIN",16187,"M","8 AVENUE DE MERLIMONT",null,null,62170,"ST JOSSE","FRANCE",null,"0680080657","jomellin@orange.fr","OUI","+21 ans","Carambole",null,45936,"FRANCE","NON"]
[{"$f":"H514 & \" \" &G514","v":"PORICHE ALAIN"},"155688B",32,62,13370,"LE TOUQUET","ALAIN","PORICHE",16602,"M","96 AVENUE DES FRANCS MARTYR",null,null,62520,"LE TOUQUET PARIS PLAGE","FRANCE",null,"0787178532","aporiche@gmail.com","OUI","+21 ans","Carambole",null,45971,"FRANCE","NON"]
["CANDEILLE JEAN LOUP","157468L",32,62,13370,"LE TOUQUET","JEAN LOUP","CANDEILLE",18317,"M","40 RUE DE LENS",null,null,62520,"LE TOUQUET PARIS PLAGE","FRANCE",null,"0668442127","jlcandeille@wanadoo.fr","OUI","+21 ans","Carambole",null,45936,"FRANCE","NON"]
["LOBRY PATRICK","158228M",32,62,13370,"LE TOUQUET","PATRICK","LOBRY",19168,"M","28 AVENUE DE LIEGE",null,null,59300,"VALENCIENNES","FRANCE",null,"0642746498",null,"OUI","+21 ans","Carambole",null,45926,"FRANCE","NON"]
["HAGNERE DOMINIQUE","158319L",32,62,13370,"LE TOUQUET","DOMINIQUE","HAGNERE",20022,"M","39 RUE SAINT PIERRE",null,null,62630,"ETAPLES SUR MER","FRANCE","0321942660","0637413188","dhagnere@wanadoo.fr","OUI","+21 ans","Carambole","arbitre",45902,"FRANCE","NON"]
["MINART ARNAUD","165785B",32,62,13370,"LE TOUQUET","ARNAUD","MINART",22614,"M","500 ALLEE DES BICHES",null,null,62520,"LE TOUQUET PARIS PLAGE","FRANCE",null,"0612042131","arnaud.minard62@orange.fr","OUI","+21 ans","Carambole",null,45943,"FRANCE","NON"]
["CHUDZINSKI JEAN MARC","165787D",32,62,13370,"LE TOUQUET","JEAN MARC","CHUDZINSKI",20522,"M","04 RUE EDMOND BARDOL",null,null,62520,"LE TOUQUET PARIS PLAGE","FRANCE",null,"0608256871","jmchudzinski@gmail.com","OUI","+21 ans","Carambole",null,45944,"FRANCE","NON"]
["COCHEZ QUENTIN","175077B",32,62,13370,"LE TOUQUET","QUENTIN","COCHEZ",39987,"M","VILLA DU HAINAUT ALLEE DES PRIMEVERES",null,null,62520,"LE TOUQUET","FRANCE","0618935576","0618194824","cochez@neuf.fr","OUI","-21 ans","Carambole",null,45911,"FRANCE","NON"]
["CLARYS BRUNO","179638J",32,62,13370,"LE TOUQUET","BRUNO","CLARYS",21711,"M","64 RUE DE LONDRES",null,null,62520,"LE TOUQUET","FRANCE",null,"0682173264","bmclarys@Gmail.com","OUI","+21 ans","Carambole",null,45915,"FRANCE","NON"]
["ALONSO JOSE","182633P",32,62,13370,"LE TOUQUET","JOSE","ALONSO",20097,"M","2 AVENUE BLANC PAVE",null,null,62630,"ETAPLES","FRANCE",null,"0677642849","aaton@vivaldi.net","OUI","+21 ans","Carambole",null,45911,"FRANCE","NON"]
["ARNOUX JEAN MICHEL","182818Q",32,62,13370,"LE TOUQUET","JEAN MICHEL","ARNOUX",21913,"M","2 IMPASSE DU VIEUX MOULIN",null,null,62630,"ETAPLES","FRANCE",null,"0650222441","jmarno@sfr.fr","OUI","+21 ans","Carambole",null,45910,"FRANCE","NON"]
["CARUSO CARMELO","184401L",32,62,13370,"LE TOUQUET","CARMELO","CARUSO",21896,"M","24 RUE DU 11 NOVEMBRE",null,null,62600,"BERCK","FRANCE","0663378160",null,"caruso.karina@wanadoo.fr","OUI","+21 ans","Carambole",null,45909,"FRANCE","NON"]
["PATIN XAVIER","184444H",32,62,13370,"LE TOUQUET","XAVIER","PATIN",21086,"M","12BIS RUE DU SILENCE",null,null,62600,"BERCK","FRANCE","0670573574",null,"xavier.patin62@gmail.com","OUI","+21 ans","Carambole",null,45919,"FRANCE","NON"]
["MACRON MICHEL","187143R",32,62,13370,"LE TOUQUET","MICHEL","MACRON",24045,"M","651 AVENUE DE PICARDIE",null,null,62520,"LE TOUQUET","FRANCE",null,"0608463880","michelmacron75@aol.com","OUI","+21 ans","Carambole",null,45922,"FRANCE","NON"]
["SEVERO FLAVIA","191322J",32,62,13370,"LE TOUQUET","FLAVIA","SEVERO",24466,"F","23 RUE DE SAINT OMER",null,null,62520,"LE TOUQUET","FRANCE",null,"0744606494","flavia528@gmail.com","OUI","Decouverte","Carambole",null,45919,"FRANCE","NON"]
["DELZENNE BERNARD","191599K",32,62,13370,"LE TOUQUET","BERNARD","DELZENNE",16789,"M","RUE ANDREI SAKAROF",null,null,62520,"LE TOUQUET","FRANCE",null,"0637756258","bdelzenne45@gmail.com","OUI","Decouverte","Carambole",null,45926,"FRANCE","NON"]
["PARMENTIER THIERRY","192928E",32,62,13370,"LE TOUQUET","THIERRY","PARMENTIER",21981,"M","11 AVENUE JEANNE D ARC",null,null,62520,"LE TOUQUET PARIS PLAGE","FRANCE",null,"0610888888","tparmentier@club-internet.fr","OUI","Decouverte","Carambole",null,45981,"FRANCE","NON"]
["FLOHIC RICHARD","193043E",32,62,13370,"LE TOUQUET","RICHARD","FLOHIC",20132,"M","5 A RUE DU BASSIN",null,null,62630,"FRENQ","FRANCE",null,"0619190217","richard.flohic@neuf.fr","OUI","Decouverte","Carambole",null,45988,"FRANCE","NON"]
["MAILLARD FRANCIS","193177A",32,62,13370,"LE TOUQUET","FRANCIS","MAILLARD",18814,"M","381 ALLEE DES MOUETTES",null,null,62520,"LE TOUQUET","FRANCE",null,"0761609186","fa.maillard62@gmail.com","OUI","Decouverte","Carambole",null,45996,"FRANCE","NON"]
["MAILLARD AGNES","193178B",32,62,13370,"LE TOUQUET","AGNES","MAILLARD",19289,"F","381 ALLEE DES MOUETTES",null,null,62520,"LE TOUQUET","FRANCE",null,"0760224930","fa.maillard62@gmail.com","OUI","Decouverte","Carambole",null,45996,"FRANCE","NON"]
["FLORENT BERNARD","016852E",32,62,13369,"WIZERNES","BERNARD","FLORENT",17523,"M","11 RESIDENCE DU RANDON",null,null,62600,"BERCK SUR MER","FRANCE",null,"0618342651","bl.florent59@gmail.com","OUI","+21 ans","Carambole",null,45911,"FRANCE","NON"]
["MARCHANDIER PHILIPPE","112765D",32,62,13369,"WIZERNES","PHILIPPE","MARCHANDIER",22278,"M","95 SENTIER DES COMMUNES","LE MARAIS",null,62910,"SERQUES","FRANCE",null,"0603101161","philippe.marchandier@wanadoo.fr","OUI","+21 ans","Carambole","arbitre",45897,"FRANCE","NON"]
["PELERIN HENRI","112766E",32,62,13369,"WIZERNES","HENRI","PELERIN",24523,"M","31 RUE SAINT EXUPERY","APPARTEMENT 11",null,62500,"ST OMER","FRANCE",null,"0661501088","pelerin.henri11@gmail.com","NON","+21 ans","Carambole",null,45900,"FRANCE","NON"]
["DUFAY YANNICK","121385R",32,62,13369,"WIZERNES","YANNICK","DUFAY",28377,"M","45 RUE PRINCIPALE",null,null,62570,"PIHEM","FRANCE",null,"0689934574","dufayy@gmail.com","OUI","+21 ans","Carambole",null,45897,"FRANCE","NON"]
["LEGRAND ERIC","121391X",32,62,13369,"WIZERNES","ERIC","LEGRAND",25648,"M","1 D RUE DE COCHENDAL",null,null,62120,"ROQUETOIRE","FRANCE","0321954284","0613391319","eric.legrand240@orange.fr","OUI","+21 ans","Carambole",null,45907,"FRANCE","NON"]
["DUBOIS JEAN MARC","124465D",32,62,13369,"WIZERNES","JEAN MARC","DUBOIS",32904,"M","33 ROUTE DE WISQUES",null,null,62570,"WIZERNES","FRANCE",null,null,"dubois.jeanmarc@hotmail.fr","OUI","+21 ans","Carambole",null,45894,"FRANCE","NON"]
["GWIZDALA GERARD","138336Q",32,62,13369,"WIZERNES","GERARD","GWIZDALA",18845,"M","28 RUE LAUQUES",null,null,62570,"HALLINES","FRANCE","0321382980",null,null,"OUI","+21 ans","Carambole",null,45952,"FRANCE","NON"]
["SAISON BERTRAND","141319J",32,62,13369,"WIZERNES","BERTRAND","SAISON",20604,"M","39 AVENUE JOFFRE",null,null,62500,"ST MARTIN LES TATINGHEM","FRANCE","0321959992","0683262651","bertylson@gmail.com","OUI","+21 ans","Carambole",null,45915,"FRANCE","NON"]
["DUBOIS JEAN LOUIS","172567Y",32,62,13369,"WIZERNES","JEAN LOUIS","DUBOIS",19636,"M","22 RUE DE BLENDECQUES",null,null,62570,"WIZERNES","FRANCE","0321930414",null,"jldubois62@orange.fr","OUI","+21 ans","Carambole",null,45894,"FRANCE","NON"]
["DEMARTHE FABRICE","174704W",32,62,13369,"WIZERNES","FABRICE","DEMARTHE",30916,"M","29 RUE WILBEDINGUE",null,null,62380,"WAVRANS SUR L AA","FRANCE",null,"0670844837",null,"OUI","+21 ans","Carambole",null,45900,"FRANCE","NON"]
["DUBOIS EMMA","180635S",32,62,13369,"WIZERNES","EMMA","DUBOIS",42070,"F","24 RUE LATERALE",null,null,62570,"WIZERNES","FRANCE",null,"0770264406","alexandredubois1@hotmail.fr","OUI","-21 ans","Carambole",null,45915,"FRANCE","NON"]
["DUBOIS MARIE LAURE","182559J",32,62,13369,"WIZERNES","MARIE LAURE","DUBOIS",19926,"F","22 RUE DE BLENDECQUES",null,null,62570,"WIZERNES","FRANCE","0674428127",null,"jldubois62@orange.fr","NON","+21 ans","Carambole",null,45900,"FRANCE","NON"]
["LAGNEAUX OLIVIER","188311L",32,62,13369,"WIZERNES","OLIVIER","LAGNEAUX",22777,"M","305 RUE PRINCIPALE",null,null,59670,"OCHTEZEELE","FRANCE",null,"0784608835","olivlag2020@outlook.com","OUI","+21 ans","Carambole",null,45956,"FRANCE","NON"]
["BOLOGNESI PATRICK","189087E",32,62,13369,"WIZERNES","PATRICK","BOLOGNESI",20622,"M","9 RUE D UPEN",null,null,62380,"DOHEM","FRANCE",null,null,"bolognesi.patrick@gmail.com","OUI","+21 ans","Carambole",null,45914,"FRANCE","NON"]
["FLAHAUT PHILIPPE","190692Z",32,62,13369,"WIZERNES","PHILIPPE","FLAHAUT",22366,"M","9 CHEMIN DE MONTREUIL",null,null,62850,"ALQUINES","FRANCE",null,"0786950371",null,"NON","Decouverte","Carambole",null,45907,"FRANCE","NON"]
[" "]
[" "]
[" "]
[" "]
[" "]
[" "]
[" "]
[" "]
[" "]
[" "]
[" "]
[" "]
[" "]
[" "]
[" "]
[" "]
[" "]
[" "]
[" "]
[" "]
[" "]
[" "]
[" "]
[" "]
[" "]
[" "]
[" "]
[" "]
[" "]
[" "]
[{"$f":"H578 & \" \" &G578","v":" "}]
[" "]
[" "]
[" "]
[" "]
[" "]
[" "]
[" "]
[" "]
[" "]
[" "]
[" "]
[" "]
[" "]
[" "]
[" "]
[" "]
[" "]
[" "]
[" "]
[" "]
[" "]
[" "]
[" "]
[" "]
[" "]
[" "]
[" "]
[" "]
[" "]
[" "]
[" "]
[" "]
[" "]
[" "]
[" "]
[" "]
[" "]
[" "]
[" "]
[" "]
[" "]
[" "]
[" "]
[" "]
[" "]
[" "]
[" "]
[" "]
[" "]
[" "]
[" "]
[" "]
[" "]
[" "]
[" "]
[" "]
[" "]
[" "]
[" "]
[" "]
[" "]
[" "]
[" "]
[{"$f":"H642 & \" \" &G642","v":" "}]
[" "]
[" "]
[" "]
[" "]
[" "]
[" "]
[" "]
[" "]
[" "]
[" "]
[" "]
[" "]
[" "]
[" "]
[" "]
[" "]
[" "]
[" "]
[" "]
[" "]
[" "]
[" "]
[" "]
[" "]
[" "]
[" "]
[" "]
[" "]
[" "]
[" "]
[" "]
[" "]
[" "]
[" "]
[" "]
[" "]
[" "]
[" "]
[" "]
[" "]
[" "]
[" "]
[" "]
[" "]
[" "]
[" "]
[" "]
[" "]
[" "]
[" "]
[" "]
[" "]
[" "]
[" "]
[" "]
[" "]
[" "]
[" "]
[" "]
[" "]
[" "]
[" "]
[" "]
[{"$f":"H706 & \" \" &G706","v":" "}]
[" "]
[" "]
[" "]
[" "]
[" "]
[" "]
[" "]
[" "]
[" "]
[" "]
[" "]
[" "]
[" "]
[" "]
[" "]
[" "]
[" "]
[" "]
[" "]
[" "]
[" "]
[" "]
[" "]
[" "]
[" "]
[" "]
[" "]
[" "]
[" "]
[" "]
[" "]
[" "]
[" "]
[" "]
[" "]
[" "]
[" "]
[" "]
[" "]
[" "]
[" "]
[" "]
[" "]
[" "]
[" "]
[" "]
[" "]
[" "]
[" "]
[" "]
[" "]
[" "]
[" "]
[" "]
[" "]
[" "]
[" "]
[" "]
[" "]
[" "]
[" "]
[" "]
[" "]
[{"$f":"H770 & \" \" &G770","v":" "}]
[" "]
[" "]
[" "]
[" "]
[" "]
[" "]
[" "]
[" "]
[" "]
[" "]
[" "]
[" "]
[" "]
[" "]
[" "]
[" "]
[" "]
[" "]
[" "]
[" "]
[" "]
[" "]
[" "]
[" "]
[" "]
[" "]
[" "]
[" "]
[" "]
[" "]
[" "]
[" "]
[" "]
[" "]
[" "]
[" "]
[" "]
[" "]
[" "]
[" "]
[" "]
[" "]
[" "]
[" "]
[" "]
[" "]
[" "]
[" "]
[" "]
[" "]
[" "]
[" "]
[" "]
[" "]
[" "]
[" "]
[" "]
[" "]
[" "]
[" "]
[" "]
[" "]
[" "]
[{"$f":"H834 & \" \" &G834","v":" "}]
[" "]
[" "]
[" "]
[" "]
[" "]
[" "]
[" "]
[" "]
[" "]
[" "]
[" "]
[" "]
[" "]
[" "]
[" "]
[" "]
[" "]
[" "]
[" "]
[" "]
[" "]
[" "]
[" "]
[" "]
[" "]
[" "]
[" "]
[" "]
[" "]
[" "]
[" "]
[" "]
[" "]
[" "]
[" "]
[" "]
[" "]
[" "]
[" "]
[" "]
[" "]
[" "]
[" "]
[" "]
[" "]
[" "]
[" "]
[" "]
[" "]
[" "]
[" "]
[" "]
[" "]
[" "]
[" "]
[" "]
[" "]
[" "]
[" "]
[" "]
[" "]
[" "]
[" "]
[{"$f":"H898 & \" \" &G898","v":" "}]
[" "]
[" "]
[" "]
[" "]
[" "]
[" "]
[" "]
[" "]
[" "]
[" "]
[" "]
[" "]
[" "]
[" "]
[" "]
[" "]
[" "]
[" "]
[" "]
[" "]
[" "]
[" "]
[" "]
[" "]
[" "]
[" "]
[" "]
[" "]
[" "]
[" "]
[" "]
[" "]
[" "]
[" "]
[" "]
[" "]
[" "]
[" "]
[" "]
[" "]
[" "]
[" "]
[" "]
[" "]
[" "]
[" "]
[" "]
[" "]
[" "]
[" "]
[" "]
[" "]
[" "]
[" "]
[" "]
[" "]
[" "]
[" "]
[" "]
[" "]
[" "]
[" "]
[" "]
[{"$f":"H962 & \" \" &G962","v":" "}]
[" "]
[" "]
[" "]
[" "]
[" "]
[" "]
[" "]
[" "]
[" "]
[" "]
[" "]
[" "]
[" "]
[" "]
[" "]
[" "]
[" "]
[" "]
[" "]
[" "]
[" "]
[" "]
[" "]
[" "]
[" "]
[" "]
[" "]
[" "]
[" "]
[" "]
[" "]
[" "]
[" "]
[" "]
[" "]
[" "]
[" "]
[" "]
[" "]
[" "]
[" "]
[" "]
[" "]
[" "]
[" "]
[" "]
[" "]
[" "]
[" "]
[" "]
[" "]
[" "]
[" "]
[" "]
[" "]
[" "]
[" "]
[" "]
[" "]
[" "]
[" "]
[" "]
[" "]
[{"$f":"H1026 & \" \" &G1026","v":" "}]
[" "]
[" "]
[" "]
[" "]
[" "]
[" "]
[" "]
[" "]
[" "]
[" "]
[" "]
[" "]
[" "]
[" "]
[" "]
[" "]
[" "]
[" "]
[" "]
[" "]
[" "]
[" "]
[" "]
[" "]
[" "]
[" "]
[" "]
[" "]
[" "]
[" "]
[" "]
[" "]
[" "]
[" "]
[" "]
[" "]
[" "]
[" "]
[" "]
[" "]
[" "]
[" "]
[" "]
[" "]
[" "]
[" "]
[" "]
[" "]
[" "]
[" "]
[" "]
[" "]
[" "]
[" "]
[" "]
[" "]
[" "]
[" "]
[" "]
[" "]
[" "]
[" "]
[" "]
[{"$f":"H1090 & \" \" &G1090","v":" "}]
[" "]
[" "]
[" "]
[" "]
[" "]
[" "]
[" "]
[" "]
[" "]
[" "]
[" "]
[" "]
[" "]
[" "]
[" "]
[" "]
[" "]
[" "]
[" "]
[" "]
[" "]
[" "]
[" "]
[" "]
[" "]
[" "]
[" "]
[" "]
[" "]
[" "]
[" "]
[" "]
[" "]
[" "]
[" "]
[" "]
[" "]
[" "]
[" "]
[" "]
[" "]
[" "]
[" "]
[" "]
[" "]
[" "]
[" "]
[" "]
[" "]
[" "]
[" "]
[" "]
[" "]
[" "]
[" "]
[" "]
[" "]
[" "]
[" "]
[" "]
[" "]
[" "]
[" "]
[{"$f":"H1154 & \" \" &G1154","v":" "}]
[" "]
[" "]
[" "]
[" "]
[" "]
[" "]
[" "]
[" "]
[" "]
[" "]
[" "]
[" "]
[" "]
[" "]
[" "]
[" "]
[" "]
[" "]
[" "]
[" "]
[" "]
[" "]
[" "]
[" "]
[" "]
[" "]
[" "]
[" "]
[" "]
[" "]
[" "]
[" "]
[" "]
[" "]
[" "]
[" "]
[" "]
[" "]
[" "]
[" "]
[" "]
[" "]
[" "]
[" "]
[" "]
[" "]
[" "]
[" "]
[" "]
[" "]
[" "]
[" "]
[" "]
[" "]
[" "]
[" "]
[" "]
[" "]
[" "]
[" "]
[" "]
[" "]
[" "]
[{"$f":"H1218 & \" \" &G1218","v":" "}]
[" "]
[" "]
[" "]
[" "]
[" "]
[" "]
[" "]
[" "]
[" "]
[" "]
[" "]
[" "]
[" "]
[" "]
[" "]
[" "]
[" "]
[" "]
[" "]
[" "]
[" "]
[" "]
[" "]
[" "]
[" "]
[" "]
[" "]
[" "]
[" "]
[" "]
[" "]
[" "]
[" "]
[" "]
[" "]
[" "]
[" "]
[" "]
[" "]
[" "]
[" "]
[" "]
[" "]
[" "]
[" "]
[" "]
[" "]
[" "]
[" "]
[" "]
[" "]
[" "]
[" "]
[" "]
[" "]
[" "]
[" "]
[" "]
[" "]
[" "]
[" "]
[" "]
[" "]
[{"$f":"H1282 & \" \" &G1282","v":" "}]
[" "]
[" "]
[" "]
[" "]
[" "]
[" "]
[" "]
[" "]
[" "]
[" "]
[" "]
[" "]
[" "]
[" "]
[" "]
[" "]
[" "]
[" "]
[" "]
[" "]
[" "]
[" "]
[" "]
[" "]
[" "]
[" "]
[" "]
[" "]
[" "]
[" "]
[" "]
[" "]
[" "]
[" "]
[" "]
[" "]
[" "]
[" "]
[" "]
[" "]
[" "]
[" "]
[" "]
[" "]
[" "]
[" "]
[" "]
[" "]
[" "]
[" "]
[" "]
[" "]
[" "]
[" "]
[" "]
[" "]
[" "]
[" "]
[" "]
[" "]
[" "]
[" "]
[" "]
[{"$f":"H1346 & \" \" &G1346","v":" "}]
[" "]
[" "]
[" "]
[" "]
[" "]
[" "]
[" "]
[" "]
[" "]
[" "]
[" "]
[" "]
[" "]
[" "]
[" "]
[" "]
[" "]
[" "]
[" "]
[" "]
[" "]
[" "]
[" "]
[" "]
[" "]
[" "]
[" "]
[" "]
[" "]
[" "]
[" "]
[" "]
[" "]
[" "]
[" "]
[" "]
[" "]
[" "]
[" "]
[" "]
[" "]
[" "]
[" "]
[" "]
[" "]
[" "]
[" "]
[" "]
[" "]
[" "]
[" "]
[" "]
[" "]
[" "]
[" "]
[" "]
[" "]
[" "]
[" "]
[" "]
[" "]
[" "]
[" "]
[{"$f":"H1410 & \" \" &G1410","v":" "}]
[" "]
[" "]
[" "]
[" "]
[" "]
[" "]
[" "]
[" "]
[" "]
[" "]
[" "]
[" "]
[" "]
[" "]
[" "]
[" "]
[" "]
[" "]
[" "]
[" "]
[" "]
[" "]
[" "]
[" "]
[" "]
[" "]
[" "]
[" "]
[" "]
[" "]
[" "]
[" "]
[" "]
[" "]
[" "]
[" "]
[" "]
[" "]
[" "]
[" "]
[" "]
[" "]
[" "]
[" "]
[" "]
[" "]
[" "]
[" "]
[" "]
[" "]
[" "]
[" "]
[" "]
[" "]
[" "]
[" "]
[" "]
[" "]
[" "]
[" "]
[" "]
[" "]
[" "]
[{"$f":"H1474 & \" \" &G1474","v":" "}]
[" "]
[" "]
[" "]
[" "]
[" "]
[" "]
[" "]
[" "]
[" "]
[" "]
[" "]
[" "]
[" "]
[" "]
[" "]
[" "]
[" "]
[" "]
[" "]
[" "]
[" "]
[" "]
[" "]
[" "]
[" "]
[" "]
[" "]
[" "]
[" "]
[" "]
[" "]
[" "]
[" "]
[" "]
[" "]
[" "]
[" "]
[" "]
[" "]
[" "]
[" "]
[" "]
[" "]
[" "]
[" "]
[" "]
[" "]
[" "]
[" "]
[" "]
[" "]
[" "]
[" "]
[" "]
[" "]
[" "]
[" "]
[" "]
[" "]
[" "]
[" "]
[" "]
[" "]
[{"$f":"H1538 & \" \" &G1538","v":" "}]
[" "]
[" "]
[" "]
[" "]
[" "]
[" "]
[" "]
[" "]
[" "]
[" "]
[" "]
[" "]
[" "]
[" "]
[" "]
[" "]
[" "]
[" "]
[" "]
[" "]
[" "]
[" "]
[" "]
[" "]
[" "]
[" "]
[" "]
[" "]
[" "]
[" "]
[" "]
[" "]
[" "]
[" "]
[" "]
[" "]
[" "]
[" "]
[" "]
[" "]
[" "]
[" "]
[" "]
[" "]
[" "]
[" "]
[" "]
[" "]
[" "]
[" "]
[" "]
[" "]
[" "]
[" "]
[" "]
[" "]
[" "]
[" "]
[" "]
[" "]
[" "]
[" "]
[" "]
[{"$f":"H1602 & \" \" &G1602","v":" "}]
[" "]
[" "]
[" "]
[" "]
[" "]
[" "]
[" "]
[" "]
[" "]
[" "]
[" "]
[" "]
[" "]
[" "]
[" "]
[" "]
[" "]
[" "]
[" "]
[" "]
[" "]
[" "]
[" "]
[" "]
[" "]
[" "]
[" "]
[" "]
[" "]
[" "]
[" "]
[" "]
[" "]
[" "]
[" "]
[" "]
[" "]
[" "]
[" "]
[" "]
[" "]
[" "]
[" "]
[" "]
[" "]
[" "]
[" "]
[" "]
[" "]
[" "]
[" "]
[" "]
[" "]
[" "]
[" "]
[" "]
[" "]
[" "]
[" "]
[" "]
[" "]
[" "]
[" "]
[{"$f":"H1666 & \" \" &G1666","v":" "}]
[" "]
[" "]
[" "]
[" "]
[" "]
[" "]
[" "]
[" "]
[" "]
[" "]
[" "]
[" "]
[" "]
[" "]
[" "]
[" "]
[" "]
[" "]
[" "]
[" "]
[" "]
[" "]
[" "]
[" "]
[" "]
[" "]
[" "]
[" "]
[" "]
[" "]
[" "]
[" "]
[" "]
[" "]
[" "]
[" "]
[" "]
[" "]
[" "]
[" "]
[" "]
[" "]
[" "]
[" "]
[" "]
[" "]
[" "]
[" "]
[" "]
[" "]
[" "]
[" "]
[" "]
[" "]
[" "]
[" "]
[" "]
[" "]
[" "]
[" "]
[" "]
[" "]
[" "]
[{"$f":"H1730 & \" \" &G1730","v":" "}]
[" "]
[" "]
[" "]
[" "]
[" "]
[" "]
[" "]
[" "]
[" "]
[" "]
[" "]
[" "]
[" "]
[" "]
[" "]
[" "]
[" "]
[" "]
[" "]
[" "]
[" "]
[" "]
[" "]
[" "]
[" "]
[" "]
[" "]
[" "]
[" "]
[" "]
[" "]
[" "]
[" "]
[" "]
[" "]
[" "]
[" "]
[" "]
[" "]
[" "]
[" "]
[" "]
[" "]
[" "]
[" "]
[" "]
[" "]
[" "]
[" "]
[" "]
[" "]
[" "]
[" "]
[" "]
[" "]
[" "]
[" "]
[" "]
[" "]
[" "]
[" "]
[" "]
[" "]
[{"$f":"H1794 & \" \" &G1794","v":" "}]
[" "]
[" "]
[" "]
[" "]
[" "]
[" "]
[" "]
[" "]
[" "]
[" "]
[" "]
[" "]
[" "]
[" "]
[" "]
[" "]
[" "]
[" "]
[" "]
[" "]
[" "]
[" "]
[" "]
[" "]
[" "]
[" "]
[" "]
[" "]
[" "]
[" "]
[" "]
[" "]
[" "]
[" "]
[" "]
[" "]
[" "]
[" "]
[" "]
[" "]
[" "]
[" "]
[" "]
[" "]
[" "]
[" "]
[" "]
[" "]
[" "]
[" "]
[" "]
[" "]
[" "]
[" "]
[" "]
[" "]
[" "]
[" "]
[" "]
[" "]
[" "]
[" "]
[" "]
[{"$f":"H1858 & \" \" &G1858","v":" "}]
[" "]
[" "]
[" "]
[" "]
[" "]
[" "]
[" "]
[" "]
[" "]
[" "]
[" "]
[" "]
[" "]
[" "]
[" "]
[" "]
[" "]
[" "]
[" "]
[" "]
[" "]
[" "]
[" "]
[" "]
[" "]
[" "]
[" "]
[" "]
[" "]
[" "]
[" "]
[" "]
[" "]
[" "]
[" "]
[" "]
[" "]
[" "]
[" "]
[" "]
[" "]
[" "]
[" "]
[" "]
[" "]
[" "]
[" "]
[" "]
[" "]
[" "]
[" "]
[" "]
[" "]
[" "]
[" "]
[" "]
[" "]
[" "]
[" "]
[" "]
[" "]
[" "]
[" "]
[{"$f":"H1922 & \" \" &G1922","v":" "}]
[" "]
[" "]
[" "]
[" "]
[" "]
[" "]
[" "]
[" "]
[" "]
[" "]
[" "]
[" "]
[" "]
[" "]
[" "]
[" "]
[" "]
[" "]
[" "]
[" "]
[" "]
[" "]
[" "]
[" "]
[" "]
[" "]
[" "]
[" "]
[" "]
[" "]
[" "]
[" "]
[" "]
[" "]
[" "]
[" "]
[" "]
[" "]
[" "]
[" "]
[" "]
[" "]
[" "]
[" "]
[" "]
[" "]
[" "]
[" "]
[" "]
[" "]
[" "]
[" "]
[" "]
[" "]
[" "]
[" "]
[" "]
[" "]
[" "]
[" "]
[" "]
[" "]
[" "]
[{"$f":"H1986 & \" \" &G1986","v":" "}]
[" "]
[" "]
[" "]
[" "]
[" "]
[" "]
[" "]
[" "]
[" "]
[" "]
[" "]
[" "]
[" "]
[" "]
[" "]
[" "]
[" "]
[" "]
[" "]
[" "]
[" "]
[" "]
[" "]
[" "]
[" "]
[" "]
[" "]
[" "]
[" "]
[" "]
[" "]
[" "]
[" "]
[" "]
[" "]
[" "]
[" "]
[" "]
[" "]
[" "]
[" "]
[" "]
[" "]
[" "]
[" "]
[" "]
[" "]
[" "]
[" "]
[" "]
[" "]
[" "]
[" "]
[" "]
[" "]
[" "]
[" "]
[" "]
[" "]
[" "]
[" "]
[" "]
[" "]
[{"$f":"H2050 & \" \" &G2050","v":" "}]
[" "]
[" "]
[" "]
[" "]
[" "]
[" "]
[" "]
[" "]
[" "]
[" "]
[" "]
[" "]
[" "]
[" "]
[" "]
[" "]
[" "]
[" "]
[" "]
[" "]
[" "]
[" "]
[" "]
[" "]
[" "]
[" "]
[" "]
[" "]
[" "]
[" "]
[" "]
[" "]
[" "]
[" "]
[" "]
[" "]
[" "]
[" "]
[" "]
[" "]
[" "]
[" "]
[" "]
[" "]
[" "]
[" "]
[" "]
[" "]
[" "]
[" "]
[" "]
[" "]
[" "]
[" "]
[" "]
[" "]
[" "]
[" "]
[" "]
[" "]
[" "]
[" "]
[" "]
[{"$f":"H2114 & \" \" &G2114","v":" "}]
[" "]
[" "]
[" "]
[" "]
[" "]
[" "]
[" "]
[" "]
[" "]
[" "]
[" "]
[" "]
[" "]
[" "]
[" "]
[" "]
[" "]
[" "]
[" "]
[" "]
[" "]
[" "]
[" "]
[" "]
[" "]
[" "]
[" "]
[" "]
[" "]
[" "]
[" "]
[" "]
[" "]
[" "]
[" "]
[" "]
[" "]
[" "]
[" "]
[" "]
[" "]
[" "]
[" "]
[" "]
[" "]
[" "]
[" "]
[" "]
[" "]
[" "]
[" "]
[" "]
[" "]
[" "]
[" "]
[" "]
[" "]
[" "]
[" "]
[" "]
[" "]
[" "]
[" "]
[{"$f":"H2178 & \" \" &G2178","v":" "}]
[" "]
[" "]
[" "]
[" "]
[" "]
[" "]
[" "]
[" "]
[" "]
[" "]
[" "]
[" "]
[" "]
[" "]
[" "]
[" "]
[" "]
[" "]
[" "]
[" "]
[" "]
[" "]
[" "]
[" "]
[" "]
[" "]
[" "]
[" "]
[" "]
[" "]
[" "]
[" "]
[" "]
[" "]
[" "]
[" "]
[" "]
[" "]
[" "]
[" "]
[" "]
[" "]
[" "]
[" "]
[" "]
[" "]
[" "]
[" "]
[" "]
[" "]
[" "]
[" "]
[" "]
[" "]
[" "]
[" "]
[" "]
[" "]
[" "]
[" "]
[" "]
[" "]
[" "]
[{"$f":"H2242 & \" \" &G2242","v":" "}]
[" "]
[" "]
[" "]
[" "]
[" "]
[" "]
[" "]
[" "]
[" "]
[" "]
[" "]
[" "]
[" "]
[" "]
[" "]
[" "]
[" "]
[" "]
[" "]
[" "]
[" "]
[" "]
[" "]
[" "]
[" "]
[" "]
[" "]
[" "]
[" "]
[" "]
[" "]
[" "]
[" "]
[" "]
[" "]
[" "]
[" "]
[" "]
[" "]
[" "]
[" "]
[" "]
[" "]
[" "]
[" "]
[" "]
[" "]
[" "]
[" "]
[" "]
[" "]
[" "]
[" "]
[" "]
[" "]
[" "]
[" "]
[" "]
[" "]
[" "]
[" "]
[" "]
[" "]
[{"$f":"H2306 & \" \" &G2306","v":" "}]
[" "]
[" "]
[" "]
[" "]
[" "]
[" "]
[" "]
[" "]
[" "]
[" "]
[" "]
[" "]
[" "]
[" "]
[" "]
[" "]
[" "]
[" "]
[" "]
[" "]
[" "]
[" "]
[" "]
[" "]
[" "]
[" "]
[" "]
[" "]
[" "]
[" "]
[" "]
[" "]
[" "]
[" "]
[" "]
[" "]
[" "]
[" "]
[" "]
[" "]
[" "]
[" "]
[" "]
[" "]
[" "]
[" "]
[" "]
[" "]
[" "]
[" "]
[" "]
[" "]
[" "]
[" "]
[" "]
[" "]
[" "]
[" "]
[" "]
[" "]
[" "]
[" "]
[" "]
[{"$f":"H2370 & \" \" &G2370","v":" "}]
[" "]
[" "]
[" "]
[" "]
[" "]
[" "]
[" "]
[" "]
[" "]
[" "]
[" "]
[" "]
[" "]
[" "]
[" "]
[" "]
[" "]
[" "]
[" "]
[" "]
[" "]
[" "]
[" "]
[" "]
[" "]
[" "]
[" "]
[" "]
[" "]
[" "]
[" "]
[" "]
[" "]
[" "]
[" "]
[" "]
[" "]
[" "]
[" "]
[" "]
[" "]
[" "]
[" "]
[" "]
[" "]
[" "]
[" "]
[" "]
[" "]
[" "]
[" "]
[" "]
[" "]
[" "]
[" "]
[" "]
[" "]
[" "]
[" "]
[" "]
[" "]
[" "]
[" "]
[{"$f":"H2434 & \" \" &G2434","v":" "}]
[" "]
[" "]
[" "]
[" "]
[" "]
[" "]
[" "]
[" "]
[" "]
[" "]
[" "]
[" "]
[" "]
[" "]
[" "]
[" "]
[" "]
[" "]
[" "]
[" "]
[" "]
[" "]
[" "]
[" "]
[" "]
[" "]
[" "]
[" "]
[" "]
[" "]
[" "]
[" "]
[" "]
[" "]
[" "]
[" "]
[" "]
[" "]
[" "]
[" "]
[" "]
[" "]
[" "]
[" "]
[" "]
[" "]
[" "]
[" "]
[" "]
[" "]
[" "]
[" "]
[" "]
[" "]
[" "]
[" "]
[" "]
[" "]
[" "]
[" "]
[" "]
[" "]
[" "]
[{"$f":"H2498 & \" \" &G2498","v":" "}]
[" "]
[" "]
[" "]
[" "]
[" "]
[" "]
[" "]
[" "]
[" "]
[" "]
[" "]
[" "]
[" "]
[" "]
[" "]
[" "]
[" "]
[" "]
[" "]
[" "]
[" "]
[" "]
[" "]
[" "]
[" "]
[" "]
[" "]
[" "]
[" "]
[" "]
[" "]
[" "]
[" "]
[" "]
[" "]
[" "]
[" "]
[" "]
[" "]
[" "]
[" "]
[" "]
[" "]
[" "]
[" "]
[" "]
[" "]
[" "]
[" "]
[" "]
[" "]
[" "]
[" "]
[" "]
[" "]
[" "]
[" "]
[" "]
[" "]
[" "]
[" "]
[" "]
[" "]
[{"$f":"H2562 & \" \" &G2562","v":" "}]
[" "]
[" "]
[" "]
[" "]
[" "]
[" "]
[" "]
[" "]
[" "]
[" "]
[" "]
[" "]
[" "]
[" "]
[" "]
[" "]
[" "]
[" "]
[" "]
[" "]
[" "]
[" "]
[" "]
[" "]
[" "]
[" "]
[" "]
[" "]
[" "]
[" "]
[" "]
[" "]
[" "]
[" "]
[" "]
[" "]
[" "]
[" "]
[" "]
[" "]
[" "]
[" "]
[" "]
[" "]
[" "]
[" "]
[" "]
[" "]
[" "]
[" "]
[" "]
[" "]
[" "]
[" "]
[" "]
[" "]
[" "]
[" "]
[" "]
[" "]
[" "]
[" "]
[" "]
[{"$f":"H2626 & \" \" &G2626","v":" "}]
[" "]
[" "]
[" "]
[" "]
[" "]
[" "]
[" "]
[" "]
[" "]
[" "]
[" "]
[" "]
[" "]
[" "]
[" "]
[" "]
[" "]
[" "]
[" "]
[" "]
[" "]
[" "]
[" "]
[" "]
[" "]
[" "]
[" "]
[" "]
[" "]
[" "]
[" "]
[" "]
[" "]
[" "]
[" "]
[" "]
[" "]
[" "]
[" "]
[" "]
[" "]
[" "]
[" "]
[" "]
[" "]
[" "]
[" "]
[" "]
[" "]
[" "]
[" "]
[" "]
[" "]
[" "]
[" "]
[" "]
[" "]
[" "]
[" "]
[" "]
[" "]
[" "]
[" "]
[{"$f":"H2690 & \" \" &G2690","v":" "}]
[" "]
[" "]
[" "]
[" "]
[" "]
[" "]
[" "]
[" "]
[" "]
[" "]
[" "]
[" "]
[" "]
[" "]
[" "]
[" "]
[" "]
[" "]
[" "]
[" "]
[" "]
[" "]
[" "]
[" "]
[" "]
[" "]
[" "]
[" "]
[" "]
[" "]
[" "]
[" "]
[" "]
[" "]
[" "]
[" "]
[" "]
[" "]
[" "]
[" "]
[" "]
[" "]
[" "]
[" "]
[" "]
[" "]
[" "]
[" "]
[" "]
[" "]
[" "]
[" "]
[" "]
[" "]
[" "]
[" "]
[" "]
[" "]
[" "]
[" "]
[" "]
[" "]
[" "]
[{"$f":"H2754 & \" \" &G2754","v":" "}]
[" "]
[" "]
[" "]
[" "]
[" "]
[" "]
[" "]
[" "]
[" "]
[" "]
[" "]
[" "]
[" "]
[" "]
[" "]
[" "]
[" "]
[" "]
[" "]
[" "]
[" "]
[" "]
[" "]
[" "]
[" "]
[" "]
[" "]
[" "]
[" "]
[" "]
[" "]
[" "]
[" "]
[" "]
[" "]
[" "]
[" "]
[" "]
[" "]
[" "]
[" "]
[" "]
[" "]
[" "]
[" "]
[" "]
[" "]
[" "]
[" "]
[" "]
[" "]
[" "]
[" "]
[" "]
[" "]
[" "]
[" "]
[" "]
[" "]
[" "]
[" "]
[" "]
[" "]
[{"$f":"H2818 & \" \" &G2818","v":" "}]
[" "]
[" "]
[" "]
[" "]
[" "]
[" "]
[" "]
[" "]
[" "]
[" "]
[" "]
[" "]
[" "]
[" "]
[" "]
[" "]
[" "]
[" "]
[" "]
[" "]
[" "]
[" "]
[" "]
[" "]
[" "]
[" "]
[" "]
[" "]
[" "]
[" "]
[" "]
[" "]
[" "]
[" "]
[" "]
[" "]
[" "]
[" "]
[" "]
[" "]
[" "]
[" "]
[" "]
[" "]
[" "]
[" "]
[" "]
[" "]
[" "]
[" "]
[" "]
[" "]
[" "]
[" "]
[" "]
[" "]
[" "]
[" "]
[" "]
[" "]
[" "]
[" "]
[" "]
[{"$f":"H2882 & \" \" &G2882","v":" "}]
[" "]
[" "]
[" "]
[" "]
[" "]
[" "]
[" "]
[" "]
[" "]
[" "]
[" "]
[" "]
[" "]
[" "]
[" "]
[" "]
[" "]
[" "]
[" "]
[" "]
[" "]
[" "]
[" "]
[" "]
[" "]
[" "]
[" "]
[" "]
[" "]
[" "]
[" "]
[" "]
[" "]
[" "]
[" "]
[" "]
[" "]
[" "]
[" "]
[" "]
[" "]
[" "]
[" "]
[" "]
[" "]
[" "]
[" "]
[" "]
[" "]
[" "]
[" "]
[" "]
[" "]
[" "]
[" "]
[" "]
[" "]
[" "]
[" "]
[" "]
[" "]
[" "]
[" "]
[{"$f":"H2946 & \" \" &G2946","v":" "}]
[" "]
[" "]
[" "]
[" "]
[" "]
[" "]
[" "]
[" "]
[" "]
[" "]
[" "]
[" "]
[" "]
[" "]
[" "]
[" "]
[" "]
[" "]
[" "]
[" "]
[" "]
[" "]
[" "]
[" "]
[" "]
[" "]
[" "]
[" "]
[" "]
[" "]
[" "]
[" "]
[" "]
[" "]
[" "]
[" "]
[" "]
[" "]
[" "]
[" "]
[" "]
[" "]
[" "]
[" "]
[" "]
[" "]
[" "]
[" "]
[" "]
[" "]
[" "]
[" "]
[" "]
[" "]
[" "]
[" "]
[" "]
[" "]
[" "]
[" "]
[" "]
[" "]
[" "]
[{"$f":"H3010 & \" \" &G3010","v":" "}]
[" "]
[" "]
[" "]
[" "]
[" "]
[" "]
[" "]
[" "]
[" "]
[" "]
[" "]
[" "]
[" "]
[" "]
[" "]
[" "]
[" "]
[" "]
[" "]
[" "]
[" "]
[" "]
[" "]
[" "]
[" "]
[" "]
[" "]
[" "]
[" "]
[" "]
[" "]
[" "]
[" "]
[" "]
[" "]
[" "]
[" "]
[" "]
[" "]
[" "]
[" "]
[" "]
[" "]
[" "]
[" "]
[" "]
[" "]
[" "]
[" "]
[" "]
[" "]
[" "]
[" "]
[" "]
[" "]
[" "]
[" "]
[" "]
[" "]
[" "]
[" "]
[" "]
[" "]
[{"$f":"H3074 & \" \" &G3074","v":" "}]
[" "]
[" "]
[" "]
[" "]
[" "]
[" "]
[" "]
[" "]
[" "]
[" "]
[" "]
[" "]
[" "]
[" "]
[" "]
[" "]
[" "]
[" "]
[" "]
[" "]
[" "]
[" "]
[" "]
[" "]
[" "]
[" "]
[" "]
[" "]
[" "]
[" "]
[" "]
[" "]
[" "]
[" "]
[" "]
[" "]
[" "]
[" "]
[" "]
[" "]
[" "]
[" "]
[" "]
[" "]
[" "]
[" "]
[" "]
[" "]
[" "]
[" "]
[" "]
[" "]
[" "]
[" "]
[" "]
[" "]
[" "]
[" "]
[" "]
[" "]
[" "]
[" "]
[" "]
[{"$f":"H3138 & \" \" &G3138","v":" "}]
[" "]
[" "]
[" "]
[" "]
[" "]
[" "]
[" "]
[" "]
[" "]
[" "]
[" "]
[" "]
[" "]
[" "]
[" "]
[" "]
[" "]
[" "]
[" "]
[" "]
[" "]
[" "]
[" "]
[" "]
[" "]
[" "]
[" "]
[" "]
[" "]
[" "]
[" "]
[" "]
[" "]
[" "]
[" "]
[" "]
[" "]
[" "]
[" "]
[" "]
[" "]
[" "]
[" "]
[" "]
[" "]
[" "]
[" "]
[" "]
[" "]
[" "]
[" "]
[" "]
[" "]
[" "]
[" "]
[" "]
[" "]
[" "]
[" "]
[" "]
[" "]
[" "]
[" "]
[{"$f":"H3202 & \" \" &G3202","v":" "}]
[" "]
[" "]
[" "]
[" "]
[" "]
[" "]
[" "]
[" "]
[" "]
[" "]
[" "]
[" "]
[" "]
[" "]
[" "]
[" "]
[" "]
[" "]
[" "]
[" "]
[" "]
[" "]
[" "]
[" "]
[" "]
[" "]
[" "]
[" "]
[" "]
[" "]
[" "]
[" "]
[" "]
[" "]
[" "]
[" "]
[" "]
[" "]
[" "]
[" "]
[" "]
[" "]
[" "]
[" "]
[" "]
[" "]
[" "]
[" "]
[" "]
[" "]
[" "]
[" "]
[" "]
[" "]
[" "]
[" "]
[" "]
[" "]
[" "]
[" "]
[" "]
[" "]
[" "]
[{"$f":"H3266 & \" \" &G3266","v":" "}]
[" "]
[" "]
[" "]
[" "]
[" "]
[" "]
[" "]
[" "]
[" "]
[" "]
[" "]
[" "]
[" "]
[" "]
[" "]
[" "]
[" "]
[" "]
[" "]
[" "]
[" "]
[" "]
[" "]
[" "]
[" "]
[" "]
[" "]
[" "]
[" "]
[" "]
[" "]
[" "]
[" "]
[" "]
[" "]
[" "]
[" "]
[" "]
[" "]
[" "]
[" "]
[" "]
[" "]
[" "]
[" "]
[" "]
[" "]
[" "]
[" "]
[" "]
[" "]
[" "]
[" "]
[" "]
[" "]
[" "]
[" "]
[" "]
[" "]
[" "]
[" "]
[" "]
[" "]
[{"$f":"H3330 & \" \" &G3330","v":" "}]
[" "]
[" "]
[" "]
[" "]
[" "]
[" "]
[" "]
[" "]
[" "]
[" "]
[" "]
[" "]
[" "]
[" "]
[" "]
[" "]
[" "]
[" "]
[" "]
[" "]
[" "]
[" "]
[" "]
[" "]
[" "]
[" "]
[" "]
[" "]
[" "]
[" "]
[" "]
[" "]
[" "]
[" "]
[" "]
[" "]
[" "]
[" "]
[" "]
[" "]
[" "]
[" "]
[" "]
[" "]
[" "]
[" "]
[" "]
[" "]
[" "]
[" "]
[" "]
[" "]
[" "]
[" "]
[" "]
[" "]
[" "]
[" "]
[" "]
[" "]
[" "]
[" "]
[" "]
[{"$f":"H3394 & \" \" &G3394","v":" "}]
[" "]
[" "]
[" "]
[" "]
[" "]
[" "]
[" "]
[" "]
[" "]
[" "]
[" "]
[" "]
[" "]
[" "]
[" "]
[" "]
[" "]
[" "]
[" "]
[" "]
[" "]
[" "]
[" "]
[" "]
[" "]
[" "]
[" "]
[" "]
[" "]
[" "]
[" "]
[" "]
[" "]
[" "]
[" "]
[" "]
[" "]
[" "]
[" "]
[" "]
[" "]
[" "]
[" "]
[" "]
[" "]
[" "]
[" "]
[" "]
[" "]
[" "]
[" "]
[" "]
[" "]
[" "]
[" "]
[" "]
[" "]
[" "]
[" "]
[" "]
[" "]
[" "]
[" "]
[{"$f":"H3458 & \" \" &G3458","v":" "}]
[" "]
[" "]
[" "]
[" "]
[" "]
[" "]
[" "]
[" "]
[" "]
[" "]
[" "]
[" "]
[" "]
[" "]
[" "]
[" "]
[" "]
[" "]
[" "]
[" "]
[" "]
[" "]
[" "]
[" "]
[" "]
[" "]
[" "]
[" "]
[" "]
[" "]
[" "]
[" "]
[" "]
[" "]
[" "]
[" "]
[" "]
[" "]
[" "]
[" "]
[" "]
[" "]
[" "]
[" "]
[" "]
[" "]
[" "]
[" "]
[" "]
[" "]
[" "]
[" "]
[" "]
[" "]
[" "]
[" "]
[" "]
[" "]
[" "]
[" "]
[" "]
[" "]
[" "]
[{"$f":"H3522 & \" \" &G3522","v":" "}]
[" "]
[" "]
[" "]
[" "]
[" "]
[" "]
[" "]
[" "]
[" "]
[" "]
[" "]
[" "]
[" "]
[" "]
[" "]
[" "]
[" "]
[" "]
[" "]
[" "]
[" "]
[" "]
[" "]
[" "]
[" "]
[" "]
[" "]
[" "]
[" "]
[" "]
[" "]
[" "]
[" "]
[" "]
[" "]
[" "]
[" "]
[" "]
[" "]
[" "]
[" "]
[" "]
[" "]
[" "]
[" "]
[" "]
[" "]
[" "]
[" "]
[" "]
[" "]
[" "]
[" "]
[" "]
[" "]
[" "]
[" "]
[" "]
[" "]
[" "]
[" "]
[" "]
[" "]
[{"$f":"H3586 & \" \" &G3586","v":" "}]
[" "]
[" "]
[" "]
[" "]
[" "]
[" "]
[" "]
[" "]
[" "]
[" "]
[" "]
[" "]
[" "]
[" "]
[" "]
[" "]
[" "]
[" "]
[" "]
[" "]
[" "]
[" "]
[" "]
[" "]
[" "]
[" "]
[" "]
[" "]
[" "]
[" "]
[" "]
[" "]
[" "]
[" "]
[" "]
[" "]
[" "]
[" "]
[" "]
[" "]
[" "]
[" "]
[" "]
[" "]
[" "]
[" "]
[" "]
[" "]
[" "]
[" "]
[" "]
[" "]
[" "]
[" "]
[" "]
[" "]
[" "]
[" "]
[" "]
[" "]
[" "]
[" "]
[" "]
[{"$f":"H3650 & \" \" &G3650","v":" "}]
[" "]
[" "]
[" "]
[" "]
[" "]
[" "]
[" "]
[" "]
[" "]
[" "]
[" "]
[" "]
[" "]
[" "]
[" "]
[" "]
[" "]
[" "]
[" "]
[" "]
[" "]
[" "]
[" "]
[" "]
[" "]
[" "]
[" "]
[" "]
[" "]
[" "]
[" "]
[" "]
[" "]
[" "]
[" "]
[" "]
[" "]
[" "]
[" "]
[" "]
[" "]
[" "]
[" "]
[" "]
[" "]
[" "]
[" "]
[" "]
[" "]
[" "]
[" "]
[" "]
[" "]
[" "]
[" "]
[" "]
[" "]
[" "]
[" "]
[" "]
[" "]
[" "]
[" "]
[{"$f":"H3714 & \" \" &G3714","v":" "}]
[" "]
[" "]
[" "]
[" "]
[" "]
[" "]
[" "]
[" "]
[" "]
[" "]
[" "]
[" "]
[" "]
[" "]
[" "]
[" "]
[" "]
[" "]
[" "]
[" "]
[" "]
[" "]
[" "]
[" "]
[" "]
[" "]
[" "]
[" "]
[" "]
[" "]
[" "]
[" "]
[" "]
[" "]
[" "]
[" "]
[" "]
[" "]
[" "]
[" "]
[" "]
[" "]
[" "]
[" "]
[" "]
[" "]
[" "]
[" "]
[" "]
[" "]
[" "]
[" "]
[" "]
[" "]
[" "]
[" "]
[" "]
[" "]
[" "]
[" "]
[" "]
[" "]
[" "]
[{"$f":"H3778 & \" \" &G3778","v":" "}]
[" "]
[" "]
[" "]
[" "]
[" "]
[" "]
[" "]
[" "]
[" "]
[" "]
[" "]
[" "]
[" "]
[" "]
[" "]
[" "]
[" "]
[" "]
[" "]
[" "]
[" "]
[" "]
[" "]
[" "]
[" "]
[" "]
[" "]
[" "]
[" "]
[" "]
[" "]
[" "]
[" "]
[" "]
[" "]
[" "]
[" "]
[" "]
[" "]
[" "]
[" "]
[" "]
[" "]
[" "]
[" "]
[" "]
[" "]
[" "]
[" "]
[" "]
[" "]
[" "]
[" "]
[" "]
[" "]
[" "]
[" "]
[" "]
[" "]
[" "]
[" "]
[" "]
[" "]
[{"$f":"H3842 & \" \" &G3842","v":" "}]
[" "]
[" "]
[" "]
[" "]
[" "]
[" "]
[" "]
[" "]
[" "]
[" "]
[" "]
[" "]
[" "]
[" "]
[" "]
[" "]
[" "]
[" "]
[" "]
[" "]
[" "]
[" "]
[" "]
[" "]
[" "]
[" "]
[" "]
[" "]
[" "]
[" "]
[" "]
[" "]
[" "]
[" "]
[" "]
[" "]
[" "]
[" "]
[" "]
[" "]
[" "]
[" "]
[" "]
[" "]
[" "]
[" "]
[" "]
[" "]
[" "]
[" "]
[" "]
[" "]
[" "]
[" "]
[" "]
[" "]
[" "]
[" "]
[" "]
[" "]
[" "]
[" "]
[" "]
[{"$f":"H3906 & \" \" &G3906","v":" "}]
[" "]
[" "]
[" "]
[" "]
[" "]
[" "]
[" "]
[" "]
[" "]
[" "]
[" "]
[" "]
[" "]
[" "]
[" "]
[" "]
[" "]
[" "]
[" "]
[" "]
[" "]
[" "]
[" "]
[" "]
[" "]
[" "]
[" "]
[" "]
[" "]
[" "]
[" "]
[" "]
[" "]
[" "]
[" "]
[" "]
[" "]
[" "]
[" "]
[" "]
[" "]
[" "]
[" "]
[" "]
[" "]
[" "]
[" "]
[" "]
[" "]
[" "]
[" "]
[" "]
[" "]
[" "]
[" "]
[" "]
[" "]
[" "]
[" "]
[" "]
[" "]
[" "]
[" "]
[{"$f":"H3970 & \" \" &G3970","v":" "}]
[" "]
[" "]
[" "]
[" "]
[" "]
[" "]
[" "]
[" "]
[" "]
[" "]
[" "]
[" "]
[" "]
[" "]
[" "]
[" "]
[" "]
[" "]
[" "]
[" "]
[" "]
[" "]
[" "]
[" "]
[" "]
[" "]
[" "]
[" "]
[" "]
[" "]
[" "]
[" "]
[" "]
[" "]
[" "]
[" "]
[" "]
[" "]
[" "]
[" "]
[" "]
[" "]
[" "]
[" "]
[" "]
[" "]
[" "]
[" "]
[" "]
[" "]
[" "]
[" "]
[" "]
[" "]
[" "]
[" "]
[" "]
[" "]
[" "]
[" "]
[" "]
[" "]
[" "]
[{"$f":"H4034 & \" \" &G4034","v":" "}]
[" "]
[" "]
[" "]
[" "]
[" "]
[" "]
[" "]
[" "]
[" "]
[" "]
[" "]
[" "]
[" "]
[" "]
[" "]
[" "]
[" "]
[" "]
[" "]
[" "]
[" "]
[" "]
[" "]
[" "]
[" "]
[" "]
[" "]
[" "]
[" "]
[" "]
[" "]
[" "]
[" "]
[" "]
[" "]
[" "]
[" "]
[" "]
[" "]
[" "]
[" "]
[" "]
[" "]
[" "]
[" "]
[" "]
[" "]
[" "]
[" "]
[" "]
[" "]
[" "]
[" "]
[" "]
[" "]
[" "]
[" "]
[" "]
[" "]
[" "]
[" "]
[" "]
[" "]
[{"$f":"H4098 & \" \" &G4098","v":" "}]
[" "]
[" "]
[" "]
[" "]
[" "]
[" "]
[" "]
[" "]
[" "]
[" "]
[" "]
[" "]
[" "]
[" "]
[" "]
[" "]
[" "]
[" "]
[" "]
[" "]
[" "]
[" "]
[" "]
[" "]
[" "]
[" "]
[" "]
[" "]
[" "]
[" "]
[" "]
[" "]
[" "]
[" "]
[" "]
[" "]
[" "]
[" "]
[" "]
[" "]
[" "]
[" "]
[" "]
[" "]
[" "]
[" "]
[" "]
[" "]
[" "]
[" "]
[" "]
[" "]
[" "]
[" "]
[" "]
[" "]
[" "]
[" "]
[" "]
[" "]
[" "]
[" "]
[" "]
[{"$f":"H4162 & \" \" &G4162","v":" "}]
[" "]
[" "]
[" "]
[" "]
[" "]
[" "]
[" "]
[" "]
[" "]
[" "]
[" "]
[" "]
[" "]
[" "]
[" "]
[" "]
[" "]
[" "]
[" "]
[" "]
[" "]
[" "]
[" "]
[" "]
[" "]
[" "]
[" "]
[" "]
[" "]
[" "]
[" "]
[" "]
[" "]
[" "]
[" "]
[" "]
[" "]
[" "]
[" "]
[" "]
[" "]
[" "]
[" "]
[" "]
[" "]
[" "]
[" "]
[" "]
[" "]
[" "]
[" "]
[" "]
[" "]
[" "]
[" "]
[" "]
[" "]
[" "]
[" "]
[" "]
[" "]
[" "]
[" "]
[{"$f":"H4226 & \" \" &G4226","v":" "}]
[" "]
[" "]
[" "]
[" "]
[" "]
[" "]
[" "]
[" "]
[" "]
[" "]
[" "]
[" "]
[" "]
[" "]
[" "]
[" "]
[" "]
[" "]
[" "]
[" "]
[" "]
[" "]
[" "]
[" "]
[" "]
[" "]
[" "]
[" "]
[" "]
[" "]
[" "]
[" "]
[" "]
[" "]
[" "]
[" "]
[" "]
[" "]
[" "]
[" "]
[" "]
[" "]
[" "]
[" "]
[" "]
[" "]
[" "]
[" "]
[" "]
[" "]
[" "]
[" "]
[" "]
[" "]
[" "]
[" "]
[" "]
[" "]
[" "]
[" "]
[" "]
[" "]
[" "]
[{"$f":"H4290 & \" \" &G4290","v":" "}]
[" "]
[" "]
[" "]
[" "]
[" "]
[" "]
[" "]
[" "]
[" "]
[" "]
[" "]
[" "]
[" "]
[" "]
[" "]
[" "]
[" "]
[" "]
[" "]
[" "]
[" "]
[" "]
[" "]
[" "]
[" "]
[" "]
[" "]
[" "]
[" "]
[" "]
[" "]
[" "]
[" "]
[" "]
[" "]
[" "]
[" "]
[" "]
[" "]
[" "]
[" "]
[" "]
[" "]
[" "]
[" "]
[" "]
[" "]
[" "]
[" "]
[" "]
[" "]
[" "]
[" "]
[" "]
[" "]
[" "]
[" "]
[" "]
[" "]
[" "]
[" "]
[" "]
[" "]
[{"$f":"H4354 & \" \" &G4354","v":" "}]
[" "]
[" "]
[" "]
[" "]
[" "]
[" "]
[" "]
[" "]
[" "]
[" "]
[" "]
[" "]
[" "]
[" "]
[" "]
[" "]
[" "]
[" "]
[" "]
[" "]
[" "]
[" "]
[" "]
[" "]
[" "]
[" "]
[" "]
[" "]
[" "]
[" "]
[" "]
[" "]
[" "]
[" "]
[" "]
[" "]
[" "]
[" "]
[" "]
[" "]
[" "]
[" "]
[" "]
[" "]
[" "]
[" "]
[" "]
[" "]
[" "]
[" "]
[" "]
[" "]
[" "]
[" "]
[" "]
[" "]
[" "]
[" "]
[" "]
[" "]
[" "]
[" "]
[" "]
[{"$f":"H4418 & \" \" &G4418","v":" "}]
[" "]
[" "]
[" "]
[" "]
[" "]
[" "]
[" "]
[" "]
[" "]
[" "]
[" "]
[" "]
[" "]
[" "]
[" "]
[" "]
[" "]
[" "]
[" "]
[" "]
[" "]
[" "]
[" "]
[" "]
[" "]
[" "]
[" "]
[" "]
[" "]
[" "]
[" "]
[" "]
[" "]
[" "]
[" "]
[" "]
[" "]
[" "]
[" "]
[" "]
[" "]
[" "]
[" "]
[" "]
[" "]
[" "]
[" "]
[" "]
[" "]
[" "]
[" "]
[" "]
[" "]
[" "]
[" "]
[" "]
[" "]
[" "]
[" "]
[" "]
[" "]
[" "]
[" "]
[{"$f":"H4482 & \" \" &G4482","v":" "}]
[" "]
[" "]
[" "]
[" "]
[" "]
[" "]
[" "]
[" "]
[" "]
[" "]
[" "]
[" "]
[" "]
[" "]
[" "]
[" "]
[" "]
[" "]
[" "]
[" "]
[" "]
[" "]
[" "]
[" "]
[" "]
[" "]
[" "]
[" "]
[" "]
[" "]
[" "]
[" "]
[" "]
[" "]
[" "]
[" "]
[" "]
[" "]
[" "]
[" "]
[" "]
[" "]
[" "]
[" "]
[" "]
[" "]
[" "]
[" "]
[" "]
[" "]
[" "]
[" "]
[" "]
[" "]
[" "]
[" "]
[" "]
[" "]
[" "]
[" "]
[" "]
[" "]
[" "]
[{"$f":"H4546 & \" \" &G4546","v":" "}]
[" "]
[" "]
[" "]
[" "]
[" "]
[" "]
[" "]
[" "]
[" "]
[" "]
[" "]
[" "]
[" "]
[" "]
[" "]
[" "]
[" "]
[" "]
[" "]
[" "]
[" "]
[" "]
[" "]
[" "]
[" "]
[" "]
[" "]
[" "]
[" "]
[" "]
[" "]
[" "]
[" "]
[" "]
[" "]
[" "]
[" "]
[" "]
[" "]
[" "]
[" "]
[" "]
[" "]
[" "]
[" "]
[" "]
[" "]
[" "]
[" "]
[" "]
[" "]
[" "]
[" "]
[" "]
[" "]
[" "]
[" "]
[" "]
[" "]
[" "]
[" "]
[" "]
[" "]
[{"$f":"H4610 & \" \" &G4610","v":" "}]
[" "]
[" "]
[" "]
[" "]
[" "]
[" "]
[" "]
[" "]
[" "]
[" "]
[" "]
[" "]
[" "]
[" "]
[" "]
[" "]
[" "]
[" "]
[" "]
[" "]
[" "]
[" "]
[" "]
[" "]
[" "]
[" "]
[" "]
[" "]
[" "]
[" "]
[" "]
[" "]
[" "]
[" "]
[" "]
[" "]
[" "]
[" "]
[" "]
[" "]
[" "]
[" "]
[" "]
[" "]
[" "]
[" "]
[" "]
[" "]
[" "]
[" "]
[" "]
[" "]
[" "]
[" "]
[" "]
[" "]
[" "]
[" "]
[" "]
[" "]
[" "]
[" "]
[" "]
[{"$f":"H4674 & \" \" &G4674","v":" "}]
[" "]
[" "]
[" "]
[" "]
[" "]
[" "]
[" "]
[" "]
[" "]
[" "]
[" "]
[" "]
[" "]
[" "]
[" "]
[" "]
[" "]
[" "]
[" "]
[" "]
[" "]
[" "]
[" "]
[" "]
[" "]
[" "]
[" "]
[" "]
[" "]
[" "]
[" "]
[" "]
[" "]
[" "]
[" "]
[" "]
[" "]
[" "]
[" "]
[" "]
[" "]
[" "]
[" "]
[" "]
[" "]
[" "]
[" "]
[" "]
[" "]
[" "]
[" "]
[" "]
[" "]
[" "]
[" "]
[" "]
[" "]
[" "]
[" "]
[" "]
[" "]
[" "]
[" "]
[{"$f":"H4738 & \" \" &G4738","v":" "}]
[" "]
[" "]
[" "]
[" "]
[" "]
[" "]
[" "]
[" "]
[" "]
[" "]
[" "]
[" "]
[" "]
[" "]
[" "]
[" "]
[" "]
[" "]
[" "]
[" "]
[" "]
[" "]
[" "]
[" "]
[" "]
[" "]
[" "]
[" "]
[" "]
[" "]
[" "]
[" "]
[" "]
[" "]
[" "]
[" "]
[" "]
[" "]
[" "]
[" "]
[" "]
[" "]
[" "]
[" "]
[" "]
[" "]
[" "]
[" "]
[" "]
[" "]
[" "]
[" "]
[" "]
[" "]
[" "]
[" "]
[" "]
[" "]
[" "]
[" "]
[" "]
[" "]
[" "]
[{"$f":"H4802 & \" \" &G4802","v":" "}]
[" "]
[" "]
[" "]
[" "]
[" "]
[" "]
[" "]
[" "]
[" "]
[" "]
[" "]
[" "]
[" "]
[" "]
[" "]
[" "]
[" "]
[" "]
[" "]
[" "]
[" "]
[" "]
[" "]
[" "]
[" "]
[" "]
[" "]
[" "]
[" "]
[" "]
[" "]
[" "]
[" "]
[" "]
[" "]
[" "]
[" "]
[" "]
[" "]
[" "]
[" "]
[" "]
[" "]
[" "]
[" "]
[" "]
[" "]
[" "]
[" "]
[" "]
[" "]
[" "]
[" "]
[" "]
[" "]
[" "]
[" "]
[" "]
[" "]
[" "]
[" "]
[" "]
[" "]
[{"$f":"H4866 & \" \" &G4866","v":" "}]
[" "]
[" "]
[" "]
[" "]
[" "]
[" "]
[" "]
[" "]
[" "]
[" "]
[" "]
[" "]
[" "]
[" "]
[" "]
[" "]
[" "]
[" "]
[" "]
[" "]
[" "]
[" "]
[" "]
[" "]
[" "]
[" "]
[" "]
[" "]
[" "]
[" "]
[" "]
[" "]
[" "]
[" "]
[" "]
[" "]
[" "]
[" "]
[" "]
[" "]
[" "]
[" "]
[" "]
[" "]
[" "]
[" "]
[" "]
[" "]
[" "]
[" "]
[" "]
[" "]
[" "]
[" "]
[" "]
[" "]
[" "]
[" "]
[" "]
[" "]
[" "]
[" "]
[" "]
[{"$f":"H4930 & \" \" &G4930","v":" "}]
[" "]
[" "]
[" "]
[" "]
[" "]
[" "]
[" "]
[" "]
[" "]
[" "]
[" "]
[" "]
[" "]
[" "]
[" "]
[" "]
[" "]
[" "]
[" "]
[" "]
[" "]
[" "]
[" "]
[" "]
[" "]
[" "]
[" "]
[" "]
[" "]
[" "]
[" "]
[" "]
[" "]
[" "]
[" "]
[" "]
[" "]
[" "]
[" "]
[" "]
[" "]
[" "]
[" "]
[" "]
[" "]
[" "]
[" "]
[" "]
[" "]
[" "]
[" "]
[" "]
[" "]
[" "]
[" "]
[" "]
[" "]
[" "]
[" "]
[" "]
[" "]
[" "]
[" "]
[{"$f":"H4994 & \" \" &G4994","v":" "}]
[" "]
[" "]
[" "]
[" "]
[" "]
[" "]
[" "]
[" "]
[" "]
[" "]
[" "]
[" "]
[" "]
[" "]
[" "]
[" "]
[" "]
[" "]
[" "]
[" "]
[" "]
[" "]
[" "]
[" "]
[" "]
[" "]
[" "]
[" "]
[" "]
[" "]
[" "]
[" "]
[" "]
[" "]
[" "]
[" "]
[" "]
[" "]
[" "]
[" "]
[" "]
[" "]
[" "]
[" "]
[" "]
[" "]
[" "]
[" "]
[" "]
[" "]
[" "]
[" "]
[" "]
[" "]
[" "]
[" "]
[" "]
[" "]
[" "]
[" "]
[" "]
[" "]
[" "]
[{"$f":"H5058 & \" \" &G5058","v":" "}]
[" "]
[" "]
[" "]
[" "]
[" "]
[" "]
[" "]
[" "]
[" "]
[" "]
[" "]
[" "]
[" "]
[" "]
[" "]
[" "]
[" "]
[" "]
[" "]
[" "]
[" "]
[" "]
[" "]
[" "]
[" "]
[" "]
[" "]
[" "]
[" "]
[" "]
[" "]
[" "]
[" "]
[" "]
[" "]
[" "]
[" "]
[" "]
[" "]
[" "]
[" "]
[" "]
[" "]
[" "]
[" "]
[" "]
[" "]
[" "]
[" "]
[" "]
[" "]
[" "]
[" "]
[" "]
[" "]
[" "]
[" "]
[" "]
[" "]
[" "]
[" "]
[" "]
[" "]
[{"$f":"H5122 & \" \" &G5122","v":" "}]
[" "]
[" "]
[" "]
[" "]
[" "]
[" "]
[" "]
[" "]
[" "]
[" "]
[" "]
[" "]
[" "]
[" "]
[" "]
[" "]
[" "]
[" "]
[" "]
[" "]
[" "]
[" "]
[" "]
[" "]
[" "]
[" "]
[" "]
[" "]
[" "]
[" "]
[" "]
[" "]
[" "]
[" "]
[" "]
[" "]
[" "]
[" "]
[" "]
[" "]
[" "]
[" "]
[" "]
[" "]
[" "]
[" "]
[" "]
[" "]
[" "]
[" "]
[" "]
[" "]
[" "]
[" "]
[" "]
[" "]
[" "]
[" "]
[" "]
[" "]
[" "]
[" "]
[" "]
[{"$f":"H5186 & \" \" &G5186","v":" "}]
[" "]
[" "]
[" "]
[" "]
[" "]
[" "]
[" "]
[" "]
[" "]
[" "]
[" "]
[" "]
[" "]
[" "]
[" "]
[" "]
[" "]
[" "]
[" "]
[" "]
[" "]
[" "]
[" "]
[" "]
[" "]
[" "]
[" "]
[" "]
[" "]
[" "]
[" "]
[" "]
[" "]
[" "]
[" "]
[" "]
[" "]
[" "]
[" "]
[" "]
[" "]
[" "]
[" "]
[" "]
[" "]
[" "]
[" "]
[" "]
[" "]
[" "]
[" "]
[" "]
[" "]
[" "]
[" "]
[" "]
[" "]
[" "]
[" "]
[" "]
[" "]
[" "]
[" "]
[{"$f":"H5250 & \" \" &G5250","v":" "}]
[" "]
[" "]
[" "]
[" "]
[" "]
[" "]
[" "]
[" "]
[" "]
[" "]
[" "]
[" "]
[" "]
[" "]
[" "]
[" "]
[" "]
[" "]
[" "]
[" "]
[" "]
[" "]
[" "]
[" "]
[" "]
[" "]
[" "]
[" "]
[" "]
[" "]
[" "]
[" "]
[" "]
[" "]
[" "]
[" "]
[" "]
[" "]
[" "]
[" "]
[" "]
[" "]
[" "]
[" "]
[" "]
[" "]
[" "]
[" "]
[" "]
[" "]
[" "]
[" "]
[" "]
[" "]
[" "]
[" "]
[" "]
[" "]
[" "]
[" "]
[" "]
[" "]
[" "]
[{"$f":"H5314 & \" \" &G5314","v":" "}]
[" "]
[" "]
[" "]
[" "]
[" "]
[" "]
[" "]
[" "]
[" "]
[" "]
[" "]
[" "]
[" "]
[" "]
[" "]
[" "]
[" "]
[" "]
[" "]
[" "]
[" "]
[" "]
[" "]
[" "]
[" "]
[" "]
[" "]
[" "]
[" "]
[" "]
[" "]
[" "]
[" "]
[" "]
[" "]
[" "]
[" "]
[" "]
[" "]
[" "]
[" "]
[" "]
[" "]
[" "]
[" "]
[" "]
[" "]
[" "]
[" "]
[" "]
[" "]
[" "]
[" "]
[" "]
[" "]
[" "]
[" "]
[" "]
[" "]
[" "]
[" "]
[" "]
[" "]
[{"$f":"H5378 & \" \" &G5378","v":" "}]
[" "]
[" "]
[" "]
[" "]
[" "]
[" "]
[" "]
[" "]
[" "]
[" "]
[" "]
[" "]
[" "]
[" "]
[" "]
[" "]
[" "]
[" "]
[" "]
[" "]
[" "]
[" "]
[" "]
[" "]
[" "]
[" "]
[" "]
[" "]
[" "]
[" "]
[" "]
[" "]
[" "]
[" "]
[" "]
[" "]
[" "]
[" "]
[" "]
[" "]
[" "]
[" "]
[" "]
[" "]
[" "]
[" "]
[" "]
[" "]
[" "]
[" "]
[" "]
[" "]
[" "]
[" "]
[" "]
[" "]
[" "]
[" "]
[" "]
[" "]
[" "]
[" "]
[" "]
[{"$f":"H5442 & \" \" &G5442","v":" "}]
[" "]
[" "]
[" "]
[" "]
[" "]
[" "]
[" "]
[" "]
[" "]
[" "]
[" "]
[" "]
[" "]
[" "]
[" "]
[" "]
[" "]
[" "]
[" "]
[" "]
[" "]
[" "]
[" "]
[" "]
[" "]
[" "]
[" "]
[" "]
[" "]
[" "]
[" "]
[" "]
[" "]
[" "]
[" "]
[" "]
[" "]
[" "]
[" "]
[" "]
[" "]
[" "]
[" "]
[" "]
[" "]
[" "]
[" "]
[" "]
[" "]
[" "]
[" "]
[" "]
[" "]
[" "]
[" "]
[" "]
[" "]
[" "]
[" "]
[" "]
[" "]
[" "]
[" "]
[{"$f":"H5506 & \" \" &G5506","v":" "}]
[" "]
[" "]
[" "]
[" "]
[" "]
[" "]
[" "]
[" "]
[" "]
[" "]
[" "]
[" "]
[" "]
[" "]
[" "]
[" "]
[" "]
[" "]
[" "]
[" "]
[" "]
[" "]
[" "]
[" "]
[" "]
[" "]
[" "]
[" "]
[" "]
[" "]
[" "]
[" "]
[" "]
[" "]
[" "]
[" "]
[" "]
[" "]
[" "]
[" "]
[" "]
[" "]
[" "]
[" "]
[" "]
[" "]
[" "]
[" "]
[" "]
[" "]
[" "]
[" "]
[" "]
[" "]
[" "]
[" "]
[" "]
[" "]
[" "]
[" "]
[" "]
[" "]
[" "]
[{"$f":"H5570 & \" \" &G5570","v":" "}]
[" "]
[" "]
[" "]
[" "]
[" "]
[" "]
[" "]
[" "]
[" "]
[" "]
[" "]
[" "]
[" "]
[" "]
[" "]
[" "]
[" "]
[" "]
[" "]
[" "]
[" "]
[" "]
[" "]
[" "]
[" "]
[" "]
[" "]
[" "]
[" "]
[" "]
[" "]
[" "]
[" "]
[" "]
[" "]
[" "]
[" "]
[" "]
[" "]
[" "]
[" "]
[" "]
[" "]
[" "]
[" "]
[" "]
[" "]
[" "]
[" "]
[" "]
[" "]
[" "]
[" "]
[" "]
[" "]
[" "]
[" "]
[" "]
[" "]
[" "]
[" "]
[" "]
[" "]
[{"$f":"H5634 & \" \" &G5634","v":" "}]
[" "]
[" "]
[" "]
[" "]
[" "]
[" "]
[" "]
[" "]
[" "]
[" "]
[" "]
[" "]
[" "]
[" "]
[" "]
[" "]
[" "]
[" "]
[" "]
[" "]
[" "]
[" "]
[" "]
[" "]
[" "]
[" "]
[" "]
[" "]
[" "]
[" "]
[" "]
[" "]
[" "]
[" "]
[" "]
[" "]
[" "]
[" "]
[" "]
[" "]
[" "]
[" "]
[" "]
[" "]
[" "]
[" "]
[" "]
[" "]
[" "]
[" "]
[" "]
[" "]
[" "]
[" "]
[" "]
[" "]
[" "]
[" "]
[" "]
[" "]
[" "]
[" "]
[" "]
[{"$f":"H5698 & \" \" &G5698","v":" "}]
[" "]
[" "]
[" "]
[" "]
[" "]
[" "]
[" "]
[" "]
[" "]
[" "]
[" "]
[" "]
[" "]
[" "]
[" "]
[" "]
[" "]
[" "]
[" "]
[" "]
[" "]
[" "]
[" "]
[" "]
[" "]
[" "]
[" "]
[" "]
[" "]
[" "]
[" "]
[" "]
[" "]
[" "]
[" "]
[" "]
[" "]
[" "]
[" "]
[" "]
[" "]
[" "]
[" "]
[" "]
[" "]
[" "]
[" "]
[" "]
[" "]
[" "]
[" "]
[" "]
[" "]
[" "]
[" "]
[" "]
[" "]
[" "]
[" "]
[" "]
[" "]
[" "]
[" "]
[{"$f":"H5762 & \" \" &G5762","v":" "}]
[" "]
[" "]
[" "]
[" "]
[" "]
[" "]
[" "]
[" "]
[" "]
[" "]
[" "]
[" "]
[" "]
[" "]
[" "]
[" "]
[" "]
[" "]
[" "]
[" "]
[" "]
[" "]
[" "]
[" "]
[" "]
[" "]
[" "]
[" "]
[" "]
[" "]
[" "]
[" "]
[" "]
[" "]
[" "]
[" "]
[" "]
[" "]
[" "]
[" "]
[" "]
[" "]
[" "]
[" "]
[" "]
[" "]
[" "]
[" "]
[" "]
[" "]
[" "]
[" "]
[" "]
[" "]
[" "]
[" "]
[" "]
[" "]
[" "]
[" "]
[" "]
[" "]
[" "]
[{"$f":"H5826 & \" \" &G5826","v":" "}]
[" "]
[" "]
[" "]
[" "]
[" "]
[" "]
[" "]
[" "]
[" "]
[" "]
[" "]
[" "]
[" "]
[" "]
[" "]
[" "]
[" "]
[" "]
[" "]
[" "]
[" "]
[" "]
[" "]
[" "]
[" "]
[" "]
[" "]
[" "]
[" "]
[" "]
[" "]
[" "]
[" "]
[" "]
[" "]
[" "]
[" "]
[" "]
[" "]
[" "]
[" "]
[" "]
[" "]
[" "]
[" "]
[" "]
[" "]
[" "]
[" "]
[" "]
[" "]
[" "]
[" "]
[" "]
[" "]
[" "]
[" "]
[" "]
[" "]
[" "]
[" "]
[" "]
[" "]
[{"$f":"H5890 & \" \" &G5890","v":" "}]
[" "]
[" "]
[" "]
[" "]
[" "]
[" "]
[" "]
[" "]
[" "]
[" "]
[" "]
[" "]
[" "]
[" "]
[" "]
[" "]
[" "]
[" "]
[" "]
[" "]
[" "]
[" "]
[" "]
[" "]
[" "]
[" "]
[" "]
[" "]
[" "]
[" "]
[" "]
[" "]
[" "]
[" "]
[" "]
[" "]
[" "]
[" "]
[" "]
[" "]
[" "]
[" "]
[" "]
[" "]
[" "]
[" "]
[" "]
[" "]
[" "]
[" "]
[" "]
[" "]
[" "]
[" "]
[" "]
[" "]
[" "]
[" "]
[" "]
[" "]
[" "]
[" "]
[" "]
[{"$f":"H5954 & \" \" &G5954","v":" "}]
[" "]
[" "]
[" "]
[" "]
[" "]
[" "]
[" "]
[" "]
[" "]
[" "]
[" "]
[" "]
[" "]
[" "]
[" "]
[" "]
[" "]
[" "]
[" "]
[" "]
[" "]
[" "]
[" "]
[" "]
[" "]
[" "]
[" "]
[" "]
[" "]
[" "]
[" "]
[" "]
[" "]
[" "]
[" "]
[" "]
[" "]
[" "]
[" "]
[" "]
[" "]
[" "]
[" "]
[" "]
[" "]
[" "]
[" "]
[" "]
[" "]
[" "]
[" "]
[" "]
[" "]
[" "]
[" "]
[" "]
[" "]
[" "]
[" "]
[" "]
[" "]
[" "]
[" "]
[{"$f":"H6018 & \" \" &G6018","v":" "}]
[" "]
[" "]
[" "]
[" "]
[" "]
[" "]
[" "]
[" "]
[" "]
[" "]
[" "]
[" "]
[" "]
[" "]
[" "]
[" "]
[" "]
[" "]
[" "]
[" "]
[" "]
[" "]
[" "]
[" "]
[" "]
[" "]
[" "]
[" "]
[" "]
[" "]
[" "]
[" "]
[" "]
[" "]
[" "]
[" "]
[" "]
[" "]
[" "]
[" "]
[" "]
[" "]
[" "]
[" "]
[" "]
[" "]
[" "]
[" "]
[" "]
[" "]
[" "]
[" "]
[" "]
[" "]
[" "]
[" "]
[" "]
[" "]
[" "]
[" "]
[" "]
[" "]
[" "]
[{"$f":"H6082 & \" \" &G6082","v":" "}]
[" "]
[" "]
[" "]
[" "]
[" "]
[" "]
[" "]
[" "]
[" "]
[" "]
[" "]
[" "]
[" "]
[" "]
[" "]
[" "]
[" "]
[" "]
[" "]
[" "]
[" "]
[" "]
[" "]
[" "]
[" "]
[" "]
[" "]
[" "]
[" "]
[" "]
[" "]
[" "]
[" "]
[" "]
[" "]
[" "]
[" "]
[" "]
[" "]
[" "]
[" "]
[" "]
[" "]
[" "]
[" "]
[" "]
[" "]
[" "]
[" "]
[" "]
[" "]
[" "]
[" "]
[" "]
[" "]
[" "]
[" "]
[" "]
[" "]
[" "]
[" "]
[" "]
[" "]
[{"$f":"H6146 & \" \" &G6146","v":" "}]
[" "]
[" "]
[" "]
[" "]
[" "]
[" "]
[" "]
[" "]
[" "]
[" "]
[" "]
[" "]
[" "]
[" "]
[" "]
[" "]
[" "]
[" "]
[" "]
[" "]
[" "]
[" "]
[" "]
[" "]
[" "]
[" "]
[" "]
[" "]
[" "]
[" "]
[" "]
[" "]
[" "]
[" "]
[" "]
[" "]
[" "]
[" "]
[" "]
[" "]
[" "]
[" "]
[" "]
[" "]
[" "]
[" "]
[" "]
[" "]
[" "]
[" "]
[" "]
[" "]
[" "]
[" "]
[" "]
[" "]
[" "]
[" "]
[" "]
[" "]
[" "]
[" "]
[" "]
[{"$f":"H6210 & \" \" &G6210","v":" "}]
[" "]
[" "]
[" "]
[" "]
[" "]
[" "]
[" "]
[" "]
[" "]
[" "]
[" "]
[" "]
[" "]
[" "]
[" "]
[" "]
[" "]
[" "]
[" "]
[" "]
[" "]
[" "]
[" "]
[" "]
[" "]
[" "]
[" "]
[" "]
[" "]
[" "]
[" "]
[" "]
[" "]
[" "]
[" "]
[" "]
[" "]
[" "]
[" "]
[" "]
[" "]
[" "]
[" "]
[" "]
[" "]
[" "]
[" "]
[" "]
[" "]
[" "]
[" "]
[" "]
[" "]
[" "]
[" "]
[" "]
[" "]
[" "]
[" "]
[" "]
[" "]
[" "]
[" "]
[{"$f":"H6274 & \" \" &G6274","v":" "}]
[" "]
[" "]
[" "]
[" "]
[" "]
[" "]
[" "]
[" "]
[" "]
[" "]
[" "]
[" "]
[" "]
[" "]
[" "]
[" "]
[" "]
[" "]
[" "]
[" "]
[" "]
[" "]
[" "]
[" "]
[" "]
[" "]
[" "]
[" "]
[" "]
[" "]
[" "]
[" "]
[" "]
[" "]
[" "]
[" "]
[" "]
[" "]
[" "]
[" "]
[" "]
[" "]
[" "]
[" "]
[" "]
[" "]
[" "]
[" "]
[" "]
[" "]
[" "]
[" "]
[" "]
[" "]
[" "]
[" "]
[" "]
[" "]
[" "]
[" "]
[" "]
[" "]
[" "]
[{"$f":"H6338 & \" \" &G6338","v":" "}]
[" "]
[" "]
[" "]
[" "]
[" "]
[" "]
[" "]
[" "]
[" "]
[" "]
[" "]
[" "]
[" "]
[" "]
[" "]
[" "]
[" "]
[" "]
[" "]
[" "]
[" "]
[" "]
[" "]
[" "]
[" "]
[" "]
[" "]
[" "]
[" "]
[" "]
[" "]
[" "]
[" "]
[" "]
[" "]
[" "]
[" "]
[" "]
[" "]
[" "]
[" "]
[" "]
[" "]
[" "]
[" "]
[" "]
[" "]
[" "]
[" "]
[" "]
[" "]
[" "]
[" "]
[" "]
[" "]
[" "]
[" "]
[" "]
[" "]
[" "]
[" "]
[" "]
[" "]
[{"$f":"H6402 & \" \" &G6402","v":" "}]
[" "]
[" "]
[" "]
[" "]
[" "]
[" "]
[" "]
[" "]
[" "]
[" "]
[" "]
[" "]
[" "]
[" "]
[" "]
[" "]
[" "]
[" "]
[" "]
[" "]
[" "]
[" "]
[" "]
[" "]
[" "]
[" "]
[" "]
[" "]
[" "]
[" "]
[" "]
[" "]
[" "]
[" "]
[" "]
[" "]
[" "]
[" "]
[" "]
[" "]
[" "]
[" "]
[" "]
[" "]
[" "]
[" "]
[" "]
[" "]
[" "]
[" "]
[" "]
[" "]
[" "]
[" "]
[" "]
[" "]
[" "]
[" "]
[" "]
[" "]
[" "]
[" "]
[" "]
[{"$f":"H6466 & \" \" &G6466","v":" "}]
[" "]
[" "]
[" "]
[" "]
[" "]
[" "]
[" "]
[" "]
[" "]
[" "]
[" "]
[" "]
[" "]
[" "]
[" "]
[" "]
[" "]
[" "]
[" "]
[" "]
[" "]
[" "]
[" "]
[" "]
[" "]
[" "]
[" "]
[" "]
[" "]
[" "]
[" "]
[" "]
[" "]
[" "]
[" "]
[" "]
[" "]
[" "]
[" "]
[" "]
[" "]
[" "]
[" "]
[" "]
[" "]
[" "]
[" "]
[" "]
[" "]
[" "]
[" "]
[" "]
[" "]
[" "]
[" "]
[" "]
[" "]
[" "]
[" "]
[" "]
[" "]
[" "]
[" "]
[{"$f":"H6530 & \" \" &G6530","v":" "}]
[" "]
[" "]
[" "]
[" "]
[" "]
[" "]
[" "]
[" "]
[" "]
[" "]
[" "]
[" "]
[" "]
[" "]
[" "]
[" "]
[" "]
[" "]
[" "]
[" "]
[" "]
[" "]
[" "]
[" "]
[" "]
[" "]
[" "]
[" "]
[" "]
[" "]
[" "]
[" "]
[" "]
[" "]
[" "]
[" "]
[" "]
[" "]
[" "]
[" "]
[" "]
[" "]
[" "]
[" "]
[" "]
[" "]
[" "]
[" "]
[" "]
[" "]
[" "]
[" "]
[" "]
[" "]
[" "]
[" "]
[" "]
[" "]
[" "]
[" "]
[" "]
[" "]
[" "]
[{"$f":"H6594 & \" \" &G6594","v":" "}]
[" "]
[" "]
[" "]
[" "]
[" "]
[" "]
[" "]
[" "]
[" "]
[" "]
[" "]
[" "]
[" "]
[" "]
[" "]
[" "]
[" "]
[" "]
[" "]
[" "]
[" "]
[" "]
[" "]
[" "]
[" "]
[" "]
[" "]
[" "]
[" "]
[" "]
[" "]
[" "]
[" "]
[" "]
[" "]
[" "]
[" "]
[" "]
[" "]
[" "]
[" "]
[" "]
[" "]
[" "]
[" "]
[" "]
[" "]
[" "]
[" "]
[" "]
[" "]
[" "]
[" "]
[" "]
[" "]
[" "]
[" "]
[" "]
[" "]
[" "]
[" "]
[" "]
[" "]
[{"$f":"H6658 & \" \" &G6658","v":" "}]
[" "]
[" "]
[" "]
[" "]
[" "]
[" "]
[" "]
[" "]
[" "]
[" "]
[" "]
[" "]
[" "]
[" "]
[" "]
[" "]
[" "]
[" "]
[" "]
[" "]
[" "]
[" "]
[" "]
[" "]
[" "]
[" "]
[" "]
[" "]
[" "]
[" "]
[" "]
[" "]
[" "]
[" "]
[" "]
[" "]
[" "]
[" "]
[" "]
[" "]
[" "]
[" "]
[" "]
[" "]
[" "]
[" "]
[" "]
[" "]
[" "]
[" "]
[" "]
[" "]
[" "]
[" "]
[" "]
[" "]
[" "]
[" "]
[" "]
[" "]
[" "]
[" "]
[" "]
[{"$f":"H6722 & \" \" &G6722","v":" "}]
[" "]
[" "]
[" "]
[" "]
[" "]
[" "]
[" "]
[" "]
[" "]
[" "]
[" "]
[" "]
[" "]
[" "]
[" "]
[" "]
[" "]
[" "]
[" "]
[" "]
[" "]
[" "]
[" "]
[" "]
[" "]
[" "]
[" "]
[" "]
[" "]
[" "]
[" "]
[" "]
[" "]
[" "]
[" "]
[" "]
[" "]
[" "]
[" "]
[" "]
[" "]
[" "]
[" "]
[" "]
[" "]
[" "]
[" "]
[" "]
[" "]
[" "]
[" "]
[" "]
[" "]
[" "]
[" "]
[" "]
[" "]
[" "]
[" "]
[" "]
[" "]
[" "]
[" "]
[{"$f":"H6786 & \" \" &G6786","v":" "}]
[" "]
[" "]
[" "]
[" "]
[" "]
[" "]
[" "]
[" "]
[" "]
[" "]
[" "]
[" "]
[" "]
[" "]
[" "]
[" "]
[" "]
[" "]
[" "]
[" "]
[" "]
[" "]
[" "]
[" "]
[" "]
[" "]
[" "]
[" "]
[" "]
[" "]
[" "]
[" "]
[" "]
[" "]
[" "]
[" "]
[" "]
[" "]
[" "]
[" "]
[" "]
[" "]
[" "]
[" "]
[" "]
[" "]
[" "]
[" "]
[" "]
[" "]
[" "]
[" "]
[" "]
[" "]
[" "]
[" "]
[" "]
[" "]
[" "]
[" "]
[" "]
[" "]
[" "]
[{"$f":"H6850 & \" \" &G6850","v":" "}]
[" "]
[" "]
[" "]
[" "]
[" "]
[" "]
[" "]
[" "]
[" "]
[" "]
[" "]
[" "]
[" "]
[" "]
[" "]
[" "]
[" "]
[" "]
[" "]
[" "]
[" "]
[" "]
[" "]
[" "]
[" "]
[" "]
[" "]
[" "]
[" "]
[" "]
[" "]
[" "]
[" "]
[" "]
[" "]
[" "]
[" "]
[" "]
[" "]
[" "]
[" "]
[" "]
[" "]
[" "]
[" "]
[" "]
[" "]
[" "]
[" "]
[" "]
[" "]
[" "]
[" "]
[" "]
[" "]
[" "]
[" "]
[" "]
[" "]
[" "]
[" "]
[" "]
[" "]
[{"$f":"H6914 & \" \" &G6914","v":" "}]
[" "]
[" "]
[" "]
[" "]
[" "]
[" "]
[" "]
[" "]
[" "]
[" "]
[" "]
[" "]
[" "]
[" "]
[" "]
[" "]
[" "]
[" "]
[" "]
[" "]
[" "]
[" "]
[" "]
[" "]
[" "]
[" "]
[" "]
[" "]
[" "]
[" "]
[" "]
[" "]
[" "]
[" "]
[" "]
[" "]
[" "]
[" "]
[" "]
[" "]
[" "]
[" "]
[" "]
[" "]
[" "]
[" "]
[" "]
[" "]
[" "]
[" "]
[" "]
[" "]
[" "]
[" "]
[" "]
[" "]
[" "]
[" "]
[" "]
[" "]
[" "]
[" "]
[" "]
[{"$f":"H6978 & \" \" &G6978","v":" "}]
[" "]
[" "]
[" "]
[" "]
[" "]
[" "]
[" "]
[" "]
[" "]
[" "]
[" "]
[" "]
[" "]
[" "]
[" "]
[" "]
[" "]
[" "]
[" "]
[" "]
[" "]
[" "]
[" "]
[" "]
[" "]
[" "]
[" "]
[" "]
[" "]
[" "]
[" "]
[" "]
[" "]
[" "]
[" "]
[" "]
[" "]
[" "]
[" "]
[" "]
[" "]
[" "]
[" "]
[" "]
[" "]
[" "]
[" "]
[" "]
[" "]
[" "]
[" "]
[" "]
[" "]
[" "]
[" "]
[" "]
[" "]
[" "]
[" "]
[" "]
[" "]
[" "]
[" "]
[{"$f":"H7042 & \" \" &G7042","v":" "}]
[" "]
[" "]
[" "]
[" "]
[" "]
[" "]
[" "]
[" "]
[" "]
[" "]
[" "]
[" "]
[" "]
[" "]
[" "]
[" "]
[" "]
[" "]
[" "]
[" "]
[" "]
[" "]
[" "]
[" "]
[" "]
[" "]
[" "]
[" "]
[" "]
[" "]
[" "]
[" "]
[" "]
[" "]
[" "]
[" "]
[" "]
[" "]
[" "]
[" "]
[" "]
[" "]
[" "]
[" "]
[" "]
[" "]
[" "]
[" "]
[" "]
[" "]
[" "]
[" "]
[" "]
[" "]
[" "]
[" "]
[" "]
[" "]
[" "]
[" "]
[" "]
[" "]
[" "]
[{"$f":"H7106 & \" \" &G7106","v":" "}]
[" "]
[" "]
[" "]
[" "]
[" "]
[" "]
[" "]
[" "]
[" "]
[" "]
[" "]
[" "]
[" "]
[" "]
[" "]
[" "]
[" "]
[" "]
[" "]
[" "]
[" "]
[" "]
[" "]
[" "]
[" "]
[" "]
[" "]
[" "]
[" "]
[" "]
[" "]
[" "]
[" "]
[" "]
[" "]
[" "]
[" "]
[" "]
[" "]
[" "]
[" "]
[" "]
[" "]
[" "]
[" "]
[" "]
[" "]
[" "]
[" "]
[" "]
[" "]
[" "]
[" "]
[" "]
[" "]
[" "]
[" "]
[" "]
[" "]
[" "]
[" "]
[" "]
[" "]
[{"$f":"H7170 & \" \" &G7170","v":" "}]
[" "]
[" "]
[" "]
[" "]
[" "]
[" "]
[" "]
[" "]
[" "]
[" "]
[" "]
[" "]
[" "]
[" "]
[" "]
["DUCROCQ VINCENT","124470I",32,62,13368,"WIMILLE","VINCENT","DUCROCQ",null,"M"]

{"sheet":"MACROS","index":7,"n_rows":0,"n_cols":0,"rows_kept":0,"cut":false,"hidden":true,"merged":[]}

{"sheet":"Bordereau Invité Finale France","index":8,"n_rows":22,"n_cols":11,"rows_kept":22,"cut":false,"hidden":true,"merged":[[2,10,6,12],[12,2,12,3],[13,2,13,3],[11,6,11,8],[5,1,5,2],[4,1,4,2],[9,5,9,6],[8,3,8,5],[9,7,9,8],[11,2,11,3],[11,4,11,5],[14,2,14,4],[21,1,21,8],[19,1,19,3],[19,4,19,7],[18,2,18,3],[18,5,18,6]]}
[]
[]
[null,null,null,null,null,null,null,null,null,null,"Remplissage de la Feuille automatique"]
[]
[null,"Mode de Jeu :",null,"Cadre 42/2",null,"Catégorie :","Nationale 3"]
[null,"Qui se disputera le :",null,"du 18/04/14 au 20/04/14",null,"à :","Calais"]
[]
[]
[null,"*Nom –Prénom du 1er Joueur :",null,{"$f":"IF('Feuille de Match'!C35=\"\",\"\",'Feuille de Match'!C35)","v":""}]
[null,"*Club :",{"$f":"IF($D9<>\"\",VLOOKUP($D9,Inscriptions!$B$12:$N$17,4,FALSE),\"\")","v":""},null,null,"*Moyenne :",null,{"$f":"IF($D9<>\"\",VLOOKUP($D9,'Feuille de Match'!$C$34:$AC$37,27,FALSE),\"\")","v":""}]
[null,"*N° Licence :",{"$f":"IF($D9<>\"\",VLOOKUP($D9,Inscriptions!$B$12:$N$17,7,FALSE),\"\")","v":""}]
[null,"*Adresse :",{"$f":"IF($D9<>\"\",VLOOKUP($D9,Inscriptions!$B$12:$N$17,8,FALSE),\"\")","v":""},null,{"$f":"IF($D9<>\"\",VLOOKUP($D9,Inscriptions!$B$12:$N$17,9,FALSE),\"\")","v":""},null,{"$f":"IF($D9<>\"\",VLOOKUP($D9,Inscriptions!$B$12:$N$17,10,FALSE),\"\")","v":""}]
[null,"*Tel Fix :",{"$f":"IF($D9<>\"\",VLOOKUP($D9,Inscriptions!$B$12:$N$17,11,FALSE),\"\")","v":""},null,null,"*Signature Joueur :"]
[null,"*Tel Portable :",{"$f":"IF($D9<>\"\",VLOOKUP($D9,Inscriptions!$B$12:$N$17,12,FALSE),\"\")","v":""}]
[null,"*Mail :",{"$f":"IF($D9<>\"\",VLOOKUP($D9,Inscriptions!$B$12:$N$17,13,FALSE),\"\")","v":""}]
[]
[]
[]
[null,"À :",{"$f":"IF(Inscriptions!F5=\"\",\"\",Inscriptions!F5)","v":"WIZERNES"},null,"le : ",{"$f":"IF(Inscriptions!E5=\"\",\"\",Inscriptions!E5)","v":"2026-01-25"}]
[null,"Nom du responsable de L’épreuve :",null,null,{"$f":"IF('Feuille de Match'!V40=\"\",\"\",'Feuille de Match'!V40)","v":"Directeur de Jeu :"}]
[]
[null,{"$f":"IF('base de données'!D143=\"\",\"\",'base de données'!D143)","v":"CD62\nResponsable format « Cadre & 3 Bandes » : André DESBLEUMORTIERS\nMob : 06 - 08 - 95 - 70 - 58 – Email : cdesbleu@gmail.com"}]

{"sheet":"base de données","index":9,"n_rows":203,"n_cols":21,"rows_kept":203,"cut":false,"hidden":false,"merged":[[158,1,158,2],[158,3,158,6],[153,3,153,6],[153,1,153,2],[154,1,154,2],[155,1,155,2],[156,1,156,2],[157,1,157,2],[156,3,156,6],[155,8,155,11],[152,8,152,11],[153,8,153,11],[154,8,154,11],[154,3,154,6],[155,3,155,6],[158,8,158,11],[157,8,157,11],[149,3,149,6],[157,3,157,6],[152,3,152,6],[151,3,151,6],[150,3,150,6],[145,1,145,2],[135,1,135,2],[134,1,134,2],[133,1,133,2],[132,1,132,2],[131,1,131,2],[129,1,129,2],[117,1,117,2],[114,1,114,2],[118,1,118,2],[139,1,139,2],[123,1,123,2],[126,1,126,2],[127,1,127,2],[128,1,128,2],[119,1,119,2],[142,1,144,2],[116,1,116,2],[120,1,120,2],[180,5,180,6],[181,5,181,6],[182,5,182,6],[170,5,170,6],[171,5,171,6],[172,5,172,6],[173,5,173,6],[174,5,174,6],[175,5,175,6],[177,5,177,6],[178,5,178,6],[179,5,179,6],[110,5,110,6],[135,5,135,6],[136,5,136,6],[131,5,131,6],[120,5,120,6],[126,5,126,6],[127,5,127,6],[116,5,116,6],[121,5,121,6],[122,5,122,6],[123,5,123,6],[119,5,119,6],[128,5,128,6],[115,5,115,6],[114,5,114,6],[117,5,117,6],[118,5,118,6],[129,5,129,6],[134,5,134,6],[109,1,109,2],[108,1,108,2],[100,1,100,2],[99,1,99,2],[102,5,102,6],[104,5,104,6],[105,5,105,6],[102,1,102,2],[103,1,103,2],[104,1,104,2],[107,1,107,2],[148,3,148,6],[146,3,146,6],[145,3,145,6],[142,3,144,8],[156,8,156,11],[151,1,151,2],[124,5,124,6],[162,1,163,4],[150,1,150,2],[125,1,125,2],[148,1,148,2],[146,1,146,2],[149,1,149,2],[152,1,152,2],[147,3,147,6],[137,5,137,6],[132,5,132,6],[124,1,124,2],[136,1,136,2],[137,1,137,2],[125,5,125,6],[130,5,130,6],[147,1,147,2],[138,5,138,6],[109,5,109,6],[106,5,106,6],[93,5,93,6],[101,1,101,2],[101,5,101,6],[111,5,111,6],[130,1,130,2],[139,5,139,6],[115,1,115,2],[121,1,121,2],[122,1,122,2],[105,1,105,2],[103,5,103,6],[133,5,133,6],[106,1,106,2],[98,5,98,6],[93,1,93,2],[96,1,96,2],[98,1,98,2],[113,5,113,6],[107,5,107,6],[108,5,108,6],[113,1,113,2],[110,1,110,2],[83,5,83,6],[82,5,82,7],[86,5,86,6],[94,5,94,6],[95,5,95,6],[99,5,99,6],[100,5,100,6],[92,5,92,6],[95,1,95,2],[94,1,94,2],[91,1,91,2],[85,1,85,2],[87,5,87,6],[88,1,88,2],[87,1,87,2],[90,1,90,2],[4,13,5,19],[111,1,111,2],[112,1,112,2],[71,1,73,2],[83,1,83,2],[88,5,88,6],[91,5,91,6],[85,5,85,6],[92,1,92,2],[96,5,96,6],[97,1,97,2],[97,5,97,6],[86,1,86,2],[89,5,89,6],[90,5,90,6],[89,1,89,2],[68,2,68,3],[67,2,67,3],[112,5,112,6],[84,5,84,6],[84,1,84,2],[4,1,4,3],[5,1,50,1],[5,2,6,3],[64,2,64,3],[57,2,57,3],[66,2,66,3],[77,1,79,2],[74,1,76,2],[60,2,60,3],[77,3,79,5],[74,3,76,5],[71,3,73,5],[5,9,6,9],[56,2,56,3],[61,2,61,3],[62,2,62,3],[63,2,63,3],[5,7,6,7],[5,8,6,8],[5,4,6,4],[5,5,6,5],[5,6,6,6],[59,2,59,3],[58,2,58,3]]}
[]
[]
[]
[null,{"$f":"Inscriptions!E7 & \" \" &Inscriptions!F7","v":"Cadre Régionale 1"}]
[null,{"$f":"Inscriptions!E7 & \" \" &Inscriptions!F7 & \" \" &Inscriptions!C9","v":"Cadre Régionale 1 2,80 m"},null,null,null,null,null,null,null,null,null,null,null,"Liste des Clubs"]
[null,"Distance / Moyenne / Reprises\nAutomatiques","Cellule Référence\nFormule",null,"Mode de Jeu","Catégories","Moyenne","Reprises","Distances","Format\nBillard"]
[null,null,null,null,null,null,null,null,null,null,null,null,null,null,"Ville",null,"Adresse","Compléments","N° Téléphone","Identifiants\nClub"]
[null,null,{"$f":"E8 & \" \" &F8","v":"Libre Master"},{"$f":"E8 & \" \" &F8 & \" \" & J8","v":"Libre Master 3,10 m"},"Libre","Master","30,00et +","Aucune Limitation","400 Points GC","3,10 m",null,null,null,1,"CALAIS","ACADEMIE CALAISIENNE DE BILLARD","Rue Roger Martin du Gard 62100 CALAIS","Complexe Sportifs Calypso",321194394,13364,"acbc.calais@orange.fr"]
[null,null,"Libre Nationale 1","Libre Nationale 1 3,10 m","Libre","Nationale 1","10,00 à 29,99","Aucune Limitation","300 Points GC","3,10 m",null,null,null,2,"CAMBRAI","ACADEMIE DE CAMBRAI","La Paix de Nimégue 59400 CAMBRAI","Base de Loisirs la Citadelle",327783720,13482,"alanbury@free.fr"]
[null,null,"Libre Nationale 3",{"$f":"E10 & \" \" &F10 & \" \" & J10","v":"Libre Nationale 3 2,80 m"},"Libre","Nationale 3","6,00 à 12,49","Aucune Limitation","200 Points GC","2,80 m",null,null,null,3,"DENAIN","ACADEMIE LA CARAMBOLE","209, Rue de Villars 59220 DENAIN",null,687997694,13478,"jean-francois.espalieu@orange.fr"]
[null,null,"Libre Régionale 1","Libre Régionale 1 2,80 m","Libre","Régionale 1","4,00 à 5,99","Aucune Limitation","150 Points PC","2,80 m",null,null,null,4,"DOUAI","AMICALE BILLARD CLUB DOUAI","Rue d'Arras 59500 DOUAI","Complexe Sportif de la Porte D'Arras",327960636,13107,"abcdouaibillard@orange.fr"]
[null,null,"Libre Régionale 2","Libre Régionale 2 2,80 m","Libre","Régionale 2","2,30 à 3,99","Aucune Limitation","100 Points PC","2,80 m",null,null,null,5,"CUCQ","BILLARD CLUB DE CUCQ","Place de l'Ancienne Mairie 62780 CUCQ","Salle Robert Boucher",321845067,13363,"billard-de-cucq@wanadoo.fr"]
[null,null,"Libre Régionale 3","Libre Régionale 3 2,80 m","Libre","Régionale 3","1,20 à 2,29","Aucune Limitation","70 Points PC","2,80 m",null,null,null,6,"LENS","AVENIR BILLARD CLUB LENSOIS","Rue Jules Ferry 62300 LENS","COMPLEXE MAZEREUW ",321431862,13105,"billardlensois@sfr.fr"]
[null,null,"Libre Régionale 4","Libre Régionale 4 2,80 m","Libre","Régionale 4","0,00 à 1,19","Aucune Limitation","50 Points PC","2,80 m",null,null,null,7,"ROCNHIN","B.C. DU CANON D OR","Rue Pierre Dupont 59790 RONCHIN","Stade Léo Lagrange",320522000,13240,"bcco.ronchin@club-internet.fr"]
[null,null,"Libre Féminines","Libre Féminines 2,80 m","Libre","Féminines","1,20 et +","Aucune Limitation","150 Points PC","2,80 m",null,null,null,8,"AVION","BILLARD CLUB AVION","Avenue Théo Salingues Pére et Fils 62210 AVION","Groupement Juliot Curie",321430945,13102,"billard-club-avionnais@sfr.fr"]
[null,null,"Libre Nationale 3","Libre Nationale 3 2,80 m","Libre",{"$f":"F10","v":"Nationale 3"},"7,50 à 15,61","Aucune Limitation",null,"2,80 m",null,null,null,9,"BILLY","BILLARD CLUB BILLY MONTIGNY","3, Avenue de la Fosse 2, 62420 BILLY MONTIGNY","Salle Robert Desmazières",321201785,13103,"billybc@free.fr"]
[null,null,"Libre Régionale 1","Libre Régionale 1 2,80 m","Libre",{"$f":"F11","v":"Régionale 1"},"5,00 à 7,49","Aucune Limitation",null,"2,80 m",null,null,null,10,null,null,"52, rue Michel BRABANT 59860 BRUAY SUR L'ESCAUT",null,327416004,13481,"billard-club-bruaysien@wanadoo.fr"]
[null,null,"Libre Régionale 2","Libre Régionale 2 2,80 m","Libre",{"$f":"F12","v":"Régionale 2"},"2,87 à 4,99","Aucune Limitation",null,"2,80 m",null,null,null,11,"CARVIN","BILLARD CLUB CARVIN","Route de Libercourt 62220 CARVIN","Square du pont de Grès",321740644,13104,"billard.carvin@cegetel.net"]
[null,null,"Libre Régionale 3","Libre Régionale 3 2,80 m","Libre",{"$f":"F13","v":"Régionale 3"},"1,50 à 2,86","Aucune Limitation",null,"2,80 m",null,null,null,12,"FACHES","BILLARD CLUB DE FACHES THUMESNIL","173, Rue Carnot 59155 FACHES THUMESNIL","Hotel de Ville",320979487,13249,"bcft@free.fr"]
[null,null,"Libre Régionale 4","Libre Régionale 4 2,80 m","Libre",{"$f":"F14","v":"Régionale 4"},"0,00 à 1,49","Aucune Limitation",null,"2,80 m",null,null,null,13,"WIMILLE","BILLARD CLUB DE WIMILLE","72, Rue du Bon Secours 62126 WIMILLE","Centre Communal Frank Lefebvre",321310279,13368,"bcwimille@sfr.fr"]
[null,null,{"$f":"E21 & \" \" &F21","v":"Libre Challenge 2"},{"$f":"E21 & \" \" &F21 & \" \" & J21","v":"Libre Challenge 2 2,80 m"},"Libre","Challenge 2","0,00 à 1,99","Aucune Limitation","50  Reprises","2,80 m",null,null,null,14,"DIVION","BILLARD CLUB DIVIONNAIS","4, Impasse Romain Rolland 62460 DIVION","Ecole Nicolas Copernic",321533121,13117,"bcdivion@yahoo.fr"]
[null,null,{"$f":"E22 & \" \" &F22","v":"Libre 4 Billes"},{"$f":"E22 & \" \" &F22 & \" \" & J22","v":"Libre 4 Billes 2,80 m"},"Libre","4 Billes"," ","Aucune Limitation","40 Points","2,80 m",null,null,null,15,"ESTAIRES","BILLARD CLUB ESTAIROIS","Rue Jules Ferry - Impasse Louise de Marillac 59940 ESTAIRES",null,328501349,13252,"billardestairois@yahoo.fr"]
[null,null,"Libre Féminines","Libre Féminines 2,80 m","Libre",{"$f":"F15","v":"Féminines"},"1,50 et +","Aucune Limitation",null,"2,80 m",null,null,null,16,"FOUQUIERES","BILLARD CLUB FOUQUIERES LES LENS","38, Rue Sainte Ménéhould 62740 FOUQUIERES LES LENS","Centre François Mitterand","09-84-10-93-09",13123,"abaillez@numericable.fr"]
[null,null,"Cadre Master","Cadre Master 3,10 m","Cadre","Master","20,00 et +","Aucune Limitation","300 Points","3,10 m",null,null,null,17,"HOUPLINES","BILLARD CLUB HOUPLINES","195, Rue Victor Hugo 59116 HOUPLINES",null,320352153,13231,"pascal.vanthournout@wanadoo.fr"]
[null,null,"Cadre Nationale 1","Cadre Nationale 1 3,10 m","Cadre","Nationale 1","10,00 à 19,99","Aucune Limitation","200 Points","3,10 m",null,null,null,18,"OUTREAU","BILLARD CLUB OUTREAU","37, Rue Jean-Jaures 62230 OUTREAU",null,960071036,13356,"billard.outreau@orange.fr"]
[null,null,"Cadre Nationale 2","Cadre Nationale 2 3,10 m","Cadre","Nationale 2","6,00 à 9,99","Aucune Limitation","120 Points","3,10 m",null,null,null,19,"ST POL","BILLARD CLUB ST POLOIS","Avenue Berteaux  59430 SAINT POL SUR MER","Centre Romain Rolland",328612377,13360]
[null,null,"Cadre Nationale 3","Cadre Nationale 3 2,80 m","Cadre","Nationale 3","4,50 à 7,50","Aucune Limitation","120 Points","2,80 m",null,null,null,20,"VILLENEUVE D'ASCQ","BILLARD FRANCAIS VILLENEUVE D ASCQ","3, Rue Jean Vilar 59650 VILLENEUVE D'ASCQ","Quartier de l'hôtel de Ville (Biblioth)",320055726,13236]
[null,null,"Cadre Régionale 1","Cadre Régionale 1 2,80 m","Cadre","Régionale 1","0,00 à 4,50","Aucune Limitation","80 Points","2,80 m",null,null,null,21,"COURRIERES","COURRIERES SPORT BILLARD","28, Rue Salengro 62710 COURRIERES","Centre Social",321200335,13124,"billardcourrieres@gmail.com"]
[null,null,"Cadre Nationale 3","Cadre Nationale 3 2,80 m","Cadre",{"$f":"F27","v":"Nationale 3"},"3,89 à 6,93","Aucune Limitation",null,"2,80 m",null,null,null,22,"Le Touquet","LE TOUQUET BILLARD CLUB","Rond Point des Sport 62520 LE TOUQUET PARIS PLAGE","1er Etage de la salle des quatres saisons",321061976,13370,"billardclub@letouquet.com"]
[null,null,"Cadre Régionale 1","Cadre Régionale 1 2,80 m","Cadre",{"$f":"F28","v":"Régionale 1"},"0,00 à 3,88","Aucune Limitation",null,"2,80 m",null,null,null,23,"Grande Synthe","OLYMPIQUE GRANDE-SYNTHE","3 TER, Rue Rigaud 59760 GRANDE SYNTHE",null,328219706,13365]
[null,null,"Cadre Master","Cadre Master 3,10 m","Cadre","Master","18,00 et +","Aucune Limitation","250 Points","3,10 m",null,null,null,24,"Annoeullin","SPORT BILLARD CLUB ANNOEULLINOIS","Rue Maurice WATTRELOT 59112 ANNOEULLIN",null,975528481,13110]
[null,null,"Cadre Master","Cadre Master 3,10 m","Cadre","Master","12,00 et +","Aucune Limitation","200 Points","3,10 m",null,null,null,25,"Dunkerque","U.S DUNKERQUOISE","Place du Casino 59140 DUNKERQUE","Piscine Paul Asseman",328669183,13353]
[null,null,"1 Bande Masters","1 Bande Masters 3,10 m","1 Bande","Masters","5,00 et +","Aucune Limitation","150 Points","3,10 m",null,null,null,26,"Gravelines","U.S GRAVELINOISE","17, Rue de la Gare 59820 GRAVELINES",null,"non renseigner",13355]
[null,null,"1 Bande Nationale 1","1 Bande Nationale 1 3,10 m","1 Bande","Nationale 1","2,30 à 4,99","Aucune Limitation","100 Points","3,10 m",null,null,null,28,"Wizernes","WIZERNES BILLARD CLUB","Rue des Ecoles 62570 WIZERNES","Résidence Marie Curie",321392007,13369]
[null,null,"1 Bande Nationale 3","1 Bande Nationale 3 2,80 m","1 Bande","Nationale 3","1,75 à 2,57","Aucune Limitation","80 Points","2,80 m",null,null,null,null,"Licenciés indépendants 62","Licenciés indépendants 62"]
[null,null,"1 Bande Régionale 1","1 Bande Régionale 1 2,80 m","1 Bande","Régionale 1","1,00 à 1,74","Aucune Limitation","60 Points","2,80 m"]
[null,null,"1 Bande Régionale 2","1 Bande Régionale 2 2,80 m","1 Bande","Régionale 2","0,00 à 0,99","Aucune Limitation","40 Points","2,80 m"]
[null,null,"1 Bande Nationale 3","1 Bande Nationale 3 2,80 m","1 Bande",{"$f":"F35","v":"Nationale 3"},"2,19 à 3,21","Aucune Limitation",null,"2,80 m"]
[null,null,"1 Bande Régionale 1","1 Bande Régionale 1 2,80 m","1 Bande",{"$f":"F36","v":"Régionale 1"},"1,25 à 2,18","Aucune Limitation",null,"2,80 m"]
[null,null,"1 Bande Régionale 2","1 Bande Régionale 2 2,80 m","1 Bande",{"$f":"F37","v":"Régionale 2"},"0,00 à 1,24","Aucune Limitation",null,"2,80 m"]
[null,null,"3 Bandes Masters","3 Bandes Masters 3,10 m","3 Bandes","Masters","0,900 et +","Aucune Limitation","50 Points","3,10 m"]
[null,null,"3 Bandes Nationale 1","3 Bandes Nationale 1 3,10 m","3 Bandes","Nationale 1","0,700 à 0,900","Aucune Limitation","35 Points","3,10 m"]
[null,null,"3 Bandes Nationale 2","3 Bandes Nationale 2 3,10 m","3 Bandes","Nationale 2","0,500 à 0,700","Aucune Limitation","30 Points","3,10 m"]
[null,null,"3 Bandes Nationale 3","3 Bandes Nationale 3 2,80 m","3 Bandes","Nationale 3","0,400 à 0,581","60 Reprises","25 Points","2,80 m"]
[null,null,"3 Bandes Féminines","3 Bandes Féminines 2,80 m","3 Bandes","Féminines","0,250 et +","60 Reprises","25 Points","2,80 m"]
[null,null,"3 Bandes Régionale 1","3 Bandes Régionale 1 2,80 m","3 Bandes","Régionale 1","0,250 à 0,400","60 Reprises","20 Points","2,80 m"]
[null,null,"3 Bandes Régionale 2","3 Bandes Régionale 2 2,80 m","3 Bandes","Régionale 2","0,000 à 0,249","60 Reprises","15 Points","2,80 m"]
[null,null,"3 Bandes Nationale 3","3 Bandes Nationale 3 2,80 m","3 Bandes",{"$f":"F44","v":"Nationale 3"},"0,396 à 0,574","60 Reprises",null,"2,80 m"]
[null,null,"3 Bandes Féminines","3 Bandes Féminines 2,80 m","3 Bandes",{"$f":"F45","v":"Féminines"},"0,275 et +","50 Reprises",null,"2,80 m"]
[null,null,"3 Bandes Régionale 1","3 Bandes Régionale 1 2,80 m","3 Bandes",{"$f":"F46","v":"Régionale 1"},"0,275 à 0,395","20 Reprises",null,"2,80 m"]
[null,null,"3 Bandes Régionale 2","3 Bandes Régionale 2 2,80 m","3 Bandes",{"$f":"F47","v":"Régionale 2"},"0,000 à 0,274","60 Reprises",null,"2,80 m"]
[]
[]
[]
[]
[]
[null,{"$f":"Inscriptions!F9","v":"Finale CD62"},{"$f":"IF($B57<>\"\",VLOOKUP($B57,$B$58:$D$65,2,FALSE),\"\")","v":"Bordereau d'engagement Finale Ligue"}]
[null,"Finale CD62","Bordereau d'engagement Finale Ligue",null,null,null,"Liste Joueurs","Inscriptions"]
[null,"Finale Ligue","Bordereau d'engagement Finale Secteur",null,null,null,"Convocation","Feuille de Frais"]
[null,"Finale Secteur",null,null,null,null,"Feuille de Match","Bordereau d'engagement"]
[null,"Barrage Artois","Bordereau d'engagement Finale CD62"]
[null,"Barrage Maritime"]
[]
[]
[]
[]
[null,{"$f":"Inscriptions!C9","v":"2,80 m"},{"$f":"IF($B67<>\"\",VLOOKUP($B67,$B$68:$D$69,2,FALSE),\"\")","v":"Christian FONTAINE"}]
[null,"3,10 m","Claude FALSE"]
[null,"2,80 m","Christian FONTAINE"]
[]
[]
[null,{"$f":"IF('base de données'!C67=\"\",\"\",'base de données'!C67)","v":"Christian FONTAINE"},null,{"$f":"IF($B72<>\"\",VLOOKUP($B72,$B$75:$F$80,3,FALSE),\"\")","v":"CD62\nResponsable format « 2,80 m » : Christian FONTAINE\nMob : 06 - 63 - 42 - 28 - 19 – Email : cfont@hotmail.fr"}]
[]
[]
[null,{"$f":"'base de données'!C69","v":"Christian FONTAINE"},null,"CD62\nResponsable format « 2,80 m » : Christian FONTAINE\nMob : 06 - 63 - 42 - 28 - 19 – Email : cfont@hotmail.fr"]
[]
[]
[null,{"$f":"'base de données'!C68","v":"Claude FALSE"},null,"CD62\nResponsable format « 3,10 m » : Claude False\nMob : 06 - 66 - 10 - 48 - 19 – Email : claude9false@gmail.com"]
[]
[]
[]
[]
[null,null,null,{"$f":"Inscriptions!F9 & \" \" &Inscriptions!F7 & \" \" &Inscriptions!E7","v":"Finale CD62 Régionale 1 Cadre"},null,{"$f":"IF($D83<>\"\",VLOOKUP($D83,$B$84:$H$140,5,FALSE),\"\")","v":"André DESBLEUMORTIERS"}]
[null,{"$f":"D84 & \" \" &E84 & \" \" &H84","v":"Finale CD62 Nationale 1 Libre"},null,"Finale CD62","Nationale 1","Christian FONTAINE",null,"Libre"]
[null,"Finale CD62 Nationale 3 Libre",null,"Finale CD62","Nationale 3","Christian FONTAINE",null,"Libre"]
[null,"Finale CD62 Régionale 1 Libre",null,"Finale CD62","Régionale 1","Christian FONTAINE",null,"Libre"]
[null,"Finale CD62 Régionale 2 Libre",null,"Finale CD62","Régionale 2","Christian FONTAINE",null,"Libre"]
[null,"Finale CD62 Régionale 3 Libre",null,"Finale CD62","Régionale 3","Christian FONTAINE",null,"Libre"]
[null,"Finale CD62 Régionale 4 Libre",null,"Finale CD62","Régionale 4","Christian FONTAINE",null,"Libre"]
[null,"Finale CD62 Nationale 2 Cadre",null,"Finale CD62","Nationale 2","André DESBLEUMORTIERS",null,"Cadre"]
[null,"Finale CD62 Nationale 3 Cadre",null,"Finale CD62","Nationale 3","André DESBLEUMORTIERS",null,"Cadre"]
[null,"Finale CD62 Régionale 1 Cadre",null,"Finale CD62","Régionale 1","André DESBLEUMORTIERS",null,"Cadre"]
[null,"Finale CD62 Nationale 1 1 Bande",null,"Finale CD62","Nationale 1","Christian FONTAINE",null,"1 Bande"]
[null,"Finale CD62 Nationale 3 1 Bande",null,"Finale CD62","Nationale 3","Christian FONTAINE",null,"1 Bande"]
[null,"Finale CD62 Régionale 1 1 Bande",null,"Finale CD62","Régionale 1","Christian FONTAINE",null,"1 Bande"]
[null,"Finale CD62 Régionale 2 1Bande",null,"Finale CD62","Régionale 2","Christian FONTAINE",null,"1Bande"]
[null,"Finale CD62 Nationale 1 3 Bandes",null,"Finale CD62","Nationale 1","André DESBLEUMORTIERS",null,"3 Bandes"]
[null,"Finale CD62 Nationale 2 3 Bandes",null,"Finale CD62","Nationale 2","André DESBLEUMORTIERS",null,"3 Bandes"]
[null,"Finale CD62 Nationale 3 3 Bandes",null,"Finale CD62","Nationale 3","André DESBLEUMORTIERS",null,"3 Bandes"]
[null,"Finale CD62 Régionale 1 3 Bandes",null,"Finale CD62","Régionale 1","André DESBLEUMORTIERS",null,"3 Bandes"]
[null,"Finale CD62 Régionale 2 3 Bandes",null,"Finale CD62","Régionale 2","André DESBLEUMORTIERS",null,"3 Bandes"]
[null,"Finale CD62 Nationale 1 Cadre",null,"Finale CD62","Nationale 1","André DESBLEUMORTIERS",null,"Cadre"]
[null,"  "]
[null,"  "]
[null,"  "]
[null,"  "]
[null,"  "]
[null,{"$f":"D108 & \" \" &E108 & \" \" &H108","v":"  "}]
[null,"  "]
[null,"  "]
[null,"  "]
[null,"  "]
[null,"  "]
[null,"  "]
[null,"  "]
[null,"  "]
[null,"  "]
[null,"  "]
[null,"  "]
[null,"  "]
[null,"  "]
[null,"  "]
[null,"  "]
[null,"  "]
[null,"  "]
[null,"  "]
[null,"  "]
[null,"  "]
[null,"  "]
[null,"  "]
[null,"  "]
[null,"  "]
[null,"  "]
[null,"  "]
[null,"  "]
[null,"  "]
[null,"  "]
[null,"  "]
[null,"  "]
[null,"  "]
[]
[]
[null,{"$f":"B147","v":"André DESBLEUMRTIERS FINALE CD62"},null,{"$f":"IF(B143<>\"\",VLOOKUP(B143,$B$146:$H$151,3,FALSE),\"\")","v":"CD62\nResponsable format « Cadre & 3 Bandes » : André DESBLEUMORTIERS\nMob : 06 - 08 - 95 - 70 - 58 – Email : cdesbleu@gmail.com"}]
[]
["Noms Responsable"]
["Christian FONTAINE",{"$f":"A146& \" \" &H146","v":"Christian FONTAINE FINALE CD62"},null,"CD62\nResponsable format « Bande & Cadre » : Christian FONTAINE\nMob : 06 - 63 - 42 - 28 - 19 – Email : cfont@hotmail.fr",null,null,null,"FINALE CD62"]
["André DESBLEUMRTIERS",{"$f":"A147& \" \" &H147","v":"André DESBLEUMRTIERS FINALE CD62"},null,"CD62\nResponsable format « Cadre & 3 Bandes » : André DESBLEUMORTIERS\nMob : 06 - 08 - 95 - 70 - 58 – Email : cdesbleu@gmail.com",null,null,null,"FINALE CD62"]
[]
[]
[null,{"$f":"A150& \" \" &H150","v":" "}]
[null," "]
[null," "]
[null," "]
[null," "]
[null," "]
[null," "]
[null," "]
[null," "]
[null," "]
[]
[]
[]
[null,"Liste déroulante"]
[]
[null,"Club","Mode de jeu","Stade","Catégorie","1 er Tour"]
[]
[null,"ARRAS","Libre","1/2 Finale District","Nationale 1","J1 contre J2"]
[null,"AVION","Cadre","1/2 Finale Secteur","Nationale 2","J1 contre J3"]
[null,"BILLY","1 Bande","Eliminatoires","Nationale 3","J1 contre J4"]
[null,"CARVIN","3 Bande","Finale CD62","Régionale 1"]
[null,"LENS","5 Quilles","Finale District","Régionale 2","Comité Organisateur de la Finale Ligue"]
[null,"DOUAI",null,"Finale Ligue","Régionale 3","Pas de Calais"]
[null,"ANNOEULLIN",null,"Finale Secteur","Régionale 4","Oise"]
[null,"DIVION",null,"Tournoi","Junior R1","Somme"]
[null,"FOUQUIERES",null,"Barrage Artois","Junior R1","Nord"]
[null,"COURRIERES",null,"Barrage Maritime","Cadet R","Somme"]
[null,"HOUPLINES",null,null,"Benjamin R"]
[null,"VILLENEUVE D'ASCQ",null,null,"Junior R","Finaliste pour la Finale de la Finale Ligue"]
[null,"RONCHIN",null,null,"Cadet R","Pas de Calais"]
[null,"FACHES THUMESNIL",null,null,null,"Oise"]
[null,"ESTAIRES",null,null,null,"Somme"]
[null,"DUNKERQUE",null,null,null,"Nord"]
[null,"GRAVELINES",null,null,null,"Somme"]
[null,"OUTREAU"]
[null,"ST POL SUR MER"]
[null,"CUCQ"]
[null,"CALAIS"]
[null,"GRANDE SYNTHE"]
[null,"WIMILLE"]
[null,"WIZERNES"]
[null,"LE TOUQUET"]
[null,"DENAIN"]
[null,"BRUAY"]
[null,"CAMBRAI"]
[]
[]
[]
[]
[]
[null,null,{"$f":"IF(Inscriptions!F9=\"\",\"\",Inscriptions!F9)","v":"Finale CD62"}]
[null,null,"Barrage Artois","Remplaçant N°1 :","Remplaçant N°2 :"]
[null,null,"Finale CD62","Remplaçant Maritime :","Remplaçant Artois :"]
[null,null,"Finale Ligue","Remplaçant CD 62 :","Remplaçant CD 59 :"]

{"sheet":"Calendrier","index":10,"n_rows":62,"n_cols":15,"rows_kept":62,"cut":false,"hidden":false,"merged":[[0,3,0,6]]}
[null,null,null,"NE REMPLIR QUE LES CASES BLANCHE"]
[]
[null,"Date","Club","Mode de jeu","Catégorie","Stade",null,"Date de la Finale Suivante","Lieu de la Finale Suivante","Points","Limite de reprises","Moyennes","Format","Comité Organisateur de la Finale Ligue","Finaliste pour la Finale de la Finale Ligue"]
[{"$f":"F4 & \" \" &G4 & \" \" &C4","v":"Finale CD62 Libre Nationale 1 "},null,null,"Libre","Nationale 1","Finale CD62",{"$f":"D4 & \" \" &E4","v":"Libre Nationale 1"},null,null,{"$f":"IF($B4=\"\",\"\",IF($G4<>\"\",VLOOKUP($G4,'base de données'!$C$8:$J$51,7,FALSE),\"\"))","v":""},{"$f":"IF($B4=\"\",\"\",IF($G4<>\"\",VLOOKUP($G4,'base de données'!$C$8:$J$51,6,FALSE),\"\"))","v":""},{"$f":"IF($B4=\"\",\"\",IF($G4<>\"\",VLOOKUP($G4,'base de données'!$C$8:$J$51,5,FALSE),\"\"))","v":""},{"$f":"IF($B4=\"\",\"\",IF($G4<>\"\",VLOOKUP($G4,'base de données'!$C$8:$J$51,8,FALSE),\"\"))","v":""},null,"Pas de Calais"]
["Finale CD62 Libre Nationale 3 ",null,null,"Libre","Nationale 3","Finale CD62","Libre Nationale 3",null,null,{"$f":"IF($B5=\"\",\"\",IF($G5<>\"\",VLOOKUP($G5,'base de données'!$C$8:$J$51,7,FALSE),\"\"))","v":""},{"$f":"IF($B5=\"\",\"\",IF($G5<>\"\",VLOOKUP($G5,'base de données'!$C$8:$J$51,6,FALSE),\"\"))","v":""},{"$f":"IF($B5=\"\",\"\",IF($G5<>\"\",VLOOKUP($G5,'base de données'!$C$8:$J$51,5,FALSE),\"\"))","v":""},{"$f":"IF($B5=\"\",\"\",IF($G5<>\"\",VLOOKUP($G5,'base de données'!$C$8:$J$51,8,FALSE),\"\"))","v":""},null,"Pas de Calais"]
["Finale CD62 Libre Régionale 1 ",null,null,"Libre","Régionale 1","Finale CD62","Libre Régionale 1",null,null,{"$f":"IF($B6=\"\",\"\",IF($G6<>\"\",VLOOKUP($G6,'base de données'!$C$8:$J$51,7,FALSE),\"\"))","v":""},{"$f":"IF($B6=\"\",\"\",IF($G6<>\"\",VLOOKUP($G6,'base de données'!$C$8:$J$51,6,FALSE),\"\"))","v":""},{"$f":"IF($B6=\"\",\"\",IF($G6<>\"\",VLOOKUP($G6,'base de données'!$C$8:$J$51,5,FALSE),\"\"))","v":""},{"$f":"IF($B6=\"\",\"\",IF($G6<>\"\",VLOOKUP($G6,'base de données'!$C$8:$J$51,8,FALSE),\"\"))","v":""},null,"Pas de Calais"]
["Finale CD62 Libre Régionale 2 ",null,null,"Libre","Régionale 2","Finale CD62","Libre Régionale 2",null,null,{"$f":"IF($B7=\"\",\"\",IF($G7<>\"\",VLOOKUP($G7,'base de données'!$C$8:$J$51,7,FALSE),\"\"))","v":""},{"$f":"IF($B7=\"\",\"\",IF($G7<>\"\",VLOOKUP($G7,'base de données'!$C$8:$J$51,6,FALSE),\"\"))","v":""},{"$f":"IF($B7=\"\",\"\",IF($G7<>\"\",VLOOKUP($G7,'base de données'!$C$8:$J$51,5,FALSE),\"\"))","v":""},{"$f":"IF($B7=\"\",\"\",IF($G7<>\"\",VLOOKUP($G7,'base de données'!$C$8:$J$51,8,FALSE),\"\"))","v":""},null,"Pas de Calais"]
["Finale CD62 Libre Régionale 3 ",null,null,"Libre","Régionale 3","Finale CD62","Libre Régionale 3",null,null,{"$f":"IF($B8=\"\",\"\",IF($G8<>\"\",VLOOKUP($G8,'base de données'!$C$8:$J$51,7,FALSE),\"\"))","v":""},{"$f":"IF($B8=\"\",\"\",IF($G8<>\"\",VLOOKUP($G8,'base de données'!$C$8:$J$51,6,FALSE),\"\"))","v":""},{"$f":"IF($B8=\"\",\"\",IF($G8<>\"\",VLOOKUP($G8,'base de données'!$C$8:$J$51,5,FALSE),\"\"))","v":""},{"$f":"IF($B8=\"\",\"\",IF($G8<>\"\",VLOOKUP($G8,'base de données'!$C$8:$J$51,8,FALSE),\"\"))","v":""},null,"Pas de Calais"]
["Finale CD62 Libre Régionale 4 ",null,null,"Libre","Régionale 4","Finale CD62","Libre Régionale 4",null,null,{"$f":"IF($B9=\"\",\"\",IF($G9<>\"\",VLOOKUP($G9,'base de données'!$C$8:$J$51,7,FALSE),\"\"))","v":""},{"$f":"IF($B9=\"\",\"\",IF($G9<>\"\",VLOOKUP($G9,'base de données'!$C$8:$J$51,6,FALSE),\"\"))","v":""},{"$f":"IF($B9=\"\",\"\",IF($G9<>\"\",VLOOKUP($G9,'base de données'!$C$8:$J$51,5,FALSE),\"\"))","v":""},{"$f":"IF($B9=\"\",\"\",IF($G9<>\"\",VLOOKUP($G9,'base de données'!$C$8:$J$51,8,FALSE),\"\"))","v":""},null,"Pas de Calais"]
["Finale CD62 Cadre Nationale 1 ",null,null,"Cadre","Nationale 1","Finale CD62","Cadre Nationale 1",null,null,{"$f":"IF($B10=\"\",\"\",IF($G10<>\"\",VLOOKUP($G10,'base de données'!$C$8:$J$51,7,FALSE),\"\"))","v":""},{"$f":"IF($B10=\"\",\"\",IF($G10<>\"\",VLOOKUP($G10,'base de données'!$C$8:$J$51,6,FALSE),\"\"))","v":""},{"$f":"IF($B10=\"\",\"\",IF($G10<>\"\",VLOOKUP($G10,'base de données'!$C$8:$J$51,5,FALSE),\"\"))","v":""},{"$f":"IF($B10=\"\",\"\",IF($G10<>\"\",VLOOKUP($G10,'base de données'!$C$8:$J$51,8,FALSE),\"\"))","v":""},null,"Pas de Calais"]
["Finale CD62 Cadre Nationale 2 WIMILLE","2026-01-25","WIMILLE","Cadre","Nationale 2","Finale CD62","Cadre Nationale 2","15 & 16 / 02 / 2026","AISNE",{"$f":"IF($B11=\"\",\"\",IF($G11<>\"\",VLOOKUP($G11,'base de données'!$C$8:$J$51,7,FALSE),\"\"))","v":"120 Points"},{"$f":"IF($B11=\"\",\"\",IF($G11<>\"\",VLOOKUP($G11,'base de données'!$C$8:$J$51,6,FALSE),\"\"))","v":"Aucune Limitation"},{"$f":"IF($B11=\"\",\"\",IF($G11<>\"\",VLOOKUP($G11,'base de données'!$C$8:$J$51,5,FALSE),\"\"))","v":"6,00 à 9,99"},{"$f":"IF($B11=\"\",\"\",IF($G11<>\"\",VLOOKUP($G11,'base de données'!$C$8:$J$51,8,FALSE),\"\"))","v":"3,10 m"},null,"Pas de Calais"]
["Finale CD62 Cadre Nationale 3 DIVION","2026-01-25","DIVION","Cadre","Nationale 3","Finale CD62","Cadre Nationale 3","15 & 16 / 02 / 2025","NORD",{"$f":"IF($B12=\"\",\"\",IF($G12<>\"\",VLOOKUP($G12,'base de données'!$C$8:$J$51,7,FALSE),\"\"))","v":"120 Points"},{"$f":"IF($B12=\"\",\"\",IF($G12<>\"\",VLOOKUP($G12,'base de données'!$C$8:$J$51,6,FALSE),\"\"))","v":"Aucune Limitation"},{"$f":"IF($B12=\"\",\"\",IF($G12<>\"\",VLOOKUP($G12,'base de données'!$C$8:$J$51,5,FALSE),\"\"))","v":"4,50 à 7,50"},{"$f":"IF($B12=\"\",\"\",IF($G12<>\"\",VLOOKUP($G12,'base de données'!$C$8:$J$51,8,FALSE),\"\"))","v":"2,80 m"},null,"Pas de Calais"]
["Finale CD62 Cadre Régionale 1 WIZERNES","2026-01-25","WIZERNES","Cadre","Régionale 1","Finale CD62","Cadre Régionale 1","2025-02-15","OISE",{"$f":"IF($B13=\"\",\"\",IF($G13<>\"\",VLOOKUP($G13,'base de données'!$C$8:$J$51,7,FALSE),\"\"))","v":"80 Points"},{"$f":"IF($B13=\"\",\"\",IF($G13<>\"\",VLOOKUP($G13,'base de données'!$C$8:$J$51,6,FALSE),\"\"))","v":"Aucune Limitation"},{"$f":"IF($B13=\"\",\"\",IF($G13<>\"\",VLOOKUP($G13,'base de données'!$C$8:$J$51,5,FALSE),\"\"))","v":"0,00 à 4,50"},{"$f":"IF($B13=\"\",\"\",IF($G13<>\"\",VLOOKUP($G13,'base de données'!$C$8:$J$51,8,FALSE),\"\"))","v":"2,80 m"},null,"Pas de Calais"]
["Finale CD62 1 Bande Nationale 1 ",null,null,"1 Bande","Nationale 1","Finale CD62","1 Bande Nationale 1",null,null,{"$f":"IF($B14=\"\",\"\",IF($G14<>\"\",VLOOKUP($G14,'base de données'!$C$8:$J$51,7,FALSE),\"\"))","v":""},{"$f":"IF($B14=\"\",\"\",IF($G14<>\"\",VLOOKUP($G14,'base de données'!$C$8:$J$51,6,FALSE),\"\"))","v":""},{"$f":"IF($B14=\"\",\"\",IF($G14<>\"\",VLOOKUP($G14,'base de données'!$C$8:$J$51,5,FALSE),\"\"))","v":""},{"$f":"IF($B14=\"\",\"\",IF($G14<>\"\",VLOOKUP($G14,'base de données'!$C$8:$J$51,8,FALSE),\"\"))","v":""},null,"Pas de Calais"]
["Finale CD62 1 Bande Nationale 3 ",null,null,"1 Bande","Nationale 3","Finale CD62","1 Bande Nationale 3",null,null,{"$f":"IF($B15=\"\",\"\",IF($G15<>\"\",VLOOKUP($G15,'base de données'!$C$8:$J$51,7,FALSE),\"\"))","v":""},{"$f":"IF($B15=\"\",\"\",IF($G15<>\"\",VLOOKUP($G15,'base de données'!$C$8:$J$51,6,FALSE),\"\"))","v":""},{"$f":"IF($B15=\"\",\"\",IF($G15<>\"\",VLOOKUP($G15,'base de données'!$C$8:$J$51,5,FALSE),\"\"))","v":""},{"$f":"IF($B15=\"\",\"\",IF($G15<>\"\",VLOOKUP($G15,'base de données'!$C$8:$J$51,8,FALSE),\"\"))","v":""},null,"Pas de Calais"]
["Finale CD62 1 Bande Régionale 1 ",null,null,"1 Bande","Régionale 1","Finale CD62","1 Bande Régionale 1",null,null,{"$f":"IF($B16=\"\",\"\",IF($G16<>\"\",VLOOKUP($G16,'base de données'!$C$8:$J$51,7,FALSE),\"\"))","v":""},{"$f":"IF($B16=\"\",\"\",IF($G16<>\"\",VLOOKUP($G16,'base de données'!$C$8:$J$51,6,FALSE),\"\"))","v":""},{"$f":"IF($B16=\"\",\"\",IF($G16<>\"\",VLOOKUP($G16,'base de données'!$C$8:$J$51,5,FALSE),\"\"))","v":""},{"$f":"IF($B16=\"\",\"\",IF($G16<>\"\",VLOOKUP($G16,'base de données'!$C$8:$J$51,8,FALSE),\"\"))","v":""},null,"Pas de Calais"]
["Finale CD62 1 Bande Régionale 2 ",null,null,"1 Bande","Régionale 2","Finale CD62","1 Bande Régionale 2",null,null,{"$f":"IF($B17=\"\",\"\",IF($G17<>\"\",VLOOKUP($G17,'base de données'!$C$8:$J$51,7,FALSE),\"\"))","v":""},{"$f":"IF($B17=\"\",\"\",IF($G17<>\"\",VLOOKUP($G17,'base de données'!$C$8:$J$51,6,FALSE),\"\"))","v":""},{"$f":"IF($B17=\"\",\"\",IF($G17<>\"\",VLOOKUP($G17,'base de données'!$C$8:$J$51,5,FALSE),\"\"))","v":""},{"$f":"IF($B17=\"\",\"\",IF($G17<>\"\",VLOOKUP($G17,'base de données'!$C$8:$J$51,8,FALSE),\"\"))","v":""},null,"Pas de Calais"]
["Finale CD62 3 Bandes Nationale 1 ",null,null,"3 Bandes","Nationale 1","Finale CD62","3 Bandes Nationale 1",null,null,{"$f":"IF($B18=\"\",\"\",IF($G18<>\"\",VLOOKUP($G18,'base de données'!$C$8:$J$51,7,FALSE),\"\"))","v":""},{"$f":"IF($B18=\"\",\"\",IF($G18<>\"\",VLOOKUP($G18,'base de données'!$C$8:$J$51,6,FALSE),\"\"))","v":""},{"$f":"IF($B18=\"\",\"\",IF($G18<>\"\",VLOOKUP($G18,'base de données'!$C$8:$J$51,5,FALSE),\"\"))","v":""},{"$f":"IF($B18=\"\",\"\",IF($G18<>\"\",VLOOKUP($G18,'base de données'!$C$8:$J$51,8,FALSE),\"\"))","v":""},null,"Pas de Calais"]
["Finale CD62 3 Bandes Nationale 2 ",null,null,"3 Bandes","Nationale 2","Finale CD62","3 Bandes Nationale 2",null,null,{"$f":"IF($B19=\"\",\"\",IF($G19<>\"\",VLOOKUP($G19,'base de données'!$C$8:$J$51,7,FALSE),\"\"))","v":""},{"$f":"IF($B19=\"\",\"\",IF($G19<>\"\",VLOOKUP($G19,'base de données'!$C$8:$J$51,6,FALSE),\"\"))","v":""},{"$f":"IF($B19=\"\",\"\",IF($G19<>\"\",VLOOKUP($G19,'base de données'!$C$8:$J$51,5,FALSE),\"\"))","v":""},{"$f":"IF($B19=\"\",\"\",IF($G19<>\"\",VLOOKUP($G19,'base de données'!$C$8:$J$51,8,FALSE),\"\"))","v":""},null,"Pas de Calais"]
["Finale CD62 3 Bandes Nationale 3 ",null,null,"3 Bandes","Nationale 3","Finale CD62","3 Bandes Nationale 3",null,null,{"$f":"IF($B20=\"\",\"\",IF($G20<>\"\",VLOOKUP($G20,'base de données'!$C$8:$J$51,7,FALSE),\"\"))","v":""},{"$f":"IF($B20=\"\",\"\",IF($G20<>\"\",VLOOKUP($G20,'base de données'!$C$8:$J$51,6,FALSE),\"\"))","v":""},{"$f":"IF($B20=\"\",\"\",IF($G20<>\"\",VLOOKUP($G20,'base de données'!$C$8:$J$51,5,FALSE),\"\"))","v":""},{"$f":"IF($B20=\"\",\"\",IF($G20<>\"\",VLOOKUP($G20,'base de données'!$C$8:$J$51,8,FALSE),\"\"))","v":""},"Nord","Pas de Calais"]
["Finale CD62 3 Bandes Régionale 1 ",null,null,"3 Bandes","Régionale 1","Finale CD62","3 Bandes Régionale 1",null,null,{"$f":"IF($B21=\"\",\"\",IF($G21<>\"\",VLOOKUP($G21,'base de données'!$C$8:$J$51,7,FALSE),\"\"))","v":""},{"$f":"IF($B21=\"\",\"\",IF($G21<>\"\",VLOOKUP($G21,'base de données'!$C$8:$J$51,6,FALSE),\"\"))","v":""},{"$f":"IF($B21=\"\",\"\",IF($G21<>\"\",VLOOKUP($G21,'base de données'!$C$8:$J$51,5,FALSE),\"\"))","v":""},{"$f":"IF($B21=\"\",\"\",IF($G21<>\"\",VLOOKUP($G21,'base de données'!$C$8:$J$51,8,FALSE),\"\"))","v":""},null,"Pas de Calais"]
["Finale CD62 3 Bandes Régionale 2 ",null,null,"3 Bandes","Régionale 2","Finale CD62","3 Bandes Régionale 2",null,null,{"$f":"IF($B22=\"\",\"\",IF($G22<>\"\",VLOOKUP($G22,'base de données'!$C$8:$J$51,7,FALSE),\"\"))","v":""},{"$f":"IF($B22=\"\",\"\",IF($G22<>\"\",VLOOKUP($G22,'base de données'!$C$8:$J$51,6,FALSE),\"\"))","v":""},{"$f":"IF($B22=\"\",\"\",IF($G22<>\"\",VLOOKUP($G22,'base de données'!$C$8:$J$51,5,FALSE),\"\"))","v":""},{"$f":"IF($B22=\"\",\"\",IF($G22<>\"\",VLOOKUP($G22,'base de données'!$C$8:$J$51,8,FALSE),\"\"))","v":""},null,"Pas de Calais"]
["  ",null,null,null,null,null,null,null,null,{"$f":"IF($B23=\"\",\"\",IF($G23<>\"\",VLOOKUP($G23,'base de données'!$C$8:$J$51,7,FALSE),\"\"))","v":""},{"$f":"IF($B23=\"\",\"\",IF($G23<>\"\",VLOOKUP($G23,'base de données'!$C$8:$J$51,6,FALSE),\"\"))","v":""},{"$f":"IF($B23=\"\",\"\",IF($G23<>\"\",VLOOKUP($G23,'base de données'!$C$8:$J$51,5,FALSE),\"\"))","v":""},{"$f":"IF($B23=\"\",\"\",IF($G23<>\"\",VLOOKUP($G23,'base de données'!$C$8:$J$51,8,FALSE),\"\"))","v":""},null,"Pas de Calais"]
["  ",null,null,null,null,null,null,null,null,{"$f":"IF($B24=\"\",\"\",IF($G24<>\"\",VLOOKUP($G24,'base de données'!$C$8:$J$51,7,FALSE),\"\"))","v":""},{"$f":"IF($B24=\"\",\"\",IF($G24<>\"\",VLOOKUP($G24,'base de données'!$C$8:$J$51,6,FALSE),\"\"))","v":""},{"$f":"IF($B24=\"\",\"\",IF($G24<>\"\",VLOOKUP($G24,'base de données'!$C$8:$J$51,5,FALSE),\"\"))","v":""},{"$f":"IF($B24=\"\",\"\",IF($G24<>\"\",VLOOKUP($G24,'base de données'!$C$8:$J$51,8,FALSE),\"\"))","v":""},null,"Pas de Calais"]
["  ",null,null,null,null,null,null,null,null,{"$f":"IF($B25=\"\",\"\",IF($G25<>\"\",VLOOKUP($G25,'base de données'!$C$8:$J$51,7,FALSE),\"\"))","v":""},{"$f":"IF($B25=\"\",\"\",IF($G25<>\"\",VLOOKUP($G25,'base de données'!$C$8:$J$51,6,FALSE),\"\"))","v":""},{"$f":"IF($B25=\"\",\"\",IF($G25<>\"\",VLOOKUP($G25,'base de données'!$C$8:$J$51,5,FALSE),\"\"))","v":""},{"$f":"IF($B25=\"\",\"\",IF($G25<>\"\",VLOOKUP($G25,'base de données'!$C$8:$J$51,8,FALSE),\"\"))","v":""},null,"Pas de Calais"]
["  ",null,null,null,null,null,null,null,null,{"$f":"IF($B26=\"\",\"\",IF($G26<>\"\",VLOOKUP($G26,'base de données'!$C$8:$J$51,7,FALSE),\"\"))","v":""},{"$f":"IF($B26=\"\",\"\",IF($G26<>\"\",VLOOKUP($G26,'base de données'!$C$8:$J$51,6,FALSE),\"\"))","v":""},{"$f":"IF($B26=\"\",\"\",IF($G26<>\"\",VLOOKUP($G26,'base de données'!$C$8:$J$51,5,FALSE),\"\"))","v":""},{"$f":"IF($B26=\"\",\"\",IF($G26<>\"\",VLOOKUP($G26,'base de données'!$C$8:$J$51,8,FALSE),\"\"))","v":""},null,"Pas de Calais"]
["  ",null,null,null,null,null,null,null,null,{"$f":"IF($B27=\"\",\"\",IF($G27<>\"\",VLOOKUP($G27,'base de données'!$C$8:$J$51,7,FALSE),\"\"))","v":""},{"$f":"IF($B27=\"\",\"\",IF($G27<>\"\",VLOOKUP($G27,'base de données'!$C$8:$J$51,6,FALSE),\"\"))","v":""},{"$f":"IF($B27=\"\",\"\",IF($G27<>\"\",VLOOKUP($G27,'base de données'!$C$8:$J$51,5,FALSE),\"\"))","v":""},{"$f":"IF($B27=\"\",\"\",IF($G27<>\"\",VLOOKUP($G27,'base de données'!$C$8:$J$51,8,FALSE),\"\"))","v":""},null,"Pas de Calais"]
["  ",null,null,null,null,null,null,null,null,{"$f":"IF($B28=\"\",\"\",IF($G28<>\"\",VLOOKUP($G28,'base de données'!$C$8:$J$51,7,FALSE),\"\"))","v":""},{"$f":"IF($B28=\"\",\"\",IF($G28<>\"\",VLOOKUP($G28,'base de données'!$C$8:$J$51,6,FALSE),\"\"))","v":""},{"$f":"IF($B28=\"\",\"\",IF($G28<>\"\",VLOOKUP($G28,'base de données'!$C$8:$J$51,5,FALSE),\"\"))","v":""},{"$f":"IF($B28=\"\",\"\",IF($G28<>\"\",VLOOKUP($G28,'base de données'!$C$8:$J$51,8,FALSE),\"\"))","v":""},null,"Pas de Calais"]
["  ",null,null,null,null,null,null,null,null,{"$f":"IF($B29=\"\",\"\",IF($G29<>\"\",VLOOKUP($G29,'base de données'!$C$8:$J$51,7,FALSE),\"\"))","v":""},{"$f":"IF($B29=\"\",\"\",IF($G29<>\"\",VLOOKUP($G29,'base de données'!$C$8:$J$51,6,FALSE),\"\"))","v":""},{"$f":"IF($B29=\"\",\"\",IF($G29<>\"\",VLOOKUP($G29,'base de données'!$C$8:$J$51,5,FALSE),\"\"))","v":""},{"$f":"IF($B29=\"\",\"\",IF($G29<>\"\",VLOOKUP($G29,'base de données'!$C$8:$J$51,8,FALSE),\"\"))","v":""},null,"Pas de Calais"]
["  ",null,null,null,null,null,null,null,null,{"$f":"IF($B30=\"\",\"\",IF($G30<>\"\",VLOOKUP($G30,'base de données'!$C$8:$J$51,7,FALSE),\"\"))","v":""},{"$f":"IF($B30=\"\",\"\",IF($G30<>\"\",VLOOKUP($G30,'base de données'!$C$8:$J$51,6,FALSE),\"\"))","v":""},{"$f":"IF($B30=\"\",\"\",IF($G30<>\"\",VLOOKUP($G30,'base de données'!$C$8:$J$51,5,FALSE),\"\"))","v":""},{"$f":"IF($B30=\"\",\"\",IF($G30<>\"\",VLOOKUP($G30,'base de données'!$C$8:$J$51,8,FALSE),\"\"))","v":""},null,"Pas de Calais"]
["  ",null,null,null,null,null,null,null,null,{"$f":"IF($B31=\"\",\"\",IF($G31<>\"\",VLOOKUP($G31,'base de données'!$C$8:$J$51,7,FALSE),\"\"))","v":""},{"$f":"IF($B31=\"\",\"\",IF($G31<>\"\",VLOOKUP($G31,'base de données'!$C$8:$J$51,6,FALSE),\"\"))","v":""},{"$f":"IF($B31=\"\",\"\",IF($G31<>\"\",VLOOKUP($G31,'base de données'!$C$8:$J$51,5,FALSE),\"\"))","v":""},{"$f":"IF($B31=\"\",\"\",IF($G31<>\"\",VLOOKUP($G31,'base de données'!$C$8:$J$51,8,FALSE),\"\"))","v":""},null,"Pas de Calais"]
["  ",null,null,null,null,null,null,null,null,{"$f":"IF($B32=\"\",\"\",IF($G32<>\"\",VLOOKUP($G32,'base de données'!$C$8:$J$51,7,FALSE),\"\"))","v":""},{"$f":"IF($B32=\"\",\"\",IF($G32<>\"\",VLOOKUP($G32,'base de données'!$C$8:$J$51,6,FALSE),\"\"))","v":""},{"$f":"IF($B32=\"\",\"\",IF($G32<>\"\",VLOOKUP($G32,'base de données'!$C$8:$J$51,5,FALSE),\"\"))","v":""},{"$f":"IF($B32=\"\",\"\",IF($G32<>\"\",VLOOKUP($G32,'base de données'!$C$8:$J$51,8,FALSE),\"\"))","v":""},null,"Pas de Calais"]
["  ",null,null,null,null,null,null,null,null,{"$f":"IF($B33=\"\",\"\",IF($G33<>\"\",VLOOKUP($G33,'base de données'!$C$8:$J$51,7,FALSE),\"\"))","v":""},{"$f":"IF($B33=\"\",\"\",IF($G33<>\"\",VLOOKUP($G33,'base de données'!$C$8:$J$51,6,FALSE),\"\"))","v":""},{"$f":"IF($B33=\"\",\"\",IF($G33<>\"\",VLOOKUP($G33,'base de données'!$C$8:$J$51,5,FALSE),\"\"))","v":""},{"$f":"IF($B33=\"\",\"\",IF($G33<>\"\",VLOOKUP($G33,'base de données'!$C$8:$J$51,8,FALSE),\"\"))","v":""},null,"Pas de Calais"]
["  ",null,null,null,null,null,null,null,null,{"$f":"IF($B34=\"\",\"\",IF($G34<>\"\",VLOOKUP($G34,'base de données'!$C$8:$J$51,7,FALSE),\"\"))","v":""},{"$f":"IF($B34=\"\",\"\",IF($G34<>\"\",VLOOKUP($G34,'base de données'!$C$8:$J$51,6,FALSE),\"\"))","v":""},{"$f":"IF($B34=\"\",\"\",IF($G34<>\"\",VLOOKUP($G34,'base de données'!$C$8:$J$51,5,FALSE),\"\"))","v":""},{"$f":"IF($B34=\"\",\"\",IF($G34<>\"\",VLOOKUP($G34,'base de données'!$C$8:$J$51,8,FALSE),\"\"))","v":""},null,"Pas de Calais"]
["  ",null,null,null,null,null,null,null,null,{"$f":"IF($B35=\"\",\"\",IF($G35<>\"\",VLOOKUP($G35,'base de données'!$C$8:$J$51,7,FALSE),\"\"))","v":""},{"$f":"IF($B35=\"\",\"\",IF($G35<>\"\",VLOOKUP($G35,'base de données'!$C$8:$J$51,6,FALSE),\"\"))","v":""},{"$f":"IF($B35=\"\",\"\",IF($G35<>\"\",VLOOKUP($G35,'base de données'!$C$8:$J$51,5,FALSE),\"\"))","v":""},{"$f":"IF($B35=\"\",\"\",IF($G35<>\"\",VLOOKUP($G35,'base de données'!$C$8:$J$51,8,FALSE),\"\"))","v":""},null,"Pas de Calais"]
["  ",null,null,null,null,null,null,null,null,{"$f":"IF($B36=\"\",\"\",IF($G36<>\"\",VLOOKUP($G36,'base de données'!$C$8:$J$51,7,FALSE),\"\"))","v":""},{"$f":"IF($B36=\"\",\"\",IF($G36<>\"\",VLOOKUP($G36,'base de données'!$C$8:$J$51,6,FALSE),\"\"))","v":""},{"$f":"IF($B36=\"\",\"\",IF($G36<>\"\",VLOOKUP($G36,'base de données'!$C$8:$J$51,5,FALSE),\"\"))","v":""},{"$f":"IF($B36=\"\",\"\",IF($G36<>\"\",VLOOKUP($G36,'base de données'!$C$8:$J$51,8,FALSE),\"\"))","v":""},null,"Pas de Calais"]
["  ",null,null,null,null,null,null,null,null,{"$f":"IF($B37=\"\",\"\",IF($G37<>\"\",VLOOKUP($G37,'base de données'!$C$8:$J$51,7,FALSE),\"\"))","v":""},{"$f":"IF($B37=\"\",\"\",IF($G37<>\"\",VLOOKUP($G37,'base de données'!$C$8:$J$51,6,FALSE),\"\"))","v":""},{"$f":"IF($B37=\"\",\"\",IF($G37<>\"\",VLOOKUP($G37,'base de données'!$C$8:$J$51,5,FALSE),\"\"))","v":""},{"$f":"IF($B37=\"\",\"\",IF($G37<>\"\",VLOOKUP($G37,'base de données'!$C$8:$J$51,8,FALSE),\"\"))","v":""},null,"Pas de Calais"]
["  ",null,null,null,null,null,null,null,null,{"$f":"IF($B38=\"\",\"\",IF($G38<>\"\",VLOOKUP($G38,'base de données'!$C$8:$J$51,7,FALSE),\"\"))","v":""},{"$f":"IF($B38=\"\",\"\",IF($G38<>\"\",VLOOKUP($G38,'base de données'!$C$8:$J$51,6,FALSE),\"\"))","v":""},{"$f":"IF($B38=\"\",\"\",IF($G38<>\"\",VLOOKUP($G38,'base de données'!$C$8:$J$51,5,FALSE),\"\"))","v":""},{"$f":"IF($B38=\"\",\"\",IF($G38<>\"\",VLOOKUP($G38,'base de données'!$C$8:$J$51,8,FALSE),\"\"))","v":""},null,"Pas de Calais"]
["  ",null,null,null,null,null,null,null,null,{"$f":"IF($B39=\"\",\"\",IF($G39<>\"\",VLOOKUP($G39,'base de données'!$C$8:$J$51,7,FALSE),\"\"))","v":""},{"$f":"IF($B39=\"\",\"\",IF($G39<>\"\",VLOOKUP($G39,'base de données'!$C$8:$J$51,6,FALSE),\"\"))","v":""},{"$f":"IF($B39=\"\",\"\",IF($G39<>\"\",VLOOKUP($G39,'base de données'!$C$8:$J$51,5,FALSE),\"\"))","v":""},{"$f":"IF($B39=\"\",\"\",IF($G39<>\"\",VLOOKUP($G39,'base de données'!$C$8:$J$51,8,FALSE),\"\"))","v":""},null,"Pas de Calais"]
["  ",null,null,null,null,null,null,null,null,{"$f":"IF($B40=\"\",\"\",IF($G40<>\"\",VLOOKUP($G40,'base de données'!$C$8:$J$51,7,FALSE),\"\"))","v":""},{"$f":"IF($B40=\"\",\"\",IF($G40<>\"\",VLOOKUP($G40,'base de données'!$C$8:$J$51,6,FALSE),\"\"))","v":""},{"$f":"IF($B40=\"\",\"\",IF($G40<>\"\",VLOOKUP($G40,'base de données'!$C$8:$J$51,5,FALSE),\"\"))","v":""},{"$f":"IF($B40=\"\",\"\",IF($G40<>\"\",VLOOKUP($G40,'base de données'!$C$8:$J$51,8,FALSE),\"\"))","v":""},null,"Pas de Calais"]
["  ",null,null,null,null,null,null,null,null,{"$f":"IF($B41=\"\",\"\",IF($G41<>\"\",VLOOKUP($G41,'base de données'!$C$8:$J$51,7,FALSE),\"\"))","v":""},{"$f":"IF($B41=\"\",\"\",IF($G41<>\"\",VLOOKUP($G41,'base de données'!$C$8:$J$51,6,FALSE),\"\"))","v":""},{"$f":"IF($B41=\"\",\"\",IF($G41<>\"\",VLOOKUP($G41,'base de données'!$C$8:$J$51,5,FALSE),\"\"))","v":""},{"$f":"IF($B41=\"\",\"\",IF($G41<>\"\",VLOOKUP($G41,'base de données'!$C$8:$J$51,8,FALSE),\"\"))","v":""},null,"Pas de Calais"]
["  ",null,null,null,null,null,null,null,null,{"$f":"IF($B42=\"\",\"\",IF($G42<>\"\",VLOOKUP($G42,'base de données'!$C$8:$J$51,7,FALSE),\"\"))","v":""},{"$f":"IF($B42=\"\",\"\",IF($G42<>\"\",VLOOKUP($G42,'base de données'!$C$8:$J$51,6,FALSE),\"\"))","v":""},{"$f":"IF($B42=\"\",\"\",IF($G42<>\"\",VLOOKUP($G42,'base de données'!$C$8:$J$51,5,FALSE),\"\"))","v":""},{"$f":"IF($B42=\"\",\"\",IF($G42<>\"\",VLOOKUP($G42,'base de données'!$C$8:$J$51,8,FALSE),\"\"))","v":""},null,"Pas de Calais"]
["  ",null,null,null,null,null,null,null,"",{"$f":"IF($B43=\"\",\"\",IF($G43<>\"\",VLOOKUP($G43,'base de données'!$C$8:$J$51,7,FALSE),\"\"))","v":""},{"$f":"IF($B43=\"\",\"\",IF($G43<>\"\",VLOOKUP($G43,'base de données'!$C$8:$J$51,6,FALSE),\"\"))","v":""},{"$f":"IF($B43=\"\",\"\",IF($G43<>\"\",VLOOKUP($G43,'base de données'!$C$8:$J$51,5,FALSE),\"\"))","v":""},{"$f":"IF($B43=\"\",\"\",IF($G43<>\"\",VLOOKUP($G43,'base de données'!$C$8:$J$51,8,FALSE),\"\"))","v":""},null,"Pas de Calais"]
["  ",null,null,null,null,null,null,null,null,{"$f":"IF($B44=\"\",\"\",IF($G44<>\"\",VLOOKUP($G44,'base de données'!$C$8:$J$51,7,FALSE),\"\"))","v":""},{"$f":"IF($B44=\"\",\"\",IF($G44<>\"\",VLOOKUP($G44,'base de données'!$C$8:$J$51,6,FALSE),\"\"))","v":""},{"$f":"IF($B44=\"\",\"\",IF($G44<>\"\",VLOOKUP($G44,'base de données'!$C$8:$J$51,5,FALSE),\"\"))","v":""},{"$f":"IF($B44=\"\",\"\",IF($G44<>\"\",VLOOKUP($G44,'base de données'!$C$8:$J$51,8,FALSE),\"\"))","v":""},null,"Pas de Calais"]
["  ",null,null,null,null,null,null,null,null,{"$f":"IF($B45=\"\",\"\",IF($G45<>\"\",VLOOKUP($G45,'base de données'!$C$8:$J$51,7,FALSE),\"\"))","v":""},{"$f":"IF($B45=\"\",\"\",IF($G45<>\"\",VLOOKUP($G45,'base de données'!$C$8:$J$51,6,FALSE),\"\"))","v":""},{"$f":"IF($B45=\"\",\"\",IF($G45<>\"\",VLOOKUP($G45,'base de données'!$C$8:$J$51,5,FALSE),\"\"))","v":""},{"$f":"IF($B45=\"\",\"\",IF($G45<>\"\",VLOOKUP($G45,'base de données'!$C$8:$J$51,8,FALSE),\"\"))","v":""},null,"Pas de Calais"]
["  ",null,null,null,null,null,null,null,null,{"$f":"IF($B46=\"\",\"\",IF($G46<>\"\",VLOOKUP($G46,'base de données'!$C$8:$J$51,7,FALSE),\"\"))","v":""},{"$f":"IF($B46=\"\",\"\",IF($G46<>\"\",VLOOKUP($G46,'base de données'!$C$8:$J$51,6,FALSE),\"\"))","v":""},{"$f":"IF($B46=\"\",\"\",IF($G46<>\"\",VLOOKUP($G46,'base de données'!$C$8:$J$51,5,FALSE),\"\"))","v":""},{"$f":"IF($B46=\"\",\"\",IF($G46<>\"\",VLOOKUP($G46,'base de données'!$C$8:$J$51,8,FALSE),\"\"))","v":""},null,"Pas de Calais"]
["  ",null,null,null,null,null,null,null,null,{"$f":"IF($B47=\"\",\"\",IF($G47<>\"\",VLOOKUP($G47,'base de données'!$C$8:$J$51,7,FALSE),\"\"))","v":""},{"$f":"IF($B47=\"\",\"\",IF($G47<>\"\",VLOOKUP($G47,'base de données'!$C$8:$J$51,6,FALSE),\"\"))","v":""},{"$f":"IF($B47=\"\",\"\",IF($G47<>\"\",VLOOKUP($G47,'base de données'!$C$8:$J$51,5,FALSE),\"\"))","v":""},{"$f":"IF($B47=\"\",\"\",IF($G47<>\"\",VLOOKUP($G47,'base de données'!$C$8:$J$51,8,FALSE),\"\"))","v":""},null,"Pas de Calais"]
["  ",null,null,null,null,null,null,null,null,{"$f":"IF($B48=\"\",\"\",IF($G48<>\"\",VLOOKUP($G48,'base de données'!$C$8:$J$51,7,FALSE),\"\"))","v":""},{"$f":"IF($B48=\"\",\"\",IF($G48<>\"\",VLOOKUP($G48,'base de données'!$C$8:$J$51,6,FALSE),\"\"))","v":""},{"$f":"IF($B48=\"\",\"\",IF($G48<>\"\",VLOOKUP($G48,'base de données'!$C$8:$J$51,5,FALSE),\"\"))","v":""},{"$f":"IF($B48=\"\",\"\",IF($G48<>\"\",VLOOKUP($G48,'base de données'!$C$8:$J$51,8,FALSE),\"\"))","v":""},null,"Pas de Calais"]
["  ",null,null,null,null,null,null,null,null,{"$f":"IF($B49=\"\",\"\",IF($G49<>\"\",VLOOKUP($G49,'base de données'!$C$8:$J$51,7,FALSE),\"\"))","v":""},{"$f":"IF($B49=\"\",\"\",IF($G49<>\"\",VLOOKUP($G49,'base de données'!$C$8:$J$51,6,FALSE),\"\"))","v":""},{"$f":"IF($B49=\"\",\"\",IF($G49<>\"\",VLOOKUP($G49,'base de données'!$C$8:$J$51,5,FALSE),\"\"))","v":""},{"$f":"IF($B49=\"\",\"\",IF($G49<>\"\",VLOOKUP($G49,'base de données'!$C$8:$J$51,8,FALSE),\"\"))","v":""},null,"Pas de Calais"]
["  ",null,null,null,null,null,null,null,null,{"$f":"IF($B50=\"\",\"\",IF($G50<>\"\",VLOOKUP($G50,'base de données'!$C$8:$J$51,7,FALSE),\"\"))","v":""},{"$f":"IF($B50=\"\",\"\",IF($G50<>\"\",VLOOKUP($G50,'base de données'!$C$8:$J$51,6,FALSE),\"\"))","v":""},{"$f":"IF($B50=\"\",\"\",IF($G50<>\"\",VLOOKUP($G50,'base de données'!$C$8:$J$51,5,FALSE),\"\"))","v":""},{"$f":"IF($B50=\"\",\"\",IF($G50<>\"\",VLOOKUP($G50,'base de données'!$C$8:$J$51,8,FALSE),\"\"))","v":""},null,"Pas de Calais"]
["  ",null,null,null,null,null,null,null,null,{"$f":"IF($B51=\"\",\"\",IF($G51<>\"\",VLOOKUP($G51,'base de données'!$C$8:$J$51,7,FALSE),\"\"))","v":""},{"$f":"IF($B51=\"\",\"\",IF($G51<>\"\",VLOOKUP($G51,'base de données'!$C$8:$J$51,6,FALSE),\"\"))","v":""},{"$f":"IF($B51=\"\",\"\",IF($G51<>\"\",VLOOKUP($G51,'base de données'!$C$8:$J$51,5,FALSE),\"\"))","v":""},{"$f":"IF($B51=\"\",\"\",IF($G51<>\"\",VLOOKUP($G51,'base de données'!$C$8:$J$51,8,FALSE),\"\"))","v":""},null,"Pas de Calais"]
["  ",null,null,null,null,null,null,null,null,{"$f":"IF($B52=\"\",\"\",IF($G52<>\"\",VLOOKUP($G52,'base de données'!$C$8:$J$51,7,FALSE),\"\"))","v":""},{"$f":"IF($B52=\"\",\"\",IF($G52<>\"\",VLOOKUP($G52,'base de données'!$C$8:$J$51,6,FALSE),\"\"))","v":""},{"$f":"IF($B52=\"\",\"\",IF($G52<>\"\",VLOOKUP($G52,'base de données'!$C$8:$J$51,5,FALSE),\"\"))","v":""},{"$f":"IF($B52=\"\",\"\",IF($G52<>\"\",VLOOKUP($G52,'base de données'!$C$8:$J$51,8,FALSE),\"\"))","v":""},null,"Pas de Calais"]
["  ",null,null,null,null,null,null,null,null,{"$f":"IF($B53=\"\",\"\",IF($G53<>\"\",VLOOKUP($G53,'base de données'!$C$8:$J$51,7,FALSE),\"\"))","v":""},{"$f":"IF($B53=\"\",\"\",IF($G53<>\"\",VLOOKUP($G53,'base de données'!$C$8:$J$51,6,FALSE),\"\"))","v":""},{"$f":"IF($B53=\"\",\"\",IF($G53<>\"\",VLOOKUP($G53,'base de données'!$C$8:$J$51,5,FALSE),\"\"))","v":""},{"$f":"IF($B53=\"\",\"\",IF($G53<>\"\",VLOOKUP($G53,'base de données'!$C$8:$J$51,8,FALSE),\"\"))","v":""},null,"Pas de Calais"]
["  ",null,null,null,null,null,null,null,null,{"$f":"IF($B54=\"\",\"\",IF($G54<>\"\",VLOOKUP($G54,'base de données'!$C$8:$J$51,7,FALSE),\"\"))","v":""},{"$f":"IF($B54=\"\",\"\",IF($G54<>\"\",VLOOKUP($G54,'base de données'!$C$8:$J$51,6,FALSE),\"\"))","v":""},{"$f":"IF($B54=\"\",\"\",IF($G54<>\"\",VLOOKUP($G54,'base de données'!$C$8:$J$51,5,FALSE),\"\"))","v":""},{"$f":"IF($B54=\"\",\"\",IF($G54<>\"\",VLOOKUP($G54,'base de données'!$C$8:$J$51,8,FALSE),\"\"))","v":""},null,"Pas de Calais"]
["  ",null,null,null,null,null,null,null,null,{"$f":"IF($B55=\"\",\"\",IF($G55<>\"\",VLOOKUP($G55,'base de données'!$C$8:$J$51,7,FALSE),\"\"))","v":""},{"$f":"IF($B55=\"\",\"\",IF($G55<>\"\",VLOOKUP($G55,'base de données'!$C$8:$J$51,6,FALSE),\"\"))","v":""},{"$f":"IF($B55=\"\",\"\",IF($G55<>\"\",VLOOKUP($G55,'base de données'!$C$8:$J$51,5,FALSE),\"\"))","v":""},{"$f":"IF($B55=\"\",\"\",IF($G55<>\"\",VLOOKUP($G55,'base de données'!$C$8:$J$51,8,FALSE),\"\"))","v":""},null,"Pas de Calais"]
["   ",null,null,null,null,null,{"$f":"D56 & \" \" &E56","v":" "},null,null,{"$f":"IF($B56=\"\",\"\",IF($G56<>\"\",VLOOKUP($G56,'base de données'!$C$8:$J$51,7,FALSE),\"\"))","v":""},{"$f":"IF($B56=\"\",\"\",IF($G56<>\"\",VLOOKUP($G56,'base de données'!$C$8:$J$51,6,FALSE),\"\"))","v":""},{"$f":"IF($B56=\"\",\"\",IF($G56<>\"\",VLOOKUP($G56,'base de données'!$C$8:$J$51,5,FALSE),\"\"))","v":""},{"$f":"IF($B56=\"\",\"\",IF($G56<>\"\",VLOOKUP($G56,'base de données'!$C$8:$J$51,8,FALSE),\"\"))","v":""},null,"Pas de Calais"]
["   ",null,null,null,null,null," ",null,null,{"$f":"IF($B57=\"\",\"\",IF($G57<>\"\",VLOOKUP($G57,'base de données'!$C$8:$J$51,7,FALSE),\"\"))","v":""},{"$f":"IF($B57=\"\",\"\",IF($G57<>\"\",VLOOKUP($G57,'base de données'!$C$8:$J$51,6,FALSE),\"\"))","v":""},{"$f":"IF($B57=\"\",\"\",IF($G57<>\"\",VLOOKUP($G57,'base de données'!$C$8:$J$51,5,FALSE),\"\"))","v":""},{"$f":"IF($B57=\"\",\"\",IF($G57<>\"\",VLOOKUP($G57,'base de données'!$C$8:$J$51,8,FALSE),\"\"))","v":""},null,"Pas de Calais"]
["   ",null,null,null,null,null," ",null,"",{"$f":"IF($B58=\"\",\"\",IF($G58<>\"\",VLOOKUP($G58,'base de données'!$C$8:$J$51,7,FALSE),\"\"))","v":""},{"$f":"IF($B58=\"\",\"\",IF($G58<>\"\",VLOOKUP($G58,'base de données'!$C$8:$J$51,6,FALSE),\"\"))","v":""},{"$f":"IF($B58=\"\",\"\",IF($G58<>\"\",VLOOKUP($G58,'base de données'!$C$8:$J$51,5,FALSE),\"\"))","v":""},{"$f":"IF($B58=\"\",\"\",IF($G58<>\"\",VLOOKUP($G58,'base de données'!$C$8:$J$51,8,FALSE),\"\"))","v":""},null,"Pas de Calais"]
["   ",null,null,null,null,null," ",null,"",{"$f":"IF($B59=\"\",\"\",IF($G59<>\"\",VLOOKUP($G59,'base de données'!$C$8:$J$51,7,FALSE),\"\"))","v":""},{"$f":"IF($B59=\"\",\"\",IF($G59<>\"\",VLOOKUP($G59,'base de données'!$C$8:$J$51,6,FALSE),\"\"))","v":""},{"$f":"IF($B59=\"\",\"\",IF($G59<>\"\",VLOOKUP($G59,'base de données'!$C$8:$J$51,5,FALSE),\"\"))","v":""},{"$f":"IF($B59=\"\",\"\",IF($G59<>\"\",VLOOKUP($G59,'base de données'!$C$8:$J$51,8,FALSE),\"\"))","v":""},null,"Pas de Calais"]
["   ",null,null,null,null,null," ",null,"",{"$f":"IF($B60=\"\",\"\",IF($G60<>\"\",VLOOKUP($G60,'base de données'!$C$8:$J$51,7,FALSE),\"\"))","v":""},{"$f":"IF($B60=\"\",\"\",IF($G60<>\"\",VLOOKUP($G60,'base de données'!$C$8:$J$51,6,FALSE),\"\"))","v":""},{"$f":"IF($B60=\"\",\"\",IF($G60<>\"\",VLOOKUP($G60,'base de données'!$C$8:$J$51,5,FALSE),\"\"))","v":""},{"$f":"IF($B60=\"\",\"\",IF($G60<>\"\",VLOOKUP($G60,'base de données'!$C$8:$J$51,8,FALSE),\"\"))","v":""},null,"Pas de Calais"]
["   ",null,null,null,null,null," ",null,"",{"$f":"IF($B61=\"\",\"\",IF($G61<>\"\",VLOOKUP($G61,'base de données'!$C$8:$J$51,7,FALSE),\"\"))","v":""},{"$f":"IF($B61=\"\",\"\",IF($G61<>\"\",VLOOKUP($G61,'base de données'!$C$8:$J$51,6,FALSE),\"\"))","v":""},{"$f":"IF($B61=\"\",\"\",IF($G61<>\"\",VLOOKUP($G61,'base de données'!$C$8:$J$51,5,FALSE),\"\"))","v":""},{"$f":"IF($B61=\"\",\"\",IF($G61<>\"\",VLOOKUP($G61,'base de données'!$C$8:$J$51,8,FALSE),\"\"))","v":""},null,"Pas de Calais"]
["   ",null,null,null,null,null," ",null,"",{"$f":"IF($B62=\"\",\"\",IF($G62<>\"\",VLOOKUP($G62,'base de données'!$C$8:$J$51,7,FALSE),\"\"))","v":""},{"$f":"IF($B62=\"\",\"\",IF($G62<>\"\",VLOOKUP($G62,'base de données'!$C$8:$J$51,6,FALSE),\"\"))","v":""},{"$f":"IF($B62=\"\",\"\",IF($G62<>\"\",VLOOKUP($G62,'base de données'!$C$8:$J$51,5,FALSE),\"\"))","v":""},{"$f":"IF($B62=\"\",\"\",IF($G62<>\"\",VLOOKUP($G62,'base de données'!$C$8:$J$51,8,FALSE),\"\"))","v":""},null,"Pas de Calais"]